{"text_format":"1","workbook":"xlsx","n_sheets":5,"sheets":["Innledning","Bruksanvisning","Sjekkliste","Sheet1","Support sheet"],"not_rendered":{"charts":0,"images":2,"macros":1,"external_links":1,"defined_names":37,"comments":0,"pivot_tables":0},"unopened":[],"bounds":{"document_bytes":16777216,"sheet_cells":100000,"rows_first":2000,"rows_last":500,"rows_between":2000,"halvings":0,"cell_chars":16384,"cell_head_chars":4096},"cells_cut":0,"cells_raw":0,"read":"whole","date_system":"1900"}

{"sheet":"Innledning","index":0,"n_rows":12,"n_cols":25,"rows_kept":12,"cut":false,"hidden":false,"merged":[[14,2,14,6],[11,1,11,6],[9,1,9,6],[0,4,0,5],[0,6,0,7],[7,2,7,7],[10,2,10,6],[12,2,12,6]]}
[null,null,null,null,null,null,null,null,null,null,null,null,null,null,null,null,null,null,null,null,null,null,"Support data"]
[null,null,null,null,null,null,null,null,null,null,null,null,null,null,null,null,null,null,null,null,null,null,"Yes","P","+"]
[null,null,null,null,null,null,null,null,null,null,null,null,null,null,null,null,null,null,null,null,null,null,"No","Y","-"]
[null,null,null,null,null,null,null,null,null,null,null,null,null,null,null,null,null,null,null,null,null,null,null,"N"]
[null,null,null,null,null,null,null,null,null,null,null,null,null,null,null,null,null,null,null,null,null,null,null,"A"]
[null,null,null,null,null,null,null,null,null,null,null,null,null,null,null,null,null,null,null,null,null,null,null,"F"]
[]
[]
[]
[null,"ForIFRS sjekkliste er en elektronisk sjekkliste som gir en oversikt av presentasjons- og notekrav for regnskap som avlegges i henhold til forskriften om forenklet IFRS. Dette brukervennlige verktøyet i Excel er en støtte for revisor for å sikre at våre klienters regnskapsopplysinger er i tråd med kravene i forskriften, ved å svare \"Ja\", \"Nei\" eller \"Ikke Aktuelt\" på svarene i sjekklisten.\n"]
[]
[null,"Denne sjekklisten tar ikke for seg innregnings-, måle- og til dels klassifiseringskravene i forenklet IFRS. Det er derfor nødvendig med en detaljert gjennomgang av kravene i forskriften sammen med IFRS standardene for å dekke disse områdene."]

{"sheet":"Bruksanvisning","index":1,"n_rows":63,"n_cols":25,"rows_kept":63,"cut":false,"hidden":false,"merged":[[13,2,13,6],[0,4,0,5],[0,6,0,7],[7,2,7,7],[9,1,9,6],[11,2,11,6],[64,2,64,6],[65,2,65,6],[14,2,14,3],[31,2,31,6],[32,2,32,6],[47,2,47,6],[48,3,48,6],[55,2,55,6]]}
[null,null,null,null,null,null,null,null,null,null,null,null,null,null,null,null,null,null,null,null,null,null,"Support data"]
[null,null,null,null,null,null,null,null,null,null,null,null,null,null,null,null,null,null,null,null,null,null,"Yes","P","+"]
[null,null,null,null,null,null,null,null,null,null,null,null,null,null,null,null,null,null,null,null,null,null,"No","Y","-"]
[null,null,null,null,null,null,null,null,null,null,null,null,null,null,null,null,null,null,null,null,null,null,null,"N"]
[null,null,null,null,null,null,null,null,null,null,null,null,null,null,null,null,null,null,null,null,null,null,null,"A"]
[null,null,null,null,null,null,null,null,null,null,null,null,null,null,null,null,null,null,null,null,null,null,null,"F"]
[]
[]
[]
[null,"Denne sjekklisten omhandler alle krav til presentasjon og noteopplysninger for et regnskap som er avlagt i henhold til forskriften om forenklet IFRS. Alle sjekkpunkter er gruppert etter tema. \n\nNedenfor finner du en steg-for-steg illustrasjon for bruk av sjekklisten."]
[]
[null,1,"Legg inn generell informasjon i celle D3 till D7 på skillearket \"Sjekkliste\". "]
[]
[null,2,"Velg hvilke emner som er aktuelle for det regnskapet som skal kontrolleres. Bak hver emne-overskrift finner du en drop-down meny i kolonne G, velg Ja for alle de emner du skal ha med. "]
[null,null,"Figur 1: velg emne"]
[]
[]
[]
[]
[]
[]
[]
[]
[]
[]
[]
[]
[]
[]
[null,null,"Det er i utgangspunktet registrert Ja på utvalgte emner som er aktuelle for de aller fleste selskaper. "]
[]
[null,null,"Bruk expand/collaps-funksjonen helt til venstre for å se hvilke sjekkpunkter som er gruppert i et spesielt emne. "]
[null,null,"Figure 2: Se sjekkpunkter innenfor hvert tema. "]
[]
[]
[]
[]
[]
[]
[]
[]
[]
[]
[]
[]
[]
[]
[null,3,"For hvert sjekkpunkt legger du inn status i kolonne H ved å bruke drop-down-menyen. Følgende status-indikatorer er aktuelle:"]
[null,null,"Option","Description"]
[null,null,"P","P står for Ikke Påbegynt og er opprinnelig status for alle sjekkpunkter, dette betyr at punktet ikke er kontrollert enda. "]
[null,null,"J","J står for Ja og betyr at sjekkpunktet er kontrollert og at det er i henhold til kravet. "]
[null,null,"N","N står for Nei og betyr at sjekkpunktet er kontrollert og at det ikke er i henhold til kravet. "]
[null,null,"A","A står for Ikke aktuell, og betyr at dette sjekkpunktet ikke er aktuelt for det regnskapet som kontrolleres. "]
[null,null,"F","F står for Følges opp og betyr at sjekkpunktet er kontrollert, men at det må følges opp nærmere før man kan avgjøre om kravet er tilfredsstilt. "]
[]
[null,null,"Du kan bruke tabellen øverst til høyre for å følge med på framdriften:"]
[null,null,"Bar","Description"]
[null,null,"Total ","Totalt antall valgte spørsmål i sjekklisten"]
[null,null,"Ikke påbegynt","Totalt antall valgte spørsmål i sjekklisten som har status Ikke påbegynt"]
[null,null,"Ja","Totalt antall valgte spørsmål i sjekklisten som har status Ja"]
[null,null,"Nei","Totalt antall valgte spørsmål i sjekklisten som har status Nei"]
[null,null,"Ikke aktuelt","Totalt antall valgte spørsmål i sjekklisten som har status Ikke aktuelt"]
[null,null,"Følges opp","Totalt antall valgte spørsmål i sjekklisten som har status Følges opp"]

{"sheet":"Sjekkliste","index":2,"n_rows":850,"n_cols":13,"rows_kept":850,"cut":false,"hidden":false,"merged":[[7,8,7,9],[0,6,0,8],[0,4,0,5],[1,4,1,5],[1,6,1,9],[2,8,2,9],[1,1,1,3],[3,8,3,9],[4,8,4,9],[5,8,5,9],[6,8,6,9]]}
[]
[null,"Sjekkliste for formelle forhold og noteopplysninger etter forenklet IFRS 2019",null,null,"Svar",null,"Status"]
[null,null,"Klient:",null,"P",{"$f":"COUNTIFS($G$11:$G$849,1,$H$11:$H$849,$E3)","v":205},null,"Ikke Påbegynt",{"$f":"+F3","v":205}]
[null,null,"År:",null,"J",{"$f":"COUNTIFS($G$11:$G$849,1,$H$11:$H$849,$E4)","v":0},null,"Ja",0]
[null,null,"Partner:",null,"N",{"$f":"COUNTIFS($G$11:$G$849,1,$H$11:$H$849,$E5)","v":0},null,"Nei",0]
[null,null,"Utført av:",null,"A",{"$f":"COUNTIFS($G$11:$G$849,1,$H$11:$H$849,$E6)","v":0},null,"Ikke Aktuell",0]
[null,null,"Reviewer:",null,"F",{"$f":"COUNTIFS($G$11:$G$849,1,$H$11:$H$849,$E7)","v":0},null,"Følges Opp",0]
[null,null,null,null,null,{"$f":"COUNTIFS($G$11:$G$852,1)","v":205},null,"Total",205]
[null,null,"Referanse","Noteopplysningskrav","Endringer","Antall endringer","Aktuell?","Krav tilfredsstilt?","Kommentar","Kommentar fra reviewer"]
[null,null,null,null,null,null,null,{"$f":"COUNTIFS($B12:$B$849,B11&\"*\",$G12:$G$849,1,$H12:$H$849,$E$8)","v":0}]
[null,"A",null,"Notekrav som gjelder alle foretak som rapporterer under Forenklet IFRS",null,null,{"$f":"IF(COUNTIFS($B12:$B$849,$B11&\"*\",$G12:$G$849,\"Ja\")>0,\"Ja\",\"Nei\")","v":"Ja"}]
[null,"A1.",null,"Generelt",null,null,{"$f":"IF(COUNTIFS($B21:$B$849,$B12&\"*\",$G21:$G$849,\"Ja\")>0,\"Ja\",\"Nei\")","v":"Ja"}]
[null,null,null,"Informasjon om oppdatering 2019: \nFinansdepartementet har oppdatert forskriften om forenklet IFRS for regnskapsåret 2019. Forskriften har blitt oppdatert etter samme mal som i fjor, noe som innebærer at en fortsatt ikke har en fullstendig oppdatert forskrift som følge av at IFRS 9 erstattet IAS 39 i 2018. \nPå bakgrunn av disse forholdene, har det vært nødvendig å utarbeide sjekklisten basert på en fortolkning av ordlyden i forskriften.\nFor 2019 er det verdt å merke seg følgende:\nForenklingsreglene knyttet til IAS 39, gjelder tilsvarende for IFRS 9 så langt de passer. Dette er en videreføring av fjorårets oppdatering\nReferansen til fortolkningen IFRIC 4 i § 3-2 første ledd punkt 9 er slettet. Det er således klargjort at forskriften ikke gir unntak fra måle- og innregningsreglene i IFRS 16. Dette betyr at konserninterne avtaler må reflekteres i samsvar med IFRS 16 også i selskapsregnskap innenfor konsern som avlegger sitt konsernregnskap etter IFRS eller forenklet IFRS.\nVed første gangs implementering av forenklet IFRS i et selskaps- eller konsernregnskap innenfor et konsern som avlegger sitt konsernregnskap etter IFRS eller forenklet IFRS, vil man for IFRS 16 kunne anvende samme implementeringsdato og metode som er anvendt i konsernregnskapet til morselskapet. Forenklingen gjelder formelt kun for regnskapsåret 2019."]
[null,"A1.1.",null,"Hovedregler om noteopplysninger etter forenklet IFRS",null,{"$f":"SUMIF($B15:$B$849,$B14&\"*\",$F15:$F$849)","v":0},"Ja",null,{"$f":"IF($G14=\"Ja\",\"Total: \"&COUNTIFS($B15:$B$849,B14&\"*\",$G15:$G$849,1)&\" | P - \"&COUNTIFS($B15:$B$849,B14&\"*\",$G15:$G$849,1,$H15:$H$849,$E$3)&\" | J - \"&COUNTIFS($B15:$B$849,B14&\"*\",$G15:$G$849,1,$H15:$H$849,$E$4)&\" | N - \"&COUNTIFS($B15:$B$849,B14&\"*\",$G15:$G$849,1,$H15:$H$849,$E$5)&\" | A - \"&COUNTIFS($B15:$B$849,B14&\"*\",$G15:$G$849,1,$H15:$H$849,$E$6)&\" | F - \"&COUNTIFS($B15:$B$849,B14&\"*\",$G15:$G$849,1,$H15:$H$849,$E$7),\"\")","v":"Total: 0 | P - 0 | J - 0 | N - 0 | A - 0 | F - 0"}]
[null,null,"Forskriften \n§ 1-2\n","Regnskapspliktige som nevnt i § 1-1 i forskriften kan utarbeide selskapsregnskap og konsernregnskap i samsvar med forskrifter gitt i medhold av regnskapsloven § 3-9 annet ledd (internasjonale regnskapsstandarder), med de unntak og tillegg som følger av denne forskrift."]
[null,null,"Forskriften \n§ 4-1","Regnskap som utarbeides etter forskriften § 1-2, skal inneholde noteopplysninger i samsvar med kravene etter regnskapsloven kapittel 7. Kaptittel 7 II Noteopplysninger for små foretak kan ikke anvendes.\n\nKrav etter internasjonale regnskapsstandarder om opplysninger i noter til årsregnskapet kan fravikes for regnskap som utarbeides i henhold til denne forskrifts §1-2. Ved fravikelse etter dette ledd skal det likevel gis noteopplysninger i hht følgende:\n\na) Krav etter god regnksapsskikk så langt det er relevant for anvendte måle-, innregnings- og presentasjonsregler. Unntaksbestemmelser for små foretak kan ikke anvendes.\nb) Krav etter internasjonale regnskapsstandarder som angitt i § 4-2.  Disse er markert i oransje.\nc) Krav som angitt i § 4-3\n\nDet er ikke krav om sammenligningstall i noteopplysninger med mindre dette følger av regnskapsloven eller god regnskapsskikk. "]
[null,null,null,"Notekravene nedenfor skal som utgangspunkt alltid tas med når de er aktuelle, og kan kun utelates dersom de ikke er av betydning for å bedømme selskapets stilling og resultat (uvesentlige)."]
[null,null,null,"Det kan også være aktuelt å gi andre/ytterligere opplysninger enn de som dekkes av kravene nedenfor. Dette er aktuelt dersom ytterligere opplysninger er nødvendig for å gi et rettvisende bilde av den regnskapspliktiges eiendeler, gjeld, finansielle stilling og resultat. I så fall skal det gis informasjon gjennom noter, uavhengig av om informasjonskravet er eksplisitt angitt på gjeldende område. "]
[null,null,null,"Her finner du forskriften om forenklet IFRS:\n"]
[null,null,null,"Forskrift om forenklet anvendelse av internasjonale regnskapsstandarder"]
[null,"A1.2.",null,"Særforskrifter",null,{"$f":"SUMIF($B22:$B$849,$B21&\"*\",$F22:$F$849)","v":0},"Ja",null,{"$f":"IF($G21=\"Ja\",\"Total: \"&COUNTIFS($B22:$B$849,B21&\"*\",$G22:$G$849,1)&\" | P - \"&COUNTIFS($B22:$B$849,B21&\"*\",$G22:$G$849,1,$H22:$H$849,$E$3)&\" | J - \"&COUNTIFS($B22:$B$849,B21&\"*\",$G22:$G$849,1,$H22:$H$849,$E$4)&\" | N - \"&COUNTIFS($B22:$B$849,B21&\"*\",$G22:$G$849,1,$H22:$H$849,$E$5)&\" | A - \"&COUNTIFS($B22:$B$849,B21&\"*\",$G22:$G$849,1,$H22:$H$849,$E$6)&\" | F - \"&COUNTIFS($B22:$B$849,B21&\"*\",$G22:$G$849,1,$H22:$H$849,$E$7),\"\")","v":"Total: 1 | P - 1 | J - 0 | N - 0 | A - 0 | F - 0"}]
[null,"A1.2.1",null,"Vær oppmerksom på at flere bransjer har egne særforskrifter til regnskaploven som kan ha egne krav knyttet til formelle forhold i årsregnskapet. Det er ikke tatt hensyn til disse kravene i denne sjekklisten. Følgende bransjer har særforskrifter til regnskapsloven, er det vurdert om selskapet kommer inn under noen av disse reglene?",null,{"$f":"IF(AND(G22=1,E22=\"i\"),1,IF(AND(G22=1,E22=\"s\"),1,0))","v":0},{"$f":"IF($B22=\"\",\"0\",IF(INDEX($B$11:$H$849,MATCH(LEFT($B22,FIND(\"~\",SUBSTITUTE($B22,\".\",\"~\",LEN($B22)-LEN(SUBSTITUTE($B22,\".\",\"\"))))),$B$11:$B$849,0),MATCH(\"Aktuell?\",$B$9:$H$9,0))=\"Ja\",1,0))","v":1},"P"]
[null,null,null,"• Borettslag"]
[null,null,null,"• Betalingsforetak"]
[null,null,null,"• Pensjonsforetak"]
[null,null,null,"• Eiendomsmegler"]
[null,null,null,"• Verdipapirforetak, forvaltningsselskap og AIF-forvaltere med tillatelse"]
[null,null,null,"• Inkassovirksomhet"]
[null,null,null,"• Verdipapirfond"]
[null,null,null,"• Forsikringsselskaper"]
[null,null,null,"• Banker og finansieringsforetak"]
[null,"A1.3.",null,"Konsernregnskap",null,{"$f":"SUMIF($B33:$B$849,$B32&\"*\",$F33:$F$849)","v":0},"Ja",null,{"$f":"IF($G32=\"Ja\",\"Total: \"&COUNTIFS($B33:$B$849,B32&\"*\",$G33:$G$849,1)&\" | P - \"&COUNTIFS($B33:$B$849,B32&\"*\",$G33:$G$849,1,$H33:$H$849,$E$3)&\" | J - \"&COUNTIFS($B33:$B$849,B32&\"*\",$G33:$G$849,1,$H33:$H$849,$E$4)&\" | N - \"&COUNTIFS($B33:$B$849,B32&\"*\",$G33:$G$849,1,$H33:$H$849,$E$5)&\" | A - \"&COUNTIFS($B33:$B$849,B32&\"*\",$G33:$G$849,1,$H33:$H$849,$E$6)&\" | F - \"&COUNTIFS($B33:$B$849,B32&\"*\",$G33:$G$849,1,$H33:$H$849,$E$7),\"\")","v":"Total: 7 | P - 7 | J - 0 | N - 0 | A - 0 | F - 0"}]
[null,"A1.3.1","rskl § 3-7","Dersom konsernregnskap ikke er utarbeidet, ihht rskl § 3-7, er alle krav oppfylt:"]
[null,"A1.3.2",null,"•  Morselskapet er datterselskap av selskap hjemmehørende i EØS-land?",null,{"$f":"IF(AND(G34=1,E34=\"i\"),1,IF(AND(G34=1,E34=\"s\"),1,0))","v":0},{"$f":"IF($B34=\"\",\"0\",IF(INDEX($B$11:$H$849,MATCH(LEFT($B34,FIND(\"~\",SUBSTITUTE($B34,\".\",\"~\",LEN($B34)-LEN(SUBSTITUTE($B34,\".\",\"\"))))),$B$11:$B$849,0),MATCH(\"Aktuell?\",$B$9:$H$9,0))=\"Ja\",1,0))","v":1},"P"]
[null,"A1.3.3",null,"•  Underkonsernet inngår i morselskapets konsernregskap?",null,0,1,"P"]
[null,"A1.3.4",null,"•  Konsernregnskapet er utarbeidet og revidert i henhold til reglene i dette landet?",null,0,1,"P"]
[null,"A1.3.5",null,"•  Konsernregnskapet er på norsk, svensk, dansk eller engelsk?",null,0,1,"P"]
[null,"A1.3.6",null,"•  Minoriteter (mellom 0 og 10% av stemmene) ikke har bedt om konsernregnskap?",null,0,1,"P"]
[null,"A1.3.7",null,"•  Selskapet ikke har aksjer, grunnfondsbevis eller obligasjoner notert på børs eller lignende?",null,0,1,"P"]
[null,"A1.3.8","rskl § 6-5","Er eventuelle minoritetsinteresser ført opp under egenkapital i balansen og som fradrag i årsresultatet i resultatregnskapet; slik at regnskapet viser årsresultat før og etter minoritetsinteresser?",null,0,1,"P"]
[null,"A1.4.",null,"Hovedoppstillingene",null,{"$f":"SUMIF($B42:$B$849,$B41&\"*\",$F42:$F$849)","v":0},"Ja",null,{"$f":"IF($G41=\"Ja\",\"Total: \"&COUNTIFS($B42:$B$849,B41&\"*\",$G42:$G$849,1)&\" | P - \"&COUNTIFS($B42:$B$849,B41&\"*\",$G42:$G$849,1,$H42:$H$849,$E$3)&\" | J - \"&COUNTIFS($B42:$B$849,B41&\"*\",$G42:$G$849,1,$H42:$H$849,$E$4)&\" | N - \"&COUNTIFS($B42:$B$849,B41&\"*\",$G42:$G$849,1,$H42:$H$849,$E$5)&\" | A - \"&COUNTIFS($B42:$B$849,B41&\"*\",$G42:$G$849,1,$H42:$H$849,$E$6)&\" | F - \"&COUNTIFS($B42:$B$849,B41&\"*\",$G42:$G$849,1,$H42:$H$849,$E$7),\"\")","v":"Total: 8 | P - 8 | J - 0 | N - 0 | A - 0 | F - 0"}]
[null,"A1.4.1","rskl § 3-2","Inneholder årsregnskapet:"]
[null,"A1.4.2",null,"Resultatregnskap?",null,{"$f":"IF(AND(G43=1,E43=\"i\"),1,IF(AND(G43=1,E43=\"s\"),1,0))","v":0},{"$f":"IF($B43=\"\",\"0\",IF(INDEX($B$11:$H$849,MATCH(LEFT($B43,FIND(\"~\",SUBSTITUTE($B43,\".\",\"~\",LEN($B43)-LEN(SUBSTITUTE($B43,\".\",\"\"))))),$B$11:$B$849,0),MATCH(\"Aktuell?\",$B$9:$H$9,0))=\"Ja\",1,0))","v":1},"P"]
[null,"A1.4.3","Forskriften § 2-1 jfr","Oppstilling av annet totalresultat?",null,0,1,"P"]
[null,"A1.4.4"," IAS 1","Balanse?",null,0,1,"P"]
[null,"A1.4.5",null,"Noter?",null,0,1,"P"]
[null,"A1.4.6",null,"Kontantstrømoppstilling?",null,0,1,"P"]
[null,"A1.4.7",null,"Eventuelt konsernregnskap?",null,0,1,"P"]
[null,"A1.4.8",null,"Eventuelt en egen oppstilling over endringer i egenkapitalen?",null,0,1,"P"]
[null,"A1.4.9",null,"Er det gitt referanser til noteopplysninger fra resultatregnskap og balanse?",null,0,1,"P"]
[null,"A1.5.",null,"Oppdeling eller sammenslåing av poster",null,{"$f":"SUMIF($B52:$B$849,$B51&\"*\",$F52:$F$849)","v":0},"Ja",null,{"$f":"IF($G51=\"Ja\",\"Total: \"&COUNTIFS($B52:$B$849,B51&\"*\",$G52:$G$849,1)&\" | P - \"&COUNTIFS($B52:$B$849,B51&\"*\",$G52:$G$849,1,$H52:$H$849,$E$3)&\" | J - \"&COUNTIFS($B52:$B$849,B51&\"*\",$G52:$G$849,1,$H52:$H$849,$E$4)&\" | N - \"&COUNTIFS($B52:$B$849,B51&\"*\",$G52:$G$849,1,$H52:$H$849,$E$5)&\" | A - \"&COUNTIFS($B52:$B$849,B51&\"*\",$G52:$G$849,1,$H52:$H$849,$E$6)&\" | F - \"&COUNTIFS($B52:$B$849,B51&\"*\",$G52:$G$849,1,$H52:$H$849,$E$7),\"\")","v":"Total: 2 | P - 2 | J - 0 | N - 0 | A - 0 | F - 0"}]
[null,"A1.5.1","rskl § 6-3","Regnskapsposter skal om nødvendig oppdeles eller tilføyes. \nDette kan for eksempel gjelde lån fra aksjonær."]
[null,"A1.5.2","rskl § 6-3","Er det foretatt en ytterligere oppdeling av resultatregnskap og balanse eller tilføyelse av poster der foretakets forhold tilsier det?",null,{"$f":"IF(AND(G53=1,E53=\"i\"),1,IF(AND(G53=1,E53=\"s\"),1,0))","v":0},{"$f":"IF($B53=\"\",\"0\",IF(INDEX($B$11:$H$849,MATCH(LEFT($B53,FIND(\"~\",SUBSTITUTE($B53,\".\",\"~\",LEN($B53)-LEN(SUBSTITUTE($B53,\".\",\"\"))))),$B$11:$B$849,0),MATCH(\"Aktuell?\",$B$9:$H$9,0))=\"Ja\",1,0))","v":1},"P"]
[null,"A1.5.3","rskl § 6-3","Poster skal slås sammen hvis sammenslåingen fører til et mer oversiktlig årsregnskap, med følgende unntak:\n- Bare linjer innenfor hvert romertall kan slås sammen, og linjer kan ikke slås sammen på tvers av romertall\n- Egenkapitalposter kan ikke slås sammen"]
[null,"A1.5.4","rskl § 6-3","Er poster slått sammen i resultatregnskap og balanse hvis sammenslåingen fører til et mer oversiktlig årsregnskap?",null,{"$f":"IF(AND(G55=1,E55=\"i\"),1,IF(AND(G55=1,E55=\"s\"),1,0))","v":0},{"$f":"IF($B55=\"\",\"0\",IF(INDEX($B$11:$H$849,MATCH(LEFT($B55,FIND(\"~\",SUBSTITUTE($B55,\".\",\"~\",LEN($B55)-LEN(SUBSTITUTE($B55,\".\",\"\"))))),$B$11:$B$849,0),MATCH(\"Aktuell?\",$B$9:$H$9,0))=\"Ja\",1,0))","v":1},"P"]
[null,"A1.6.",null,"Språk",null,{"$f":"SUMIF($B57:$B$849,$B56&\"*\",$F57:$F$849)","v":0},"Ja",null,{"$f":"IF($G56=\"Ja\",\"Total: \"&COUNTIFS($B57:$B$849,B56&\"*\",$G57:$G$849,1)&\" | P - \"&COUNTIFS($B57:$B$849,B56&\"*\",$G57:$G$849,1,$H57:$H$849,$E$3)&\" | J - \"&COUNTIFS($B57:$B$849,B56&\"*\",$G57:$G$849,1,$H57:$H$849,$E$4)&\" | N - \"&COUNTIFS($B57:$B$849,B56&\"*\",$G57:$G$849,1,$H57:$H$849,$E$5)&\" | A - \"&COUNTIFS($B57:$B$849,B56&\"*\",$G57:$G$849,1,$H57:$H$849,$E$6)&\" | F - \"&COUNTIFS($B57:$B$849,B56&\"*\",$G57:$G$849,1,$H57:$H$849,$E$7),\"\")","v":"Total: 1 | P - 1 | J - 0 | N - 0 | A - 0 | F - 0"}]
[null,"A1.6.1","rskl § 3-4, pkt 3","Er årsregnskapet og årsberetningen på norsk?",null,{"$f":"IF(AND(G57=1,E57=\"i\"),1,IF(AND(G57=1,E57=\"s\"),1,0))","v":0},{"$f":"IF($B57=\"\",\"0\",IF(INDEX($B$11:$H$849,MATCH(LEFT($B57,FIND(\"~\",SUBSTITUTE($B57,\".\",\"~\",LEN($B57)-LEN(SUBSTITUTE($B57,\".\",\"\"))))),$B$11:$B$849,0),MATCH(\"Aktuell?\",$B$9:$H$9,0))=\"Ja\",1,0))","v":1},"P"]
[null,"A1.7.",null,"Valuta",null,{"$f":"SUMIF($B59:$B$849,$B58&\"*\",$F59:$F$849)","v":0},"Ja",null,{"$f":"IF($G58=\"Ja\",\"Total: \"&COUNTIFS($B59:$B$849,B58&\"*\",$G59:$G$849,1)&\" | P - \"&COUNTIFS($B59:$B$849,B58&\"*\",$G59:$G$849,1,$H59:$H$849,$E$3)&\" | J - \"&COUNTIFS($B59:$B$849,B58&\"*\",$G59:$G$849,1,$H59:$H$849,$E$4)&\" | N - \"&COUNTIFS($B59:$B$849,B58&\"*\",$G59:$G$849,1,$H59:$H$849,$E$5)&\" | A - \"&COUNTIFS($B59:$B$849,B58&\"*\",$G59:$G$849,1,$H59:$H$849,$E$6)&\" | F - \"&COUNTIFS($B59:$B$849,B58&\"*\",$G59:$G$849,1,$H59:$H$849,$E$7),\"\")","v":"Total: 7 | P - 7 | J - 0 | N - 0 | A - 0 | F - 0"}]
[null,"A1.7.1","NRS 20 Transaksjoner og regnskap i utenlandsk valuta","Er valg av regnskaps- og presentasjonsvaluta begrunnet dersom:\n• regnskapsvaluta i selskapsregnskapet er annet enn norske kroner  \n• konsernregnskapet presenteres i annen valuta enn norske kroner \n• selskapsregnskapet presenteres i annen valuta enn regnskapsvalutaen?",null,{"$f":"IF(AND(G59=1,E59=\"i\"),1,IF(AND(G59=1,E59=\"s\"),1,0))","v":0},{"$f":"IF($B59=\"\",\"0\",IF(INDEX($B$11:$H$849,MATCH(LEFT($B59,FIND(\"~\",SUBSTITUTE($B59,\".\",\"~\",LEN($B59)-LEN(SUBSTITUTE($B59,\".\",\"\"))))),$B$11:$B$849,0),MATCH(\"Aktuell?\",$B$9:$H$9,0))=\"Ja\",1,0))","v":1},"P"]
[null,"A1.7.2",null,"Dersom foretaket endrer regnskapsvaluta, er dette begrunnet, og er det redegjort for vesentlige virkninger av endringen?",null,0,1,"P"]
[null,"A1.7.3",null,"Ved omregning til presentasjonsvaluta, er det opplyst om regnskapsvaluta og hvilke omregningskurser som er anvendt for de omregnede enhetenes balanseposter når disse enhetene er vesentlige?",null,0,1,"P"]
[null,"A1.7.4",null,"Dersom selskapsregnskapet presenteres i annen valuta enn norske kroner, er det opplyst om omregningskurser til norske kroner?\nDet må minst opplyses om balansedagens kurs og gjennomsnittskurs",null,0,1,"P"]
[null,"A1.7.5",null,"Når det er resultatført vesentlige valutagevinster og/eller -tap, og dette ikke er presentert på egne linjer i resultatregnskapet, er det i note opplyst om hvilke linjer i resultatregnskapet dette gjelder, og med hvilke beløp?",null,0,1,"P"]
[null,"A1.7.6",null,"For omregningsdifferanse som er ført mot egenkapitalen, er det opplyst om periodens og akkumulert omregningsdifferanse?\nDette kan opplyses i egenkapitalnoten eller i oppstilling av endringer i egenkapitalen. ",null,0,1,"P"]
[null,"A1.7.7",null,"Når vesentlige omregningsdifferanser resultatføres ved avhendelse av enhet, er dette opplyst, og er det opplyst om beløp og hvilken resultatlinje som er påvirket?",null,0,1,"P"]
[null,"A1.8.",null,"Underskrift",null,{"$f":"SUMIF($B67:$B$849,$B66&\"*\",$F67:$F$849)","v":0},"Ja",null,{"$f":"IF($G66=\"Ja\",\"Total: \"&COUNTIFS($B67:$B$849,B66&\"*\",$G67:$G$849,1)&\" | P - \"&COUNTIFS($B67:$B$849,B66&\"*\",$G67:$G$849,1,$H67:$H$849,$E$3)&\" | J - \"&COUNTIFS($B67:$B$849,B66&\"*\",$G67:$G$849,1,$H67:$H$849,$E$4)&\" | N - \"&COUNTIFS($B67:$B$849,B66&\"*\",$G67:$G$849,1,$H67:$H$849,$E$5)&\" | A - \"&COUNTIFS($B67:$B$849,B66&\"*\",$G67:$G$849,1,$H67:$H$849,$E$6)&\" | F - \"&COUNTIFS($B67:$B$849,B66&\"*\",$G67:$G$849,1,$H67:$H$849,$E$7),\"\")","v":"Total: 4 | P - 4 | J - 0 | N - 0 | A - 0 | F - 0"}]
[null,"A1.8.1","rskl § 3-5","Er årsregnskapet underskrevet av samtlige styremedlemmer og eventuelt av daglig leder, alternativt av deltakerne eller medlemmene hvis foretaket ikke har styre eller daglig leder?",null,{"$f":"IF(AND(G67=1,E67=\"i\"),1,IF(AND(G67=1,E67=\"s\"),1,0))","v":0},{"$f":"IF($B67=\"\",\"0\",IF(INDEX($B$11:$H$849,MATCH(LEFT($B67,FIND(\"~\",SUBSTITUTE($B67,\".\",\"~\",LEN($B67)-LEN(SUBSTITUTE($B67,\".\",\"\"))))),$B$11:$B$849,0),MATCH(\"Aktuell?\",$B$9:$H$9,0))=\"Ja\",1,0))","v":1},"P"]
[null,"A1.8.2","rskl § 3-5","Dersom den som skal underskrive har innvendinger mot årsregnskapet, har vedkommende underskrevet med påtegnet forbehold og gitt nærmere redegjørelse i årsberetningen?",null,{"$f":"IF(AND(G68=1,E68=\"i\"),1,IF(AND(G68=1,E68=\"s\"),1,0))","v":0},{"$f":"IF($B68=\"\",\"0\",IF(INDEX($B$11:$H$849,MATCH(LEFT($B68,FIND(\"~\",SUBSTITUTE($B68,\".\",\"~\",LEN($B68)-LEN(SUBSTITUTE($B68,\".\",\"\"))))),$B$11:$B$849,0),MATCH(\"Aktuell?\",$B$9:$H$9,0))=\"Ja\",1,0))","v":1},"P"]
[null,"A1.8.3","rskl § 3-1","Er årsregnskapet fastsatt senest seks måneder etter regnskapsårets utløp?",null,{"$f":"IF(AND(G69=1,E69=\"i\"),1,IF(AND(G69=1,E69=\"s\"),1,0))","v":0},{"$f":"IF($B69=\"\",\"0\",IF(INDEX($B$11:$H$849,MATCH(LEFT($B69,FIND(\"~\",SUBSTITUTE($B69,\".\",\"~\",LEN($B69)-LEN(SUBSTITUTE($B69,\".\",\"\"))))),$B$11:$B$849,0),MATCH(\"Aktuell?\",$B$9:$H$9,0))=\"Ja\",1,0))","v":1},"P"]
[null,"A1.8.4","NRS 3.16","Har foretaket angitt datoen for vedtak om fremleggelse av regnskapet og hvem som har fattet vedtaket?\nHvis foretakets eiere har myndighet til å endre regnskapet etter dette tidspunkt, bør foretaket opplyse om dette.\nDet er ikke påkrevet å informere særskilt om generalforsamlingens alminnelige rett til å stemme ned et fremlagt årsregnskap.",null,{"$f":"IF(AND(G70=1,E70=\"i\"),1,IF(AND(G70=1,E70=\"s\"),1,0))","v":0},{"$f":"IF($B70=\"\",\"0\",IF(INDEX($B$11:$H$849,MATCH(LEFT($B70,FIND(\"~\",SUBSTITUTE($B70,\".\",\"~\",LEN($B70)-LEN(SUBSTITUTE($B70,\".\",\"\"))))),$B$11:$B$849,0),MATCH(\"Aktuell?\",$B$9:$H$9,0))=\"Ja\",1,0))","v":1},"P"]
[null,"A2.",null,"Regnskapsprinsipper",null,{"$f":"SUMIFS($F85:$F$849,$B85:$B$849,$B71&\"*\",$G85:$G$849,\"Ja\")","v":6},{"$f":"IF(COUNTIFS($B85:$B$849,$B71&\"*\",$G85:$G$849,\"Ja\")>0,\"Ja\",\"Nei\")","v":"Ja"}]
[null,"A2.1.",null,"Generelt",null,{"$f":"SUMIF($B73:$B$849,$B72&\"*\",$F73:$F$849)","v":0},"Ja",null,{"$f":"IF($G72=\"Ja\",\"Total: \"&COUNTIFS($B73:$B$849,B72&\"*\",$G73:$G$849,1)&\" | P - \"&COUNTIFS($B73:$B$849,B72&\"*\",$G73:$G$849,1,$H73:$H$849,$E$3)&\" | J - \"&COUNTIFS($B73:$B$849,B72&\"*\",$G73:$G$849,1,$H73:$H$849,$E$4)&\" | N - \"&COUNTIFS($B73:$B$849,B72&\"*\",$G73:$G$849,1,$H73:$H$849,$E$5)&\" | A - \"&COUNTIFS($B73:$B$849,B72&\"*\",$G73:$G$849,1,$H73:$H$849,$E$6)&\" | F - \"&COUNTIFS($B73:$B$849,B72&\"*\",$G73:$G$849,1,$H73:$H$849,$E$7),\"\")","v":"Total: 10 | P - 10 | J - 0 | N - 0 | A - 0 | F - 0"}]
[null,null,"Forskriften \n§ 4-2 nr. 5, jf. IAS 1 nr. 122-133","Regnskapspliktige skal etter forskriften gi noteopplysninger etter IAS 1 nr. 122- 133. Regnskapspliktige morselskap eller datterselskap i konsern som utarbeider konsernregnskap i samsvar med internasjonale regnskapsstandarder etter regnskapsloven § 3-9 kan fravike denne bestemmelsen i selskapsregnskapet"]
[null,"A2.1.1","IAS 1 nr. 125 a, b","Er det opplyst om foretakets forutsetninger for framtiden og andre viktige kilder til estimeringsusikkerhet ved slutten av rapporteringsperioden som innebærer en betydelig risiko for en vesentlig justering av den balanseførte verdien av eiendeler og forpliktelser i løpet av det neste regnskapsåret?",null,{"$f":"IF(AND(G74=1,E74=\"i\"),1,IF(AND(G74=1,E74=\"s\"),1,0))","v":0},{"$f":"IF($B74=\"\",\"0\",IF(INDEX($B$11:$H$849,MATCH(LEFT($B74,FIND(\"~\",SUBSTITUTE($B74,\".\",\"~\",LEN($B74)-LEN(SUBSTITUTE($B74,\".\",\"\"))))),$B$11:$B$849,0),MATCH(\"Aktuell?\",$B$9:$H$9,0))=\"Ja\",1,0))","v":1},"P"]
[null,"A2.1.2",null,"Når det gjelder disse eiendelene og forpliktelsene, inneholder notene detaljer om:"]
[null,"A2.1.3",null,"• Deres art?",null,{"$f":"IF(AND(G76=1,E76=\"i\"),1,IF(AND(G76=1,E76=\"s\"),1,0))","v":0},{"$f":"IF($B76=\"\",\"0\",IF(INDEX($B$11:$H$849,MATCH(LEFT($B76,FIND(\"~\",SUBSTITUTE($B76,\".\",\"~\",LEN($B76)-LEN(SUBSTITUTE($B76,\".\",\"\"))))),$B$11:$B$849,0),MATCH(\"Aktuell?\",$B$9:$H$9,0))=\"Ja\",1,0))","v":1},"P"]
[null,"A2.1.4",null,"• Deres balanseførte verdi ved slutten av rapporteringsperioden?",null,0,1,"P"]
[null,"A2.1.5","IAS 1 nr. 129","Er opplysningene i nr. 125 over presentert på en måte som hjelper brukere av finansregnskapet til å forstå de vurderinger ledelsen foretar vedrørende framtiden og andre kilder til estimeringsusikkerhet? \n(Arten og omfanget av opplysningene varierer avhengig av arten av forutsetningen og andre forhold. Følgende er eksempler på hvilke typer opplysninger et foretak gir:",null,0,1,"P"]
[null,"A2.1.6",null,"a) arten av forutsetningen eller annen estimeringsusikkerhet,",null,0,1,"P"]
[null,"A2.1.7",null,"b) de balanseførte verdienes sensitivitet overfor metodene, forutsetningene og estimatene som ligger til grunn for beregningen av dem, herunder årsakene til sensitiviteten,",null,0,1,"P"]
[null,"A2.1.8",null,"c) den forventede avklaringen av en usikkerhet samt angivelse av hvilke utfall innenfor et rimelig mulighetsområde som kan forventes i løpet av det neste regnskapsåret med hensyn til den balanseførte verdien av de berørte eiendelene og forpliktelsene, og",null,0,1,"P"]
[null,"A2.1.9",null,"d) en forklaring av endringer som er foretatt av tidligere forutsetninger med hensyn til disse eiendelene og forpliktelsene, dersom usikkerheten forblir uavklart)",null,0,1,"P"]
[null,"A2.1.10","IAS 1 nr. 131","Enkelte ganger er det ikke praktisk mulig å opplyse om omfanget av de mulige virkningene av en forutsetning eller en annen kilde for estimeringsusikkerhet ved slutten av rapporteringsperioden. Er det i slike tilfeller opplyst om at det på grunnlag av den kunnskap som foreligger, er en rimelig mulighet for at faktorer i løpet av det neste regnskapsåret som avviker fra forutsetningene, kan kreve en vesentlig justering av den balanseførte verdien av den berørte eiendelen eller forpliktelsen?",null,0,1,"P"]
[null,"A2.1.11","IAS 1 nr. 131","Er det i alle tilfeller opplyst om arten og den balanseførte verdien av den særskilte eiendelen eller forpliktelsen (eller klassen av eiendeler eller forpliktelser) som påvirkes av forutsetningen?",null,0,1,"P"]
[null,"A2.2.",null,"Forenklinger etter forskriftens kapittel 3",null,{"$f":"SUMIF($B86:$B$849,$B85&\"*\",$F86:$F$849)","v":6},"Ja",null,{"$f":"IF($G85=\"Ja\",\"Total: \"&COUNTIFS($B86:$B$849,B85&\"*\",$G86:$G$849,1)&\" | P - \"&COUNTIFS($B86:$B$849,B85&\"*\",$G86:$G$849,1,$H86:$H$849,$E$3)&\" | J - \"&COUNTIFS($B86:$B$849,B85&\"*\",$G86:$G$849,1,$H86:$H$849,$E$4)&\" | N - \"&COUNTIFS($B86:$B$849,B85&\"*\",$G86:$G$849,1,$H86:$H$849,$E$5)&\" | A - \"&COUNTIFS($B86:$B$849,B85&\"*\",$G86:$G$849,1,$H86:$H$849,$E$6)&\" | F - \"&COUNTIFS($B86:$B$849,B85&\"*\",$G86:$G$849,1,$H86:$H$849,$E$7),\"\")","v":"Total: 15 | P - 15 | J - 0 | N - 0 | A - 0 | F - 0"}]
[null,"A2.2.1","Forskriften § 4-1 nr. 3","Det skal opplyses om hvilke forenklinger etter denne forskrifts kapittel 3 som er benyttet",null,{"$f":"IF(AND(G86=1,E86=\"i\"),1,IF(AND(G86=1,E86=\"s\"),1,0))","v":0},{"$f":"IF($B86=\"\",\"0\",IF(INDEX($B$11:$H$849,MATCH(LEFT($B86,FIND(\"~\",SUBSTITUTE($B86,\".\",\"~\",LEN($B86)-LEN(SUBSTITUTE($B86,\".\",\"\"))))),$B$11:$B$849,0),MATCH(\"Aktuell?\",$B$9:$H$9,0))=\"Ja\",1,0))","v":1},"P"]
[null,"A2.2.2","Forskriften § 3-1","Er det gitt informasjon om bruk av adgangen til å fravike måle- og innregningsregler som gjelder alle regnskapspliktige?",null,0,1,"P"]
[null,"A2.2.3","Forskriften § 3-1.1","• IFRS 1 nr. D6 kan fravikes slik at balanseført verdi etter tidligere oppskrivning under god regnskapsskikk kan videreføres ved overgangen uten hensyn til angitte kriterier i IFRS 1",null,0,1,"P"]
[null,"A2.2.4","Forskriften § 3-1.2","• IFRS 5 kan fravikes i selskapsregnskapet, men slik at anleggsmidler holdt for salg og avviklet virksomhet istedenfor må innregnes og måles etter prinsippene i IAS 16",null,0,1,"P"]
[null,"A2.2.5","Forskriften § 3-1.3","•  IAS 10 nr. 12 og 13, IAS 27.12 og IFRIC 17 nr. 10 kan fravikes slik at utbytte og konsernbidrag regnskapsføres i samsvar med regnskapslovens bestemmelser","i",1,1,"P"]
[null,"A2.2.6","Forskriften § 3-1.4","• IAS 28 kan fravikes slik at investering i tilknyttet selskap og deltakelse i felles kontrollert virksomhet kan regnskapsføres i samsvar med kostmetoden i selskapsregnskapet",null,0,1,"P"]
[null,"A2.2.7","Forskriften § 3-2","Er det gitt informasjon om bruk av adgangen til å fravike måle- og innregningsregler som gjelder for selskaper i konsern der konsernregnskapet er utarbeidet etter internasjonale regnskapsstandarder eller etter denne forskriften?\n(Adgangen til å fravike bestemmelser i internasjonale regnskapsstandarder som følger av forskriften § 3-2 nr. 3 til 8, jf. § 3-3, og § 4-2 annet ledd nr. 4 må anvendes under ett, og kan ikke anvendes enkeltvis)",null,0,1,"P"]
[null,"A2.2.8","Forskriften § 3-2.1","•  IAS 16 nr. 43 kan fravikes slik at de samme vurderinger av avskrivningsenhet (dekomponering) legges til grunn i selskapsregnskapet som i konsernregnskapet",null,0,1,"P"]
[null,"A2.2.9","Forskriften § 3-2.2","• IAS 32 nr. 28-32 [28, 29, 30, 31, 32], nr. 38, AG 30-35 og AG 37 kan fravikes i de tilfeller der kun foretak innenfor samme konsern er motpart i kontrakten. Egenkapitalkomponenten i sammensatte finansielle instrumenter skal i slike tilfeller klassifiseres som finansiell forpliktelse",null,0,1,"P"]
[null,"A2.2.10","Forskriften § 3-2.3","• IFRS 9.2.3 og IFRS 9.4.3.3-4.3.7 kan fravikes for kontrakter inngått mellom foretak i samme konsern","i",1,1,"P"]
[null,"A2.2.11","Forskriften § 3-2.4","• IFRS 9.2.3-2.7 kan fravikes slik at bestemmelsene erstattes med bestemmelsene i § 3-3","i",1,1,"P"]
[null,"A2.2.12","Forskriften § 3-2.5","• Definisjonen av en finansiell eiendel eller en finansiell forpliktelse til virkelig verdi over resultatet i IFRS 9.4.1.5 og IFRS 9.4.2.2 utvides slik at den også omfatter en finansiell eiendel eller en finansiell forpliktelse hvor romertall i eller ii er oppfylt i et overliggende konsernregnskap","i",1,1,"P"]
[null,"A2.2.13","Forskriften § 3-2.6","• Ved anvendelse av IFRS 9.3.2.6 (c) (ii) skal en finansiell eiendel innregnes dersom foretaket har beholdt kontroll over den finansielle eiendelen ved konsernintern kontrakt. Ved innregning etter denne bestemmelsen kan IFRS 9.3.2.16-3.2.21 og IFRS 9.B3.2.13 for øvrig fravikes","i",1,1,"P"]
[null,"A2.2.14","Forskriften § 3-2.7","• I IFRS 9.6.4.1 gjelder følgende tilføyelse som ny bokstav f etter siste punktum:\nI de tilfeller hvor (a) til (c) ovenfor er dokumentert og oppfylt i et overliggende konsernregnskap og det foreligger en konsernintern kontrakt som fullt ut gjenspeiler sikringsobjektet eller sikringsinstrumentet i det overliggende konsernets sikringsdokumentasjon, kan kopi av denne dokumentasjonen, med påført identifikasjon av den relevante konserninterne kontrakten, oppfylle kravene i (a) til (c) ovenfor","i",1,1,"P"]
[null,"A2.2.15","Forskriften § 3-2.8","• IAS 40 nr. 5 kan fravikes slik at samme klassifisering av eiendom (investeringseiendom eller eierbenyttet eiendom) legges til grunn i selskapsregnskapet som i konsernregnskapet",null,0,1,"P"]
[null,"A2.3.",null,"Spesifikke krav",null,{"$f":"SUMIF($B102:$B$849,$B101&\"*\",$F102:$F$849)","v":0},"Ja",null,{"$f":"IF($G101=\"Ja\",\"Total: \"&COUNTIFS($B102:$B$849,B101&\"*\",$G102:$G$849,1)&\" | P - \"&COUNTIFS($B102:$B$849,B101&\"*\",$G102:$G$849,1,$H102:$H$849,$E$3)&\" | J - \"&COUNTIFS($B102:$B$849,B101&\"*\",$G102:$G$849,1,$H102:$H$849,$E$4)&\" | N - \"&COUNTIFS($B102:$B$849,B101&\"*\",$G102:$G$849,1,$H102:$H$849,$E$5)&\" | A - \"&COUNTIFS($B102:$B$849,B101&\"*\",$G102:$G$849,1,$H102:$H$849,$E$6)&\" | F - \"&COUNTIFS($B102:$B$849,B101&\"*\",$G102:$G$849,1,$H102:$H$849,$E$7),\"\")","v":"Total: 24 | P - 24 | J - 0 | N - 0 | A - 0 | F - 0"}]
[null,"A2.3.1","rskl § 7-1","Er det opplyst om anvendte regnskapsprinsipper for alle vesentlige regnskapsposter?",null,{"$f":"IF(AND(G102=1,E102=\"i\"),1,IF(AND(G102=1,E102=\"s\"),1,0))","v":0},{"$f":"IF($B102=\"\",\"0\",IF(INDEX($B$11:$H$849,MATCH(LEFT($B102,FIND(\"~\",SUBSTITUTE($B102,\".\",\"~\",LEN($B102)-LEN(SUBSTITUTE($B102,\".\",\"\"))))),$B$11:$B$849,0),MATCH(\"Aktuell?\",$B$9:$H$9,0))=\"Ja\",1,0))","v":1},"P"]
[null,"A2.3.2","rskl § 7-1","Er alle de regnskapsprinsipper som er omtalt i notene aktuelle for selskapet?",null,0,1,"P"]
[null,"A2.3.3","NRS 17 Virksomhetskjøp og konsernregnskap","Er det i note til konsernregnskapet opplyst om konsolideringsprinsipper, herunder:\n• mer- og mindreverdier\n• goodwill og negativ goodwill \n• transaksjoner mellom konsernselskaper\n• minoritetsinteresser\n• utgang datterselskap\n• trinnvis oppkjøp",null,0,1,"P"]
[null,"A2.3.4","NRS 17 Virksomhetskjøp og konsernregnskap","Er det opplyst og begrunnet dersom det er forskjellig prinsippanvendelse i selskapsregnskapet og konsernregnskapet? ",null,0,1,"P"]
[null,"A2.3.5","rskl § 7-2","Det skal gis opplysninger om anvendte regnskapsprinsipper.",null,0,1,"P"]
[null,"A2.3.6","rskl § 7-2 ","Er det gitt opplysninger om prinsipper for inntektsføring?",null,0,1,"P"]
[null,"A2.3.7","rskl § 7-2","Er det gitt opplysninger om prinsipper for omregning av utenlandsk valuta?",null,0,1,"P"]
[null,"A2.3.8","rskl § 7-2a","Dersom årsregnskapet presenteres i en annen valuta enn regnskapsvalutaen, er regnskapsvalutaen og omregningskurser opplyst?",null,0,1,"P"]
[null,"A2.3.9","NRS 20 Transaksjoner og regnskap i utenlandsk valuta","Er det opplyst hvordan transaksjoner og balanseposter i utenlandsk valuta er målt?",null,0,1,"P"]
[null,"A2.3.10",null,"Er det opplyst om eventuelle praktiske tilnærmingsmetoder for anvendelse av valutakurs ihht NRS 20 Transaksjoner og regnskap i utenlandsk valuta pkt 14 og 20?",null,0,1,"P"]
[null,"A2.3.11",null,"Er det opplyst om hvordan valutakursdifferanser og omregningsdifferanser er presentert i finansregnskapet?",null,0,1,"P"]
[null,"A2.3.12",null,"Dersom valutakursdifferanser presenteres som annet enn finansinntekt eller -kostnad, er dette begrunnet?",null,0,1,"P"]
[null,"A2.3.13","Forskriften \n§ 4-3 ","Når finansielle eiendeler og forpliktelser er balanseført til virkelig verdi, herunder eiendeler som er nedskrevet til virkelig verdi, er det opplyst om hvordan virkelig verdi er fastsatt?",null,0,1,"P"]
[null,"A2.3.14","rskl § 7-2","Er det gitt opplysninger om og begrunnelse for eventuell sikringsvurdering, inkludert hvordan regnskapsmessig sikring er reflektert i regnskapet (jf. Rskl 4-1 nr. 5 og NRS 18 Finansielle eiendeler og forpliktelser)?",null,0,1,"P"]
[null,"A2.3.16","rskl § 7-2","Er evt. kontinuitet ved regnskapsføring av fusjon opplyst og begrunnet?",null,null,1,"P"]
[null,"A2.3.17","NRS 1 Varer","Er det opplyst om anvendte prinsipper for vurdering / regnskapsføring av varelager, herunder metode for tilordning av anskaffelseskost?",null,{"$f":"IF(AND(G117=1,E117=\"i\"),1,IF(AND(G117=1,E117=\"s\"),1,0))","v":0},1,"P"]
[null,"A2.3.18","NRS 2 Anleggs-kontrakter","Er det opplyst om hovedprinsippene for beregning av fullføringsgraden for anleggskontrakter?",null,0,1,"P"]
[null,"A2.3.19","rskl § 7-13","Er det opplyst om avskrivningsmetode for alle poster under anleggsmidler?",null,0,1,"P"]
[null,"A2.3.20","NRS 14 Leieavtaler","Er det opplyst om prinsipper for regnskapsføring av leasingkontrakter, både finansielle og operasjonelle?",null,0,1,"P"]
[null,"A2.3.21","NRS 19 Immaterielle eiendeler","Er det opplyst om de regnskapsprinsipper som er anvendt for utgifter til egen forskning og utvikling?",null,0,1,"P"]
[null,"A2.3.22","rskl § 7-2\njf. rskl § 4-1 nr. 5\n\n","Er det opplyst om metode (prinsipp) for regnskapsføring av investeringer i DS/TS/FKV, DS, andre aksjer og andeler (Jf. NRS (F) Investering i TS og deltagelse i FKV punkt 3.10)?",null,0,1,"P"]
[null,"A2.3.23","NRS (F) Resultatskatt","Er det opplyst om prinsipper for beregning av skatt, utsatt skattefordel og -forpliktelse, herunder begrunnelse for skattesatsen ved beregning av utsatt skatt ved oppkjøp?",null,0,1,"P"]
[null,"A2.3.24","NRS 13 Usikre forpliktelser og betingede eiendeler","Er det opplyst om prinsippene for behandling av fjerningskostnader og periodisk vedlikehold? ",null,0,1,"P"]
[null,"A2.3.25","NRS (F) Kontantstrøm-oppstilling","Er det opplyst om prinsippene for klassifisering av kontanter og kontantekvivalenter?",null,0,1,"P"]
[null,"A2.4.",null,"Endring i regnskapsprinsipp, feil og omklassifisering",null,{"$f":"SUMIF($B127:$B$849,$B126&\"*\",$F127:$F$849)","v":0},"Nei",null,{"$f":"IF($G126=\"Ja\",\"Total: \"&COUNTIFS($B127:$B$849,B126&\"*\",$G127:$G$849,1)&\" | P - \"&COUNTIFS($B127:$B$849,B126&\"*\",$G127:$G$849,1,$H127:$H$849,$E$3)&\" | J - \"&COUNTIFS($B127:$B$849,B126&\"*\",$G127:$G$849,1,$H127:$H$849,$E$4)&\" | N - \"&COUNTIFS($B127:$B$849,B126&\"*\",$G127:$G$849,1,$H127:$H$849,$E$5)&\" | A - \"&COUNTIFS($B127:$B$849,B126&\"*\",$G127:$G$849,1,$H127:$H$849,$E$6)&\" | F - \"&COUNTIFS($B127:$B$849,B126&\"*\",$G127:$G$849,1,$H127:$H$849,$E$7),\"\")","v":""}]
[null,"A2.4.1"," rskl § 6-6, NRS 5 pkt 5","Ved prinsippendring, er sammenligningstallene omarbeidet, såfremt det ikke er mulig å foreta omarbeidelse uten for store kostnader og det heller ikke er vesentlig i forhold til forståelsen av selskapets inntjeningsevne?",null,{"$f":"IF(AND(G127=1,E127=\"i\"),1,IF(AND(G127=1,E127=\"s\"),1,0))","v":0},{"$f":"IF($B127=\"\",\"0\",IF(INDEX($B$11:$H$849,MATCH(LEFT($B127,FIND(\"~\",SUBSTITUTE($B127,\".\",\"~\",LEN($B127)-LEN(SUBSTITUTE($B127,\".\",\"\"))))),$B$11:$B$849,0),MATCH(\"Aktuell?\",$B$9:$H$9,0))=\"Ja\",1,0))","v":0},"P"]
[null,"A2.4.2"," rskl § 6-6, NRS 5 pkt 6","Dersom feil i tidligere årsregnskap er ført mot egenkapitalen:"]
[null,"A2.4.3",null,"• er sammenligningstallene omarbeidet? ",null,{"$f":"IF(AND(G129=1,E129=\"i\"),1,IF(AND(G129=1,E129=\"s\"),1,0))","v":0},{"$f":"IF($B129=\"\",\"0\",IF(INDEX($B$11:$H$849,MATCH(LEFT($B129,FIND(\"~\",SUBSTITUTE($B129,\".\",\"~\",LEN($B129)-LEN(SUBSTITUTE($B129,\".\",\"\"))))),$B$11:$B$849,0),MATCH(\"Aktuell?\",$B$9:$H$9,0))=\"Ja\",1,0))","v":0},"P"]
[null,"A2.4.4",null,"• er det opplyst om i note, og med forklaring på hva feilen består i?",null,{"$f":"IF(AND(G130=1,E130=\"i\"),1,IF(AND(G130=1,E130=\"s\"),1,0))","v":0},{"$f":"IF($B130=\"\",\"0\",IF(INDEX($B$11:$H$849,MATCH(LEFT($B130,FIND(\"~\",SUBSTITUTE($B130,\".\",\"~\",LEN($B130)-LEN(SUBSTITUTE($B130,\".\",\"\"))))),$B$11:$B$849,0),MATCH(\"Aktuell?\",$B$9:$H$9,0))=\"Ja\",1,0))","v":0},"P"]
[null,"A2.4.5","rskl § 6-6, NRS 5 pkt 3, rskl § 7-3","Ved omklassifisering skal tallene omarbeides for å bli sammenlignbare, med mindre annet følger av god regnskapsskikk. Er det vist tilsvarende (omarbeidede) tall fra foregående årsregnskap? ",null,{"$f":"IF(AND(G131=1,E131=\"i\"),1,IF(AND(G131=1,E131=\"s\"),1,0))","v":0},{"$f":"IF($B131=\"\",\"0\",IF(INDEX($B$11:$H$849,MATCH(LEFT($B131,FIND(\"~\",SUBSTITUTE($B131,\".\",\"~\",LEN($B131)-LEN(SUBSTITUTE($B131,\".\",\"\"))))),$B$11:$B$849,0),MATCH(\"Aktuell?\",$B$9:$H$9,0))=\"Ja\",1,0))","v":0},"P"]
[null,"A2.4.6","rskl § 7-3","Er sammenligningstall og omarbeiding av endring i regnskapsprinsipp, feil og omklassifisering forklart?",null,{"$f":"IF(AND(G132=1,E132=\"i\"),1,IF(AND(G132=1,E132=\"s\"),1,0))","v":0},{"$f":"IF($B132=\"\",\"0\",IF(INDEX($B$11:$H$849,MATCH(LEFT($B132,FIND(\"~\",SUBSTITUTE($B132,\".\",\"~\",LEN($B132)-LEN(SUBSTITUTE($B132,\".\",\"\"))))),$B$11:$B$849,0),MATCH(\"Aktuell?\",$B$9:$H$9,0))=\"Ja\",1,0))","v":0},"P"]
[null,"A2.4.7","IFRS 6.13-14","Utgifter til leting og evaluering. Har foretaket vurdert relevans og pålitelighet av eventuelle endringer i sine regnskapsprinsipper for utgifter til leting og evaluering ut fra reglene i IAS 8? \nPrinsippene kan kun endres dersom endringene medfører at finansregnskapet blir mer relevant for brukernes behov når de tar økonomiske beslutninger, uten at det blir mindre pålitelig, eller blir mer pålitelig uten at det blir mindre relevant for disse behovene. ",null,{"$f":"IF(AND(G133=1,E133=\"i\"),1,IF(AND(G133=1,E133=\"s\"),1,0))","v":0},{"$f":"IF($B133=\"\",\"0\",IF(INDEX($B$11:$H$849,MATCH(LEFT($B133,FIND(\"~\",SUBSTITUTE($B133,\".\",\"~\",LEN($B133)-LEN(SUBSTITUTE($B133,\".\",\"\"))))),$B$11:$B$849,0),MATCH(\"Aktuell?\",$B$9:$H$9,0))=\"Ja\",1,0))","v":0},"P"]
[null,"A2.5.",null,"Særlige poster",null,{"$f":"SUMIF($B135:$B$849,$B134&\"*\",$F135:$F$849)","v":0},"Nei",null,{"$f":"IF($G134=\"Ja\",\"Total: \"&COUNTIFS($B135:$B$849,B134&\"*\",$G135:$G$849,1)&\" | P - \"&COUNTIFS($B135:$B$849,B134&\"*\",$G135:$G$849,1,$H135:$H$849,$E$3)&\" | J - \"&COUNTIFS($B135:$B$849,B134&\"*\",$G135:$G$849,1,$H135:$H$849,$E$4)&\" | N - \"&COUNTIFS($B135:$B$849,B134&\"*\",$G135:$G$849,1,$H135:$H$849,$E$5)&\" | A - \"&COUNTIFS($B135:$B$849,B134&\"*\",$G135:$G$849,1,$H135:$H$849,$E$6)&\" | F - \"&COUNTIFS($B135:$B$849,B134&\"*\",$G135:$G$849,1,$H135:$H$849,$E$7),\"\")","v":""}]
[null,"A2.5.1","NRS 5 nr 3","Poster som bærer karakter av å være uvanlige og/eller uregelmessige kan klassifiseres som særlige poster og skal spesifiseres på egen linje. "]
[null,"A2.5.2","NRS 5 nr 3","Er grunnlaget for presentasjon på egen linje opplyst? ",null,{"$f":"IF(AND(G136=1,E136=\"i\"),1,IF(AND(G136=1,E136=\"s\"),1,0))","v":0},{"$f":"IF($B136=\"\",\"0\",IF(INDEX($B$11:$H$849,MATCH(LEFT($B136,FIND(\"~\",SUBSTITUTE($B136,\".\",\"~\",LEN($B136)-LEN(SUBSTITUTE($B136,\".\",\"\"))))),$B$11:$B$849,0),MATCH(\"Aktuell?\",$B$9:$H$9,0))=\"Ja\",1,0))","v":0},"P"]
[null,"A3.",null,"Resultatregnskapet",null,{"$f":"SUMIFS($F138:$F$849,$B138:$B$849,$B137&\"*\",$G138:$G$849,\"Ja\")","v":0},{"$f":"IF(COUNTIFS($B138:$B$849,$B137&\"*\",$G138:$G$849,\"Ja\")>0,\"Ja\",\"Nei\")","v":"Ja"}]
[null,"A3.1.",null,"Generelt",null,{"$f":"SUMIF($B142:$B$849,$B138&\"*\",$F142:$F$849)","v":0},"Ja",null,{"$f":"IF($G138=\"Ja\",\"Total: \"&COUNTIFS($B139:$B$849,B138&\"*\",$G139:$G$849,1)&\" | P - \"&COUNTIFS($B139:$B$849,B138&\"*\",$G139:$G$849,1,$H139:$H$849,$E$3)&\" | J - \"&COUNTIFS($B139:$B$849,B138&\"*\",$G139:$G$849,1,$H139:$H$849,$E$4)&\" | N - \"&COUNTIFS($B139:$B$849,B138&\"*\",$G139:$G$849,1,$H139:$H$849,$E$5)&\" | A - \"&COUNTIFS($B139:$B$849,B138&\"*\",$G139:$G$849,1,$H139:$H$849,$E$6)&\" | F - \"&COUNTIFS($B139:$B$849,B138&\"*\",$G139:$G$849,1,$H139:$H$849,$E$7),\"\")","v":"Total: 5 | P - 5 | J - 0 | N - 0 | A - 0 | F - 0"}]
[null,"A3.1.1","rskl § 6-1","Er resultatregnskapet satt opp i henhold til regnskapslovens oppstillingsplan, evt. egen oppstillingsplan etter særforskrifter? Se seksjon \"Særforskrifter\" over.",null,{"$f":"IF(AND(G139=1,E139=\"i\"),1,IF(AND(G139=1,E139=\"s\"),1,0))","v":0},{"$f":"IF($B139=\"\",\"0\",IF(INDEX($B$11:$H$849,MATCH(LEFT($B139,FIND(\"~\",SUBSTITUTE($B139,\".\",\"~\",LEN($B139)-LEN(SUBSTITUTE($B139,\".\",\"\"))))),$B$11:$B$849,0),MATCH(\"Aktuell?\",$B$9:$H$9,0))=\"Ja\",1,0))","v":1},"P"]
[null,"A3.1.2","rskl § 7-8b","Hvis driftskostnadene er inndelt etter funksjon, er da artsinndeling vist i note?",null,{"$f":"IF(AND(G140=1,E140=\"i\"),1,IF(AND(G140=1,E140=\"s\"),1,0))","v":0},{"$f":"IF($B140=\"\",\"0\",IF(INDEX($B$11:$H$849,MATCH(LEFT($B140,FIND(\"~\",SUBSTITUTE($B140,\".\",\"~\",LEN($B140)-LEN(SUBSTITUTE($B140,\".\",\"\"))))),$B$11:$B$849,0),MATCH(\"Aktuell?\",$B$9:$H$9,0))=\"Ja\",1,0))","v":1},"P"]
[null,"A3.1.3","IAS 1. 87\nrskl § 6-1","Er noen balanser klassifisert som eskstraordinære poster? IFRS (og NRS 5) tillater ikke at en post klassifiseres som ekstraordinær, så denne posten skal ikke brukes",null,{"$f":"IF(AND(G141=1,E141=\"i\"),1,IF(AND(G141=1,E141=\"s\"),1,0))","v":0},{"$f":"IF($B141=\"\",\"0\",IF(INDEX($B$11:$H$849,MATCH(LEFT($B141,FIND(\"~\",SUBSTITUTE($B141,\".\",\"~\",LEN($B141)-LEN(SUBSTITUTE($B141,\".\",\"\"))))),$B$11:$B$849,0),MATCH(\"Aktuell?\",$B$9:$H$9,0))=\"Ja\",1,0))","v":1},"P"]
[null,"A3.1.4","Forskriften\n§ 4-2 nr 8","Dersom foretaket anvender IAS 33 frivillig, SKAL det gitt noteopplysninger etter IAS 33, se seksjon B.4",null,{"$f":"IF(AND(G142=1,E142=\"i\"),1,IF(AND(G142=1,E142=\"s\"),1,0))","v":0},{"$f":"IF($B142=\"\",\"0\",IF(INDEX($B$11:$H$849,MATCH(LEFT($B142,FIND(\"~\",SUBSTITUTE($B142,\".\",\"~\",LEN($B142)-LEN(SUBSTITUTE($B142,\".\",\"\"))))),$B$11:$B$849,0),MATCH(\"Aktuell?\",$B$9:$H$9,0))=\"Ja\",1,0))","v":1},"P"]
[null,"A3.1.5","IAS 33.4A","Vises resultat per aksje informasjon som en del av resultatoppstillingen?",null,{"$f":"IF(AND(G143=1,E143=\"i\"),1,IF(AND(G143=1,E143=\"s\"),1,0))","v":0},{"$f":"IF($B143=\"\",\"0\",IF(INDEX($B$11:$H$849,MATCH(LEFT($B143,FIND(\"~\",SUBSTITUTE($B143,\".\",\"~\",LEN($B143)-LEN(SUBSTITUTE($B143,\".\",\"\"))))),$B$11:$B$849,0),MATCH(\"Aktuell?\",$B$9:$H$9,0))=\"Ja\",1,0))","v":1},"P"]
[null,"A3.2.",null,"Salgsinntekter",null,{"$f":"SUMIF($B150:$B$849,$B144&\"*\",$F150:$F$849)","v":0},"Ja",null,{"$f":"IF($G144=\"Ja\",\"Total: \"&COUNTIFS($B146:$B$849,B144&\"*\",$G146:$G$849,1)&\" | P - \"&COUNTIFS($B146:$B$849,B144&\"*\",$G146:$G$849,1,$H146:$H$849,$E$3)&\" | J - \"&COUNTIFS($B146:$B$849,B144&\"*\",$G146:$G$849,1,$H146:$H$849,$E$4)&\" | N - \"&COUNTIFS($B146:$B$849,B144&\"*\",$G146:$G$849,1,$H146:$H$849,$E$5)&\" | A - \"&COUNTIFS($B146:$B$849,B144&\"*\",$G146:$G$849,1,$H146:$H$849,$E$6)&\" | F - \"&COUNTIFS($B146:$B$849,B144&\"*\",$G146:$G$849,1,$H146:$H$849,$E$7),\"\")","v":"Total: 1 | P - 1 | J - 0 | N - 0 | A - 0 | F - 0"}]
[null,"A3.2.1",null,"Notekravene i IFRS 15 er vesentlig endret i innhold og omfang. Det prinsipielle grunnlaget for inntektsføring under IFRS (IAS 18 og IAS 11) var bygget på en resultatorientering, hvilket samsvarte med det konseptuelle grunnlaget under God regnskapsskikk (opptjeningsprinsippet). Prinsippene for inntektsføring under IFRS er endret på mange områder i forbindelse med innføringen av IFRS 15. \n\nForskriften om forenklet IFRS har ikke vært oppdatert i takt med endringene under full IFRS, hvilket har medført at den på nåværende tidspunkt er utdatert på en rekke områder. \n\nDet følger av faneparagrafen i rskl. § 7-1 (2) at det skal gis opplysninger som er nødvendige for å bedømme den regnskapspliktiges eller konsernets stilling og resultat og som ikke fremgår av årsregnskapet for øvrig. \n\nPå bakgrunn av dette må den enkelte regnskapspliktige vurdere hvilke noteopplysninger i IFRS 15 som må gis for at regnskapsbrukerne skal få et rettvisende og dekkende bilde av årsregnskapet.\n"]
[null,"A3.2.2","rskl § 7-8","• Er salgsinntekter i note spesifisert på virksomhetsområde og geografisk marked?",null,{"$f":"IF(AND(G146=1,E146=\"i\"),1,IF(AND(G146=1,E146=\"s\"),1,0))","v":0},{"$f":"IF($B146=\"\",\"0\",IF(INDEX($B$11:$H$849,MATCH(LEFT($B146,FIND(\"~\",SUBSTITUTE($B146,\".\",\"~\",LEN($B146)-LEN(SUBSTITUTE($B146,\".\",\"\"))))),$B$11:$B$849,0),MATCH(\"Aktuell?\",$B$9:$H$9,0))=\"Ja\",1,0))","v":1},"P"]
[null,"A3.3.",null,"Driftskostnader",null,{"$f":"SUMIF($B149:$B$849,$B147&\"*\",$F149:$F$849)","v":0},"Nei",null,{"$f":"IF($G147=\"Ja\",\"Total: \"&COUNTIFS($B149:$B$849,B147&\"*\",$G149:$G$849,1)&\" | P - \"&COUNTIFS($B149:$B$849,B147&\"*\",$G149:$G$849,1,$H149:$H$849,$E$3)&\" | J - \"&COUNTIFS($B149:$B$849,B147&\"*\",$G149:$G$849,1,$H149:$H$849,$E$4)&\" | N - \"&COUNTIFS($B149:$B$849,B147&\"*\",$G149:$G$849,1,$H149:$H$849,$E$5)&\" | A - \"&COUNTIFS($B149:$B$849,B147&\"*\",$G149:$G$849,1,$H149:$H$849,$E$6)&\" | F - \"&COUNTIFS($B149:$B$849,B147&\"*\",$G149:$G$849,1,$H149:$H$849,$E$7),\"\")","v":""}]
[null,"A3.3.1","rskl § 7-8b","• Hvis resultatregnskapet er presentert etter funksjon, er det i note vist en oppstilling over driftskostnadene etter art?",null,{"$f":"IF(AND(G148=1,E148=\"i\"),1,IF(AND(G148=1,E148=\"s\"),1,0))","v":0},{"$f":"IF($B148=\"\",\"0\",IF(INDEX($B$11:$H$849,MATCH(LEFT($B148,FIND(\"~\",SUBSTITUTE($B148,\".\",\"~\",LEN($B148)-LEN(SUBSTITUTE($B148,\".\",\"\"))))),$B$11:$B$849,0),MATCH(\"Aktuell?\",$B$9:$H$9,0))=\"Ja\",1,0))","v":0},"P"]
[null,"A3.3.2","rskl § 7-8b","• Er det vist tilsvarende sammenligningstall?",null,{"$f":"IF(AND(G149=1,E149=\"i\"),1,IF(AND(G149=1,E149=\"s\"),1,0))","v":0},{"$f":"IF($B149=\"\",\"0\",IF(INDEX($B$11:$H$849,MATCH(LEFT($B149,FIND(\"~\",SUBSTITUTE($B149,\".\",\"~\",LEN($B149)-LEN(SUBSTITUTE($B149,\".\",\"\"))))),$B$11:$B$849,0),MATCH(\"Aktuell?\",$B$9:$H$9,0))=\"Ja\",1,0))","v":0},"P"]
[null,"A3.5.",null,"Resultatdisponering",null,{"$f":"SUMIF($B156:$B$849,$B150&\"*\",$F156:$F$849)","v":0},"Ja",null,{"$f":"IF($G150=\"Ja\",\"Total: \"&COUNTIFS($B151:$B$849,B150&\"*\",$G151:$G$849,1)&\" | P - \"&COUNTIFS($B151:$B$849,B150&\"*\",$G151:$G$849,1,$H151:$H$849,$E$3)&\" | J - \"&COUNTIFS($B151:$B$849,B150&\"*\",$G151:$G$849,1,$H151:$H$849,$E$4)&\" | N - \"&COUNTIFS($B151:$B$849,B150&\"*\",$G151:$G$849,1,$H151:$H$849,$E$5)&\" | A - \"&COUNTIFS($B151:$B$849,B150&\"*\",$G151:$G$849,1,$H151:$H$849,$E$6)&\" | F - \"&COUNTIFS($B151:$B$849,B150&\"*\",$G151:$G$849,1,$H151:$H$849,$E$7),\"\")","v":"Total: 3 | P - 3 | J - 0 | N - 0 | A - 0 | F - 0"}]
[null,"A3.5.1","rskl § 3-3a, 8. ledd","Står forslag til anvendelse av overskudd eller dekning av tap i tilknytning til resultatregnskapet, i eventuell oppstilling over endringer i egenkapitalen, i noter eller årsberetning?",null,{"$f":"IF(AND(G151=1,E151=\"i\"),1,IF(AND(G151=1,E151=\"s\"),1,0))","v":0},{"$f":"IF($B151=\"\",\"0\",IF(INDEX($B$11:$H$849,MATCH(LEFT($B151,FIND(\"~\",SUBSTITUTE($B151,\".\",\"~\",LEN($B151)-LEN(SUBSTITUTE($B151,\".\",\"\"))))),$B$11:$B$849,0),MATCH(\"Aktuell?\",$B$9:$H$9,0))=\"Ja\",1,0))","v":1},"P"]
[null,null,"og § 7-25"]
[null,"A3.5.2","NRS 8 pkt 5.3.3","Hvis det er delt ut tilleggsutbytte eller ekstraordinært utbytte som er regnskapsført i uttaksåret, er det da gitt opplysning om dette utbyttet sammen med disponeringen av årets resultat?",null,{"$f":"IF(AND(G153=1,E153=\"i\"),1,IF(AND(G153=1,E153=\"s\"),1,0))","v":0},{"$f":"IF($B153=\"\",\"0\",IF(INDEX($B$11:$H$849,MATCH(LEFT($B153,FIND(\"~\",SUBSTITUTE($B153,\".\",\"~\",LEN($B153)-LEN(SUBSTITUTE($B153,\".\",\"\"))))),$B$11:$B$849,0),MATCH(\"Aktuell?\",$B$9:$H$9,0))=\"Ja\",1,0))","v":1},"P"]
[null,"A3.5.3","asl. § 8-5","Er det gitt opplysning i årsregnskap eller årsberetning om konsernbidrag fra morselskap til datterselskap som er ført som investering i morselskapets regnskap?",null,{"$f":"IF(AND(G154=1,E154=\"i\"),1,IF(AND(G154=1,E154=\"s\"),1,0))","v":0},{"$f":"IF($B154=\"\",\"0\",IF(INDEX($B$11:$H$849,MATCH(LEFT($B154,FIND(\"~\",SUBSTITUTE($B154,\".\",\"~\",LEN($B154)-LEN(SUBSTITUTE($B154,\".\",\"\"))))),$B$11:$B$849,0),MATCH(\"Aktuell?\",$B$9:$H$9,0))=\"Ja\",1,0))","v":1},"P"]
[null,null,"og § 8-2"]
[null,"A4.",null,"Annet totalresultat",null,{"$f":"SUMIFS($F157:$F$849,$B157:$B$849,$B156&\"*\",$G157:$G$849,\"Ja\")","v":0},{"$f":"IF(COUNTIFS($B157:$B$849,$B156&\"*\",$G157:$G$849,\"Ja\")>0,\"Ja\",\"Nei\")","v":"Ja"}]
[null,"A4.1.",null,"Oppstilling av annet totalresultat",null,{"$f":"SUMIF($B168:$B$849,$B157&\"*\",$F168:$F$849)","v":0},"Ja",null,{"$f":"IF($G157=\"Ja\",\"Total: \"&COUNTIFS($B158:$B$849,B157&\"*\",$G158:$G$849,1)&\" | P - \"&COUNTIFS($B158:$B$849,B157&\"*\",$G158:$G$849,1,$H158:$H$849,$E$3)&\" | J - \"&COUNTIFS($B158:$B$849,B157&\"*\",$G158:$G$849,1,$H158:$H$849,$E$4)&\" | N - \"&COUNTIFS($B158:$B$849,B157&\"*\",$G158:$G$849,1,$H158:$H$849,$E$5)&\" | A - \"&COUNTIFS($B158:$B$849,B157&\"*\",$G158:$G$849,1,$H158:$H$849,$E$6)&\" | F - \"&COUNTIFS($B158:$B$849,B157&\"*\",$G158:$G$849,1,$H158:$H$849,$E$7),\"\")","v":"Total: 10 | P - 10 | J - 0 | N - 0 | A - 0 | F - 0"}]
[null,"A4.1.1","Forskriften § 2-1, IAS 1","Har selskapet inkludert en oppstilling av annet totalresultat rett etter resultatregnskapet?",null,{"$f":"IF(AND(G158=1,E158=\"i\"),1,IF(AND(G158=1,E158=\"s\"),1,0))","v":0},{"$f":"IF($B158=\"\",\"0\",IF(INDEX($B$11:$H$849,MATCH(LEFT($B158,FIND(\"~\",SUBSTITUTE($B158,\".\",\"~\",LEN($B158)-LEN(SUBSTITUTE($B158,\".\",\"\"))))),$B$11:$B$849,0),MATCH(\"Aktuell?\",$B$9:$H$9,0))=\"Ja\",1,0))","v":1},"P"]
[null,"A4.1.2","IAS 1.82A","Er postene i annet totalresultat klassifisert etter art (inkludert andel av totalresultatet fra tilknyttede selskaper og JVs som innregnes etter EK metode) og gruppert i følgende kategorier (basert på reglene i IFRS standarder og evnt unntak i forskriften for disse)?:",null,0,1,"P"]
[null,"A4.1.3",null,"(a) Poster som ikke vil bli omklassifisert til resultatet",null,0,1,"P"]
[null,"A4.1.4",null,"(b) poster som kan bli omklassifisert til resultatet",null,0,1,"P"]
[null,"A4.1.5","IAS 1.90","Er det opplyst om beløpet for inntektsskatt knyttet til hver enkelt post av andre inntekter og kostnader, herunder omklassifiseringsjusteringer?\nDette kan gjøres enten i oppstillingen over totalresultatet eller i notene. ",null,0,1,"P"]
[null,"A4.1.6","IAS 1.91","Et foretak kan presentere poster i andre inntekter og kostnader enten:",null,0,1,"P"]
[null,"A4.1.7",null,"a) fratrukket tilknyttede skattemessige virkninger, eller",null,0,1,"P"]
[null,"A4.1.8",null,"b) før tilknyttede skattemessige virkninger med ett beløp som viser det samlede beløpet for inntektsskatt knyttet til disse postene.\nDersom et foretak velger alternativ b), skal det fordele skatten mellom de poster som senere kan bli omklassifisert til avsnittet for resultatet og de som senere ikke vil bli omklassifisert til avsnittet for resultatet.",null,0,1,"P"]
[null,"A4.1.9","IAS 1.92","Er omklassifiseringsjusteringer knyttet til bestanddeler av andre inntekter og kostnader vist? ",null,0,1,"P"]
[null,"A4.1.10","IAS 1.94","Omklassifiseringsjusteringer kan presenteres i annet totalresultat eller i notene. \nEt foretak som presenterer omklassifiseringsjusteringer i notene, skal presentere postene for andre inntekter og kostnader etter alle tilknyttede omklassifiseringsjusteringer.",null,0,1,"P"]
[null,"A5.",null,"Balansen",null,{"$f":"SUMIFS($F169:$F$849,$B169:$B$849,$B168&\"*\",$G169:$G$849,\"Ja\")","v":0},{"$f":"IF(COUNTIFS($B169:$B$849,$B168&\"*\",$G169:$G$849,\"Ja\")>0,\"Ja\",\"Nei\")","v":"Ja"}]
[null,"A5.1.",null,"Generelt",null,{"$f":"SUMIF($B170:$B$849,$B169&\"*\",$F170:$F$849)","v":0},"Ja",null,{"$f":"IF($G169=\"Ja\",\"Total: \"&COUNTIFS($B170:$B$849,B169&\"*\",$G170:$G$849,1)&\" | P - \"&COUNTIFS($B170:$B$849,B169&\"*\",$G170:$G$849,1,$H170:$H$849,$E$3)&\" | J - \"&COUNTIFS($B170:$B$849,B169&\"*\",$G170:$G$849,1,$H170:$H$849,$E$4)&\" | N - \"&COUNTIFS($B170:$B$849,B169&\"*\",$G170:$G$849,1,$H170:$H$849,$E$5)&\" | A - \"&COUNTIFS($B170:$B$849,B169&\"*\",$G170:$G$849,1,$H170:$H$849,$E$6)&\" | F - \"&COUNTIFS($B170:$B$849,B169&\"*\",$G170:$G$849,1,$H170:$H$849,$E$7),\"\")","v":"Total: 4 | P - 4 | J - 0 | N - 0 | A - 0 | F - 0"}]
[null,"A5.1.1","rskl § 6-2","Er balansen spesifisert i henhold til regnskapslovens oppstillingsplan, evt.etter likviditet, dersom dette gir mer relevante og pålitelige opplysninger?",null,{"$f":"IF(AND(G170=1,E170=\"i\"),1,IF(AND(G170=1,E170=\"s\"),1,0))","v":0},{"$f":"IF($B170=\"\",\"0\",IF(INDEX($B$11:$H$849,MATCH(LEFT($B170,FIND(\"~\",SUBSTITUTE($B170,\".\",\"~\",LEN($B170)-LEN(SUBSTITUTE($B170,\".\",\"\"))))),$B$11:$B$849,0),MATCH(\"Aktuell?\",$B$9:$H$9,0))=\"Ja\",1,0))","v":1},"P"]
[null,"A5.1.2","IAS 1.60-76","Er eiendeler bestemt til varig eie eller bruk, og fordringer som ikke skal tilbakebetales innen ett år, klassifisert som anleggsmidler, og øvrige eiendeler klassifisert som omløpsmidler?",null,{"$f":"IF(AND(G171=1,E171=\"i\"),1,IF(AND(G171=1,E171=\"s\"),1,0))","v":0},{"$f":"IF($B171=\"\",\"0\",IF(INDEX($B$11:$H$849,MATCH(LEFT($B171,FIND(\"~\",SUBSTITUTE($B171,\".\",\"~\",LEN($B171)-LEN(SUBSTITUTE($B171,\".\",\"\"))))),$B$11:$B$849,0),MATCH(\"Aktuell?\",$B$9:$H$9,0))=\"Ja\",1,0))","v":1},"P"]
[null,"A5.1.3","NRS 8 pkt 6.2.1.7.1","Inngår tilleggsutbytte eller ekstraordinært utbytte som er som er besluttet før balansedagen, og som står utbetalt på balansedagen, i kortsiktig gjeld?",null,{"$f":"IF(AND(G172=1,E172=\"i\"),1,IF(AND(G172=1,E172=\"s\"),1,0))","v":0},{"$f":"IF($B172=\"\",\"0\",IF(INDEX($B$11:$H$849,MATCH(LEFT($B172,FIND(\"~\",SUBSTITUTE($B172,\".\",\"~\",LEN($B172)-LEN(SUBSTITUTE($B172,\".\",\"\"))))),$B$11:$B$849,0),MATCH(\"Aktuell?\",$B$9:$H$9,0))=\"Ja\",1,0))","v":1},"P"]
[null,null,null,"Beholding av egne aksjer: Pålydende på egne aksjer skal enten føres på en egen linje under aksjekapital, eller trekkes ut av linjen for aksjekapital. Dersom man velger å trekke det ut av linjen for aksjekapital skal dette spesifiseres i note. Evt. overskytende beløp skal føres mot annen egenkapital. Dersom kjøpesummen er lavere enn pålydende skal differansen føres på linjen for annen innskutt egenkapital."]
[null,"A5.1.4","rskl § 6-2, 2. ledd.","Er eventuell beholdning av egne aksjer ført opp i samsvar med regnskapslovens krav?",null,{"$f":"IF(AND(G174=1,E174=\"i\"),1,IF(AND(G174=1,E174=\"s\"),1,0))","v":0},{"$f":"IF($B174=\"\",\"0\",IF(INDEX($B$11:$H$849,MATCH(LEFT($B174,FIND(\"~\",SUBSTITUTE($B174,\".\",\"~\",LEN($B174)-LEN(SUBSTITUTE($B174,\".\",\"\"))))),$B$11:$B$849,0),MATCH(\"Aktuell?\",$B$9:$H$9,0))=\"Ja\",1,0))","v":1},"P"]
[null,"A6.",null,"Kontantstrømoppstilling",null,{"$f":"SUMIFS($F176:$F$849,$B176:$B$849,$B175&\"*\",$G176:$G$849,\"Ja\")","v":0},{"$f":"IF(COUNTIFS($B176:$B$849,$B175&\"*\",$G176:$G$849,\"Ja\")>0,\"Ja\",\"Nei\")","v":"Ja"}]
[null,"A6.1.",null,"Generelt",null,{"$f":"SUMIF($B178:$B$849,$B176&\"*\",$F177:$F$849)","v":0},"Ja",null,{"$f":"IF($G176=\"Ja\",\"Total: \"&COUNTIFS($B177:$B$849,B176&\"*\",$G177:$G$849,1)&\" | P - \"&COUNTIFS($B177:$B$849,B176&\"*\",$G177:$G$849,1,$H177:$H$849,$E$3)&\" | J - \"&COUNTIFS($B177:$B$849,B176&\"*\",$G177:$G$849,1,$H177:$H$849,$E$4)&\" | N - \"&COUNTIFS($B177:$B$849,B176&\"*\",$G177:$G$849,1,$H177:$H$849,$E$5)&\" | A - \"&COUNTIFS($B177:$B$849,B176&\"*\",$G177:$G$849,1,$H177:$H$849,$E$6)&\" | F - \"&COUNTIFS($B177:$B$849,B176&\"*\",$G177:$G$849,1,$H177:$H$849,$E$7),\"\")","v":"Total: 4 | P - 4 | J - 0 | N - 0 | A - 0 | F - 0"}]
[null,null,"NRS (F) Kontantstrømoppstilling","Det skal gis noteopplysning etter NRS (F) Kontantstrømoppstilling i henhold til kravene nedenfor."]
[null,"A6.1.1",null,"Er ubenyttet del av kassekreditt eller andre trekkrettigheter kvantifisert?",null,{"$f":"IF(AND(G178=1,E178=\"i\"),1,IF(AND(G178=1,E178=\"s\"),1,0))","v":0},{"$f":"IF($B178=\"\",\"0\",IF(INDEX($B$11:$H$849,MATCH(LEFT($B178,FIND(\"~\",SUBSTITUTE($B178,\".\",\"~\",LEN($B178)-LEN(SUBSTITUTE($B178,\".\",\"\"))))),$B$11:$B$849,0),MATCH(\"Aktuell?\",$B$9:$H$9,0))=\"Ja\",1,0))","v":1},"P"]
[null,"A6.1.2",null,"Er eventuelle  restriksjoner på bruken av kassakreditt og andre trekkrettigheter omtalt?",null,{"$f":"IF(AND(G179=1,E179=\"i\"),1,IF(AND(G179=1,E179=\"s\"),1,0))","v":0},{"$f":"IF($B179=\"\",\"0\",IF(INDEX($B$11:$H$849,MATCH(LEFT($B179,FIND(\"~\",SUBSTITUTE($B179,\".\",\"~\",LEN($B179)-LEN(SUBSTITUTE($B179,\".\",\"\"))))),$B$11:$B$849,0),MATCH(\"Aktuell?\",$B$9:$H$9,0))=\"Ja\",1,0))","v":1},"P"]
[null,"A6.1.3",null,"Er det opplyst om bundne bankinnskudd, herunder skattetrekk?",null,{"$f":"IF(AND(G180=1,E180=\"i\"),1,IF(AND(G180=1,E180=\"s\"),1,0))","v":0},{"$f":"IF($B180=\"\",\"0\",IF(INDEX($B$11:$H$849,MATCH(LEFT($B180,FIND(\"~\",SUBSTITUTE($B180,\".\",\"~\",LEN($B180)-LEN(SUBSTITUTE($B180,\".\",\"\"))))),$B$11:$B$849,0),MATCH(\"Aktuell?\",$B$9:$H$9,0))=\"Ja\",1,0))","v":1},"P"]
[null,"A6.1.4",null,"Er det ved bruk av den indirekte modellen opplyst om vesentlige avstemmingsposter under operasjonelle aktiviteter som ikke fremgår av endring i balanseverdier eller i noter til regnskapet?",null,{"$f":"IF(AND(G181=1,E181=\"i\"),1,IF(AND(G181=1,E181=\"s\"),1,0))","v":0},{"$f":"IF($B181=\"\",\"0\",IF(INDEX($B$11:$H$849,MATCH(LEFT($B181,FIND(\"~\",SUBSTITUTE($B181,\".\",\"~\",LEN($B181)-LEN(SUBSTITUTE($B181,\".\",\"\"))))),$B$11:$B$849,0),MATCH(\"Aktuell?\",$B$9:$H$9,0))=\"Ja\",1,0))","v":1},"P"]
[null,"A6.1.5",null,"Tilleggsinformasjon kan være relevant for regnskapsbrukernes forståelse av et foretaks finansielle stilling og likviditet. Det oppfordres til å gi slik informasjon, sammen med en kommentar fra ledelsen.\nInformasjonen kan for eksempel omfatte: \n• de samlede kontantstrømmer fra henholdsvis drifts-, investerings- og finansieringsaktiviteter knyttet til andeler i felleskontrollert virksomhet presentert ved anvendelse av forholdsmessig konsolidering, \n• de samlede kontantstrømmer som representerer en økning i driftskapasiteten, atskilt fra de kontantstrømmer som er nødvendige for å opprettholde driftskapasiteten, og \n• kontantstrømmene fra drifts-, investerings- og finansieringsaktiviteter i hvert enkelt virksomhetssegment og geografiske segment (se IAS 14: Segmentrapportering). "]
[null,"A6.2.",null,"Foretak som er børsnotert eller av stor allmen interesse",null,{"$f":"SUMIF($B184:$B$849,$B183&\"*\",$F184:$F$849)","v":0},"Ja",null,{"$f":"IF($G183=\"Ja\",\"Total: \"&COUNTIFS($B184:$B$849,B183&\"*\",$G184:$G$849,1)&\" | P - \"&COUNTIFS($B184:$B$849,B183&\"*\",$G184:$G$849,1,$H184:$H$849,$E$3)&\" | J - \"&COUNTIFS($B184:$B$849,B183&\"*\",$G184:$G$849,1,$H184:$H$849,$E$4)&\" | N - \"&COUNTIFS($B184:$B$849,B183&\"*\",$G184:$G$849,1,$H184:$H$849,$E$5)&\" | A - \"&COUNTIFS($B184:$B$849,B183&\"*\",$G184:$G$849,1,$H184:$H$849,$E$6)&\" | F - \"&COUNTIFS($B184:$B$849,B183&\"*\",$G184:$G$849,1,$H184:$H$849,$E$7),\"\")","v":"Total: 4 | P - 4 | J - 0 | N - 0 | A - 0 | F - 0"}]
[null,"A6.2.1",null,"Har foretaket gitt opplysninger om følgende:"]
[null,"A6.2.2",null,"• kontanter og kontantekvivalenter det foreligger restriksjoner på bruken av, og/eller som ikke er tilgjengelige for konsernet?",null,{"$f":"IF(AND(G185=1,E185=\"i\"),1,IF(AND(G185=1,E185=\"s\"),1,0))","v":0},{"$f":"IF($B185=\"\",\"0\",IF(INDEX($B$11:$H$849,MATCH(LEFT($B185,FIND(\"~\",SUBSTITUTE($B185,\".\",\"~\",LEN($B185)-LEN(SUBSTITUTE($B185,\".\",\"\"))))),$B$11:$B$849,0),MATCH(\"Aktuell?\",$B$9:$H$9,0))=\"Ja\",1,0))","v":1},"P"]
[null,"A6.2.3",null,"• hvert virksomhetsområdes driftskostnader, annet enn avskrivninger, som ikke har kontantstrømvirkning, dersom det ikke gis informasjon om kontantstrømmer fra virksomhetsområden?",null,{"$f":"IF(AND(G186=1,E186=\"i\"),1,IF(AND(G186=1,E186=\"s\"),1,0))","v":0},{"$f":"IF($B186=\"\",\"0\",IF(INDEX($B$11:$H$849,MATCH(LEFT($B186,FIND(\"~\",SUBSTITUTE($B186,\".\",\"~\",LEN($B186)-LEN(SUBSTITUTE($B186,\".\",\"\"))))),$B$11:$B$849,0),MATCH(\"Aktuell?\",$B$9:$H$9,0))=\"Ja\",1,0))","v":1},"P"]
[null,"A6.2.4",null,"• Investeringer som ikke har kontantstrømvirkning i perioden?",null,{"$f":"IF(AND(G187=1,E187=\"i\"),1,IF(AND(G187=1,E187=\"s\"),1,0))","v":0},{"$f":"IF($B187=\"\",\"0\",IF(INDEX($B$11:$H$849,MATCH(LEFT($B187,FIND(\"~\",SUBSTITUTE($B187,\".\",\"~\",LEN($B187)-LEN(SUBSTITUTE($B187,\".\",\"\"))))),$B$11:$B$849,0),MATCH(\"Aktuell?\",$B$9:$H$9,0))=\"Ja\",1,0))","v":1},"P"]
[null,"A6.2.5",null,"• Følgende ved kjøp og salg av andre foretak/virksomheter (samlet, kjøp og salg hver for seg):\n - vederlaget fordelt på kontanter og ikke kontanter\n   - omløpsmidler, eksklusiv kontanter og kontantekvivalenter\n   - gjeld\n   - kontanter og kontantekvivalenter?",null,{"$f":"IF(AND(G188=1,E188=\"i\"),1,IF(AND(G188=1,E188=\"s\"),1,0))","v":0},{"$f":"IF($B188=\"\",\"0\",IF(INDEX($B$11:$H$849,MATCH(LEFT($B188,FIND(\"~\",SUBSTITUTE($B188,\".\",\"~\",LEN($B188)-LEN(SUBSTITUTE($B188,\".\",\"\"))))),$B$11:$B$849,0),MATCH(\"Aktuell?\",$B$9:$H$9,0))=\"Ja\",1,0))","v":1},"P"]
[null,"A7.",null,"Noter",null,{"$f":"SUMIFS($F199:$F$849,$B199:$B$849,$B189&\"*\",$G199:$G$849,\"Ja\")","v":0},{"$f":"IF(COUNTIFS($B199:$B$849,$B189&\"*\",$G199:$G$849,\"Ja\")>0,\"Ja\",\"Nei\")","v":"Ja"}]
[null,"A7.0.",null,"Generelt",null,{"$f":"SUMIF($B191:$B$849,$B190&\"*\",$F191:$F$849)","v":0},"Nei",null,{"$f":"IF($G190=\"Ja\",\"Total: \"&COUNTIFS($B191:$B$849,B190&\"*\",$G191:$G$849,1)&\" | P - \"&COUNTIFS($B191:$B$849,B190&\"*\",$G191:$G$849,1,$H191:$H$849,$E$3)&\" | J - \"&COUNTIFS($B191:$B$849,B190&\"*\",$G191:$G$849,1,$H191:$H$849,$E$4)&\" | N - \"&COUNTIFS($B191:$B$849,B190&\"*\",$G191:$G$849,1,$H191:$H$849,$E$5)&\" | A - \"&COUNTIFS($B191:$B$849,B190&\"*\",$G191:$G$849,1,$H191:$H$849,$E$6)&\" | F - \"&COUNTIFS($B191:$B$849,B190&\"*\",$G191:$G$849,1,$H191:$H$849,$E$7),\"\")","v":""}]
[null,"A7.0.1","rskl § 7-1, 1. ledd\n","Noteopplysningene nedenfor skal som utgangspunkt alltid tas med, men kan utelates dersom de ikke er av betydning for å bedømme selskapets stilling og resultat."]
[null,"A7.0.2","rskl § 7-1, 3. ledd","Enkelte notekrav er imidlertid pliktige, og kan aldri utelates."]
[null,"A7.0.3","rskl § 7-1, 2. ledd","Det kan også være aktuelt å gi andre/ytterligere opplysninger enn de som dekkes av kravene ovenfor. Ytterligere opplysninger må gis dersom de er nødvendige for å bedømme selskapets stilling og resultat. \n"]
[null,"A7.0.4","rskl § 7-1, 4. ledd","Det skal gis tilleggsopplysninger hvis anvendelsen av bestemmelsene i regnskapsloven ikke er tiltrekkelig for å gi et rettvisende bilde av den regnskapspliktiges eiendeler, gjeld, finansielle stilling og resultat. "]
[null,"A7.0.5","rskl § 7-1, 5. ledd","Dersom foretaket er engasjert i aktiviteter med vesentlig risiko eller vesentlige fordeler som ikke er innregnet i balansen, skal tilleggsopplysningene etter fjerde ledd omfatte en beskrivelse av aktivitetenes finansielle virkning og formålet med dem."]
[null,"A7.0.6","rskl § 7-1, 6. ledd","Iflg rskl § 3-2a, 2. ledd skal bestemmelsene i rskl kap. 4 til 7 i særlige unntakstilfeller fravikes, dersom dette er nødvendig for å gi et rettvisende bilde av den regnskapspliktiges eiendeler og gjeld, finansielle stilling og resultat. Ethvert slikt fravik skal angis og begrunnes konkret og fullstendig med opplysningen om betydningen fraviket har for den regnskapspliktiges og konsernets eiendeler og gjeld, finansielle stilling og resultat. "]
[null,"A7.1.",null,"Store enkelttransaksjoner",null,{"$f":"SUMIF($B199:$B$849,$B197&\"*\",$F198:$F$849)","v":0},"Nei",null,{"$f":"IF($G197=\"Ja\",\"Total: \"&COUNTIFS($B198:$B$849,B197&\"*\",$G198:$G$849,1)&\" | P - \"&COUNTIFS($B198:$B$849,B197&\"*\",$G198:$G$849,1,$H198:$H$849,$E$3)&\" | J - \"&COUNTIFS($B198:$B$849,B197&\"*\",$G198:$G$849,1,$H198:$H$849,$E$4)&\" | N - \"&COUNTIFS($B198:$B$849,B197&\"*\",$G198:$G$849,1,$H198:$H$849,$E$5)&\" | A - \"&COUNTIFS($B198:$B$849,B197&\"*\",$G198:$G$849,1,$H198:$H$849,$E$6)&\" | F - \"&COUNTIFS($B198:$B$849,B197&\"*\",$G198:$G$849,1,$H198:$H$849,$E$7),\"\")","v":""}]
[null,"A7.1.1","rskl § 7-6","Er det opplyst det om store enkelttransaksjoner?",null,{"$f":"IF(AND(G198=1,E198=\"i\"),1,IF(AND(G198=1,E198=\"s\"),1,0))","v":0},{"$f":"IF($B198=\"\",\"0\",IF(INDEX($B$11:$H$849,MATCH(LEFT($B198,FIND(\"~\",SUBSTITUTE($B198,\".\",\"~\",LEN($B198)-LEN(SUBSTITUTE($B198,\".\",\"\"))))),$B$11:$B$849,0),MATCH(\"Aktuell?\",$B$9:$H$9,0))=\"Ja\",1,0))","v":0},"P"]
[null,"A7.2.",null,"Varige driftsmidler",null,{"$f":"SUMIF($B214:$B$849,$B199&\"*\",$F214:$F$849)","v":0},"Nei",null,{"$f":"IF($G199=\"Ja\",\"Total: \"&COUNTIFS($B200:$B$849,B199&\"*\",$G200:$G$849,1)&\" | P - \"&COUNTIFS($B200:$B$849,B199&\"*\",$G200:$G$849,1,$H200:$H$849,$E$3)&\" | J - \"&COUNTIFS($B200:$B$849,B199&\"*\",$G200:$G$849,1,$H200:$H$849,$E$4)&\" | N - \"&COUNTIFS($B200:$B$849,B199&\"*\",$G200:$G$849,1,$H200:$H$849,$E$5)&\" | A - \"&COUNTIFS($B200:$B$849,B199&\"*\",$G200:$G$849,1,$H200:$H$849,$E$6)&\" | F - \"&COUNTIFS($B200:$B$849,B199&\"*\",$G200:$G$849,1,$H200:$H$849,$E$7),\"\")","v":""}]
[null,"A7.2.1",null,"Inndelingen i regnskapsloven\n• Tomter, bygninger og annen fast eiendom\n• Maskiner og anlegg\n• Skip, rigger, fly o.l.\n• Driftsløsøre, inventar, verktøy, kontormaskiner og lignende",null,{"$f":"IF(AND(G200=1,E200=\"i\"),1,IF(AND(G200=1,E200=\"s\"),1,0))","v":0},{"$f":"IF($B200=\"\",\"0\",IF(INDEX($B$11:$H$849,MATCH(LEFT($B200,FIND(\"~\",SUBSTITUTE($B200,\".\",\"~\",LEN($B200)-LEN(SUBSTITUTE($B200,\".\",\"\"))))),$B$11:$B$849,0),MATCH(\"Aktuell?\",$B$9:$H$9,0))=\"Ja\",1,0))","v":0},"P"]
[null,"A7.2.2","rskl § 7-12","Er det for hver post opplyst om: ",null,0,0,"P"]
[null,"A7.2.3","rskl § 7-13\n",null,null,0,0,"P"]
[null,"A7.2.4","rskl § 7-12","• Anskaffelseskost med spesifikasjon av eventuelle balanseførte lånekostnader knyttet til egentilvirkede anleggsmidler?",null,0,0,"P"]
[null,"A7.2.5","rskl § 7-12","• Tilgang og avgang i løpet av regnskapsåret?",null,0,0,"P"]
[null,"A7.2.6","rskl § 7-12","• Årets tilgang av egentilvirkede driftsmidler?",null,0,0,"P"]
[null,"A7.2.7","rskl § 7-12","• Samlede avskrivninger, nedskrivninger og reversering av nedskrivninger?",null,0,0,"P"]
[null,"A7.2.8","rskl § 7-12","• Året avskrivninger, nedskrivninger og reversering av nedskrivninger i regnskapsåret?",null,0,0,"P"]
[null,"A7.2.9","rskl § 7-13\n","• Hvilke forutsetninger som er lagt til grunn for nedskrivning og reversering av nedskrivning, herunder hvorledes vurderingsenhet og gjennvinnbart beløp er fastsatt?",null,0,0,"P"]
[null,"A7.2.11","NRS (F) Nedskrivning av anleggsmidler","• Størrelsen på reversering i perioden fordelt på ulike klasser av anleggsmidler?",null,0,0,"P"]
[null,"A7.2.12","rskl § 7-13\n","• Størrelsen på nedskrivning i perioden fordelt på ulike klasser av anleggsmidler, dersom dette ikke fremkommer av resultatregnskapet?",null,0,0,"P"]
[null,"A7.2.13","NRS (F) Nedskrivning av anleggsmidler",null,null,0,0,"P"]
[null,"A7.2.14","rskl § 7-13\n","• Økonomisk levetid og valg av avskrivningsplan?",null,0,0,"P"]
[null,"A7.2.15","rskl § 7-12","• Endringer i avskrivningsplan?",null,0,0,"P"]
[null,"A7.2.16",null,"Tilleggsopplysninger ved bruk av verdireguleringsmodellen",null,{"$f":"SUMIF($B216:$B$849,$B214&\"*\",$F216:$F$849)","v":0},null,{"$f":"IF(INDEX($B$11:$H$849,MATCH(LEFT($B214,FIND(\"~\",SUBSTITUTE($B214,\".\",\"~\",LEN($B214)-LEN(SUBSTITUTE($B214,\".\",\"\"))))),$B$11:$B$849,0),MATCH(\"Aktuell?\",$B$9:$H$9,0))=\"Yes\",1,0)","v":0}]
[null,"A7.2.17","Forskriften § 4-2 annet ledd nr. 8","Det skal gis noteopplysninger i henhold til IAS 16.73 a, 16.73 e romertall IV, og 16.77 a, b, e og f (c og d er opphevet) for regnskapspliktige som benytter verdireguleringsmodellen:",null,{"$f":"IF(AND(G215=1,E215=\"i\"),1,IF(AND(G215=1,E215=\"s\"),1,0))","v":0},{"$f":"IF($B215=\"\",\"0\",IF(INDEX($B$11:$H$849,MATCH(LEFT($B215,FIND(\"~\",SUBSTITUTE($B215,\".\",\"~\",LEN($B215)-LEN(SUBSTITUTE($B215,\".\",\"\"))))),$B$11:$B$849,0),MATCH(\"Aktuell?\",$B$9:$H$9,0))=\"Ja\",1,0))","v":0},"P"]
[null,"A7.2.18","IAS 16.73 a) og e), iv","Inneholder finansregnskapet følgende opplysninger for hver klasse av eiendom, anlegg og utstyr:",null,0,0,"P"]
[null,"A7.2.19",null,"• Målegrunnlagene som er benyttet for å beregne brutto balanseført verdi?",null,0,0,"P"]
[null,"A7.2.20",null,"• Økninger eller reduksjoner som skyldes verdireguleringer i henhold til IAS 16.31, 16.39 og 16.40, samt eventuelle tap ved verdifall innregnet eller reversert direkte i egenkapitalen i samsvar med IAS 36?",null,0,0,"P"]
[null,"A7.2.21","IAS 16.77 a, b, d og f","Dersom enheter av eiendom, anlegg og utstyr balanseføres til verdiregulerte beløp, er det gitt følgende opplysninger:",null,0,0,"P"]
[null,"A7.2.22",null,"• Tidspunktet da verdireguleringen ble gjennomført? ",null,0,0,"P"]
[null,"A7.2.23",null,"• Om en uavhengig takstmann ble benyttet? ",null,0,0,"P"]
[null,"A7.2.24",null,"• For hver verdiregulerte klasse av eiendom, anlegg og utstyr, den balanseførte verdien som ville vært innregnet dersom eiendelene hadde vært balanseført i henhold til anskaffelseskostmodellen?",null,0,0,"P"]
[null,"A7.2.25",null,"• Verdireguleringsreserven, som viser endringen i reserven i perioden og eventuelle begrensninger i utdeling av saldoen til aksjonærer?",null,0,0,"P"]
[null,"A7.2.26","Forskriften § 4-2 annet ledd nr. 9, jfr","For hver klasse av eiendeler hvor det har vært verdifall, skal et foretak gi følgende opplysninger: ",null,0,0,"P"]
[null,"A7.2.27","IAS 36.126 c) og d)","c) Omfanget av tap ved verdifall for verdiregulerte eiendeler som er innregnet direkte mot egenkapital i løpet av perioden. ",null,0,0,"P"]
[null,"A7.2.28",null,"d) Omfanget av reverseringer av tap ved verdifall for verdiregulerte eiendeler som er innregnet direkte mot egenkapital i løpet av perioden. ",null,0,0,"P"]
[null,"A7.3.",null,"Immaterielle eiendeler  ",null,{"$f":"SUMIF($B228:$B$849,$B227&\"*\",$F228:$F$849)","v":0},"Nei",null,{"$f":"IF($G227=\"Ja\",\"Total: \"&COUNTIFS($B228:$B$849,B227&\"*\",$G228:$G$849,1)&\" | P - \"&COUNTIFS($B228:$B$849,B227&\"*\",$G228:$G$849,1,$H228:$H$849,$E$3)&\" | J - \"&COUNTIFS($B228:$B$849,B227&\"*\",$G228:$G$849,1,$H228:$H$849,$E$4)&\" | N - \"&COUNTIFS($B228:$B$849,B227&\"*\",$G228:$G$849,1,$H228:$H$849,$E$5)&\" | A - \"&COUNTIFS($B228:$B$849,B227&\"*\",$G228:$G$849,1,$H228:$H$849,$E$6)&\" | F - \"&COUNTIFS($B228:$B$849,B227&\"*\",$G228:$G$849,1,$H228:$H$849,$E$7),\"\")","v":""}]
[null,"A7.3.1","rskl § 6-2","Immaterielle eiendeler omfatter:\n• Balanseført utviklingsarbeid\n• Konsesjoner/patenter/lisenser, varemerke mm\n• Goodwill"]
[null,"A7.3.2","rskl § 7-12\n","For hver post, er det opplyst om: "]
[null,"A7.3.5",null,"• Anskaffelseskost med spesifikasjon av eventuelt balanseførte lånekostnader knyttet til egentilvirkede immaterielle eiendeler?\n\n\n",null,{"$f":"IF(AND(G230=1,E230=\"i\"),1,IF(AND(G230=1,E230=\"s\"),1,0))","v":0},{"$f":"IF($B230=\"\",\"0\",IF(INDEX($B$11:$H$849,MATCH(LEFT($B230,FIND(\"~\",SUBSTITUTE($B230,\".\",\"~\",LEN($B230)-LEN(SUBSTITUTE($B230,\".\",\"\"))))),$B$11:$B$849,0),MATCH(\"Aktuell?\",$B$9:$H$9,0))=\"Ja\",1,0))","v":0},"P"]
[null,"A7.3.6",null,"• Tilgang og avgang i løpet av regnskapsåret?",null,0,0,"P"]
[null,"A7.3.7",null,"• Samlede avskrivninger, nedskrivninger og reversering av nedskrivninger?",null,0,0,"P"]
[null,"A7.3.8",null,"• Årets avskrivninger, nedskrivninger og reversering av nedskrivninger?",null,0,0,"P"]
[null,"A7.3.9",null,"• Økonomisk levetid og valg av avskrivningsplan?",null,0,0,"P"]
[null,"A7.3.10",null,"• Endringer i avskrivningsplan/metode og økonomisk levetid?",null,0,0,"P"]
[null,"A7.3.11","rskl § 7-14","Er det gitt følgende tilleggsopplysninger om Forskning og Utvikling (FoU):"]
[null,"A7.3.12",null,"• Arten av forskning og utvikling som drives?",null,{"$f":"IF(AND(G237=1,E237=\"i\"),1,IF(AND(G237=1,E237=\"s\"),1,0))","v":0},{"$f":"IF($B237=\"\",\"0\",IF(INDEX($B$11:$H$849,MATCH(LEFT($B237,FIND(\"~\",SUBSTITUTE($B237,\".\",\"~\",LEN($B237)-LEN(SUBSTITUTE($B237,\".\",\"\"))))),$B$11:$B$849,0),MATCH(\"Aktuell?\",$B$9:$H$9,0))=\"Ja\",1,0))","v":0},"P"]
[null,"A7.3.13",null,"• Samlede utgifter medgått til FoU i løpet av regnskapsåret?",null,{"$f":"IF(AND(G238=1,E238=\"i\"),1,IF(AND(G238=1,E238=\"s\"),1,0))","v":0},{"$f":"IF($B238=\"\",\"0\",IF(INDEX($B$11:$H$849,MATCH(LEFT($B238,FIND(\"~\",SUBSTITUTE($B238,\".\",\"~\",LEN($B238)-LEN(SUBSTITUTE($B238,\".\",\"\"))))),$B$11:$B$849,0),MATCH(\"Aktuell?\",$B$9:$H$9,0))=\"Ja\",1,0))","v":0},"P"]
[null,"A7.3.14",null,"• Er det opplyst om forventet samlet inntjening av pågående FoU motsvarer medgåtte samlede utgifter? ",null,{"$f":"IF(AND(G239=1,E239=\"i\"),1,IF(AND(G239=1,E239=\"s\"),1,0))","v":0},{"$f":"IF($B239=\"\",\"0\",IF(INDEX($B$11:$H$849,MATCH(LEFT($B239,FIND(\"~\",SUBSTITUTE($B239,\".\",\"~\",LEN($B239)-LEN(SUBSTITUTE($B239,\".\",\"\"))))),$B$11:$B$849,0),MATCH(\"Aktuell?\",$B$9:$H$9,0))=\"Ja\",1,0))","v":0},"P"]
[null,"A7.3.15",null," Med ”medgåtte samlede utgifter” menes akkumulerte utgifter knyttet til prosjekter som er igangværende ved regnskapsårets utgang. Notekravet gjelder utgifter til FoU som kunne vært balanseført."]
[null,"A7.3.16","NRS 19 Immaterielle eiendeler","Dersom det er vesentlig for forståelsen av regnskapet, er det opplyst om de regnskapsprinsipper som er anvendt for utgifter til egen forskning og utvikling?  ",null,{"$f":"IF(AND(G241=1,E241=\"i\"),1,IF(AND(G241=1,E241=\"s\"),1,0))","v":0},{"$f":"IF($B241=\"\",\"0\",IF(INDEX($B$11:$H$849,MATCH(LEFT($B241,FIND(\"~\",SUBSTITUTE($B241,\".\",\"~\",LEN($B241)-LEN(SUBSTITUTE($B241,\".\",\"\"))))),$B$11:$B$849,0),MATCH(\"Aktuell?\",$B$9:$H$9,0))=\"Ja\",1,0))","v":0},"P"]
[null,"A7.3.17","NRS 19 Immaterielle eiendeler","Er det gitt opplysninger om hvilke forutsetninger som er lagt til grunn for nedskrivning og reversering av nedskrivning, herunder hvorledes vurderingsenhet og gjennvinnbart beløp er fastsatt?",null,{"$f":"IF(AND(G242=1,E242=\"i\"),1,IF(AND(G242=1,E242=\"s\"),1,0))","v":0},{"$f":"IF($B242=\"\",\"0\",IF(INDEX($B$11:$H$849,MATCH(LEFT($B242,FIND(\"~\",SUBSTITUTE($B242,\".\",\"~\",LEN($B242)-LEN(SUBSTITUTE($B242,\".\",\"\"))))),$B$11:$B$849,0),MATCH(\"Aktuell?\",$B$9:$H$9,0))=\"Ja\",1,0))","v":0},"P"]
[null,"A7.3.18","NRS 19 Immaterielle eiendeler","Er det opplyst om størrelsen på reversering i perioden fordelt på ulike klasser av anleggsmidler?",null,{"$f":"IF(AND(G243=1,E243=\"i\"),1,IF(AND(G243=1,E243=\"s\"),1,0))","v":0},{"$f":"IF($B243=\"\",\"0\",IF(INDEX($B$11:$H$849,MATCH(LEFT($B243,FIND(\"~\",SUBSTITUTE($B243,\".\",\"~\",LEN($B243)-LEN(SUBSTITUTE($B243,\".\",\"\"))))),$B$11:$B$849,0),MATCH(\"Aktuell?\",$B$9:$H$9,0))=\"Ja\",1,0))","v":0},"P"]
[null,"A7.3.19","rskl § 7-13\n","Er det opplyst om størrelsen på nedskrivning i perioden fordelt på ulike klasser av anleggsmidler, dersom dette ikke fremkommer av resultatregnskapet?",null,{"$f":"IF(AND(G244=1,E244=\"i\"),1,IF(AND(G244=1,E244=\"s\"),1,0))","v":0},{"$f":"IF($B244=\"\",\"0\",IF(INDEX($B$11:$H$849,MATCH(LEFT($B244,FIND(\"~\",SUBSTITUTE($B244,\".\",\"~\",LEN($B244)-LEN(SUBSTITUTE($B244,\".\",\"\"))))),$B$11:$B$849,0),MATCH(\"Aktuell?\",$B$9:$H$9,0))=\"Ja\",1,0))","v":0},"P"]
[null,"A7.3.20","NRS 19 Immaterielle eiendeler"]
[null,"A7.3.21","NRS 19 Immaterielle eiendeler","Er vesentlige pågående FoU-aktiviteter beskrevet i note til årsregnskapet?",null,{"$f":"IF(AND(G246=1,E246=\"i\"),1,IF(AND(G246=1,E246=\"s\"),1,0))","v":0},{"$f":"IF($B246=\"\",\"0\",IF(INDEX($B$11:$H$849,MATCH(LEFT($B246,FIND(\"~\",SUBSTITUTE($B246,\".\",\"~\",LEN($B246)-LEN(SUBSTITUTE($B246,\".\",\"\"))))),$B$11:$B$849,0),MATCH(\"Aktuell?\",$B$9:$H$9,0))=\"Ja\",1,0))","v":0},"P"]
[null,"A7.3.22",null,"Tilleggsopplysninger ved bruk av verdireguleringsmodellen",null,{"$f":"SUMIF($B249:$B$849,$B247&\"*\",$F249:$F$849)","v":0},null,{"$f":"IF(INDEX($B$11:$H$849,MATCH(LEFT($B247,FIND(\"~\",SUBSTITUTE($B247,\".\",\"~\",LEN($B247)-LEN(SUBSTITUTE($B247,\".\",\"\"))))),$B$11:$B$849,0),MATCH(\"Aktuell?\",$B$9:$H$9,0))=\"Yes\",1,0)","v":0}]
[null,"A7.3.23","Forskriften \n§ 4-2 nr 10","Regnskapspliktige som benytter verdireguleringsmodellen skal gi noteopplysninger etter IAS 38.118 e iii) og IAS 38.124-125 ",null,{"$f":"IF(AND(G248=1,E248=\"i\"),1,IF(AND(G248=1,E248=\"s\"),1,0))","v":0},{"$f":"IF($B248=\"\",\"0\",IF(INDEX($B$11:$H$849,MATCH(LEFT($B248,FIND(\"~\",SUBSTITUTE($B248,\".\",\"~\",LEN($B248)-LEN(SUBSTITUTE($B248,\".\",\"\"))))),$B$11:$B$849,0),MATCH(\"Aktuell?\",$B$9:$H$9,0))=\"Ja\",1,0))","v":0},"P"]
[null,"A7.3.24","IAS 38.118 e) iii)","Er det for hver enkelt klasse av immaterielle eiendeler, idet det skilles mellom internt utviklede immaterielle eiendeler og andre immaterielle eiendeler vist en avstemming av balanseført verdi ved begynnelsen og slutten av perioden som viser økninger eller reduksjoner i løpet av perioden som skyldes verdireguleringer i henhold til IAS 38.75, 85 og 86, samt eventuelle tap ved verdifall innregnet eller reversert direkte mot andre inntekter og kostnader (other comprehensive income) i samsvar med IAS 36: Verdifall på eiendeler?",null,0,0,"P"]
[null,"A7.3.25","IAS 38.124","Dersom immaterielle eiendeler regnskapsføres til verdiregulerte beløp, er det opplyst om følgende: \n• Etter klasse av immaterielle eiendeler:",null,0,0,"P"]
[null,"A7.3.26",null,"1. Tidspunktet da verdireguleringen ble gjennomført?",null,0,0,"P"]
[null,"A7.3.27",null,"2. Den balanseførte verdien av verdiregulerte immaterielle eiendeler?",null,0,0,"P"]
[null,"A7.3.28",null,"3. Den balanseførte verdien som ville ha vært innregnet dersom den verdiregulerte klassen av immaterielle eiendelene hadde vært målt etter innregning ved hjelp av anskaffelseskostmodellen i IAS 38.74? ",null,0,0,"P"]
[null,"A7.3.29",null,"• Beløpet for verdireguleringsreserve som gjelder immaterielle eiendeler i begynnelsen og slutten av regnskapsperioden, samtidig som endringene i løpet av perioden og eventuelle restriksjoner på utdelingen av balansen til aksjonærer indikeres?",null,0,0,"P"]
[null,"A7.3.30","IAS 38.125","Av hensyn til opplysningskravene kan det være nødvendig å samle klasser av verdiregulerte eiendeler i større klasser. Klasser skal imidlertid ikke samles dersom dette ville føre at det ble slått sammen en klasse av immaterielle eiendeler som omfatter både beløp målt i henhold til anskaffelseskostmetoden og i henhold til verdireguleringsmetoden.",null,0,0,"P"]
[null,"A7.3.31","Forskriften § 4-2 nr. 11","Krav for regnskapspliktige som har eiendeler definert som immaterielle eiendeler med ubestemt utnyttbar levetid (jf IAS 38.88):",null,0,0,"P"]
[null,"A7.3.32","IAS 38.122a","• Er det for slike eiendeler gitt opplysning om eiendelens balanseførte verdi og grunnene som støtter vurderingen av at eiendelen har ubestemt utnyttbar levetid? ",null,0,0,"P"]
[null,"A7.3.33",null,"• Når et foretak opplyser om disse grunnene, er det beskrevet hvilken faktor eller hvilke faktorer som spilte en betydelig rolle da det ble fastsatt at eiendelen har ubestemt utnyttbar levetid?",null,0,0,"P"]
[null,"A7.3.34","Forskriften § 4-2 annet ledd nr. 9, jfr","For hver klasse av eiendeler hvor det har vært verdifall, skal et foretak gi følgende opplysninger: ",null,0,0,"P"]
[null,"A7.3.35","IAS 36.126 c) og d)","c) Omfanget av tap ved verdifall for verdiregulerte eiendeler som er innregnet direkte mot egenkapital i løpet av perioden. ",null,0,0,"P"]
[null,"A7.3.36",null,"d) Omfanget av reverseringer av tap ved verdifall for verdiregulerte eiendeler som er innregnet direkte mot egenkapital i løpet av perioden. ",null,0,0,"P"]
[null,"A7.4.",null,"Tilleggsopplysninger om goodwill",null,{"$f":"SUMIF($B263:$B$849,$B262&\"*\",$F263:$F$849)","v":0},"Nei",null,{"$f":"IF($G262=\"Ja\",\"Total: \"&COUNTIFS($B263:$B$849,B262&\"*\",$G263:$G$849,1)&\" | P - \"&COUNTIFS($B263:$B$849,B262&\"*\",$G263:$G$849,1,$H263:$H$849,$E$3)&\" | J - \"&COUNTIFS($B263:$B$849,B262&\"*\",$G263:$G$849,1,$H263:$H$849,$E$4)&\" | N - \"&COUNTIFS($B263:$B$849,B262&\"*\",$G263:$G$849,1,$H263:$H$849,$E$5)&\" | A - \"&COUNTIFS($B263:$B$849,B262&\"*\",$G263:$G$849,1,$H263:$H$849,$E$6)&\" | F - \"&COUNTIFS($B263:$B$849,B262&\"*\",$G263:$G$849,1,$H263:$H$849,$E$7),\"\")","v":""}]
[null,"A7.4.3","rskl § 7-14","Er goodwill spesifisert for hvert enkelt virksomhetskjøp?",null,{"$f":"IF(AND(G263=1,E263=\"i\"),1,IF(AND(G263=1,E263=\"s\"),1,0))","v":0},{"$f":"IF($B263=\"\",\"0\",IF(INDEX($B$11:$H$849,MATCH(LEFT($B263,FIND(\"~\",SUBSTITUTE($B263,\".\",\"~\",LEN($B263)-LEN(SUBSTITUTE($B263,\".\",\"\"))))),$B$11:$B$849,0),MATCH(\"Aktuell?\",$B$9:$H$9,0))=\"Ja\",1,0))","v":0},"P"]
[null,"A7.4.4","NRS (F) Nedskrivning av anleggsmidler","Er det gitt opplysninger om hvilke forutsetninger som er lagt til grunn for nedskrivning, herunder hvorledes vurderingsenhet og gjenvinnbart beløp er fastsatt?",null,{"$f":"IF(AND(G264=1,E264=\"i\"),1,IF(AND(G264=1,E264=\"s\"),1,0))","v":0},{"$f":"IF($B264=\"\",\"0\",IF(INDEX($B$11:$H$849,MATCH(LEFT($B264,FIND(\"~\",SUBSTITUTE($B264,\".\",\"~\",LEN($B264)-LEN(SUBSTITUTE($B264,\".\",\"\"))))),$B$11:$B$849,0),MATCH(\"Aktuell?\",$B$9:$H$9,0))=\"Ja\",1,0))","v":0},"P"]
[null,"A7.4.5","rskl § 7-13\nNRS (F) Nedskrivning av anleggsmidler\n","Er det opplyst om størrelsen på nedskrivning i perioden fordelt på ulike klasser av anleggsmidler, dersom dette ikke fremkommer av resultatregnskapet?",null,{"$f":"IF(AND(G265=1,E265=\"i\"),1,IF(AND(G265=1,E265=\"s\"),1,0))","v":0},{"$f":"IF($B265=\"\",\"0\",IF(INDEX($B$11:$H$849,MATCH(LEFT($B265,FIND(\"~\",SUBSTITUTE($B265,\".\",\"~\",LEN($B265)-LEN(SUBSTITUTE($B265,\".\",\"\"))))),$B$11:$B$849,0),MATCH(\"Aktuell?\",$B$9:$H$9,0))=\"Ja\",1,0))","v":0},"P"]
[null,"A7.5.",null,"Investering i datterselskap, tilknyttet selskap (TS), deltakelse i felles kontrollert virksomhet (FKV) og aksjer og andeler",null,{"$f":"SUMIF($B272:$B$849,$B266&\"*\",$F272:$F$849)","v":0},"Nei",null,{"$f":"IF($G266=\"Ja\",\"Total: \"&COUNTIFS($B267:$B$849,B266&\"*\",$G267:$G$849,1)&\" | P - \"&COUNTIFS($B267:$B$849,B266&\"*\",$G267:$G$849,1,$H267:$H$849,$E$3)&\" | J - \"&COUNTIFS($B267:$B$849,B266&\"*\",$G267:$G$849,1,$H267:$H$849,$E$4)&\" | N - \"&COUNTIFS($B267:$B$849,B266&\"*\",$G267:$G$849,1,$H267:$H$849,$E$5)&\" | A - \"&COUNTIFS($B267:$B$849,B266&\"*\",$G267:$G$849,1,$H267:$H$849,$E$6)&\" | F - \"&COUNTIFS($B267:$B$849,B266&\"*\",$G267:$G$849,1,$H267:$H$849,$E$7),\"\")","v":""}]
[null,"A7.5.1",null,"Investering i datterselskap",null,{"$f":"SUMIF($B269:$B$849,$B267&\"*\",$F269:$F$849)","v":0},null,{"$f":"IF(INDEX($B$11:$H$849,MATCH(LEFT($B267,FIND(\"~\",SUBSTITUTE($B267,\".\",\"~\",LEN($B267)-LEN(SUBSTITUTE($B267,\".\",\"\"))))),$B$11:$B$849,0),MATCH(\"Aktuell?\",$B$9:$H$9,0))=\"Yes\",1,0)","v":0}]
[null,"A7.5.2","rskl § 7-15","Er det opplyst om:"]
[null,"A7.5.3",null,"• foretaksnavn\n• forretningskontor\n• eierandel og stemmeandel?",null,{"$f":"IF(AND(G269=1,E269=\"i\"),1,IF(AND(G269=1,E269=\"s\"),1,0))","v":0},{"$f":"IF($B269=\"\",\"0\",IF(INDEX($B$11:$H$849,MATCH(LEFT($B269,FIND(\"~\",SUBSTITUTE($B269,\".\",\"~\",LEN($B269)-LEN(SUBSTITUTE($B269,\".\",\"\"))))),$B$11:$B$849,0),MATCH(\"Aktuell?\",$B$9:$H$9,0))=\"Ja\",1,0))","v":0},"P"]
[null,"A7.5.4","rskl § 7-15","Dersom datterselskapet er utelatt fra konsolidering etter rskl § 3-8, er dette opplyst og begrunnet?",null,{"$f":"IF(AND(G270=1,E270=\"i\"),1,IF(AND(G270=1,E270=\"s\"),1,0))","v":0},{"$f":"IF($B270=\"\",\"0\",IF(INDEX($B$11:$H$849,MATCH(LEFT($B270,FIND(\"~\",SUBSTITUTE($B270,\".\",\"~\",LEN($B270)-LEN(SUBSTITUTE($B270,\".\",\"\"))))),$B$11:$B$849,0),MATCH(\"Aktuell?\",$B$9:$H$9,0))=\"Ja\",1,0))","v":0},"P"]
[null,"A7.5.5","rskl § 7-15","For datterselskap som regnskapsføres etter kostmetoden og som ikke konsolideres, er det gitt opplysning om egenkapital og resultat ifølge siste årsregnskap?",null,{"$f":"IF(AND(G271=1,E271=\"i\"),1,IF(AND(G271=1,E271=\"s\"),1,0))","v":0},{"$f":"IF($B271=\"\",\"0\",IF(INDEX($B$11:$H$849,MATCH(LEFT($B271,FIND(\"~\",SUBSTITUTE($B271,\".\",\"~\",LEN($B271)-LEN(SUBSTITUTE($B271,\".\",\"\"))))),$B$11:$B$849,0),MATCH(\"Aktuell?\",$B$9:$H$9,0))=\"Ja\",1,0))","v":0},"P"]
[null,"A7.5.6","rskl § 7-15","Er det i konsernregnskapet opplyst om navnet på foretak der den regnskapspliktige selv eller gjennom datterselskaper eier så mange aksjer eller andeler at de representerer flertallet av stemmene i foretaket, men som ikke er datterselskap fordi det klart kan påvises at slikt eierskap likevel ikke gir bestemmernde innflytelse jr rskl § 1-3, 2. ledd nr. 1?",null,{"$f":"IF(AND(G272=1,E272=\"i\"),1,IF(AND(G272=1,E272=\"s\"),1,0))","v":0},{"$f":"IF($B272=\"\",\"0\",IF(INDEX($B$11:$H$849,MATCH(LEFT($B272,FIND(\"~\",SUBSTITUTE($B272,\".\",\"~\",LEN($B272)-LEN(SUBSTITUTE($B272,\".\",\"\"))))),$B$11:$B$849,0),MATCH(\"Aktuell?\",$B$9:$H$9,0))=\"Ja\",1,0))","v":0},"P"]
[null,"A7.5.7","NRS (F) Nedskrivning av anleggsmidler","Er det opplyst om evt. nedskrivning av investeringer i datterselskap?",null,{"$f":"IF(AND(G273=1,E273=\"i\"),1,IF(AND(G273=1,E273=\"s\"),1,0))","v":0},{"$f":"IF($B273=\"\",\"0\",IF(INDEX($B$11:$H$849,MATCH(LEFT($B273,FIND(\"~\",SUBSTITUTE($B273,\".\",\"~\",LEN($B273)-LEN(SUBSTITUTE($B273,\".\",\"\"))))),$B$11:$B$849,0),MATCH(\"Aktuell?\",$B$9:$H$9,0))=\"Ja\",1,0))","v":0},"P"]
[null,"A7.5.8",null,"Investering i tilknyttet selskap (TS) og deltakelse i felles kontrollert virksomhet (FKV) ",null,{"$f":"SUMIF($B276:$B$849,$B274&\"*\",$F276:$F$849)","v":0},null,{"$f":"IF(INDEX($B$11:$H$849,MATCH(LEFT($B274,FIND(\"~\",SUBSTITUTE($B274,\".\",\"~\",LEN($B274)-LEN(SUBSTITUTE($B274,\".\",\"\"))))),$B$11:$B$849,0),MATCH(\"Aktuell?\",$B$9:$H$9,0))=\"Yes\",1,0)","v":0}]
[null,"A7.5.9",null,"For investeringer som regnskapsføres etter egenkapitalmetoden eller bruttometoden skal de gis følgende opplysninger:"]
[null,"A7.5.10","rskl § 7-15\nNRS (F) Investering i TS/FKV","For hver enkelt investering, er det opplyst om:\n• navn\n• forretningskontor\n• eierandel og stemmeandel?",null,{"$f":"IF(AND(G276=1,E276=\"i\"),1,IF(AND(G276=1,E276=\"s\"),1,0))","v":0},{"$f":"IF($B276=\"\",\"0\",IF(INDEX($B$11:$H$849,MATCH(LEFT($B276,FIND(\"~\",SUBSTITUTE($B276,\".\",\"~\",LEN($B276)-LEN(SUBSTITUTE($B276,\".\",\"\"))))),$B$11:$B$849,0),MATCH(\"Aktuell?\",$B$9:$H$9,0))=\"Ja\",1,0))","v":0},"P"]
[null,"A7.5.12","rskl § 7-15\nNRS (F) Investering i TS/FKV","Er det for hver enkelt investering opplyst om egenkapital og resultat ifølge siste årsregnskap (gjelder ikke TS som er regnskapsført etter egenkapitalmetoden)?",null,{"$f":"IF(AND(G277=1,E277=\"i\"),1,IF(AND(G277=1,E277=\"s\"),1,0))","v":0},{"$f":"IF($B277=\"\",\"0\",IF(INDEX($B$11:$H$849,MATCH(LEFT($B277,FIND(\"~\",SUBSTITUTE($B277,\".\",\"~\",LEN($B277)-LEN(SUBSTITUTE($B277,\".\",\"\"))))),$B$11:$B$849,0),MATCH(\"Aktuell?\",$B$9:$H$9,0))=\"Ja\",1,0))","v":0},"P"]
[null,"A7.5.14","NRS (F) Investering i TS/FKV","Er endringer i verdi i balansen fra periodens begynnelse til balansedag spesifisert for hver vesentlig investering og samlet?",null,{"$f":"IF(AND(G278=1,E278=\"i\"),1,IF(AND(G278=1,E278=\"s\"),1,0))","v":0},{"$f":"IF($B278=\"\",\"0\",IF(INDEX($B$11:$H$849,MATCH(LEFT($B278,FIND(\"~\",SUBSTITUTE($B278,\".\",\"~\",LEN($B278)-LEN(SUBSTITUTE($B278,\".\",\"\"))))),$B$11:$B$849,0),MATCH(\"Aktuell?\",$B$9:$H$9,0))=\"Ja\",1,0))","v":0},"P"]
[null,"A7.5.15","NRS (F) Investering i TS/FKV","Er det opplyst hva som er avskrevet på merverdi i perioden, samt merverdi ved periodens slutt?",null,{"$f":"IF(AND(G279=1,E279=\"i\"),1,IF(AND(G279=1,E279=\"s\"),1,0))","v":0},{"$f":"IF($B279=\"\",\"0\",IF(INDEX($B$11:$H$849,MATCH(LEFT($B279,FIND(\"~\",SUBSTITUTE($B279,\".\",\"~\",LEN($B279)-LEN(SUBSTITUTE($B279,\".\",\"\"))))),$B$11:$B$849,0),MATCH(\"Aktuell?\",$B$9:$H$9,0))=\"Ja\",1,0))","v":0},"P"]
[null,"A7.5.16","NRS (F) Investering i TS/FKV","Er det gitt informasjon om ventuelle avvikende regnskapsår og forskjellige regnskapsprinsipper?",null,{"$f":"IF(AND(G280=1,E280=\"i\"),1,IF(AND(G280=1,E280=\"s\"),1,0))","v":0},{"$f":"IF($B280=\"\",\"0\",IF(INDEX($B$11:$H$849,MATCH(LEFT($B280,FIND(\"~\",SUBSTITUTE($B280,\".\",\"~\",LEN($B280)-LEN(SUBSTITUTE($B280,\".\",\"\"))))),$B$11:$B$849,0),MATCH(\"Aktuell?\",$B$9:$H$9,0))=\"Ja\",1,0))","v":0},"P"]
[null,"A7.5.17","NRS (F) Investering i TS/FKV","For andeler i tilknyttet selskap og felles kontrollert virksomhet som er kjøpt i regnskapsperioden, og som regnskapsføres etter egenkapitalmetoden, er i tillegg følgende opplysninger gitt:"]
[null,"A7.5.18",null,"• anskaffelseskost",null,{"$f":"IF(AND(G282=1,E282=\"i\"),1,IF(AND(G282=1,E282=\"s\"),1,0))","v":0},{"$f":"IF($B282=\"\",\"0\",IF(INDEX($B$11:$H$849,MATCH(LEFT($B282,FIND(\"~\",SUBSTITUTE($B282,\".\",\"~\",LEN($B282)-LEN(SUBSTITUTE($B282,\".\",\"\"))))),$B$11:$B$849,0),MATCH(\"Aktuell?\",$B$9:$H$9,0))=\"Ja\",1,0))","v":0},"P"]
[null,"A7.5.19",null,"• balanseført egenkapital på kjøpstidspunktet",null,{"$f":"IF(AND(G283=1,E283=\"i\"),1,IF(AND(G283=1,E283=\"s\"),1,0))","v":0},{"$f":"IF($B283=\"\",\"0\",IF(INDEX($B$11:$H$849,MATCH(LEFT($B283,FIND(\"~\",SUBSTITUTE($B283,\".\",\"~\",LEN($B283)-LEN(SUBSTITUTE($B283,\".\",\"\"))))),$B$11:$B$849,0),MATCH(\"Aktuell?\",$B$9:$H$9,0))=\"Ja\",1,0))","v":0},"P"]
[null,"A7.5.20","NRS (F) Investering i TS/FKV","For tilknyttet selskap eller felles kontrollert virksomhet som regnskapsføres etter kostmetoden skal det gis følgende tilleggsopplysninger:"]
[null,"A7.5.21",null,"a) Navn på selskap/virksomhet det er investert i (firma), forretningskontor, eierandel og andel av stemmeberettiget kapital",null,{"$f":"IF(AND(G285=1,E285=\"i\"),1,IF(AND(G285=1,E285=\"s\"),1,0))","v":0},{"$f":"IF($B285=\"\",\"0\",IF(INDEX($B$11:$H$849,MATCH(LEFT($B285,FIND(\"~\",SUBSTITUTE($B285,\".\",\"~\",LEN($B285)-LEN(SUBSTITUTE($B285,\".\",\"\"))))),$B$11:$B$849,0),MATCH(\"Aktuell?\",$B$9:$H$9,0))=\"Ja\",1,0))","v":0},"P"]
[null,"A7.5.22",null,"b) Egenkapital og resultat ifølge siste årsregnskap.",null,{"$f":"IF(AND(G286=1,E286=\"i\"),1,IF(AND(G286=1,E286=\"s\"),1,0))","v":0},{"$f":"IF($B286=\"\",\"0\",IF(INDEX($B$11:$H$849,MATCH(LEFT($B286,FIND(\"~\",SUBSTITUTE($B286,\".\",\"~\",LEN($B286)-LEN(SUBSTITUTE($B286,\".\",\"\"))))),$B$11:$B$849,0),MATCH(\"Aktuell?\",$B$9:$H$9,0))=\"Ja\",1,0))","v":0},"P"]
[null,"A7.5.23","NRS (F) Nedskrivning av anleggsmidler","Er det opplyst om evt. nedskrivning av investeringer i tilknyttet selskap eller felleskontrollert virksomhet?",null,{"$f":"IF(AND(G287=1,E287=\"i\"),1,IF(AND(G287=1,E287=\"s\"),1,0))","v":0},{"$f":"IF($B287=\"\",\"0\",IF(INDEX($B$11:$H$849,MATCH(LEFT($B287,FIND(\"~\",SUBSTITUTE($B287,\".\",\"~\",LEN($B287)-LEN(SUBSTITUTE($B287,\".\",\"\"))))),$B$11:$B$849,0),MATCH(\"Aktuell?\",$B$9:$H$9,0))=\"Ja\",1,0))","v":0},"P"]
[null,"A7.5.24",null,"Tilleggsopplysninger for deltakelse i FKV (kun dersom deltakelsen er vesentlig for deltaker):",null,{"$f":"SUMIF($B290:$B$849,$B288&\"*\",$F290:$F$849)","v":0},null,{"$f":"IF(INDEX($B$11:$H$849,MATCH(LEFT($B288,FIND(\"~\",SUBSTITUTE($B288,\".\",\"~\",LEN($B288)-LEN(SUBSTITUTE($B288,\".\",\"\"))))),$B$11:$B$849,0),MATCH(\"Aktuell?\",$B$9:$H$9,0))=\"Yes\",1,0)","v":0}]
[null,"A7.5.25","NRS (F) Investering i TS/FKV","Er det opplyst om innbetalt kapital, skyldig innskudd, andel av resultat dersom resultatandelen avviker vesentlig fra eierandel og spesifikasjonsmåte i deltakers regnskap?",null,{"$f":"IF(AND(G289=1,E289=\"i\"),1,IF(AND(G289=1,E289=\"s\"),1,0))","v":0},{"$f":"IF($B289=\"\",\"0\",IF(INDEX($B$11:$H$849,MATCH(LEFT($B289,FIND(\"~\",SUBSTITUTE($B289,\".\",\"~\",LEN($B289)-LEN(SUBSTITUTE($B289,\".\",\"\"))))),$B$11:$B$849,0),MATCH(\"Aktuell?\",$B$9:$H$9,0))=\"Ja\",1,0))","v":0},"P"]
[null,"A7.5.26","NRS (F) Investering i TS/FKV","Dersom deltaker innarbeider sin andel linje for linje, er samlet andel i FKV spesifisert for hver hovedgruppe i regnskapet?",null,{"$f":"IF(AND(G290=1,E290=\"i\"),1,IF(AND(G290=1,E290=\"s\"),1,0))","v":0},{"$f":"IF($B290=\"\",\"0\",IF(INDEX($B$11:$H$849,MATCH(LEFT($B290,FIND(\"~\",SUBSTITUTE($B290,\".\",\"~\",LEN($B290)-LEN(SUBSTITUTE($B290,\".\",\"\"))))),$B$11:$B$849,0),MATCH(\"Aktuell?\",$B$9:$H$9,0))=\"Ja\",1,0))","v":0},"P"]
[null,"A7.5.27",null,"Investering som føres etter egenkapitalmetoden",null,{"$f":"SUMIF($B293:$B$849,$B291&\"*\",$F293:$F$849)","v":0},null,{"$f":"IF(INDEX($B$11:$H$849,MATCH(LEFT($B291,FIND(\"~\",SUBSTITUTE($B291,\".\",\"~\",LEN($B291)-LEN(SUBSTITUTE($B291,\".\",\"\"))))),$B$11:$B$849,0),MATCH(\"Aktuell?\",$B$9:$H$9,0))=\"Yes\",1,0)","v":0}]
[null,"A7.5.28","rskl § 7-16","Er det for hver vesentlig investering og samlet opplyst om:\n• anskaffelseskost\n• balanseført egenkapital på anskaffelsestidspunktet\n• inngående balanse\n• inntektsført resultat\n• andre endringer i løpet av året\n• utgående balanse\n• merverdier og goodwill inkl avskrivninger på disse\n• aggregerte midlertidige forskjeller på de selskap det ikke er regnskapsført utsatt skatt på?",null,{"$f":"IF(AND(G292=1,E292=\"i\"),1,IF(AND(G292=1,E292=\"s\"),1,0))","v":0},{"$f":"IF($B292=\"\",\"0\",IF(INDEX($B$11:$H$849,MATCH(LEFT($B292,FIND(\"~\",SUBSTITUTE($B292,\".\",\"~\",LEN($B292)-LEN(SUBSTITUTE($B292,\".\",\"\"))))),$B$11:$B$849,0),MATCH(\"Aktuell?\",$B$9:$H$9,0))=\"Ja\",1,0))","v":0},"P"]
[null,"A7.5.29",null,"Aksjer og andeler i andre selskaper",null,{"$f":"SUMIF($B295:$B$849,$B293&\"*\",$F295:$F$849)","v":0},null,{"$f":"IF(INDEX($B$11:$H$849,MATCH(LEFT($B293,FIND(\"~\",SUBSTITUTE($B293,\".\",\"~\",LEN($B293)-LEN(SUBSTITUTE($B293,\".\",\"\"))))),$B$11:$B$849,0),MATCH(\"Aktuell?\",$B$9:$H$9,0))=\"Yes\",1,0)","v":0}]
[null,"A7.5.30","rskl § 7-18 ","Er investeringer i aksjer/andeler hvor foretaket eier mer enn 10 % eller hvor investeringen utgjør mer enn 50 % av den regnskapspliktiges egenkapital, spesifisert etter selskap? \nDette kravet gjelder ikke investeringer som  omfattes av rskl §§ 7-15 eller 7-16 (DS, TS, FKV og investeringer bokført etter egenkapitalmetoden)",null,{"$f":"IF(AND(G294=1,E294=\"i\"),1,IF(AND(G294=1,E294=\"s\"),1,0))","v":0},{"$f":"IF($B294=\"\",\"0\",IF(INDEX($B$11:$H$849,MATCH(LEFT($B294,FIND(\"~\",SUBSTITUTE($B294,\".\",\"~\",LEN($B294)-LEN(SUBSTITUTE($B294,\".\",\"\"))))),$B$11:$B$849,0),MATCH(\"Aktuell?\",$B$9:$H$9,0))=\"Ja\",1,0))","v":0},"P"]
[null,"A7.5.31","rskl § 7-18 ","Er det for hvert selskap opplyst om:\n• balanseført verdi\n• eventuell markedsverdi\n• eierandel?",null,{"$f":"IF(AND(G295=1,E295=\"i\"),1,IF(AND(G295=1,E295=\"s\"),1,0))","v":0},{"$f":"IF($B295=\"\",\"0\",IF(INDEX($B$11:$H$849,MATCH(LEFT($B295,FIND(\"~\",SUBSTITUTE($B295,\".\",\"~\",LEN($B295)-LEN(SUBSTITUTE($B295,\".\",\"\"))))),$B$11:$B$849,0),MATCH(\"Aktuell?\",$B$9:$H$9,0))=\"Ja\",1,0))","v":0},"P"]
[]
[null,"A7.6.",null,"Varer",null,{"$f":"SUMIF($B298:$B$849,$B297&\"*\",$F298:$F$849)","v":0},"Nei",null,{"$f":"IF($G297=\"Ja\",\"Total: \"&COUNTIFS($B298:$B$849,B297&\"*\",$G298:$G$849,1)&\" | P - \"&COUNTIFS($B298:$B$849,B297&\"*\",$G298:$G$849,1,$H298:$H$849,$E$3)&\" | J - \"&COUNTIFS($B298:$B$849,B297&\"*\",$G298:$G$849,1,$H298:$H$849,$E$4)&\" | N - \"&COUNTIFS($B298:$B$849,B297&\"*\",$G298:$G$849,1,$H298:$H$849,$E$5)&\" | A - \"&COUNTIFS($B298:$B$849,B297&\"*\",$G298:$G$849,1,$H298:$H$849,$E$6)&\" | F - \"&COUNTIFS($B298:$B$849,B297&\"*\",$G298:$G$849,1,$H298:$H$849,$E$7),\"\")","v":""}]
[null,"A7.6.1","rskl § 7-10\nNRS 1 Varer\n","Er det opplyst om balanseført verdi av varelager fordelt på råvarer, varer under tilvirkning, egenutviklede ferdigvarer og handelsvarer sammen med tilsvarende tall for foregående år?",null,{"$f":"IF(AND(G298=1,E298=\"i\"),1,IF(AND(G298=1,E298=\"s\"),1,0))","v":0},{"$f":"IF($B298=\"\",\"0\",IF(INDEX($B$11:$H$849,MATCH(LEFT($B298,FIND(\"~\",SUBSTITUTE($B298,\".\",\"~\",LEN($B298)-LEN(SUBSTITUTE($B298,\".\",\"\"))))),$B$11:$B$849,0),MATCH(\"Aktuell?\",$B$9:$H$9,0))=\"Ja\",1,0))","v":0},"P"]
[null,"A7.6.2","rskl § 7-10","Er det vist tilsvarende sammenligningstall?",null,{"$f":"IF(AND(G299=1,E299=\"i\"),1,IF(AND(G299=1,E299=\"s\"),1,0))","v":0},{"$f":"IF($B299=\"\",\"0\",IF(INDEX($B$11:$H$849,MATCH(LEFT($B299,FIND(\"~\",SUBSTITUTE($B299,\".\",\"~\",LEN($B299)-LEN(SUBSTITUTE($B299,\".\",\"\"))))),$B$11:$B$849,0),MATCH(\"Aktuell?\",$B$9:$H$9,0))=\"Ja\",1,0))","v":0},"P"]
[null,"A7.6.3","NRS 1 Varer","NRS 1 Varer gjelder også produksjonsmateriell og reservedeler. Dersom dette tas inn i varebeholdingen bør fordelingen ihht rskl § 7-10 utvides slik at disse kategoriene også spesifiseres. ",null,{"$f":"IF(AND(G300=1,E300=\"i\"),1,IF(AND(G300=1,E300=\"s\"),1,0))","v":0},{"$f":"IF($B300=\"\",\"0\",IF(INDEX($B$11:$H$849,MATCH(LEFT($B300,FIND(\"~\",SUBSTITUTE($B300,\".\",\"~\",LEN($B300)-LEN(SUBSTITUTE($B300,\".\",\"\"))))),$B$11:$B$849,0),MATCH(\"Aktuell?\",$B$9:$H$9,0))=\"Ja\",1,0))","v":0},"P"]
[null,"A7.6.4","NRS 1 Varer","Er det opplyst om balanseført verdi av samlet varelager fordelt på den delen som er vurdert til anskaffelseskost og den delen som er vurdert til virkelig verdi?",null,{"$f":"IF(AND(G301=1,E301=\"i\"),1,IF(AND(G301=1,E301=\"s\"),1,0))","v":0},{"$f":"IF($B301=\"\",\"0\",IF(INDEX($B$11:$H$849,MATCH(LEFT($B301,FIND(\"~\",SUBSTITUTE($B301,\".\",\"~\",LEN($B301)-LEN(SUBSTITUTE($B301,\".\",\"\"))))),$B$11:$B$849,0),MATCH(\"Aktuell?\",$B$9:$H$9,0))=\"Ja\",1,0))","v":0},"P"]
[null,"A7.6.5",null,"Det er altså ikke påkrevd å opplyse om nedskrivningsbeløpet, men dette bør vurderes ut fra informasjonskvaliteten i noteopplysningene"]
[null,"A7.6.6","NRS 1 Varer","Er det opplyst om periodens resultatførte reverseringer av tidligere perioders nedskrivning og begrunnelse for slik reversering?",null,{"$f":"IF(AND(G303=1,E303=\"i\"),1,IF(AND(G303=1,E303=\"s\"),1,0))","v":0},{"$f":"IF($B303=\"\",\"0\",IF(INDEX($B$11:$H$849,MATCH(LEFT($B303,FIND(\"~\",SUBSTITUTE($B303,\".\",\"~\",LEN($B303)-LEN(SUBSTITUTE($B303,\".\",\"\"))))),$B$11:$B$849,0),MATCH(\"Aktuell?\",$B$9:$H$9,0))=\"Ja\",1,0))","v":0},"P"]
[null,"A7.6.7","NRS 1 Varer","Er det opplyst om balanseført verdi av varelager som er stillet til sikkerhet for forpliktelser?",null,{"$f":"IF(AND(G304=1,E304=\"i\"),1,IF(AND(G304=1,E304=\"s\"),1,0))","v":0},{"$f":"IF($B304=\"\",\"0\",IF(INDEX($B$11:$H$849,MATCH(LEFT($B304,FIND(\"~\",SUBSTITUTE($B304,\".\",\"~\",LEN($B304)-LEN(SUBSTITUTE($B304,\".\",\"\"))))),$B$11:$B$849,0),MATCH(\"Aktuell?\",$B$9:$H$9,0))=\"Ja\",1,0))","v":0},"P"]
[null,"A7.7.",null,"Fordringer",null,{"$f":"SUMIF($B306:$B$849,$B305&\"*\",$F306:$F$849)","v":0},"Nei",null,{"$f":"IF($G305=\"Ja\",\"Total: \"&COUNTIFS($B306:$B$849,B305&\"*\",$G306:$G$849,1)&\" | P - \"&COUNTIFS($B306:$B$849,B305&\"*\",$G306:$G$849,1,$H306:$H$849,$E$3)&\" | J - \"&COUNTIFS($B306:$B$849,B305&\"*\",$G306:$G$849,1,$H306:$H$849,$E$4)&\" | N - \"&COUNTIFS($B306:$B$849,B305&\"*\",$G306:$G$849,1,$H306:$H$849,$E$5)&\" | A - \"&COUNTIFS($B306:$B$849,B305&\"*\",$G306:$G$849,1,$H306:$H$849,$E$6)&\" | F - \"&COUNTIFS($B306:$B$849,B305&\"*\",$G306:$G$849,1,$H306:$H$849,$E$7),\"\")","v":""}]
[null,"A7.7.1","rskl § 7-19","Er det for hver post under eiendeler opplyst om fordringer som forfaller senere enn ett år etter regnskapsårets slutt?",null,{"$f":"IF(AND(G306=1,E306=\"i\"),1,IF(AND(G306=1,E306=\"s\"),1,0))","v":0},{"$f":"IF($B306=\"\",\"0\",IF(INDEX($B$11:$H$849,MATCH(LEFT($B306,FIND(\"~\",SUBSTITUTE($B306,\".\",\"~\",LEN($B306)-LEN(SUBSTITUTE($B306,\".\",\"\"))))),$B$11:$B$849,0),MATCH(\"Aktuell?\",$B$9:$H$9,0))=\"Ja\",1,0))","v":0},"P"]
[null,"A7.7.2","rskl § 7-19","Er det vist tilsvarende sammenligningstall? ",null,{"$f":"IF(AND(G307=1,E307=\"i\"),1,IF(AND(G307=1,E307=\"s\"),1,0))","v":0},{"$f":"IF($B307=\"\",\"0\",IF(INDEX($B$11:$H$849,MATCH(LEFT($B307,FIND(\"~\",SUBSTITUTE($B307,\".\",\"~\",LEN($B307)-LEN(SUBSTITUTE($B307,\".\",\"\"))))),$B$11:$B$849,0),MATCH(\"Aktuell?\",$B$9:$H$9,0))=\"Ja\",1,0))","v":0},"P"]
[null,"A7.8.",null,"Skatt",null,{"$f":"SUMIF($B309:$B$849,$B308&\"*\",$F309:$F$849)","v":0},"Nei",null,{"$f":"IF($G308=\"Ja\",\"Total: \"&COUNTIFS($B309:$B$849,B308&\"*\",$G309:$G$849,1)&\" | P - \"&COUNTIFS($B309:$B$849,B308&\"*\",$G309:$G$849,1,$H309:$H$849,$E$3)&\" | J - \"&COUNTIFS($B309:$B$849,B308&\"*\",$G309:$G$849,1,$H309:$H$849,$E$4)&\" | N - \"&COUNTIFS($B309:$B$849,B308&\"*\",$G309:$G$849,1,$H309:$H$849,$E$5)&\" | A - \"&COUNTIFS($B309:$B$849,B308&\"*\",$G309:$G$849,1,$H309:$H$849,$E$6)&\" | F - \"&COUNTIFS($B309:$B$849,B308&\"*\",$G309:$G$849,1,$H309:$H$849,$E$7),\"\")","v":""}]
[null,"A7.8.1","rskl § 7-23","Er det opplyst om beregningen av skattekostnad og utsatt skatt/skattefordel?",null,{"$f":"IF(AND(G309=1,E309=\"i\"),1,IF(AND(G309=1,E309=\"s\"),1,0))","v":0},{"$f":"IF($B309=\"\",\"0\",IF(INDEX($B$11:$H$849,MATCH(LEFT($B309,FIND(\"~\",SUBSTITUTE($B309,\".\",\"~\",LEN($B309)-LEN(SUBSTITUTE($B309,\".\",\"\"))))),$B$11:$B$849,0),MATCH(\"Aktuell?\",$B$9:$H$9,0))=\"Ja\",1,0))","v":0},"P"]
[null,"A7.8.2","NRS (F) Resultatskatt","Er det opplyst om skatteeffekten av midlertidige forskjeller og underskudd til fremføring som har gitt opphav til utsatt skatt og utsatte fordeler spesifisert på typer av midlertidige forskjeller?",null,0,0,"P"]
[null,"A7.8.3","NRS (F) Resultatskatt","Er det opplyst om balanseført utsatt skattefordel som er sannsynliggjort gjennom fremtidig inntjening?",null,0,0,"P"]
[null,"A7.8.4","NRS (F) Resultatskatt","Er det opplyst om utsatt skattefordel som ikke er balanseført?",null,0,0,"P"]
[null,"A7.8.5","NRS (F) Resultatskatt","Er det opplyst om akkumulerte midlertidige forskjeller knyttet til investering i tilknyttet selskap og datterselskap og felles kontrollert virksomhet (utenfor fritaksmetoden) som det ikke er regnskapsført utsatt skatt på?",null,0,0,"P"]
[null,"A7.8.6","NRS (F) Resultatskatt","Er det opplyst om størrelsen på betalbar og utsatt skatt knyttet til poster som er ført direkte mot egenkapitalen?",null,0,0,"P"]
[null,"A7.8.7","NRS (F) Resultatskatt","Er det satt opp en avstemming som viser sammenhengen mellom skattekostnaden og skatt beregnet som gjennomsnittlig nominell skattesats på resultat før skatt?",null,0,0,"P"]
[null,"A7.8.8","NRS (F) Resultatskatt","Er skattekostnad fordelt på norsk og utenlandsk del?",null,0,0,"P"]
[null,"A7.8.9","NRS (F) Resultatskatt","Er det opplyst om virkningen av endring i skatteregler og skattestatus på periodens skattekostnad?",null,0,0,"P"]
[null,"A7.8.10","NRS (F) Resultatskatt","Er det opplyst om virkningen av friinntekten på særskatten for foretak som er skattepliktig etter petroleumsskatteloven eller etter reglene for kraftforetak?",null,0,0,"P"]
[]
[null,"A7.9.",null,"Leasing/Leieavtaler",null,{"$f":"SUMIF($B321:$B$849,$B320&\"*\",$F321:$F$849)","v":0},"Nei",null,{"$f":"IF($G320=\"Ja\",\"Total: \"&COUNTIFS($B321:$B$849,B320&\"*\",$G321:$G$849,1)&\" | P - \"&COUNTIFS($B321:$B$849,B320&\"*\",$G321:$G$849,1,$H321:$H$849,$E$3)&\" | J - \"&COUNTIFS($B321:$B$849,B320&\"*\",$G321:$G$849,1,$H321:$H$849,$E$4)&\" | N - \"&COUNTIFS($B321:$B$849,B320&\"*\",$G321:$G$849,1,$H321:$H$849,$E$5)&\" | A - \"&COUNTIFS($B321:$B$849,B320&\"*\",$G321:$G$849,1,$H321:$H$849,$E$6)&\" | F - \"&COUNTIFS($B321:$B$849,B320&\"*\",$G321:$G$849,1,$H321:$H$849,$E$7),\"\")","v":""}]
[null,"A7.9.1","NRS 14 Leieavtaler","Er det for alle vesentlige leieavtaler, både finansielle og operasjonelle, opplyst om årlig leie samt leieavtalens varighet?",null,{"$f":"IF(AND(G321=1,E321=\"i\"),1,IF(AND(G321=1,E321=\"s\"),1,0))","v":0},{"$f":"IF($B321=\"\",\"0\",IF(INDEX($B$11:$H$849,MATCH(LEFT($B321,FIND(\"~\",SUBSTITUTE($B321,\".\",\"~\",LEN($B321)-LEN(SUBSTITUTE($B321,\".\",\"\"))))),$B$11:$B$849,0),MATCH(\"Aktuell?\",$B$9:$H$9,0))=\"Ja\",1,0))","v":0},"P"]
[null,"A7.9a.",null,"Balanseførte leieavtaler",null,{"$f":"SUMIF($B326:$B$849,$B322&\"*\",$F326:$F$849)","v":0},"Nei",null,{"$f":"IF($G322=\"Ja\",\"Total: \"&COUNTIFS($B323:$B$849,B322&\"*\",$G323:$G$849,1)&\" | P - \"&COUNTIFS($B323:$B$849,B322&\"*\",$G323:$G$849,1,$H323:$H$849,$E$3)&\" | J - \"&COUNTIFS($B323:$B$849,B322&\"*\",$G323:$G$849,1,$H323:$H$849,$E$4)&\" | N - \"&COUNTIFS($B323:$B$849,B322&\"*\",$G323:$G$849,1,$H323:$H$849,$E$5)&\" | A - \"&COUNTIFS($B323:$B$849,B322&\"*\",$G323:$G$849,1,$H323:$H$849,$E$6)&\" | F - \"&COUNTIFS($B323:$B$849,B322&\"*\",$G323:$G$849,1,$H323:$H$849,$E$7),\"\")","v":""}]
[null,"A7.9a.1","rskl § 7-13\nNRS 14 Leieavtaler\n","Er det for hver post opplyst om balanseført verdi av leieavtaler? ",null,{"$f":"IF(AND(G323=1,E323=\"i\"),1,IF(AND(G323=1,E323=\"s\"),1,0))","v":0},{"$f":"IF($B323=\"\",\"0\",IF(INDEX($B$11:$H$849,MATCH(LEFT($B323,FIND(\"~\",SUBSTITUTE($B323,\".\",\"~\",LEN($B323)-LEN(SUBSTITUTE($B323,\".\",\"\"))))),$B$11:$B$849,0),MATCH(\"Aktuell?\",$B$9:$H$9,0))=\"Ja\",1,0))","v":0},"P"]
[null,"A7.9a.3","rskl § 7-13\nNRS 14 Leieavtaler\n","Er det for vesentlige balanseførte leieavtaler opplyst om hvordan eventuell variabel leie er fastsatt?",null,0,0,"P"]
[null,"A7.9a.5","rskl § 7-13\nNRS 14 Leieavtaler\n"," Er det for vesentlige balanseførte leieavtaler opplyst om variabel leie som er kostnadsført i perioden?",null,0,0,"P"]
[null,"A7.9a.7","rskl § 7-13\nNRS 14 Leieavtaler\n","Er det for vesentlige balanseførte leieavtaler opplyst om hvorvidt det eksisterer rett til forlenget leie eller kjøp av eiendelen samt andre utvidelsesklausuler og betingelsene til avtalene?",null,0,0,"P"]
[null,"A7.9a.9","NRS 14 Leieavtaler","Dersom balanseførte leieavtaler er vesentlige bør også årets avskrivning opplyses. Leasede eiendeler kan presenteres på samme linje som egne eiendeler, men det bør da opplyses i note hvor stor andel som er leaset.",null,0,0,"P"]
[null,"A7.9a.10","NRS 14 Leieavtaler\njf rskl § 7-21","Er forpliktelsen knyttet til leieavtalen opplyst i note?",null,0,0,"P"]
[null,"A7.9a.12","NRS 14 Leieavtaler","Er det opplyst om sum resterende estimerte leieinnbetalinger og nåverdien av disse?",null,0,0,"P"]
[null,"A7.9a.13","NRS 14 Leieavtaler","Er estimert leiebetaling som forfaller henholdsvis i løpet av ett år, to til fem år og mer enn fem år fram i tid spesifisert både med nominelt beløp og nåverdi?",null,0,0,"P"]
[null,"A7.9a.14","NRS 14 Leieavtaler","Er det opplyst om vesentlige leieavtaler som medfører restriksjoner knyttet til utbytteutdeling, gjeldsopptak og ytterligere inngåelse av leieavtaler?",null,0,0,"P"]
[null,"A7.9b.",null,"Ikke balanseførte leieavtaler",null,{"$f":"SUMIF($B333:$B$849,$B332&\"*\",$F333:$F$849)","v":0},"Nei",null,{"$f":"IF($G332=\"Ja\",\"Total: \"&COUNTIFS($B333:$B$849,B332&\"*\",$G333:$G$849,1)&\" | P - \"&COUNTIFS($B333:$B$849,B332&\"*\",$G333:$G$849,1,$H333:$H$849,$E$3)&\" | J - \"&COUNTIFS($B333:$B$849,B332&\"*\",$G333:$G$849,1,$H333:$H$849,$E$4)&\" | N - \"&COUNTIFS($B333:$B$849,B332&\"*\",$G333:$G$849,1,$H333:$H$849,$E$5)&\" | A - \"&COUNTIFS($B333:$B$849,B332&\"*\",$G333:$G$849,1,$H333:$H$849,$E$6)&\" | F - \"&COUNTIFS($B333:$B$849,B332&\"*\",$G333:$G$849,1,$H333:$H$849,$E$7),\"\")","v":""}]
[null,"A7.9b.1","rskl § 7-13\nNRS 14 Leieavtaler\n","Ved leie av varig driftsmiddel som ikke er balanseført, er det opplyst om årlig leie og leieavtalens varighet med tilsvarende spesifikasjon som i oppstillingsplanen for balansen? ",null,{"$f":"IF(AND(G333=1,E333=\"i\"),1,IF(AND(G333=1,E333=\"s\"),1,0))","v":0},{"$f":"IF($B333=\"\",\"0\",IF(INDEX($B$11:$H$849,MATCH(LEFT($B333,FIND(\"~\",SUBSTITUTE($B333,\".\",\"~\",LEN($B333)-LEN(SUBSTITUTE($B333,\".\",\"\"))))),$B$11:$B$849,0),MATCH(\"Aktuell?\",$B$9:$H$9,0))=\"Ja\",1,0))","v":0},"P"]
[null,"A7.10.",null,"Rettigheter til andeler i stengings- rehabiliterings- og miljørehabiliteringsfond (IFRIC 5)",null,{"$f":"SUMIF($B335:$B$849,$B334&\"*\",$F335:$F$849)","v":0},"Nei",null,{"$f":"IF($G334=\"Ja\",\"Total: \"&COUNTIFS($B335:$B$849,B334&\"*\",$G335:$G$849,1)&\" | P - \"&COUNTIFS($B335:$B$849,B334&\"*\",$G335:$G$849,1,$H335:$H$849,$E$3)&\" | J - \"&COUNTIFS($B335:$B$849,B334&\"*\",$G335:$G$849,1,$H335:$H$849,$E$4)&\" | N - \"&COUNTIFS($B335:$B$849,B334&\"*\",$G335:$G$849,1,$H335:$H$849,$E$5)&\" | A - \"&COUNTIFS($B335:$B$849,B334&\"*\",$G335:$G$849,1,$H335:$H$849,$E$6)&\" | F - \"&COUNTIFS($B335:$B$849,B334&\"*\",$G335:$G$849,1,$H335:$H$849,$E$7),\"\")","v":""}]
[null,"A7.10.1","Forskriften § 4-2 nr. 13","Det skal gis noteopplysninger etter IFRIC 5 i tråd med kravene nedenfor: "]
[null,"A7.10.2","IFRIC 5.11 – 5.13","Er det gitt opplysinger om arten av andel i stengnings- rehabiliterings- og miljørapporteringsfond, og om eventuelle begrensninger i tilgangen til eiendelene i fondet?",null,{"$f":"IF(AND(G336=1,E336=\"i\"),1,IF(AND(G336=1,E336=\"s\"),1,0))","v":0},{"$f":"IF($B336=\"\",\"0\",IF(INDEX($B$11:$H$849,MATCH(LEFT($B336,FIND(\"~\",SUBSTITUTE($B336,\".\",\"~\",LEN($B336)-LEN(SUBSTITUTE($B336,\".\",\"\"))))),$B$11:$B$849,0),MATCH(\"Aktuell?\",$B$9:$H$9,0))=\"Ja\",1,0))","v":0},"P"]
[null,"A7.10.3",null,"Ved plikt til å betale ytterligere innskudd som ikke innregnes som forpliktelse, jf IFRIC 5.10, er det gitt opplysninger som kreves etter IAS 37.86?",null,{"$f":"IF(AND(G337=1,E337=\"i\"),1,IF(AND(G337=1,E337=\"s\"),1,0))","v":0},{"$f":"IF($B337=\"\",\"0\",IF(INDEX($B$11:$H$849,MATCH(LEFT($B337,FIND(\"~\",SUBSTITUTE($B337,\".\",\"~\",LEN($B337)-LEN(SUBSTITUTE($B337,\".\",\"\"))))),$B$11:$B$849,0),MATCH(\"Aktuell?\",$B$9:$H$9,0))=\"Ja\",1,0))","v":0},"P"]
[null,"A7.10.4",null,"Når andel i fond regnskapsføres i samsvar med IFRIC 5.9, er det gitt opplysninger som krevd av IAS 37.85 c)?",null,{"$f":"IF(AND(G338=1,E338=\"i\"),1,IF(AND(G338=1,E338=\"s\"),1,0))","v":0},{"$f":"IF($B338=\"\",\"0\",IF(INDEX($B$11:$H$849,MATCH(LEFT($B338,FIND(\"~\",SUBSTITUTE($B338,\".\",\"~\",LEN($B338)-LEN(SUBSTITUTE($B338,\".\",\"\"))))),$B$11:$B$849,0),MATCH(\"Aktuell?\",$B$9:$H$9,0))=\"Ja\",1,0))","v":0},"P"]
[]
[null,"A7.11.",null,"Egenkapital",null,{"$f":"SUMIF($B341:$B$849,$B340&\"*\",$F341:$F$849)","v":0},"Ja",null,{"$f":"IF($G340=\"Ja\",\"Total: \"&COUNTIFS($B341:$B$849,B340&\"*\",$G341:$G$849,1)&\" | P - \"&COUNTIFS($B341:$B$849,B340&\"*\",$G341:$G$849,1,$H341:$H$849,$E$3)&\" | J - \"&COUNTIFS($B341:$B$849,B340&\"*\",$G341:$G$849,1,$H341:$H$849,$E$4)&\" | N - \"&COUNTIFS($B341:$B$849,B340&\"*\",$G341:$G$849,1,$H341:$H$849,$E$5)&\" | A - \"&COUNTIFS($B341:$B$849,B340&\"*\",$G341:$G$849,1,$H341:$H$849,$E$6)&\" | F - \"&COUNTIFS($B341:$B$849,B340&\"*\",$G341:$G$849,1,$H341:$H$849,$E$7),\"\")","v":"Total: 12 | P - 12 | J - 0 | N - 0 | A - 0 | F - 0"}]
[null,"A7.11.1",null,"Egenkapitalnote/-oppstilling",null,{"$f":"SUMIF($B343:$B$849,$B341&\"*\",$F343:$F$849)","v":0},null,{"$f":"IF(INDEX($B$11:$H$849,MATCH(LEFT($B341,FIND(\"~\",SUBSTITUTE($B341,\".\",\"~\",LEN($B341)-LEN(SUBSTITUTE($B341,\".\",\"\"))))),$B$11:$B$849,0),MATCH(\"Aktuell?\",$B$9:$H$9,0))=\"Yes\",1,0)","v":0}]
[null,"A7.11.2","rskl § 7-25","Er opptjent egenkapital spesifisert?",null,{"$f":"IF(AND(G342=1,E342=\"i\"),1,IF(AND(G342=1,E342=\"s\"),1,0))","v":0},{"$f":"IF($B342=\"\",\"0\",IF(INDEX($B$11:$H$849,MATCH(LEFT($B342,FIND(\"~\",SUBSTITUTE($B342,\".\",\"~\",LEN($B342)-LEN(SUBSTITUTE($B342,\".\",\"\"))))),$B$11:$B$849,0),MATCH(\"Aktuell?\",$B$9:$H$9,0))=\"Ja\",1,0))","v":1},"P"]
[null,"A7.11.3","rskl § 7-25","Er det opplyst om endringer i løpet av året, med spesifikasjon av innholdet i hver enkelt transaksjon, herunder utbytte, avgitt konsernbidrag, ekstraordinært utbytte, emisjon, kapitalnedsettelse o.a?",null,{"$f":"IF(AND(G343=1,E343=\"i\"),1,IF(AND(G343=1,E343=\"s\"),1,0))","v":0},{"$f":"IF($B343=\"\",\"0\",IF(INDEX($B$11:$H$849,MATCH(LEFT($B343,FIND(\"~\",SUBSTITUTE($B343,\".\",\"~\",LEN($B343)-LEN(SUBSTITUTE($B343,\".\",\"\"))))),$B$11:$B$849,0),MATCH(\"Aktuell?\",$B$9:$H$9,0))=\"Ja\",1,0))","v":1},"P"]
[null,"A7.11.4","rskl § 7-25","Opplysningene i punktet over kan i stedet gis i en egen oppstilling over endringer i egenkapitalen."]
[null,"A7.11.5",null,"Aksjekapital, aksjonærer mm (pliktig)",null,{"$f":"SUMIF($B347:$B$849,$B345&\"*\",$F347:$F$849)","v":0},null,{"$f":"IF(INDEX($B$11:$H$849,MATCH(LEFT($B345,FIND(\"~\",SUBSTITUTE($B345,\".\",\"~\",LEN($B345)-LEN(SUBSTITUTE($B345,\".\",\"\"))))),$B$11:$B$849,0),MATCH(\"Aktuell?\",$B$9:$H$9,0))=\"Yes\",1,0)","v":0}]
[null,"A7.11.6","rskl § 7-26","Er det opplyst om:\n• aksjekapitalens størrelse\n• aksjenes pålydende (fordelt på hver aksjeklasse hvis det er flere aksjeklasser)\n• vedtektsbestemmelser om stemmerett hvis ikke alle aksjene har samme rett\n• alle rettigheter som kan medføre at det blir utstedt nye aksjer med angivelse av hovedtrekkene i vilkår som gjelder for retten\n• selskapets 20 største aksjeeiere og deres eierandeler (kan utelate aksjeeiere som eier mindre enn 1 %)?",null,{"$f":"IF(AND(G346=1,E346=\"i\"),1,IF(AND(G346=1,E346=\"s\"),1,0))","v":0},{"$f":"IF($B346=\"\",\"0\",IF(INDEX($B$11:$H$849,MATCH(LEFT($B346,FIND(\"~\",SUBSTITUTE($B346,\".\",\"~\",LEN($B346)-LEN(SUBSTITUTE($B346,\".\",\"\"))))),$B$11:$B$849,0),MATCH(\"Aktuell?\",$B$9:$H$9,0))=\"Ja\",1,0))","v":1},"P"]
[null,"A7.11.7","rskl § 7-26","Er det opplyst om aksjer/andeler og rettigheter til aksjer/andeler som eies av:\n• daglig leder\n• medlemmer av styret\n• medlemmer av bedriftsforsamling?",null,{"$f":"IF(AND(G347=1,E347=\"i\"),1,IF(AND(G347=1,E347=\"s\"),1,0))","v":0},{"$f":"IF($B347=\"\",\"0\",IF(INDEX($B$11:$H$849,MATCH(LEFT($B347,FIND(\"~\",SUBSTITUTE($B347,\".\",\"~\",LEN($B347)-LEN(SUBSTITUTE($B347,\".\",\"\"))))),$B$11:$B$849,0),MATCH(\"Aktuell?\",$B$9:$H$9,0))=\"Ja\",1,0))","v":1},"P"]
[null,"A7.11.8","rskl § 7-26\nfjerde ledd","Hvis selskapet er et stort foretak, er det gitt slike opplysninger spesifisert på de enkelte medlemmer av styret og deres personlig nærstående samt de enkelte ledende ansatte og deres personlig nærstående?",null,{"$f":"IF(AND(G348=1,E348=\"i\"),1,IF(AND(G348=1,E348=\"s\"),1,0))","v":0},{"$f":"IF($B348=\"\",\"0\",IF(INDEX($B$11:$H$849,MATCH(LEFT($B348,FIND(\"~\",SUBSTITUTE($B348,\".\",\"~\",LEN($B348)-LEN(SUBSTITUTE($B348,\".\",\"\"))))),$B$11:$B$849,0),MATCH(\"Aktuell?\",$B$9:$H$9,0))=\"Ja\",1,0))","v":1},"P"]
[null,"A7.11.9","rskl § 7-15 tredje ledd","Hvis den regnskapspliktige er datterselskap, er det opplyst om foretaksnavn og forretningskontor for morselskap som utarbeider konsernregnskap der den regnskapspliktige inngår i konsolideringen? ",null,{"$f":"IF(AND(G349=1,E349=\"i\"),1,IF(AND(G349=1,E349=\"s\"),1,0))","v":0},{"$f":"IF($B349=\"\",\"0\",IF(INDEX($B$11:$H$849,MATCH(LEFT($B349,FIND(\"~\",SUBSTITUTE($B349,\".\",\"~\",LEN($B349)-LEN(SUBSTITUTE($B349,\".\",\"\"))))),$B$11:$B$849,0),MATCH(\"Aktuell?\",$B$9:$H$9,0))=\"Ja\",1,0))","v":1},"P"]
[null,"A7.11.10",null,"Er det opplyst hvor en kan få utlevert konsernregnskapene?",null,{"$f":"IF(AND(G350=1,E350=\"i\"),1,IF(AND(G350=1,E350=\"s\"),1,0))","v":0},{"$f":"IF($B350=\"\",\"0\",IF(INDEX($B$11:$H$849,MATCH(LEFT($B350,FIND(\"~\",SUBSTITUTE($B350,\".\",\"~\",LEN($B350)-LEN(SUBSTITUTE($B350,\".\",\"\"))))),$B$11:$B$849,0),MATCH(\"Aktuell?\",$B$9:$H$9,0))=\"Ja\",1,0))","v":1},"P"]
[null,"A7.11.11",null,"Egne aksjer (pliktig)",null,{"$f":"SUMIF($B353:$B$849,$B351&\"*\",$F353:$F$849)","v":0},null,{"$f":"IF(INDEX($B$11:$H$849,MATCH(LEFT($B351,FIND(\"~\",SUBSTITUTE($B351,\".\",\"~\",LEN($B351)-LEN(SUBSTITUTE($B351,\".\",\"\"))))),$B$11:$B$849,0),MATCH(\"Aktuell?\",$B$9:$H$9,0))=\"Yes\",1,0)","v":0}]
[null,"A7.11.12","rskl § 7-27","Dersom egne aksjer ikke vises på egen linje under selskapskapitalen i balansen eller i oppstilling av endringer i egenkapitalen, er spesifikasjon gitt i note? ",null,{"$f":"IF(AND(G352=1,E352=\"i\"),1,IF(AND(G352=1,E352=\"s\"),1,0))","v":0},{"$f":"IF($B352=\"\",\"0\",IF(INDEX($B$11:$H$849,MATCH(LEFT($B352,FIND(\"~\",SUBSTITUTE($B352,\".\",\"~\",LEN($B352)-LEN(SUBSTITUTE($B352,\".\",\"\"))))),$B$11:$B$849,0),MATCH(\"Aktuell?\",$B$9:$H$9,0))=\"Ja\",1,0))","v":1},"P"]
[null,"A7.11.13","rskl § 7-27","Dersom selskapet har en beholdning av egne aksjer etter aksjeloven kapittel 9, er det opplyst om antallet, aksjenes pålydende verdi og den andel aksjene utgjør av aksjekapitalen?",null,{"$f":"IF(AND(G353=1,E353=\"i\"),1,IF(AND(G353=1,E353=\"s\"),1,0))","v":0},{"$f":"IF($B353=\"\",\"0\",IF(INDEX($B$11:$H$849,MATCH(LEFT($B353,FIND(\"~\",SUBSTITUTE($B353,\".\",\"~\",LEN($B353)-LEN(SUBSTITUTE($B353,\".\",\"\"))))),$B$11:$B$849,0),MATCH(\"Aktuell?\",$B$9:$H$9,0))=\"Ja\",1,0))","v":1},"P"]
[null,"A7.11.14","rskl § 7-27","Dersom det har vært endringer i beholdning av egne aksjer og datterselskapenes beholdning av aksjer i morselskapet i løpet av regnskapsåret, er det minst opplyst om følgende:\n• bakgrunn for erverv som har funnet sted\n• antall aksjer som er ervervet, vederlag for disse og den andel de utgjør av aksjekapitalen\n• antall aksjer som er avhendet, vederlaget for disse og den andel de utgjør av aksjekapitalen?",null,{"$f":"IF(AND(G354=1,E354=\"i\"),1,IF(AND(G354=1,E354=\"s\"),1,0))","v":0},{"$f":"IF($B354=\"\",\"0\",IF(INDEX($B$11:$H$849,MATCH(LEFT($B354,FIND(\"~\",SUBSTITUTE($B354,\".\",\"~\",LEN($B354)-LEN(SUBSTITUTE($B354,\".\",\"\"))))),$B$11:$B$849,0),MATCH(\"Aktuell?\",$B$9:$H$9,0))=\"Ja\",1,0))","v":1},"P"]
[null,"A7.11.15",null,"Samvirkeforetak som har medlemskonti",null,{"$f":"SUMIF($B357:$B$849,$B355&\"*\",$F357:$F$849)","v":0},null,{"$f":"IF(INDEX($B$11:$H$849,MATCH(LEFT($B355,FIND(\"~\",SUBSTITUTE($B355,\".\",\"~\",LEN($B355)-LEN(SUBSTITUTE($B355,\".\",\"\"))))),$B$11:$B$849,0),MATCH(\"Aktuell?\",$B$9:$H$9,0))=\"Yes\",1,0)","v":0}]
[null,"A7.11.16","rskl § 7-25","Har samvirkeforetak som har medlemskapitalkonti i samsvar med lov om samvirkeforetak § 29, gitt opplysninger om årets utbetaling og avsetning?",null,{"$f":"IF(AND(G356=1,E356=\"i\"),1,IF(AND(G356=1,E356=\"s\"),1,0))","v":0},{"$f":"IF($B356=\"\",\"0\",IF(INDEX($B$11:$H$849,MATCH(LEFT($B356,FIND(\"~\",SUBSTITUTE($B356,\".\",\"~\",LEN($B356)-LEN(SUBSTITUTE($B356,\".\",\"\"))))),$B$11:$B$849,0),MATCH(\"Aktuell?\",$B$9:$H$9,0))=\"Ja\",1,0))","v":1},"P"]
[null,"A7.11.17","rskl § 7-25","Er det opplyst om eventuelle vedtektsbestemmelser og årsmøtevedtak eller forslag til vedtak knyttet til medlemskapitalkonti?",null,{"$f":"IF(AND(G357=1,E357=\"i\"),1,IF(AND(G357=1,E357=\"s\"),1,0))","v":0},{"$f":"IF($B357=\"\",\"0\",IF(INDEX($B$11:$H$849,MATCH(LEFT($B357,FIND(\"~\",SUBSTITUTE($B357,\".\",\"~\",LEN($B357)-LEN(SUBSTITUTE($B357,\".\",\"\"))))),$B$11:$B$849,0),MATCH(\"Aktuell?\",$B$9:$H$9,0))=\"Ja\",1,0))","v":1},"P"]
[]
[null,"A7.12.",null,"Gjeld",null,{"$f":"SUMIF($B360:$B$849,$B359&\"*\",$F360:$F$849)","v":0},"Nei",null,{"$f":"IF($G359=\"Ja\",\"Total: \"&COUNTIFS($B360:$B$849,B359&\"*\",$G360:$G$849,1)&\" | P - \"&COUNTIFS($B360:$B$849,B359&\"*\",$G360:$G$849,1,$H360:$H$849,$E$3)&\" | J - \"&COUNTIFS($B360:$B$849,B359&\"*\",$G360:$G$849,1,$H360:$H$849,$E$4)&\" | N - \"&COUNTIFS($B360:$B$849,B359&\"*\",$G360:$G$849,1,$H360:$H$849,$E$5)&\" | A - \"&COUNTIFS($B360:$B$849,B359&\"*\",$G360:$G$849,1,$H360:$H$849,$E$6)&\" | F - \"&COUNTIFS($B360:$B$849,B359&\"*\",$G360:$G$849,1,$H360:$H$849,$E$7),\"\")","v":""}]
[null,"A7.12.1",null,"Generelt",null,{"$f":"SUMIF($B362:$B$849,$B360&\"*\",$F362:$F$849)","v":0},null,{"$f":"IF(INDEX($B$11:$H$849,MATCH(LEFT($B360,FIND(\"~\",SUBSTITUTE($B360,\".\",\"~\",LEN($B360)-LEN(SUBSTITUTE($B360,\".\",\"\"))))),$B$11:$B$849,0),MATCH(\"Aktuell?\",$B$9:$H$9,0))=\"Yes\",1,0)","v":0}]
[null,"A7.12.2","rskl § 7-21","For hver post innledet med arabertall under gjeld i oppstillingsplanen i RL (annen langsiktig gjeld og kortsiktig gjeld), er den delen av gjeld som forfaller til betaling mer enn fem år etter regnskapsårets slutt spesifisert?",null,{"$f":"IF(AND(G361=1,E361=\"i\"),1,IF(AND(G361=1,E361=\"s\"),1,0))","v":0},{"$f":"IF($B361=\"\",\"0\",IF(INDEX($B$11:$H$849,MATCH(LEFT($B361,FIND(\"~\",SUBSTITUTE($B361,\".\",\"~\",LEN($B361)-LEN(SUBSTITUTE($B361,\".\",\"\"))))),$B$11:$B$849,0),MATCH(\"Aktuell?\",$B$9:$H$9,0))=\"Ja\",1,0))","v":0},"P"]
[null,"A7.12.3","rskl § 7-21","Er det vist tilsvarende sammenligningstall?",null,0,0,"P"]
[null,"A7.12.4","rskl § 7-21","Er det opplyst om gjeld sikret ved pant og lignende og balanseført verdi av pantsatte eiendeler?",null,0,0,"P"]
[null,"A7.12.5","rskl § 7-21","Dersom det er tatt utlegg i noen av selskapets eiendeler, er dette angitt særskilt?",null,0,0,"P"]
[null,"A7.12.6","rskl § 7-21","Er det opplyst om hvilke forpliktelser som er dekket av andre avsetninger som nevnt i RL § 6-2 D I nr.3?",null,0,0,"P"]
[null,"A7.12.7","rskl § 7-21","Hvis selskapet er et stort foretak, er det for obligasjonslån, konvertible lån og langsiktig gjeld til kredittinstitusjoner opplyst om:\n• avdragsstruktur\n• gjennomsnittlig rente\n• særlige vilkår (\"covenants\" ol)?",null,0,0,"P"]
[null,"A7.12.8","rskl § 7-21","Er det for hver post i oppstillingsplanen gitt opplysning om samlet mellomværende med foretak i samme konsern med sammenligningstall? (Tilsvarende gjelder for TS/FKV)",null,0,0,"P"]
[null,"A7.12.9","rskl § 7-21","Er det opplyst om samlet pant, sikkerhetsstillelse og garantier til fordel for selskap i samme konsern?",null,0,0,"P"]
[null,"A7.12.10",null,"Obligasjoner",null,{"$f":"SUMIF($B371:$B$849,$B369&\"*\",$F371:$F$849)","v":0},null,{"$f":"IF(INDEX($B$11:$H$849,MATCH(LEFT($B369,FIND(\"~\",SUBSTITUTE($B369,\".\",\"~\",LEN($B369)-LEN(SUBSTITUTE($B369,\".\",\"\"))))),$B$11:$B$849,0),MATCH(\"Aktuell?\",$B$9:$H$9,0))=\"Yes\",1,0)","v":0}]
[null,"A7.12.11","rskl § 7-20","• Er obligasjoner spesifisert etter debitorkategori og pålydende valuta?",null,{"$f":"IF(AND(G370=1,E370=\"i\"),1,IF(AND(G370=1,E370=\"s\"),1,0))","v":0},{"$f":"IF($B370=\"\",\"0\",IF(INDEX($B$11:$H$849,MATCH(LEFT($B370,FIND(\"~\",SUBSTITUTE($B370,\".\",\"~\",LEN($B370)-LEN(SUBSTITUTE($B370,\".\",\"\"))))),$B$11:$B$849,0),MATCH(\"Aktuell?\",$B$9:$H$9,0))=\"Ja\",1,0))","v":0},"P"]
[null,"A7.12.12",null,"Debitorkategorier\n• staten\n• banker\n• kredittforetak\n• andre finansinstitusjoner\n• øvrige obligasjonsutstedere"]
[null,"A7.12.13","rskl § 7-20","• Hvis selskapet er klassifisert som stort foretak, er det gitt en oversikt over rentereguleringstidspunkter og gjennomsnittlig rente?",null,{"$f":"IF(AND(G372=1,E372=\"i\"),1,IF(AND(G372=1,E372=\"s\"),1,0))","v":0},{"$f":"IF($B372=\"\",\"0\",IF(INDEX($B$11:$H$849,MATCH(LEFT($B372,FIND(\"~\",SUBSTITUTE($B372,\".\",\"~\",LEN($B372)-LEN(SUBSTITUTE($B372,\".\",\"\"))))),$B$11:$B$849,0),MATCH(\"Aktuell?\",$B$9:$H$9,0))=\"Ja\",1,0))","v":0},"P"]
[null,"A7.13.",null,"Offentlige tilskudd",null,{"$f":"SUMIF($B374:$B$849,$B373&\"*\",$F374:$F$849)","v":0},"Nei",null,{"$f":"IF($G373=\"Ja\",\"Total: \"&COUNTIFS($B374:$B$849,B373&\"*\",$G374:$G$849,1)&\" | P - \"&COUNTIFS($B374:$B$849,B373&\"*\",$G374:$G$849,1,$H374:$H$849,$E$3)&\" | J - \"&COUNTIFS($B374:$B$849,B373&\"*\",$G374:$G$849,1,$H374:$H$849,$E$4)&\" | N - \"&COUNTIFS($B374:$B$849,B373&\"*\",$G374:$G$849,1,$H374:$H$849,$E$5)&\" | A - \"&COUNTIFS($B374:$B$849,B373&\"*\",$G374:$G$849,1,$H374:$H$849,$E$6)&\" | F - \"&COUNTIFS($B374:$B$849,B373&\"*\",$G374:$G$849,1,$H374:$H$849,$E$7),\"\")","v":""}]
[null,"A7.13.1","NRS 4 Offentlige tilskudd","Er det i noter til regnskapet gitt følgende tilleggsopplysninger:"]
[null,"A7.13.2",null,"Type tilskudd, varighet og betingelser knytte til tilskuddet?",null,{"$f":"IF(AND(G375=1,E375=\"i\"),1,IF(AND(G375=1,E375=\"s\"),1,0))","v":0},{"$f":"IF($B375=\"\",\"0\",IF(INDEX($B$11:$H$849,MATCH(LEFT($B375,FIND(\"~\",SUBSTITUTE($B375,\".\",\"~\",LEN($B375)-LEN(SUBSTITUTE($B375,\".\",\"\"))))),$B$11:$B$849,0),MATCH(\"Aktuell?\",$B$9:$H$9,0))=\"Ja\",1,0))","v":0},"P"]
[null,"A7.13.3",null,"Regnskapsmessig behandling (brutto/nettoføring); behandlingen må vurderes ut fra NRS 4?",null,{"$f":"IF(AND(G376=1,E376=\"i\"),1,IF(AND(G376=1,E376=\"s\"),1,0))","v":0},{"$f":"IF($B376=\"\",\"0\",IF(INDEX($B$11:$H$849,MATCH(LEFT($B376,FIND(\"~\",SUBSTITUTE($B376,\".\",\"~\",LEN($B376)-LEN(SUBSTITUTE($B376,\".\",\"\"))))),$B$11:$B$849,0),MATCH(\"Aktuell?\",$B$9:$H$9,0))=\"Ja\",1,0))","v":0},"P"]
[null,"A7.13.4",null,"Tilskuddsbeløpets størrelse - hvis ikke kvantifiserbart, omtale om arten og omfanget?",null,{"$f":"IF(AND(G377=1,E377=\"i\"),1,IF(AND(G377=1,E377=\"s\"),1,0))","v":0},{"$f":"IF($B377=\"\",\"0\",IF(INDEX($B$11:$H$849,MATCH(LEFT($B377,FIND(\"~\",SUBSTITUTE($B377,\".\",\"~\",LEN($B377)-LEN(SUBSTITUTE($B377,\".\",\"\"))))),$B$11:$B$849,0),MATCH(\"Aktuell?\",$B$9:$H$9,0))=\"Ja\",1,0))","v":0},"P"]
[null,"A7.13.5",null,"Opplysninger om tilskudd som ikke direkte fremgår av regnskapet?",null,{"$f":"IF(AND(G378=1,E378=\"i\"),1,IF(AND(G378=1,E378=\"s\"),1,0))","v":0},{"$f":"IF($B378=\"\",\"0\",IF(INDEX($B$11:$H$849,MATCH(LEFT($B378,FIND(\"~\",SUBSTITUTE($B378,\".\",\"~\",LEN($B378)-LEN(SUBSTITUTE($B378,\".\",\"\"))))),$B$11:$B$849,0),MATCH(\"Aktuell?\",$B$9:$H$9,0))=\"Ja\",1,0))","v":0},"P"]
[null,"A7.13.6",null,"Endring fra brutto- til nettoføring og omvendt (endring av regnskapsprinsipp)?",null,{"$f":"IF(AND(G379=1,E379=\"i\"),1,IF(AND(G379=1,E379=\"s\"),1,0))","v":0},{"$f":"IF($B379=\"\",\"0\",IF(INDEX($B$11:$H$849,MATCH(LEFT($B379,FIND(\"~\",SUBSTITUTE($B379,\".\",\"~\",LEN($B379)-LEN(SUBSTITUTE($B379,\".\",\"\"))))),$B$11:$B$849,0),MATCH(\"Aktuell?\",$B$9:$H$9,0))=\"Ja\",1,0))","v":0},"P"]
[]
[null,"A7.14.",null,"Transaksjoner med nærstående",null,{"$f":"SUMIFS($F395:$F$849,$B395:$B$849,$B381&\"*\",$G395:$G$849,\"Ja\")","v":0},{"$f":"IF(COUNTIFS($B395:$B$849,$B381&\"*\",$G395:$G$849,\"Ja\")>0,\"Ja\",\"Nei\")","v":"Nei"}]
[null,"A7.14a.",null,"- Generelt",null,{"$f":"SUMIF($B383:$B$849,$B382&\"*\",$F383:$F$849)","v":0},"Nei",null,{"$f":"IF($G382=\"Ja\",\"Total: \"&COUNTIFS($B383:$B$849,B382&\"*\",$G383:$G$849,1)&\" | P - \"&COUNTIFS($B383:$B$849,B382&\"*\",$G383:$G$849,1,$H383:$H$849,$E$3)&\" | J - \"&COUNTIFS($B383:$B$849,B382&\"*\",$G383:$G$849,1,$H383:$H$849,$E$4)&\" | N - \"&COUNTIFS($B383:$B$849,B382&\"*\",$G383:$G$849,1,$H383:$H$849,$E$5)&\" | A - \"&COUNTIFS($B383:$B$849,B382&\"*\",$G383:$G$849,1,$H383:$H$849,$E$6)&\" | F - \"&COUNTIFS($B383:$B$849,B382&\"*\",$G383:$G$849,1,$H383:$H$849,$E$7),\"\")","v":""}]
[null,"A7.14a.1"," ","Transaksjoner mellom konsoliderte foretak kan unnlates opplyst i konsernregnskapet."]
[null,"A7.14a.2","Forskrift til regnskapsloven § 7-30b-1","Nærstående etter denne bestemmelsen er definert i forskrift til regnskapsloven."]
[null,"A7.14a.3",null,"Kravene til noteopplysninger gjelder ikke transaksjoner med offentlige nærstående."]
[null,"A7.14a.4","skatteforvaltnings-loven § 8-11, 2. ledd","Transaksjoner mellom heleide konsoliderte foretak kan unnlates opplyst i selskapsregnskapet dersom selskapet er unntatt fra dokumentasjonsplikten etter skatteforvaltningsloven § 8-11, 2. ledd. Ved en feil henviser rskl § 7-30b her til skatteforvaltningsloven § 8-9. Departementet er klar over denne feilen, men har ikke hatt kapasitet til å rette det opp. "]
[null,"A7.14a.5",null,"Er det opplyst om vesentlige transaksjoner med nærstående parter, herunder",null,{"$f":"IF(AND(G387=1,E387=\"i\"),1,IF(AND(G387=1,E387=\"s\"),1,0))","v":0},{"$f":"IF($B387=\"\",\"0\",IF(INDEX($B$11:$H$849,MATCH(LEFT($B387,FIND(\"~\",SUBSTITUTE($B387,\".\",\"~\",LEN($B387)-LEN(SUBSTITUTE($B387,\".\",\"\"))))),$B$11:$B$849,0),MATCH(\"Aktuell?\",$B$9:$H$9,0))=\"Ja\",1,0))","v":0},"P"]
[null,"A7.14a.6",null,"• transaksjonenes beløp",null,{"$f":"IF(AND(G388=1,E388=\"i\"),1,IF(AND(G388=1,E388=\"s\"),1,0))","v":0},{"$f":"IF($B388=\"\",\"0\",IF(INDEX($B$11:$H$849,MATCH(LEFT($B388,FIND(\"~\",SUBSTITUTE($B388,\".\",\"~\",LEN($B388)-LEN(SUBSTITUTE($B388,\".\",\"\"))))),$B$11:$B$849,0),MATCH(\"Aktuell?\",$B$9:$H$9,0))=\"Ja\",1,0))","v":0},"P"]
[null,"A7.14a.7",null,"• en beskrivelse av hva slags forhold det er mellom selskapet og den nærstående part ",null,{"$f":"IF(AND(G389=1,E389=\"i\"),1,IF(AND(G389=1,E389=\"s\"),1,0))","v":0},{"$f":"IF($B389=\"\",\"0\",IF(INDEX($B$11:$H$849,MATCH(LEFT($B389,FIND(\"~\",SUBSTITUTE($B389,\".\",\"~\",LEN($B389)-LEN(SUBSTITUTE($B389,\".\",\"\"))))),$B$11:$B$849,0),MATCH(\"Aktuell?\",$B$9:$H$9,0))=\"Ja\",1,0))","v":0},"P"]
[null,"A7.14a.8",null,"• andre opplysninger om transaksjonene som er nødvendige for å fortå den regnskapspliktiges og konsernets stilling",null,{"$f":"IF(AND(G390=1,E390=\"i\"),1,IF(AND(G390=1,E390=\"s\"),1,0))","v":0},{"$f":"IF($B390=\"\",\"0\",IF(INDEX($B$11:$H$849,MATCH(LEFT($B390,FIND(\"~\",SUBSTITUTE($B390,\".\",\"~\",LEN($B390)-LEN(SUBSTITUTE($B390,\".\",\"\"))))),$B$11:$B$849,0),MATCH(\"Aktuell?\",$B$9:$H$9,0))=\"Ja\",1,0))","v":0},"P"]
[null,"A7.14a.9","Forskrift til regnskapsloven § 7-30b-2","For foretak som benytter seg av unntaksregelen om opplysninger om transaksjoner med offentlige nærstående, er det istedenfor kravene i spørsmålene over gitt følgende opplysninger:"]
[null,"A7.14a.10",null,"• Navnet på den offentlige myndigheten og forholdet til det rapporterende foretaket (kontroll, felles kontroll eller betydelig innflytelse),",null,{"$f":"IF(AND(G392=1,E392=\"i\"),1,IF(AND(G392=1,E392=\"s\"),1,0))","v":0},{"$f":"IF($B392=\"\",\"0\",IF(INDEX($B$11:$H$849,MATCH(LEFT($B392,FIND(\"~\",SUBSTITUTE($B392,\".\",\"~\",LEN($B392)-LEN(SUBSTITUTE($B392,\".\",\"\"))))),$B$11:$B$849,0),MATCH(\"Aktuell?\",$B$9:$H$9,0))=\"Ja\",1,0))","v":0},"P"]
[null,"A7.14a.11",null,"• arten og omfanget av betydelige transaksjoner, og",null,{"$f":"IF(AND(G393=1,E393=\"i\"),1,IF(AND(G393=1,E393=\"s\"),1,0))","v":0},{"$f":"IF($B393=\"\",\"0\",IF(INDEX($B$11:$H$849,MATCH(LEFT($B393,FIND(\"~\",SUBSTITUTE($B393,\".\",\"~\",LEN($B393)-LEN(SUBSTITUTE($B393,\".\",\"\"))))),$B$11:$B$849,0),MATCH(\"Aktuell?\",$B$9:$H$9,0))=\"Ja\",1,0))","v":0},"P"]
[null,"A7.14a.12",null,"• for transaksjoner som samlet, men ikke hver for seg, er betydelige, er det gitt en kvalitativ eller kvantitativ indikasjon å deres omfang?",null,{"$f":"IF(AND(G394=1,E394=\"i\"),1,IF(AND(G394=1,E394=\"s\"),1,0))","v":0},{"$f":"IF($B394=\"\",\"0\",IF(INDEX($B$11:$H$849,MATCH(LEFT($B394,FIND(\"~\",SUBSTITUTE($B394,\".\",\"~\",LEN($B394)-LEN(SUBSTITUTE($B394,\".\",\"\"))))),$B$11:$B$849,0),MATCH(\"Aktuell?\",$B$9:$H$9,0))=\"Ja\",1,0))","v":0},"P"]
[null,"A7.14b.",null,"- Mellomværende med konsernselskap, tilknyttede selskaper og felleskontrollerte virksomheter",null,{"$f":"SUMIF($B396:$B$849,$B395&\"*\",$F396:$F$849)","v":0},"Nei",null,{"$f":"IF($G395=\"Ja\",\"Total: \"&COUNTIFS($B396:$B$849,B395&\"*\",$G396:$G$849,1)&\" | P - \"&COUNTIFS($B396:$B$849,B395&\"*\",$G396:$G$849,1,$H396:$H$849,$E$3)&\" | J - \"&COUNTIFS($B396:$B$849,B395&\"*\",$G396:$G$849,1,$H396:$H$849,$E$4)&\" | N - \"&COUNTIFS($B396:$B$849,B395&\"*\",$G396:$G$849,1,$H396:$H$849,$E$5)&\" | A - \"&COUNTIFS($B396:$B$849,B395&\"*\",$G396:$G$849,1,$H396:$H$849,$E$6)&\" | F - \"&COUNTIFS($B396:$B$849,B395&\"*\",$G396:$G$849,1,$H396:$H$849,$E$7),\"\")","v":""}]
[null,"A7.14b.1","rskl § 7-22","De ordinære kravene til opplysninger om gjeld og fordringer gjelder også for mellomværende med foretak i samme konsern, tilknyttet selskap og felleskontrollert virksomhet. I konsernforhold er det ofte ikke avtalt noen avdragsplan, det kan derfor være vanskelig å opplyse om fordringer som forfaller senere enn et år og gjeld som forfaller senere enn 5 år. I slike tilfeller bør det opplyses at avdragsplan ikke er avtalt ",null,{"$f":"IF(AND(G396=1,E396=\"i\"),1,IF(AND(G396=1,E396=\"s\"),1,0))","v":0},{"$f":"IF($B396=\"\",\"0\",IF(INDEX($B$11:$H$849,MATCH(LEFT($B396,FIND(\"~\",SUBSTITUTE($B396,\".\",\"~\",LEN($B396)-LEN(SUBSTITUTE($B396,\".\",\"\"))))),$B$11:$B$849,0),MATCH(\"Aktuell?\",$B$9:$H$9,0))=\"Ja\",1,0))","v":0},"P"]
[null,"A7.14b.2","rskl § 7-22","I tillegg til de ordinære kravene vedrørende fordringer og gjeld, er det ytterligere opplysningskrav vedrørende mellomværende med foretak i samme konsern, tilknyttede selskap og felleskontrollert virksomhet?",null,0,0,"P"]
[null,"A7.14b.3","rskl § 7-22","Er det for hver regnskapspost det er aktuelt opplyst om fordringer på og gjeld til henholdsvis konsernselskaper, tilknyttede selskaper og felles kontrollert virksomhet?",null,0,0,"P"]
[null,"A7.14b.4","rskl § 7-22","Er det opplyst om tilsvarende sammenligningstall fra foregående årsregnskap?",null,0,0,"P"]
[null,"A7.14b.5","rskl § 7-22","Er det opplyst om samlet forpliktelse i form av pantstillelse, annen sikkerhetsstillelse og garantier til fordel for foretak i samme konsern?",null,0,0,"P"]
[null,"A7.14b.6","rskl § 7-22","Er nedskrivning av konsernmellomværende opplyst?",null,0,0,"P"]
[null,"A7.14c.",null,"- Lån og sikkerhetsstillelse til ledende personer, aksjeeiere m.v. (pliktig)",null,{"$f":"SUMIF($B403:$B$849,$B402&\"*\",$F403:$F$849)","v":0},"Nei",null,{"$f":"IF($G402=\"Ja\",\"Total: \"&COUNTIFS($B403:$B$849,B402&\"*\",$G403:$G$849,1)&\" | P - \"&COUNTIFS($B403:$B$849,B402&\"*\",$G403:$G$849,1,$H403:$H$849,$E$3)&\" | J - \"&COUNTIFS($B403:$B$849,B402&\"*\",$G403:$G$849,1,$H403:$H$849,$E$4)&\" | N - \"&COUNTIFS($B403:$B$849,B402&\"*\",$G403:$G$849,1,$H403:$H$849,$E$5)&\" | A - \"&COUNTIFS($B403:$B$849,B402&\"*\",$G403:$G$849,1,$H403:$H$849,$E$6)&\" | F - \"&COUNTIFS($B403:$B$849,B402&\"*\",$G403:$G$849,1,$H403:$H$849,$E$7),\"\")","v":""}]
[null,"A7.14c.1","rskl § 7-32","Er lån til eller sikkerhetsstillelse til fordel for daglig leder og leder for styret spesifisert?",null,{"$f":"IF(AND(G403=1,E403=\"i\"),1,IF(AND(G403=1,E403=\"s\"),1,0))","v":0},{"$f":"IF($B403=\"\",\"0\",IF(INDEX($B$11:$H$849,MATCH(LEFT($B403,FIND(\"~\",SUBSTITUTE($B403,\".\",\"~\",LEN($B403)-LEN(SUBSTITUTE($B403,\".\",\"\"))))),$B$11:$B$849,0),MATCH(\"Aktuell?\",$B$9:$H$9,0))=\"Ja\",1,0))","v":0},"P"]
[null,"A7.14c.2",null,"Er det for hvert lån opplyst om hvilke vilkår som gjelder, herunder rentesatsen og avdragsplanen?",null,{"$f":"IF(AND(G404=1,E404=\"i\"),1,IF(AND(G404=1,E404=\"s\"),1,0))","v":0},{"$f":"IF($B404=\"\",\"0\",IF(INDEX($B$11:$H$849,MATCH(LEFT($B404,FIND(\"~\",SUBSTITUTE($B404,\".\",\"~\",LEN($B404)-LEN(SUBSTITUTE($B404,\".\",\"\"))))),$B$11:$B$849,0),MATCH(\"Aktuell?\",$B$9:$H$9,0))=\"Ja\",1,0))","v":0},"P"]
[null,"A7.14c.3",null,"Er det opplyst om samlede lån til og samlet sikkerhetsstillelse til fordel for nedennevnte og deres nærstående:\n• ansatte (unntak for nærstående)\n• aksjeeiere (kun i AS/ASA)\n• styremedlemmer (kun i AS(ASA)\n• medlemmer av bedriftsforsamlingen (kun i AS/ASA)?",null,{"$f":"IF(AND(G405=1,E405=\"i\"),1,IF(AND(G405=1,E405=\"s\"),1,0))","v":0},{"$f":"IF($B405=\"\",\"0\",IF(INDEX($B$11:$H$849,MATCH(LEFT($B405,FIND(\"~\",SUBSTITUTE($B405,\".\",\"~\",LEN($B405)-LEN(SUBSTITUTE($B405,\".\",\"\"))))),$B$11:$B$849,0),MATCH(\"Aktuell?\",$B$9:$H$9,0))=\"Ja\",1,0))","v":0},"P"]
[null,"A7.14c.4",null,"Som nærstående etter denne bestemmelsen regnes:\n1. ektefelle og en person som vedkommende bor sammen med i ekteskapslignende forhold\n2. slektninger i rett oppstigende eller nedstigende linje og søsken\n3. slektninger i rett oppstigelde eller nedstigende linje og søsken til en person som nevnt i nr. 1\n4. ektefelle til, og en person som bor sammen i ekteskapslignende forhold med, noen som er nevnt i nr. 2\n5. foretak der vedkommende selv eller noen som er nevnt i nr. 1 til 4, har slik bestemmende innflytelse som nevnt i rskl § 1-3 annet ledd"]
[null,"A7.14c.5",null,"Er det opplyst om hvilke vilkår som gjelder for slike lån eller sikkerhetsstillelser?",null,{"$f":"IF(AND(G407=1,E407=\"i\"),1,IF(AND(G407=1,E407=\"s\"),1,0))","v":0},{"$f":"IF($B407=\"\",\"0\",IF(INDEX($B$11:$H$849,MATCH(LEFT($B407,FIND(\"~\",SUBSTITUTE($B407,\".\",\"~\",LEN($B407)-LEN(SUBSTITUTE($B407,\".\",\"\"))))),$B$11:$B$849,0),MATCH(\"Aktuell?\",$B$9:$H$9,0))=\"Ja\",1,0))","v":0},"P"]
[null,"A7.14c.6",null,"Er lån eller sikkerhetsstillelser som utgjør mer enn 5 prosent av egenkapitalen spesifisert?",null,{"$f":"IF(AND(G408=1,E408=\"i\"),1,IF(AND(G408=1,E408=\"s\"),1,0))","v":0},{"$f":"IF($B408=\"\",\"0\",IF(INDEX($B$11:$H$849,MATCH(LEFT($B408,FIND(\"~\",SUBSTITUTE($B408,\".\",\"~\",LEN($B408)-LEN(SUBSTITUTE($B408,\".\",\"\"))))),$B$11:$B$849,0),MATCH(\"Aktuell?\",$B$9:$H$9,0))=\"Ja\",1,0))","v":0},"P"]
[]
[null,"A7.15.",null,"Garantiforpliktelser og andre forpliktelser som ikke balanseføres",null,{"$f":"SUMIF($B411:$B$849,$B410&\"*\",$F411:$F$849)","v":0},"Nei",null,{"$f":"IF($G410=\"Ja\",\"Total: \"&COUNTIFS($B411:$B$849,B410&\"*\",$G411:$G$849,1)&\" | P - \"&COUNTIFS($B411:$B$849,B410&\"*\",$G411:$G$849,1,$H411:$H$849,$E$3)&\" | J - \"&COUNTIFS($B411:$B$849,B410&\"*\",$G411:$G$849,1,$H411:$H$849,$E$4)&\" | N - \"&COUNTIFS($B411:$B$849,B410&\"*\",$G411:$G$849,1,$H411:$H$849,$E$5)&\" | A - \"&COUNTIFS($B411:$B$849,B410&\"*\",$G411:$G$849,1,$H411:$H$849,$E$6)&\" | F - \"&COUNTIFS($B411:$B$849,B410&\"*\",$G411:$G$849,1,$H411:$H$849,$E$7),\"\")","v":""}]
[null,"A7.15.1","rskl § 7-28","Er det opplyst om summen av garantiforpliktelser som ikke er regnskapsført?",null,{"$f":"IF(AND(G411=1,E411=\"i\"),1,IF(AND(G411=1,E411=\"s\"),1,0))","v":0},{"$f":"IF($B411=\"\",\"0\",IF(INDEX($B$11:$H$849,MATCH(LEFT($B411,FIND(\"~\",SUBSTITUTE($B411,\".\",\"~\",LEN($B411)-LEN(SUBSTITUTE($B411,\".\",\"\"))))),$B$11:$B$849,0),MATCH(\"Aktuell?\",$B$9:$H$9,0))=\"Ja\",1,0))","v":0},"P"]
[null,"A7.15.2","rskl § 7-28","Er det opplyst særskilt dersom slike garantiforpliktelser er sikret ved pant?",null,{"$f":"IF(AND(G412=1,E412=\"i\"),1,IF(AND(G412=1,E412=\"s\"),1,0))","v":0},{"$f":"IF($B412=\"\",\"0\",IF(INDEX($B$11:$H$849,MATCH(LEFT($B412,FIND(\"~\",SUBSTITUTE($B412,\".\",\"~\",LEN($B412)-LEN(SUBSTITUTE($B412,\".\",\"\"))))),$B$11:$B$849,0),MATCH(\"Aktuell?\",$B$9:$H$9,0))=\"Ja\",1,0))","v":0},"P"]
[null,"A7.15.3","rskl § 7-29","Er det opplyst om andre forpliktelser enn garantiforpliktelser som ikke er regnskapsført?  ",null,{"$f":"IF(AND(G413=1,E413=\"i\"),1,IF(AND(G413=1,E413=\"s\"),1,0))","v":0},{"$f":"IF($B413=\"\",\"0\",IF(INDEX($B$11:$H$849,MATCH(LEFT($B413,FIND(\"~\",SUBSTITUTE($B413,\".\",\"~\",LEN($B413)-LEN(SUBSTITUTE($B413,\".\",\"\"))))),$B$11:$B$849,0),MATCH(\"Aktuell?\",$B$9:$H$9,0))=\"Ja\",1,0))","v":0},"P"]
[null,"A7.15.4","rskl § 7-29","Er det opplyst særskilt dersom slike forpliktelser er sikret ved pant?",null,{"$f":"IF(AND(G414=1,E414=\"i\"),1,IF(AND(G414=1,E414=\"s\"),1,0))","v":0},{"$f":"IF($B414=\"\",\"0\",IF(INDEX($B$11:$H$849,MATCH(LEFT($B414,FIND(\"~\",SUBSTITUTE($B414,\".\",\"~\",LEN($B414)-LEN(SUBSTITUTE($B414,\".\",\"\"))))),$B$11:$B$849,0),MATCH(\"Aktuell?\",$B$9:$H$9,0))=\"Ja\",1,0))","v":0},"P"]
[null,"A7.16.",null,"Usikre forpliktelser",null,{"$f":"SUMIF($B416:$B$849,$B415&\"*\",$F416:$F$849)","v":0},"Nei",null,{"$f":"IF($G415=\"Ja\",\"Total: \"&COUNTIFS($B416:$B$849,B415&\"*\",$G416:$G$849,1)&\" | P - \"&COUNTIFS($B416:$B$849,B415&\"*\",$G416:$G$849,1,$H416:$H$849,$E$3)&\" | J - \"&COUNTIFS($B416:$B$849,B415&\"*\",$G416:$G$849,1,$H416:$H$849,$E$4)&\" | N - \"&COUNTIFS($B416:$B$849,B415&\"*\",$G416:$G$849,1,$H416:$H$849,$E$5)&\" | A - \"&COUNTIFS($B416:$B$849,B415&\"*\",$G416:$G$849,1,$H416:$H$849,$E$6)&\" | F - \"&COUNTIFS($B416:$B$849,B415&\"*\",$G416:$G$849,1,$H416:$H$849,$E$7),\"\")","v":""}]
[null,"A7.16.1","NRS 13 Usikre forpliktelser og betingede eiendeler","Er avsetninger for usikre forpliktelser delt inn i klasser som gir meningsfylt informasjon mht type avsetning? ",null,{"$f":"IF(AND(G416=1,E416=\"i\"),1,IF(AND(G416=1,E416=\"s\"),1,0))","v":0},{"$f":"IF($B416=\"\",\"0\",IF(INDEX($B$11:$H$849,MATCH(LEFT($B416,FIND(\"~\",SUBSTITUTE($B416,\".\",\"~\",LEN($B416)-LEN(SUBSTITUTE($B416,\".\",\"\"))))),$B$11:$B$849,0),MATCH(\"Aktuell?\",$B$9:$H$9,0))=\"Ja\",1,0))","v":0},"P"]
[null,"A7.16.2","NRS 13 Usikre forpliktelser og betingede eiendeler","Er det for hver klasse av avsetninger gitt følgende informasjon:\na) Inngående og utgående balanse.\nb) Periodens tillegg i avsetning og ny avsetning.\nc) Oppgjør som er motregnet mot avsetning i perioden.\nd) Reversering i perioden (annet enn motregning av oppgjør som avsetningen skal dekke)\ne) Økning i avsetning i perioden som skyldes renteeffekten av neddiskontering.",null,{"$f":"IF(AND(G417=1,E417=\"i\"),1,IF(AND(G417=1,E417=\"s\"),1,0))","v":0},{"$f":"IF($B417=\"\",\"0\",IF(INDEX($B$11:$H$849,MATCH(LEFT($B417,FIND(\"~\",SUBSTITUTE($B417,\".\",\"~\",LEN($B417)-LEN(SUBSTITUTE($B417,\".\",\"\"))))),$B$11:$B$849,0),MATCH(\"Aktuell?\",$B$9:$H$9,0))=\"Ja\",1,0))","v":0},"P"]
[null,"A7.16.3","NRS 13 Usikre forpliktelser og betingede eiendeler","Er følgende informasjon gitt for usikre forpliktelser som ikke er regnskapsført?\na) En kort beskrivelse av hver klasse av usikre forpliktelser på balansedagen.\nb) Et anslag på virkning i resultatregnskap og balanse av at forpliktelsen var blitt\nregnskapsført og oppgjørsverdien var blitt målt som beskrevet i pkt. 4. Dersom\ndet ikke regnes som praktisk mulig å gi et slikt anslag, skal grunnene til det\noppgis.\nc) En indikasjon på usikkerheten i tidspunkt og beløp for oppgjøret.\nd) Muligheten for regress.",null,{"$f":"IF(AND(G418=1,E418=\"i\"),1,IF(AND(G418=1,E418=\"s\"),1,0))","v":0},{"$f":"IF($B418=\"\",\"0\",IF(INDEX($B$11:$H$849,MATCH(LEFT($B418,FIND(\"~\",SUBSTITUTE($B418,\".\",\"~\",LEN($B418)-LEN(SUBSTITUTE($B418,\".\",\"\"))))),$B$11:$B$849,0),MATCH(\"Aktuell?\",$B$9:$H$9,0))=\"Ja\",1,0))","v":0},"P"]
[null,"A7.16.4","rskl § 7-29","Er det opplyst særskilt dersom slike forpliktelser er sikret ved pant?",null,{"$f":"IF(AND(G419=1,E419=\"i\"),1,IF(AND(G419=1,E419=\"s\"),1,0))","v":0},{"$f":"IF($B419=\"\",\"0\",IF(INDEX($B$11:$H$849,MATCH(LEFT($B419,FIND(\"~\",SUBSTITUTE($B419,\".\",\"~\",LEN($B419)-LEN(SUBSTITUTE($B419,\".\",\"\"))))),$B$11:$B$849,0),MATCH(\"Aktuell?\",$B$9:$H$9,0))=\"Ja\",1,0))","v":0},"P"]
[null,"A7.17.",null,"Betingede utfall",null,{"$f":"SUMIF($B421:$B$849,$B420&\"*\",$F421:$F$849)","v":0},"Nei",null,{"$f":"IF($G420=\"Ja\",\"Total: \"&COUNTIFS($B421:$B$849,B420&\"*\",$G421:$G$849,1)&\" | P - \"&COUNTIFS($B421:$B$849,B420&\"*\",$G421:$G$849,1,$H421:$H$849,$E$3)&\" | J - \"&COUNTIFS($B421:$B$849,B420&\"*\",$G421:$G$849,1,$H421:$H$849,$E$4)&\" | N - \"&COUNTIFS($B421:$B$849,B420&\"*\",$G421:$G$849,1,$H421:$H$849,$E$5)&\" | A - \"&COUNTIFS($B421:$B$849,B420&\"*\",$G421:$G$849,1,$H421:$H$849,$E$6)&\" | F - \"&COUNTIFS($B421:$B$849,B420&\"*\",$G421:$G$849,1,$H421:$H$849,$E$7),\"\")","v":""}]
[null,"A7.17.1","rskl § 7-33\nNRS 3 Hendelser etter balansedagen","Er det gitt opplysninger om forhold ved regnskapsårets slutt med betingede utfall (ikke krav hvis sensitiv informasjon):",null,{"$f":"IF(AND(G421=1,E421=\"i\"),1,IF(AND(G421=1,E421=\"s\"),1,0))","v":0},{"$f":"IF($B421=\"\",\"0\",IF(INDEX($B$11:$H$849,MATCH(LEFT($B421,FIND(\"~\",SUBSTITUTE($B421,\".\",\"~\",LEN($B421)-LEN(SUBSTITUTE($B421,\".\",\"\"))))),$B$11:$B$849,0),MATCH(\"Aktuell?\",$B$9:$H$9,0))=\"Ja\",1,0))","v":0},"P"]
[null,"A7.17.2",null,"• (Ikke kostnadsførte) betingede tap som er mindre sannsynlig?",null,{"$f":"IF(AND(G422=1,E422=\"i\"),1,IF(AND(G422=1,E422=\"s\"),1,0))","v":0},{"$f":"IF($B422=\"\",\"0\",IF(INDEX($B$11:$H$849,MATCH(LEFT($B422,FIND(\"~\",SUBSTITUTE($B422,\".\",\"~\",LEN($B422)-LEN(SUBSTITUTE($B422,\".\",\"\"))))),$B$11:$B$849,0),MATCH(\"Aktuell?\",$B$9:$H$9,0))=\"Ja\",1,0))","v":0},"P"]
[null,"A7.17.3",null,"• (Ikke kostnadsførte) betingede tap som er sannsynlige, men ikke kvantifiserbare?",null,{"$f":"IF(AND(G423=1,E423=\"i\"),1,IF(AND(G423=1,E423=\"s\"),1,0))","v":0},{"$f":"IF($B423=\"\",\"0\",IF(INDEX($B$11:$H$849,MATCH(LEFT($B423,FIND(\"~\",SUBSTITUTE($B423,\".\",\"~\",LEN($B423)-LEN(SUBSTITUTE($B423,\".\",\"\"))))),$B$11:$B$849,0),MATCH(\"Aktuell?\",$B$9:$H$9,0))=\"Ja\",1,0))","v":0},"P"]
[null,"A7.17.4",null,"• (Ikke kostnadsførte) lite sannsynlige betingede tap som kan få store konsekvenser?",null,{"$f":"IF(AND(G424=1,E424=\"i\"),1,IF(AND(G424=1,E424=\"s\"),1,0))","v":0},{"$f":"IF($B424=\"\",\"0\",IF(INDEX($B$11:$H$849,MATCH(LEFT($B424,FIND(\"~\",SUBSTITUTE($B424,\".\",\"~\",LEN($B424)-LEN(SUBSTITUTE($B424,\".\",\"\"))))),$B$11:$B$849,0),MATCH(\"Aktuell?\",$B$9:$H$9,0))=\"Ja\",1,0))","v":0},"P"]
[null,"A7.17.5",null,"• Forhold og beregninger som ligger til grunn for avsetning til betingede tap eller informasjon om betingede tap?",null,{"$f":"IF(AND(G425=1,E425=\"i\"),1,IF(AND(G425=1,E425=\"s\"),1,0))","v":0},{"$f":"IF($B425=\"\",\"0\",IF(INDEX($B$11:$H$849,MATCH(LEFT($B425,FIND(\"~\",SUBSTITUTE($B425,\".\",\"~\",LEN($B425)-LEN(SUBSTITUTE($B425,\".\",\"\"))))),$B$11:$B$849,0),MATCH(\"Aktuell?\",$B$9:$H$9,0))=\"Ja\",1,0))","v":0},"P"]
[null,"A7.18.",null,"Hendelser etter balansedagen",null,{"$f":"SUMIF($B427:$B$849,$B426&\"*\",$F427:$F$849)","v":0},"Nei",null,{"$f":"IF($G426=\"Ja\",\"Total: \"&COUNTIFS($B427:$B$849,B426&\"*\",$G427:$G$849,1)&\" | P - \"&COUNTIFS($B427:$B$849,B426&\"*\",$G427:$G$849,1,$H427:$H$849,$E$3)&\" | J - \"&COUNTIFS($B427:$B$849,B426&\"*\",$G427:$G$849,1,$H427:$H$849,$E$4)&\" | N - \"&COUNTIFS($B427:$B$849,B426&\"*\",$G427:$G$849,1,$H427:$H$849,$E$5)&\" | A - \"&COUNTIFS($B427:$B$849,B426&\"*\",$G427:$G$849,1,$H427:$H$849,$E$6)&\" | F - \"&COUNTIFS($B427:$B$849,B426&\"*\",$G427:$G$849,1,$H427:$H$849,$E$7),\"\")","v":""}]
[null,"A7.18.1","NRS 3.18","Hvis foretaket har fått informasjon etter balansedagen om forhold som eksisterte på balansedagen, har foretaket oppdatert tilleggsopplysningene som vedrører disse forhold i lys av den nye informasjonen?",null,{"$f":"IF(AND(G427=1,E427=\"i\"),1,IF(AND(G427=1,E427=\"s\"),1,0))","v":0},{"$f":"IF($B427=\"\",\"0\",IF(INDEX($B$11:$H$849,MATCH(LEFT($B427,FIND(\"~\",SUBSTITUTE($B427,\".\",\"~\",LEN($B427)-LEN(SUBSTITUTE($B427,\".\",\"\"))))),$B$11:$B$849,0),MATCH(\"Aktuell?\",$B$9:$H$9,0))=\"Ja\",1,0))","v":0},"P"]
[null,"A7.18.2","NRS 3.20","Når hendelser etter balansedagen uten regnskapsmessig konsekvens er av en slik betydning at manglende informasjon om disse vil påvirke regnskapsbrukernes evne til å foreta korrekte vurderinger og beslutninger, har foretaket gitt følgende tilleggsopplysninger for hver vesentlige kategori av slike hendelser:\na) trekk ved hendelsen \nb) et estimat på finansielle følger av hendelsen, eller en uttalelse om at det ikke er mulig å foreta et slikt estimat. ",null,{"$f":"IF(AND(G428=1,E428=\"i\"),1,IF(AND(G428=1,E428=\"s\"),1,0))","v":0},{"$f":"IF($B428=\"\",\"0\",IF(INDEX($B$11:$H$849,MATCH(LEFT($B428,FIND(\"~\",SUBSTITUTE($B428,\".\",\"~\",LEN($B428)-LEN(SUBSTITUTE($B428,\".\",\"\"))))),$B$11:$B$849,0),MATCH(\"Aktuell?\",$B$9:$H$9,0))=\"Ja\",1,0))","v":0},"P"]
[null,"A7.18.3",null,"Eksempler på hendelser etter balansedagen uten regnskapsmessig konsekvens, som kan være av en slik betydning at manglende tilleggsopplysninger kan påvirke regnskapsbrukernes evne til å foreta korrekte vurderinger og beslutninger:\na) en større foretaksintegrasjon etter balansedagen eller avhendelse av et betydelig datterselskap, \nb) kunngjøring av plan om avvikling av virksomhet, avhendelse av eiendeler eller oppgjør av gjeld knyttet til virksomhet under avvikling, eller endelig avtale om å selge slike eiendeler eller oppgjør av slike gjeldsposter, jf. NRS 12,\nc) kjøp eller salg av vesentlige eiendeler eller offentlige myndigheters ekspropriasjon av vesentlige eiendeler, \nd) brann etter balansedagen som resulterer i ødeleggelse av et større produksjonsanlegg, \ne) kunngjøring av eller påbegynt implementering av en større restrukturering, jf. NRS Usikre forpliktelser og betingede eiendeler,\nf) større ordinære aksjetransaksjoner samt potensielle ordinære aksjetransaksjoner etter balansedagen (NRS 7 Resultat pr. aksje anbefaler at foretaket opplyser om virkningen av hendelser etter balansedagen som vil påvirke antallet potensielle eller ordinære aksjer),\ng) uvanlig store endringer etter balansedagen i virkelig verdi på eiendeler eller kurs på utenlandsk valuta,\nh) endringer i skattesatser eller skatteregler som er innført eller kunngjort etter balansedagen, og som vil ha vesentlig betydning for betalbar skatt eller utsatt skattefordel eller skatteforpliktelse,\ni) forhold som medfører eller kan medføre betydelige økonomiske forpliktelser, som for eksempel utstedelse av vesentlige garantier,\nj) rettslige prosesser som utelukkende har sitt utspring i hendelser etter balansedagen.\nk) ekstraordinært utbytte basert på mellombalanse med mellombalansedag i perioden fra balansedagen for siste regnskapsår til tidspunktet for ordinær generalforsamling der årsregnskapet for siste regnskapsår skal behandles."]
[]
[null,"A7.19.",null,"Spesifikasjon av lønnskostnaden",null,{"$f":"SUMIF($B432:$B$849,$B431&\"*\",$F432:$F$849)","v":0},"Nei",null,{"$f":"IF($G431=\"Ja\",\"Total: \"&COUNTIFS($B432:$B$849,B431&\"*\",$G432:$G$849,1)&\" | P - \"&COUNTIFS($B432:$B$849,B431&\"*\",$G432:$G$849,1,$H432:$H$849,$E$3)&\" | J - \"&COUNTIFS($B432:$B$849,B431&\"*\",$G432:$G$849,1,$H432:$H$849,$E$4)&\" | N - \"&COUNTIFS($B432:$B$849,B431&\"*\",$G432:$G$849,1,$H432:$H$849,$E$5)&\" | A - \"&COUNTIFS($B432:$B$849,B431&\"*\",$G432:$G$849,1,$H432:$H$849,$E$6)&\" | F - \"&COUNTIFS($B432:$B$849,B431&\"*\",$G432:$G$849,1,$H432:$H$849,$E$7),\"\")","v":""}]
[null,"A7.19.1","rskl § 7-11","Er lønnskostnader spesifisert på:\n• lønninger\n• arbeidsgiveravgift\n• pensjonskostnader\n• andre ytelser?",null,{"$f":"IF(AND(G432=1,E432=\"i\"),1,IF(AND(G432=1,E432=\"s\"),1,0))","v":0},{"$f":"IF($B432=\"\",\"0\",IF(INDEX($B$11:$H$849,MATCH(LEFT($B432,FIND(\"~\",SUBSTITUTE($B432,\".\",\"~\",LEN($B432)-LEN(SUBSTITUTE($B432,\".\",\"\"))))),$B$11:$B$849,0),MATCH(\"Aktuell?\",$B$9:$H$9,0))=\"Ja\",1,0))","v":0},"P"]
[null,"A7.19.2","rskl § 7-11","Er det vist sammenligningstall i henhold til § 6-6?",null,{"$f":"IF(AND(G433=1,E433=\"i\"),1,IF(AND(G433=1,E433=\"s\"),1,0))","v":0},{"$f":"IF($B433=\"\",\"0\",IF(INDEX($B$11:$H$849,MATCH(LEFT($B433,FIND(\"~\",SUBSTITUTE($B433,\".\",\"~\",LEN($B433)-LEN(SUBSTITUTE($B433,\".\",\"\"))))),$B$11:$B$849,0),MATCH(\"Aktuell?\",$B$9:$H$9,0))=\"Ja\",1,0))","v":0},"P"]
[null,"A7.20.",null,"Pensjoner",null,{"$f":"SUMIF($B435:$B$849,$B434&\"*\",$F435:$F$849)","v":0},"Nei",null,{"$f":"IF($G434=\"Ja\",\"Total: \"&COUNTIFS($B435:$B$849,B434&\"*\",$G435:$G$849,1)&\" | P - \"&COUNTIFS($B435:$B$849,B434&\"*\",$G435:$G$849,1,$H435:$H$849,$E$3)&\" | J - \"&COUNTIFS($B435:$B$849,B434&\"*\",$G435:$G$849,1,$H435:$H$849,$E$4)&\" | N - \"&COUNTIFS($B435:$B$849,B434&\"*\",$G435:$G$849,1,$H435:$H$849,$E$5)&\" | A - \"&COUNTIFS($B435:$B$849,B434&\"*\",$G435:$G$849,1,$H435:$H$849,$E$6)&\" | F - \"&COUNTIFS($B435:$B$849,B434&\"*\",$G435:$G$849,1,$H435:$H$849,$E$7),\"\")","v":""}]
[null,"A7.20.1","rskl § 7-11","Er det opplyst om beregning av pensjonskostnader og pensjonsforpliktelser?",null,{"$f":"IF(AND(G435=1,E435=\"i\"),1,IF(AND(G435=1,E435=\"s\"),1,0))","v":0},{"$f":"IF($B435=\"\",\"0\",IF(INDEX($B$11:$H$849,MATCH(LEFT($B435,FIND(\"~\",SUBSTITUTE($B435,\".\",\"~\",LEN($B435)-LEN(SUBSTITUTE($B435,\".\",\"\"))))),$B$11:$B$849,0),MATCH(\"Aktuell?\",$B$9:$H$9,0))=\"Ja\",1,0))","v":0},"P"]
[null,"A7.20.2","NRS 6 Pensjonskostnader","Er det gitt opplysninger om foretakets pensjonsordninger?",null,{"$f":"IF(AND(G436=1,E436=\"i\"),1,IF(AND(G436=1,E436=\"s\"),1,0))","v":0},{"$f":"IF($B436=\"\",\"0\",IF(INDEX($B$11:$H$849,MATCH(LEFT($B436,FIND(\"~\",SUBSTITUTE($B436,\".\",\"~\",LEN($B436)-LEN(SUBSTITUTE($B436,\".\",\"\"))))),$B$11:$B$849,0),MATCH(\"Aktuell?\",$B$9:$H$9,0))=\"Ja\",1,0))","v":0},"P"]
[null,"A7.20.3","NRS 6 Pensjonskostnader","Er det gitt opplysninger om antall personer som er omfattet?",null,{"$f":"IF(AND(G437=1,E437=\"i\"),1,IF(AND(G437=1,E437=\"s\"),1,0))","v":0},{"$f":"IF($B437=\"\",\"0\",IF(INDEX($B$11:$H$849,MATCH(LEFT($B437,FIND(\"~\",SUBSTITUTE($B437,\".\",\"~\",LEN($B437)-LEN(SUBSTITUTE($B437,\".\",\"\"))))),$B$11:$B$849,0),MATCH(\"Aktuell?\",$B$9:$H$9,0))=\"Ja\",1,0))","v":0},"P"]
[null,"A7.20.4",null,"Ytelsesbaserte ordninger",null,{"$f":"SUMIF($B440:$B$849,$B438&\"*\",$F440:$F$849)","v":0},null,{"$f":"IF(INDEX($B$11:$H$849,MATCH(LEFT($B438,FIND(\"~\",SUBSTITUTE($B438,\".\",\"~\",LEN($B438)-LEN(SUBSTITUTE($B438,\".\",\"\"))))),$B$11:$B$849,0),MATCH(\"Aktuell?\",$B$9:$H$9,0))=\"Yes\",1,0)","v":0}]
[null,"A7.20.5","NRS 6 Pensjonskostnader","Er det opplyst om regnskapsprinsipper, herunder metode for vurdering av pensjonsmidlene og aktuartekniske beregninger?",null,{"$f":"IF(AND(G439=1,E439=\"i\"),1,IF(AND(G439=1,E439=\"s\"),1,0))","v":0},{"$f":"IF($B439=\"\",\"0\",IF(INDEX($B$11:$H$849,MATCH(LEFT($B439,FIND(\"~\",SUBSTITUTE($B439,\".\",\"~\",LEN($B439)-LEN(SUBSTITUTE($B439,\".\",\"\"))))),$B$11:$B$849,0),MATCH(\"Aktuell?\",$B$9:$H$9,0))=\"Ja\",1,0))","v":0},"P"]
[null,"A7.20.6",null,"Er det opplyst om viktige økonomiske og aktuarmessige forutsetninger?",null,{"$f":"IF(AND(G440=1,E440=\"i\"),1,IF(AND(G440=1,E440=\"s\"),1,0))","v":0},{"$f":"IF($B440=\"\",\"0\",IF(INDEX($B$11:$H$849,MATCH(LEFT($B440,FIND(\"~\",SUBSTITUTE($B440,\".\",\"~\",LEN($B440)-LEN(SUBSTITUTE($B440,\".\",\"\"))))),$B$11:$B$849,0),MATCH(\"Aktuell?\",$B$9:$H$9,0))=\"Ja\",1,0))","v":0},"P"]
[null,"A7.20.7",null,"Er sammensetningen av netto pensjonskostnad vist, herunder eventuelle effekter av oppgjør eller avkorting av pensjonsplan?\nKostnadsført arbeidsgiveravift kan presenteres som separat element i spesifikasjonen av sammensetningen av pensjonskostnaden.",null,{"$f":"IF(AND(G441=1,E441=\"i\"),1,IF(AND(G441=1,E441=\"s\"),1,0))","v":0},{"$f":"IF($B441=\"\",\"0\",IF(INDEX($B$11:$H$849,MATCH(LEFT($B441,FIND(\"~\",SUBSTITUTE($B441,\".\",\"~\",LEN($B441)-LEN(SUBSTITUTE($B441,\".\",\"\"))))),$B$11:$B$849,0),MATCH(\"Aktuell?\",$B$9:$H$9,0))=\"Ja\",1,0))","v":0},"P"]
[null,"A7.20.8",null,"Er det opplyst om faktisk avkastning på og sammensetningen av pensjonsmidler?",null,{"$f":"IF(AND(G442=1,E442=\"i\"),1,IF(AND(G442=1,E442=\"s\"),1,0))","v":0},{"$f":"IF($B442=\"\",\"0\",IF(INDEX($B$11:$H$849,MATCH(LEFT($B442,FIND(\"~\",SUBSTITUTE($B442,\".\",\"~\",LEN($B442)-LEN(SUBSTITUTE($B442,\".\",\"\"))))),$B$11:$B$849,0),MATCH(\"Aktuell?\",$B$9:$H$9,0))=\"Ja\",1,0))","v":0},"P"]
[null,"A7.20.9",null," Er det gitt opplysning om det akkumulerte beløpet av aktuarielle gevinster og tap som er innregnet i annet totalresultat samt årets beløp innregnet i annet totalresultat?",null,{"$f":"IF(AND(G443=1,E443=\"i\"),1,IF(AND(G443=1,E443=\"s\"),1,0))","v":0},{"$f":"IF($B443=\"\",\"0\",IF(INDEX($B$11:$H$849,MATCH(LEFT($B443,FIND(\"~\",SUBSTITUTE($B443,\".\",\"~\",LEN($B443)-LEN(SUBSTITUTE($B443,\".\",\"\"))))),$B$11:$B$849,0),MATCH(\"Aktuell?\",$B$9:$H$9,0))=\"Ja\",1,0))","v":0},"P"]
[null,"A7.20.10",null,"Innskuddsbaserte ordninger                                                                               ",null,{"$f":"SUMIF($B446:$B$849,$B444&\"*\",$F446:$F$849)","v":0},null,{"$f":"IF(INDEX($B$11:$H$849,MATCH(LEFT($B444,FIND(\"~\",SUBSTITUTE($B444,\".\",\"~\",LEN($B444)-LEN(SUBSTITUTE($B444,\".\",\"\"))))),$B$11:$B$849,0),MATCH(\"Aktuell?\",$B$9:$H$9,0))=\"Yes\",1,0)","v":0}]
[null,"A7.20.11","NRS 6 Pensjonskostnader","Er det opplyst om årets beløp som er innregnet i resultatregnskapet?",null,{"$f":"IF(AND(G445=1,E445=\"i\"),1,IF(AND(G445=1,E445=\"s\"),1,0))","v":0},{"$f":"IF($B445=\"\",\"0\",IF(INDEX($B$11:$H$849,MATCH(LEFT($B445,FIND(\"~\",SUBSTITUTE($B445,\".\",\"~\",LEN($B445)-LEN(SUBSTITUTE($B445,\".\",\"\"))))),$B$11:$B$849,0),MATCH(\"Aktuell?\",$B$9:$H$9,0))=\"Ja\",1,0))","v":0},"P"]
[null,"A7.20.12",null,"For flerforetaksplan som er ytelsesplan, men som regnskapsføres som innskuddsbasert pensjonsplan, er det gitt følgende opplysninger:\n• at planen er en ytelsesbasert pensjonsplan\n• grunnen til at det ikke finnes tilstrekkelig informasjon til å gjøre foretaket i stand til å regnskapsføre planen som en ytelsesbasert pensjonsplan?",null,{"$f":"IF(AND(G446=1,E446=\"i\"),1,IF(AND(G446=1,E446=\"s\"),1,0))","v":0},{"$f":"IF($B446=\"\",\"0\",IF(INDEX($B$11:$H$849,MATCH(LEFT($B446,FIND(\"~\",SUBSTITUTE($B446,\".\",\"~\",LEN($B446)-LEN(SUBSTITUTE($B446,\".\",\"\"))))),$B$11:$B$849,0),MATCH(\"Aktuell?\",$B$9:$H$9,0))=\"Ja\",1,0))","v":0},"P"]
[null,"A7.20.13",null,"Hvis overskudd/underskudd i flerforetaksplanen kan påvirke størrelsen på framtidige innskudd, er det i tillegg opplyst om:\n• eventuell tilgjengelig informasjon om overskudd/underskudd\n• grunnlaget for å fastsette overskudd/underskudd\n• eventuelle konsekvenser for foretaket?",null,{"$f":"IF(AND(G447=1,E447=\"i\"),1,IF(AND(G447=1,E447=\"s\"),1,0))","v":0},{"$f":"IF($B447=\"\",\"0\",IF(INDEX($B$11:$H$849,MATCH(LEFT($B447,FIND(\"~\",SUBSTITUTE($B447,\".\",\"~\",LEN($B447)-LEN(SUBSTITUTE($B447,\".\",\"\"))))),$B$11:$B$849,0),MATCH(\"Aktuell?\",$B$9:$H$9,0))=\"Ja\",1,0))","v":0},"P"]
[null,"A7.20.14",null,"Obligatorisk tjenestepensjon ",null,null,null,{"$f":"IF(INDEX($B$11:$H$849,MATCH(LEFT($B448,FIND(\"~\",SUBSTITUTE($B448,\".\",\"~\",LEN($B448)-LEN(SUBSTITUTE($B448,\".\",\"\"))))),$B$11:$B$849,0),MATCH(\"Aktuell?\",$B$9:$H$9,0))=\"Yes\",1,0)","v":0}]
[null,"A7.20.15","rskl § 7-30a","Er det opplyst om:\n• foretaket er pliktig til å ha tjenestepensjonsordning etter \nlov om obligatorisk tjenestepensjon\n• foretaket har pensjonsordning som oppfyller kravene etter denne loven?",null,{"$f":"IF(AND(G449=1,E449=\"i\"),1,IF(AND(G449=1,E449=\"s\"),1,0))","v":0},{"$f":"IF($B449=\"\",\"0\",IF(INDEX($B$11:$H$849,MATCH(LEFT($B449,FIND(\"~\",SUBSTITUTE($B449,\".\",\"~\",LEN($B449)-LEN(SUBSTITUTE($B449,\".\",\"\"))))),$B$11:$B$849,0),MATCH(\"Aktuell?\",$B$9:$H$9,0))=\"Ja\",1,0))","v":0},"P"]
[null,"A7.21.",null,"Aksjebasert betaling",null,{"$f":"SUMIF($B451:$B$849,$B450&\"*\",$F451:$F$849)","v":0},"Nei",null,{"$f":"IF($G450=\"Ja\",\"Total: \"&COUNTIFS($B451:$B$849,B450&\"*\",$G451:$G$849,1)&\" | P - \"&COUNTIFS($B451:$B$849,B450&\"*\",$G451:$G$849,1,$H451:$H$849,$E$3)&\" | J - \"&COUNTIFS($B451:$B$849,B450&\"*\",$G451:$G$849,1,$H451:$H$849,$E$4)&\" | N - \"&COUNTIFS($B451:$B$849,B450&\"*\",$G451:$G$849,1,$H451:$H$849,$E$5)&\" | A - \"&COUNTIFS($B451:$B$849,B450&\"*\",$G451:$G$849,1,$H451:$H$849,$E$6)&\" | F - \"&COUNTIFS($B451:$B$849,B450&\"*\",$G451:$G$849,1,$H451:$H$849,$E$7),\"\")","v":""}]
[null,"A7.21.1","rskl § 7-11 a","Er det gitt en redegjørelse for bruken av aksjeverdibasert betaling?",null,{"$f":"IF(AND(G451=1,E451=\"i\"),1,IF(AND(G451=1,E451=\"s\"),1,0))","v":0},{"$f":"IF($B451=\"\",\"0\",IF(INDEX($B$11:$H$849,MATCH(LEFT($B451,FIND(\"~\",SUBSTITUTE($B451,\".\",\"~\",LEN($B451)-LEN(SUBSTITUTE($B451,\".\",\"\"))))),$B$11:$B$849,0),MATCH(\"Aktuell?\",$B$9:$H$9,0))=\"Ja\",1,0))","v":0},"P"]
[null,"A7.21.2","rskl § 7-11 a","Er det opplyst om kostnadsført aksjeverdibasert betaling minst spesifisert på de aktuelle postene i resultatregnskapet?",null,{"$f":"IF(AND(G452=1,E452=\"i\"),1,IF(AND(G452=1,E452=\"s\"),1,0))","v":0},{"$f":"IF($B452=\"\",\"0\",IF(INDEX($B$11:$H$849,MATCH(LEFT($B452,FIND(\"~\",SUBSTITUTE($B452,\".\",\"~\",LEN($B452)-LEN(SUBSTITUTE($B452,\".\",\"\"))))),$B$11:$B$849,0),MATCH(\"Aktuell?\",$B$9:$H$9,0))=\"Ja\",1,0))","v":0},"P"]
[null,"A7.21.3","rskl § 7-11 a","Er det opplyst om hvordan kostnadene er beregnet, herunder de forutsetinger som er lagt til grunn for beregningene?",null,{"$f":"IF(AND(G453=1,E453=\"i\"),1,IF(AND(G453=1,E453=\"s\"),1,0))","v":0},{"$f":"IF($B453=\"\",\"0\",IF(INDEX($B$11:$H$849,MATCH(LEFT($B453,FIND(\"~\",SUBSTITUTE($B453,\".\",\"~\",LEN($B453)-LEN(SUBSTITUTE($B453,\".\",\"\"))))),$B$11:$B$849,0),MATCH(\"Aktuell?\",$B$9:$H$9,0))=\"Ja\",1,0))","v":0},"P"]
[null,"A7.21.4","NRS 15A pkt 1 jf\nIFRS 2 pkt. 44","Har foretaket gitt opplysninger som setter brukere av foretakets finansregnskap i stand til å forstå arten og omfanget av aksjebaserte betalingsordninger som forelå i løpet av perioden?",null,{"$f":"IF(AND(G454=1,E454=\"i\"),1,IF(AND(G454=1,E454=\"s\"),1,0))","v":0},{"$f":"IF($B454=\"\",\"0\",IF(INDEX($B$11:$H$849,MATCH(LEFT($B454,FIND(\"~\",SUBSTITUTE($B454,\".\",\"~\",LEN($B454)-LEN(SUBSTITUTE($B454,\".\",\"\"))))),$B$11:$B$849,0),MATCH(\"Aktuell?\",$B$9:$H$9,0))=\"Ja\",1,0))","v":0},"P"]
[null,"A7.21.5","IFRS 2 pkt. 45","Er det minst gitt opplysninger om følgende:"]
[null,"A7.21.6",null,"a ) En beskrivelse av hver type aksjebasert betalingsordning som forelå på ethvert tidspunkt i løpet av perioden, herunder de generelle vilkårene og betingelsene for hver enkelt ordning, som for eksempel innvinningskrav og maksimal løpetid for tildelte opsjoner, samt oppgjørsmetode (for eksempel i kontanter eller egenkapital). Et foretak med i det vesentligste tilsvarende typer av aksjebaserte betalingsordninger kan samle denne informasjonen, med mindre separate opplysninger for hver ordning er nødvendig for å oppfylle prinsippet i IFRS 2 nr. 44.",null,{"$f":"IF(AND(G456=1,E456=\"i\"),1,IF(AND(G456=1,E456=\"s\"),1,0))","v":0},{"$f":"IF($B456=\"\",\"0\",IF(INDEX($B$11:$H$849,MATCH(LEFT($B456,FIND(\"~\",SUBSTITUTE($B456,\".\",\"~\",LEN($B456)-LEN(SUBSTITUTE($B456,\".\",\"\"))))),$B$11:$B$849,0),MATCH(\"Aktuell?\",$B$9:$H$9,0))=\"Ja\",1,0))","v":0},"P"]
[null,"A7.21.7",null,"b) Antall av og veide gjennomsnittlige utøvelseskurser for aksjeopsjoner for hver av følgende grupper av opsjoner:\n\ni) utestående opsjoner ved begynnelsen av perioden,\nii) opsjoner som er tildelt i løpet av perioden,\niii) opsjoner som er gått tapt i løpet av perioden,\niv) opsjoner som er utøvd i løpet av perioden,\nv) opsjoner som er utløpt i løpet av perioden,\nvi) utestående opsjoner ved slutten av perioden, og\nvii) opsjoner som kan utøves ved slutten av perioden.",null,{"$f":"IF(AND(G457=1,E457=\"i\"),1,IF(AND(G457=1,E457=\"s\"),1,0))","v":0},{"$f":"IF($B457=\"\",\"0\",IF(INDEX($B$11:$H$849,MATCH(LEFT($B457,FIND(\"~\",SUBSTITUTE($B457,\".\",\"~\",LEN($B457)-LEN(SUBSTITUTE($B457,\".\",\"\"))))),$B$11:$B$849,0),MATCH(\"Aktuell?\",$B$9:$H$9,0))=\"Ja\",1,0))","v":0},"P"]
[null,"A7.21.8",null,"c) For aksjeopsjoner som er utøvd i løpet av perioden, den veide gjennomsnittlige aksjekursen på utøvelsestidspunktet. Dersom opsjoner ble utøvd på regelmessig grunnlag gjennom hele perioden, kan foretaket isteden opplyse om den veid e gjennomsnittlige aksjekursen i løpet av perioden.",null,{"$f":"IF(AND(G458=1,E458=\"i\"),1,IF(AND(G458=1,E458=\"s\"),1,0))","v":0},{"$f":"IF($B458=\"\",\"0\",IF(INDEX($B$11:$H$849,MATCH(LEFT($B458,FIND(\"~\",SUBSTITUTE($B458,\".\",\"~\",LEN($B458)-LEN(SUBSTITUTE($B458,\".\",\"\"))))),$B$11:$B$849,0),MATCH(\"Aktuell?\",$B$9:$H$9,0))=\"Ja\",1,0))","v":0},"P"]
[null,"A7.21.9",null,"d) For aksjeopsjoner som er utestående ved utløpet av perioden, området for utøvelseskurser og veid gjennomsnittlig gjenværende avtalt levetid. Dersom området for utøvelseskurser er stort, skal de utestående opsjonene deles opp i områder som er meningsfylte for en vurdering av antallet av og tidsplanen for tilleggsaksjer som kan bli utstedt, samt kontantene som kan bli mottatt ved utøvelse av disse opsjonene.",null,{"$f":"IF(AND(G459=1,E459=\"i\"),1,IF(AND(G459=1,E459=\"s\"),1,0))","v":0},{"$f":"IF($B459=\"\",\"0\",IF(INDEX($B$11:$H$849,MATCH(LEFT($B459,FIND(\"~\",SUBSTITUTE($B459,\".\",\"~\",LEN($B459)-LEN(SUBSTITUTE($B459,\".\",\"\"))))),$B$11:$B$849,0),MATCH(\"Aktuell?\",$B$9:$H$9,0))=\"Ja\",1,0))","v":0},"P"]
[null,"A7.21.10","IFRS 2 pkt. 46","Har foretaket gitt opplysninger som setter brukere av finansregnskapet i stand til å forstå hvordan den virkelige verdien av de mottatte varene eller tjenestene, eller den virkelige verdien av tildelte egenkapitalinstrumentene, ble fastsatt i løpet av perioden?",null,{"$f":"IF(AND(G460=1,E460=\"i\"),1,IF(AND(G460=1,E460=\"s\"),1,0))","v":0},{"$f":"IF($B460=\"\",\"0\",IF(INDEX($B$11:$H$849,MATCH(LEFT($B460,FIND(\"~\",SUBSTITUTE($B460,\".\",\"~\",LEN($B460)-LEN(SUBSTITUTE($B460,\".\",\"\"))))),$B$11:$B$849,0),MATCH(\"Aktuell?\",$B$9:$H$9,0))=\"Ja\",1,0))","v":0},"P"]
[null,"A7.21.11","IFRS 2 pkt. 47","Dersom foretaket har målt den virkelige verdien av varer eller tjenester mottatt som vederlag for foretakets egenkapitalinstrumenter indirekte, med henvisning til de tildelte egenkapitalinstrumentenes virkelige verdi, har foretaket for å anvende prinsippet i nr. 46 minst opplyse om følgende:",null,{"$f":"IF(AND(G461=1,E461=\"i\"),1,IF(AND(G461=1,E461=\"s\"),1,0))","v":0},{"$f":"IF($B461=\"\",\"0\",IF(INDEX($B$11:$H$849,MATCH(LEFT($B461,FIND(\"~\",SUBSTITUTE($B461,\".\",\"~\",LEN($B461)-LEN(SUBSTITUTE($B461,\".\",\"\"))))),$B$11:$B$849,0),MATCH(\"Aktuell?\",$B$9:$H$9,0))=\"Ja\",1,0))","v":0},"P"]
[null,"A7.21.12",null,"a) For aksjeopsjoner tildelt i løpet av perioden, den veide gjennomsnittlige virkelige verdien av disse opsjonene på måletidspunktet, samt informasjon om hvordan denne virkelige verdien ble målt, herunder\n\ni) den benyttede opsjonsprissettingsmodellen og data for denne modellen, herunder veid gjennomsnittlig aksjekurs, utøvelseskurs, forventet volatilitet, opsjonens levetid, forventet utbytte, risikofri rente og eventuelle andre data for modellen, herunder hvilken metode som ble benyttet til og forutsetningene for å innarbeide virkningene av forventet tidlig utøvelse,\n\nii) hvordan forventet volatilitet ble fastsatt, herunder en forklaring på i hvilken utstrekning forventet volatilitet var basert på historisk volatilitet, og\n\niii) om og hvordan eventuelle andre sider av opsjonstildelingen ble innarbeidet i målingen av virkelig verdi, for eksempel en markedsbetingelse.",null,{"$f":"IF(AND(G462=1,E462=\"i\"),1,IF(AND(G462=1,E462=\"s\"),1,0))","v":0},{"$f":"IF($B462=\"\",\"0\",IF(INDEX($B$11:$H$849,MATCH(LEFT($B462,FIND(\"~\",SUBSTITUTE($B462,\".\",\"~\",LEN($B462)-LEN(SUBSTITUTE($B462,\".\",\"\"))))),$B$11:$B$849,0),MATCH(\"Aktuell?\",$B$9:$H$9,0))=\"Ja\",1,0))","v":0},"P"]
[null,"A7.21.13",null,"b) For andre egenkapitalinstrumenter tildelt i løpet av perioden (bortsett fra aksjeopsjoner), antallet av og den veide gjennomsnittlige virkelige verdien av disse egenkapitalinstrumentene på måletidspunktet, samt informasjon om hvordan denne virkelige verdien ble målt, herunder\n\ni) hvordan virkelig verdi ble fastsatt, dersom den ikke ble målt på grunnlag av en observerbar markedskurs,\n\nii) om og hvordan forventet utbytte ble innarbeidet i målingen av virkelig verdi, og\n\niii) om og hvordan eventuelle andre sider av de tildelte egenkapitalinstrumentene ble innarbeidet i målingen av virkelig verdi.",null,{"$f":"IF(AND(G463=1,E463=\"i\"),1,IF(AND(G463=1,E463=\"s\"),1,0))","v":0},{"$f":"IF($B463=\"\",\"0\",IF(INDEX($B$11:$H$849,MATCH(LEFT($B463,FIND(\"~\",SUBSTITUTE($B463,\".\",\"~\",LEN($B463)-LEN(SUBSTITUTE($B463,\".\",\"\"))))),$B$11:$B$849,0),MATCH(\"Aktuell?\",$B$9:$H$9,0))=\"Ja\",1,0))","v":0},"P"]
[null,"A7.21.14",null,"c) For aksjebaserte betalingsordninger som ble endret i løpet av perioden:\n\ni) en forklaring på disse endringene,\n\nii) den direkte tilknyttede, tildelte virkelige verdien (som et resultat av disse endringene), og\n\niii) informasjon om hvordan den direkte tilknyttede, tildelte virkelige verdien ble målt, i overensstemmelse med kravene under bokstav a) og b) ovenfor, der dette er relevant.",null,{"$f":"IF(AND(G464=1,E464=\"i\"),1,IF(AND(G464=1,E464=\"s\"),1,0))","v":0},{"$f":"IF($B464=\"\",\"0\",IF(INDEX($B$11:$H$849,MATCH(LEFT($B464,FIND(\"~\",SUBSTITUTE($B464,\".\",\"~\",LEN($B464)-LEN(SUBSTITUTE($B464,\".\",\"\"))))),$B$11:$B$849,0),MATCH(\"Aktuell?\",$B$9:$H$9,0))=\"Ja\",1,0))","v":0},"P"]
[null,"A7.21.15","IFRS 2 pkt. 48","Dersom foretaket har målt den virkelige verdien av mottatte varer eller tjenester direkte i løpet av perioden, har foretaket opplyst om hvordan denne virkelige verdien ble fastsatt, for eksempel om virkelig verdi ble målt til en markedskurs for de nevnte varene eller tjenestene?",null,{"$f":"IF(AND(G465=1,E465=\"i\"),1,IF(AND(G465=1,E465=\"s\"),1,0))","v":0},{"$f":"IF($B465=\"\",\"0\",IF(INDEX($B$11:$H$849,MATCH(LEFT($B465,FIND(\"~\",SUBSTITUTE($B465,\".\",\"~\",LEN($B465)-LEN(SUBSTITUTE($B465,\".\",\"\"))))),$B$11:$B$849,0),MATCH(\"Aktuell?\",$B$9:$H$9,0))=\"Ja\",1,0))","v":0},"P"]
[null,"A7.21.16","IFRS 2 pkt. 49","Dersom foretaket har tilbakevist antakelsen i IFRS 2 nr. 13, har foretaket opplyst om dette og gitt en forklaring på hvorfor antakelsen ble tilbakevist?",null,{"$f":"IF(AND(G466=1,E466=\"i\"),1,IF(AND(G466=1,E466=\"s\"),1,0))","v":0},{"$f":"IF($B466=\"\",\"0\",IF(INDEX($B$11:$H$849,MATCH(LEFT($B466,FIND(\"~\",SUBSTITUTE($B466,\".\",\"~\",LEN($B466)-LEN(SUBSTITUTE($B466,\".\",\"\"))))),$B$11:$B$849,0),MATCH(\"Aktuell?\",$B$9:$H$9,0))=\"Ja\",1,0))","v":0},"P"]
[null,"A7.21.17","IFRS 2 pkt. 50","Har foretaket gitt opplysninger som setter brukere av foretakets finansregnskap i stand til å forstå virkningen av aksjebaserte betalingstransaksjoner på foretakets resultat i perioden, samt på foretakets finansielle stilling?",null,{"$f":"IF(AND(G467=1,E467=\"i\"),1,IF(AND(G467=1,E467=\"s\"),1,0))","v":0},{"$f":"IF($B467=\"\",\"0\",IF(INDEX($B$11:$H$849,MATCH(LEFT($B467,FIND(\"~\",SUBSTITUTE($B467,\".\",\"~\",LEN($B467)-LEN(SUBSTITUTE($B467,\".\",\"\"))))),$B$11:$B$849,0),MATCH(\"Aktuell?\",$B$9:$H$9,0))=\"Ja\",1,0))","v":0},"P"]
[null,"A7.21.18","IFRS 2 pkt. 51","Ved anvendelse av prinsippet i nr. 50, har foretaket minst gitt følgende opplysninger:",null,{"$f":"IF(AND(G468=1,E468=\"i\"),1,IF(AND(G468=1,E468=\"s\"),1,0))","v":0},{"$f":"IF($B468=\"\",\"0\",IF(INDEX($B$11:$H$849,MATCH(LEFT($B468,FIND(\"~\",SUBSTITUTE($B468,\".\",\"~\",LEN($B468)-LEN(SUBSTITUTE($B468,\".\",\"\"))))),$B$11:$B$849,0),MATCH(\"Aktuell?\",$B$9:$H$9,0))=\"Ja\",1,0))","v":0}]
[null,"A7.21.19",null,"a) Den samlede kostnaden som ble innregnet for perioden, og som oppstår av aksjebaserte betalingstransaksjoner der de mottatte varene eller tjenestene ikke oppfylte vilkårene for innregning som eiendeler og dermed ble innregnet umiddelbart som kostnad, herunder separate opplysninger om denne delen av den samlede kostnaden som oppstår av transaksjoner regnskapsført som aksjebaserte betalingstransaksjoner som gjøres opp i egenkapital.",null,{"$f":"IF(AND(G469=1,E469=\"i\"),1,IF(AND(G469=1,E469=\"s\"),1,0))","v":0},{"$f":"IF($B469=\"\",\"0\",IF(INDEX($B$11:$H$849,MATCH(LEFT($B469,FIND(\"~\",SUBSTITUTE($B469,\".\",\"~\",LEN($B469)-LEN(SUBSTITUTE($B469,\".\",\"\"))))),$B$11:$B$849,0),MATCH(\"Aktuell?\",$B$9:$H$9,0))=\"Ja\",1,0))","v":0},"P"]
[null,"A7.21.20",null,"b) For forpliktelser som oppstår av aksjebaserte betalingstransaksjoner:\n\ni) samlet balanseført verdi ved periodens slutt, og\n\nii) samlet egenverdi ved slutten av perioden for forpliktelser der motpartens rett til kontanter eller andre eiendeler var innvunnet ved utløpet av perioden (for eksempel aksjeoppskrivingsretter som er innvunnet).",null,{"$f":"IF(AND(G470=1,E470=\"i\"),1,IF(AND(G470=1,E470=\"s\"),1,0))","v":0},{"$f":"IF($B470=\"\",\"0\",IF(INDEX($B$11:$H$849,MATCH(LEFT($B470,FIND(\"~\",SUBSTITUTE($B470,\".\",\"~\",LEN($B470)-LEN(SUBSTITUTE($B470,\".\",\"\"))))),$B$11:$B$849,0),MATCH(\"Aktuell?\",$B$9:$H$9,0))=\"Ja\",1,0))","v":0},"P"]
[null,"A7.21.21","IFRS 2 pkt. 52","Dersom opplysningene som kreves av denne standard, ikke tilfredsstiller prinsippene i nr. 44, 46 og 50, skal foretaket gi tilleggsinformasjon slik at prinsippene oppfylles. Dersom et foretak for eksempel har klassifisert aksjebaserte betalingstransaksjoner som gjort opp i egenkapital i samsvar med nr. 33F, skal foretaket gi et anslag over det beløpet som det forventer å overføre til skattemyndighetene for å gjøre opp den ansattes skattemessige forpliktelse, når det er nødvendig å informere brukerne om virkningen av den framtidige kontantstrømmen forbundet med den aksjebaserte betalingsordningen.",null,{"$f":"IF(AND(G471=1,E471=\"i\"),1,IF(AND(G471=1,E471=\"s\"),1,0))","v":0},{"$f":"IF($B471=\"\",\"0\",IF(INDEX($B$11:$H$849,MATCH(LEFT($B471,FIND(\"~\",SUBSTITUTE($B471,\".\",\"~\",LEN($B471)-LEN(SUBSTITUTE($B471,\".\",\"\"))))),$B$11:$B$849,0),MATCH(\"Aktuell?\",$B$9:$H$9,0))=\"Ja\",1,0))","v":0},"P"]
[null,"A7.22.",null,"Ytelser til ledende ansatte og tillitsvalgte i foretak som ikke er store",null,{"$f":"SUMIF($B473:$B$849,$B472&\"*\",$F473:$F$849)","v":0},"Nei",null,{"$f":"IF($G472=\"Ja\",\"Total: \"&COUNTIFS($B473:$B$849,B472&\"*\",$G473:$G$849,1)&\" | P - \"&COUNTIFS($B473:$B$849,B472&\"*\",$G473:$G$849,1,$H473:$H$849,$E$3)&\" | J - \"&COUNTIFS($B473:$B$849,B472&\"*\",$G473:$G$849,1,$H473:$H$849,$E$4)&\" | N - \"&COUNTIFS($B473:$B$849,B472&\"*\",$G473:$G$849,1,$H473:$H$849,$E$5)&\" | A - \"&COUNTIFS($B473:$B$849,B472&\"*\",$G473:$G$849,1,$H473:$H$849,$E$6)&\" | F - \"&COUNTIFS($B473:$B$849,B472&\"*\",$G473:$G$849,1,$H473:$H$849,$E$7),\"\")","v":""}]
[null,"A7.22.1","rskl § 7-31, 1. ledd","Er det opplyst om samlede utgifter til lønn, pensjonsforpliktelser og annen godtgjørelse til:\n• daglig leder\n• styremedlemmer \n• medlemmer i bedriftsforsamlingen? ",null,{"$f":"IF(AND(G473=1,E473=\"i\"),1,IF(AND(G473=1,E473=\"s\"),1,0))","v":0},{"$f":"IF($B473=\"\",\"0\",IF(INDEX($B$11:$H$849,MATCH(LEFT($B473,FIND(\"~\",SUBSTITUTE($B473,\".\",\"~\",LEN($B473)-LEN(SUBSTITUTE($B473,\".\",\"\"))))),$B$11:$B$849,0),MATCH(\"Aktuell?\",$B$9:$H$9,0))=\"Ja\",1,0))","v":0},"P"]
[null,"A7.22.2","rskl § 7-31, 2. ledd","Er det opplyst følgende om ytelser til daglig leder og leder av styret:\n• arten og omfanget av forpliktelser til å gi særskilt vederlag ved opphør eller endring av ansettelsesforhold/verv\n• avtaler om bonuser, overskuddsdeling og lignende fordeler?",null,{"$f":"IF(AND(G474=1,E474=\"i\"),1,IF(AND(G474=1,E474=\"s\"),1,0))","v":0},{"$f":"IF($B474=\"\",\"0\",IF(INDEX($B$11:$H$849,MATCH(LEFT($B474,FIND(\"~\",SUBSTITUTE($B474,\".\",\"~\",LEN($B474)-LEN(SUBSTITUTE($B474,\".\",\"\"))))),$B$11:$B$849,0),MATCH(\"Aktuell?\",$B$9:$H$9,0))=\"Ja\",1,0))","v":0},"P"]
[null,"A7.22.3","rskl § 7-31, 3. ledd","Dersom selskapet ikke har hatt slike utgifter eller forpliktelser som beskrevet i de to foregående punkt, er det opplyst særskilt om det?",null,{"$f":"IF(AND(G475=1,E475=\"i\"),1,IF(AND(G475=1,E475=\"s\"),1,0))","v":0},{"$f":"IF($B475=\"\",\"0\",IF(INDEX($B$11:$H$849,MATCH(LEFT($B475,FIND(\"~\",SUBSTITUTE($B475,\".\",\"~\",LEN($B475)-LEN(SUBSTITUTE($B475,\".\",\"\"))))),$B$11:$B$849,0),MATCH(\"Aktuell?\",$B$9:$H$9,0))=\"Ja\",1,0))","v":0},"P"]
[null,"A7.22.4","rskl § 7-31, 4. ledd 1. punktum","Er det opplyst om forpliktelser knyttet til aksjeverdibaserte godtgjørelser til fordel for ansatte og tillitsvalgte?",null,{"$f":"IF(AND(G476=1,E476=\"i\"),1,IF(AND(G476=1,E476=\"s\"),1,0))","v":0},{"$f":"IF($B476=\"\",\"0\",IF(INDEX($B$11:$H$849,MATCH(LEFT($B476,FIND(\"~\",SUBSTITUTE($B476,\".\",\"~\",LEN($B476)-LEN(SUBSTITUTE($B476,\".\",\"\"))))),$B$11:$B$849,0),MATCH(\"Aktuell?\",$B$9:$H$9,0))=\"Ja\",1,0))","v":0},"P"]
[null,"A7.22.5",null,"Følgende krav gjelder ikke heleide datterselskaper i konsern (A7.22.5-A7.22.15)",null,{"$f":"SUMIF($B479:$B$849,$B477&\"*\",$F479:$F$849)","v":0},null,{"$f":"IF(INDEX($B$11:$H$849,MATCH(LEFT($B477,FIND(\"~\",SUBSTITUTE($B477,\".\",\"~\",LEN($B477)-LEN(SUBSTITUTE($B477,\".\",\"\"))))),$B$11:$B$849,0),MATCH(\"Aktuell?\",$B$9:$H$9,0))=\"Yes\",1,0)","v":0}]
[null,"A7.22.6","rskl § 7-31, 4. ledd 2. punktum","Er det opplyst om arten og omfanget av de enkelte avtaler om aksjeverdibaserte godtgjørelser til fordel for:\n• de enkelte ledende ansatte\n• de enkelte medlemmer av styre\n• de enkelte medlemmer av kontrollkomite\n• de enkelte medlemmer av andre valgte selskapsorganer med unntak av bedriftsforsamlingen?",null,{"$f":"IF(AND(G478=1,E478=\"i\"),1,IF(AND(G478=1,E478=\"s\"),1,0))","v":0},{"$f":"IF($B478=\"\",\"0\",IF(INDEX($B$11:$H$849,MATCH(LEFT($B478,FIND(\"~\",SUBSTITUTE($B478,\".\",\"~\",LEN($B478)-LEN(SUBSTITUTE($B478,\".\",\"\"))))),$B$11:$B$849,0),MATCH(\"Aktuell?\",$B$9:$H$9,0))=\"Ja\",1,0))","v":0},"P"]
[null,"A7.22.7",null,"Opplysningskrav for aksjeverdibaserte godtgjørelser som utelukkende gjelder utdeling av aksjer, egenkapitalbevis eller opsjoner:",null,{"$f":"SUMIF($B481:$B$849,$B479&\"*\",$F481:$F$849)","v":0},null,{"$f":"IF(INDEX($B$11:$H$849,MATCH(LEFT($B479,FIND(\"~\",SUBSTITUTE($B479,\".\",\"~\",LEN($B479)-LEN(SUBSTITUTE($B479,\".\",\"\"))))),$B$11:$B$849,0),MATCH(\"Aktuell?\",$B$9:$H$9,0))=\"Yes\",1,0)","v":0}]
[null,"A7.22.8","rskl § 7-31, 5. ledd ","Omfatter opplysningene i spørsmålet over følgende:"]
[null,"A7.22.9",null,"• Antall opsjoner som er tildelt, samt aksjer eller egenkapitalbevis som er gitt av foretaket i løpet av regnskapsåret, og vilkårene for disse?",null,{"$f":"IF(AND(G481=1,E481=\"i\"),1,IF(AND(G481=1,E481=\"s\"),1,0))","v":0},{"$f":"IF($B481=\"\",\"0\",IF(INDEX($B$11:$H$849,MATCH(LEFT($B481,FIND(\"~\",SUBSTITUTE($B481,\".\",\"~\",LEN($B481)-LEN(SUBSTITUTE($B481,\".\",\"\"))))),$B$11:$B$849,0),MATCH(\"Aktuell?\",$B$9:$H$9,0))=\"Ja\",1,0))","v":0},"P"]
[null,"A7.22.10",null,"• Antall opsjoner som er innløst i løpet av regnskapsåret, og for hver av disse antall aksjer eller egenkapitalbevis som eventuelt er utdelt, innløsningskursen og eventuelle utbetalinger fra selskapet knyttet til innløsningen?",null,{"$f":"IF(AND(G482=1,E482=\"i\"),1,IF(AND(G482=1,E482=\"s\"),1,0))","v":0},{"$f":"IF($B482=\"\",\"0\",IF(INDEX($B$11:$H$849,MATCH(LEFT($B482,FIND(\"~\",SUBSTITUTE($B482,\".\",\"~\",LEN($B482)-LEN(SUBSTITUTE($B482,\".\",\"\"))))),$B$11:$B$849,0),MATCH(\"Aktuell?\",$B$9:$H$9,0))=\"Ja\",1,0))","v":0},"P"]
[null,"A7.22.11",null,"• Antall opsjoner som ikke er innløst ved regnskapsårets slutt, innløsningskursen, forfallstidspunktet og hovedbetingelsene for å utøve rettighetene?",null,{"$f":"IF(AND(G483=1,E483=\"i\"),1,IF(AND(G483=1,E483=\"s\"),1,0))","v":0},{"$f":"IF($B483=\"\",\"0\",IF(INDEX($B$11:$H$849,MATCH(LEFT($B483,FIND(\"~\",SUBSTITUTE($B483,\".\",\"~\",LEN($B483)-LEN(SUBSTITUTE($B483,\".\",\"\"))))),$B$11:$B$849,0),MATCH(\"Aktuell?\",$B$9:$H$9,0))=\"Ja\",1,0))","v":0},"P"]
[null,"A7.22.12",null,"Opplysningskrav for alle andre aksjeverdibaserte godtgjørelser",null,{"$f":"SUMIF($B486:$B$849,$B484&\"*\",$F486:$F$849)","v":0},null,{"$f":"IF(INDEX($B$11:$H$849,MATCH(LEFT($B484,FIND(\"~\",SUBSTITUTE($B484,\".\",\"~\",LEN($B484)-LEN(SUBSTITUTE($B484,\".\",\"\"))))),$B$11:$B$849,0),MATCH(\"Aktuell?\",$B$9:$H$9,0))=\"Yes\",1,0)","v":0}]
[null,"A7.22.13","rskl § 7-31, 4. ledd 3. og 4. punktum","Omfatter opplysningene i spørsmål A7.22.6 minst en beskrivelse av på hvilken måte utviklingen av verdien til aksjene eller egenkapitalbevisene i selskapet eller i andre selskaper i samme konsern, har påvirket beregningen av den godtgjørelsen som er utbetalt i regnskapsåret?",null,{"$f":"IF(AND(G485=1,E485=\"i\"),1,IF(AND(G485=1,E485=\"s\"),1,0))","v":0},{"$f":"IF($B485=\"\",\"0\",IF(INDEX($B$11:$H$849,MATCH(LEFT($B485,FIND(\"~\",SUBSTITUTE($B485,\".\",\"~\",LEN($B485)-LEN(SUBSTITUTE($B485,\".\",\"\"))))),$B$11:$B$849,0),MATCH(\"Aktuell?\",$B$9:$H$9,0))=\"Ja\",1,0))","v":0},"P"]
[null,"A7.22.14",null,"For avtaler om aksjeverdibaserte godtgjørelser som ikke er avsluttet ved regnskapsårets slutt, er det opplyst om:"]
[null,"A7.22.15",null,"• avtalens løpetid, og ",null,{"$f":"IF(AND(G487=1,E487=\"i\"),1,IF(AND(G487=1,E487=\"s\"),1,0))","v":0},{"$f":"IF($B487=\"\",\"0\",IF(INDEX($B$11:$H$849,MATCH(LEFT($B487,FIND(\"~\",SUBSTITUTE($B487,\".\",\"~\",LEN($B487)-LEN(SUBSTITUTE($B487,\".\",\"\"))))),$B$11:$B$849,0),MATCH(\"Aktuell?\",$B$9:$H$9,0))=\"Ja\",1,0))","v":0},"P"]
[null,"A7.22.16",null,"• en beskrivelse av på hvilken måte det er avtalt at utviklingen i aksjenes verdi vil påvirke beregningen av fremtidige utbetalinger?",null,{"$f":"IF(AND(G488=1,E488=\"i\"),1,IF(AND(G488=1,E488=\"s\"),1,0))","v":0},{"$f":"IF($B488=\"\",\"0\",IF(INDEX($B$11:$H$849,MATCH(LEFT($B488,FIND(\"~\",SUBSTITUTE($B488,\".\",\"~\",LEN($B488)-LEN(SUBSTITUTE($B488,\".\",\"\"))))),$B$11:$B$849,0),MATCH(\"Aktuell?\",$B$9:$H$9,0))=\"Ja\",1,0))","v":0},"P"]
[null,"A7.23.",null,"Ytelser til ledende ansatte og tillitsvalgte i store foretak",null,{"$f":"SUMIF($B490:$B$849,$B489&\"*\",$F490:$F$849)","v":0},"Nei",null,{"$f":"IF($G489=\"Ja\",\"Total: \"&COUNTIFS($B490:$B$849,B489&\"*\",$G490:$G$849,1)&\" | P - \"&COUNTIFS($B490:$B$849,B489&\"*\",$G490:$G$849,1,$H490:$H$849,$E$3)&\" | J - \"&COUNTIFS($B490:$B$849,B489&\"*\",$G490:$G$849,1,$H490:$H$849,$E$4)&\" | N - \"&COUNTIFS($B490:$B$849,B489&\"*\",$G490:$G$849,1,$H490:$H$849,$E$5)&\" | A - \"&COUNTIFS($B490:$B$849,B489&\"*\",$G490:$G$849,1,$H490:$H$849,$E$6)&\" | F - \"&COUNTIFS($B490:$B$849,B489&\"*\",$G490:$G$849,1,$H490:$H$849,$E$7),\"\")","v":""}]
[null,"A7.23.1","rskl § 7-31b 11. ledd","Opplysningene om ytelser til ledende personer mv. kan i stedet gis i en rapport om godtgjørelse til ledende personer, som i så tilfelle formelt blir en del av årsberetningen.",null,{"$f":"IF(AND(G490=1,E490=\"i\"),1,IF(AND(G490=1,E490=\"s\"),1,0))","v":0},{"$f":"IF($B490=\"\",\"0\",IF(INDEX($B$11:$H$849,MATCH(LEFT($B490,FIND(\"~\",SUBSTITUTE($B490,\".\",\"~\",LEN($B490)-LEN(SUBSTITUTE($B490,\".\",\"\"))))),$B$11:$B$849,0),MATCH(\"Aktuell?\",$B$9:$H$9,0))=\"Ja\",1,0))","v":0},"P"]
[null,"A7.23.2","rskl § 7-31b 1. ledd","Har foretaket opplyst om samlet godtgjørelse og andre fordeler som er gitt til de enkelte ledende ansatte og de enkelte medlemmene av henholdsvis styret, kontrollkomiteen og andre valgte selskapsorganer med unntak av bedriftsforsamlingen?",null,0,0,"P"]
[null,"A7.23.3","rskl § 7-31b 2. ledd","Er det opplyst om forpliktelser knyttet til aksjeverdibaserte godtgjørelser til fordel for ansatte og tillitsvalgte?",null,0,0,"P"]
[null,"A7.23.4","rskl § 7-31b 3. ledd","Er det for hver person omfattet av første ledd, som har hatt ansettelsesforhold eller verv for selskapet i løpet av regnskapsåret, gitt opplysninger spesifisert i amsvar med fjerde til niende ledd?:",null,0,0,"P"]
[null,"A7.23.5","rskl § 7-31b 4. ledd","Omfatter opplysningene om godtgjørelse eller honorarer minst følgende:",null,0,0,"P"]
[null,"A7.23.6",null,"• Den totale lønn vedkommende har mottatt eller opptjent for tjenester ytt i løpet av regnskapsåret, herunder eventuelle møtehonorarer vedtatt av generalforsamlingen?",null,0,0,"P"]
[null,"A7.23.7",null,"• Godtgjørelse og fordeler vedkommende har mottatt fra foretak i samme konsern?",null,0,0,"P"]
[null,"A7.23.8",null,"• Godtgjørelse i form av overskuddsdeling eller bonusutbetalinger og grunnen til at slike ytelser er gitt? ",null,0,0,"P"]
[null,"A7.23.9",null,"• Betydelig eller vesentlig tilleggsgodtgjørelse for spesielle tjenester utenfor de normale funksjoner for en leder?",null,0,0,"P"]
[null,"A7.23.10",null,"• Betalt eller skyldig vederlag til hver tidligere administrerende direktør og styreleder i regnskapsåret i forbindelse med avslutning av vedkommendes ansettelsesforhold eller verv? ",null,0,0,"P"]
[null,"A7.23.11",null,"• Beregnet verdi av totale fordeler i annet enn kontanter som anses som godtgjørelse?",null,0,0,"P"]
[null,"A7.23.12",null,"Aksjeverdibasert avlønning",null,{"$f":"SUMIF($B503:$B$849,$B501&\"*\",$F503:$F$849)","v":0},null,{"$f":"IF(INDEX($B$11:$H$849,MATCH(LEFT($B501,FIND(\"~\",SUBSTITUTE($B501,\".\",\"~\",LEN($B501)-LEN(SUBSTITUTE($B501,\".\",\"\"))))),$B$11:$B$849,0),MATCH(\"Aktuell?\",$B$9:$H$9,0))=\"Yes\",1,0)","v":0}]
[null,"A7.23.13","rskl § 7-31b 5. ledd ","Opplysningskrav for aksjeverdibaserte godtgjørelser som utelukkende gjelder utdeling av aksjer, egenkapitalbevis eller opsjoner:"]
[null,"A7.23.14","rskl § 7-31b 6. ledd","Omfatter opplysningene om aksjeverdibaserte godtgjørelser:"]
[null,"A7.23.15",null,"• Antall opsjoner som er tildelt samt aksjer eller egenkapitalbevis som er gitt av foretaket i løpet av regnskapsåret, og vilkårene for å benytte disse?",null,{"$f":"IF(AND(G504=1,E504=\"i\"),1,IF(AND(G504=1,E504=\"s\"),1,0))","v":0},{"$f":"IF($B504=\"\",\"0\",IF(INDEX($B$11:$H$849,MATCH(LEFT($B504,FIND(\"~\",SUBSTITUTE($B504,\".\",\"~\",LEN($B504)-LEN(SUBSTITUTE($B504,\".\",\"\"))))),$B$11:$B$849,0),MATCH(\"Aktuell?\",$B$9:$H$9,0))=\"Ja\",1,0))","v":0},"P"]
[null,"A7.23.16",null,"• Antall opsjoner som er innløst i løpet av regnskapsåret. For hver av disse skal det opplyses om antall aksjer eller egenkapitalbevis som eventuelt er utdelt, innløsningskursen og eventuelle utbetalinger fra selskapet knyttet til innløsningen?",null,{"$f":"IF(AND(G505=1,E505=\"i\"),1,IF(AND(G505=1,E505=\"s\"),1,0))","v":0},{"$f":"IF($B505=\"\",\"0\",IF(INDEX($B$11:$H$849,MATCH(LEFT($B505,FIND(\"~\",SUBSTITUTE($B505,\".\",\"~\",LEN($B505)-LEN(SUBSTITUTE($B505,\".\",\"\"))))),$B$11:$B$849,0),MATCH(\"Aktuell?\",$B$9:$H$9,0))=\"Ja\",1,0))","v":0},"P"]
[null,"A7.23.17",null,"• Antall opsjoner som ikke er innløst ved regnskapsårets slutt, innløsningskursen, forfallstidspunktet og hovedbetingelsene for å utøve rettighetene?",null,{"$f":"IF(AND(G506=1,E506=\"i\"),1,IF(AND(G506=1,E506=\"s\"),1,0))","v":0},{"$f":"IF($B506=\"\",\"0\",IF(INDEX($B$11:$H$849,MATCH(LEFT($B506,FIND(\"~\",SUBSTITUTE($B506,\".\",\"~\",LEN($B506)-LEN(SUBSTITUTE($B506,\".\",\"\"))))),$B$11:$B$849,0),MATCH(\"Aktuell?\",$B$9:$H$9,0))=\"Ja\",1,0))","v":0},"P"]
[null,"A7.23.18",null,"• Endring i vilkår knyttet til eksisterende aksjeverdibaserte godtgjørelser i løpet av regnskapsåret?",null,{"$f":"IF(AND(G507=1,E507=\"i\"),1,IF(AND(G507=1,E507=\"s\"),1,0))","v":0},{"$f":"IF($B507=\"\",\"0\",IF(INDEX($B$11:$H$849,MATCH(LEFT($B507,FIND(\"~\",SUBSTITUTE($B507,\".\",\"~\",LEN($B507)-LEN(SUBSTITUTE($B507,\".\",\"\"))))),$B$11:$B$849,0),MATCH(\"Aktuell?\",$B$9:$H$9,0))=\"Ja\",1,0))","v":0},"P"]
[null,"A7.23.19",null,"Opplysningskrav for alle andre aksjeverdibaserte godtgjørelser:",null,{"$f":"SUMIF($B510:$B$849,$B508&\"*\",$F510:$F$849)","v":0},null,{"$f":"IF(INDEX($B$11:$H$849,MATCH(LEFT($B508,FIND(\"~\",SUBSTITUTE($B508,\".\",\"~\",LEN($B508)-LEN(SUBSTITUTE($B508,\".\",\"\"))))),$B$11:$B$849,0),MATCH(\"Aktuell?\",$B$9:$H$9,0))=\"Yes\",1,0)","v":0}]
[null,"A7.23.20","rskl § 7-31b 5. ledd","Omfatter opplysningene om aksjeverdibaserte godtgjørelser minst en beskrivelse av på hvilken måte utviklingen av verdien til aksjene eller egenkapitalbevisene i selskapet eller i andre selskaper i samme konsern, har påvirket beregningen av den godtgjørelsen som er utbetalt i regnskapsåret?",null,{"$f":"IF(AND(G509=1,E509=\"i\"),1,IF(AND(G509=1,E509=\"s\"),1,0))","v":0},{"$f":"IF($B509=\"\",\"0\",IF(INDEX($B$11:$H$849,MATCH(LEFT($B509,FIND(\"~\",SUBSTITUTE($B509,\".\",\"~\",LEN($B509)-LEN(SUBSTITUTE($B509,\".\",\"\"))))),$B$11:$B$849,0),MATCH(\"Aktuell?\",$B$9:$H$9,0))=\"Ja\",1,0))","v":0},"P"]
[null,"A7.23.21","rskl § 7-31b 5. ledd","For avtaler om aksjeverdibaserte godtgjørelser som ikke er avsluttet ved regnskapsårets slutt, er det opplyst om avtalens løpetid?",null,{"$f":"IF(AND(G510=1,E510=\"i\"),1,IF(AND(G510=1,E510=\"s\"),1,0))","v":0},{"$f":"IF($B510=\"\",\"0\",IF(INDEX($B$11:$H$849,MATCH(LEFT($B510,FIND(\"~\",SUBSTITUTE($B510,\".\",\"~\",LEN($B510)-LEN(SUBSTITUTE($B510,\".\",\"\"))))),$B$11:$B$849,0),MATCH(\"Aktuell?\",$B$9:$H$9,0))=\"Ja\",1,0))","v":0},"P"]
[null,"A7.23.22",null,"Er det i tillegg gitt en beskrivelse av på hvilken måte det er avtalt at utviklingen i aksjenes verdi vil påvirke beregningen av fremtidige utbetalinger?",null,{"$f":"IF(AND(G511=1,E511=\"i\"),1,IF(AND(G511=1,E511=\"s\"),1,0))","v":0},{"$f":"IF($B511=\"\",\"0\",IF(INDEX($B$11:$H$849,MATCH(LEFT($B511,FIND(\"~\",SUBSTITUTE($B511,\".\",\"~\",LEN($B511)-LEN(SUBSTITUTE($B511,\".\",\"\"))))),$B$11:$B$849,0),MATCH(\"Aktuell?\",$B$9:$H$9,0))=\"Ja\",1,0))","v":0},"P"]
[null,"A7.23.23",null,"Andre forhold vedrørende ytelser til ledende personer",null,{"$f":"SUMIF($B514:$B$849,$B512&\"*\",$F514:$F$849)","v":0},null,{"$f":"IF(INDEX($B$11:$H$849,MATCH(LEFT($B512,FIND(\"~\",SUBSTITUTE($B512,\".\",\"~\",LEN($B512)-LEN(SUBSTITUTE($B512,\".\",\"\"))))),$B$11:$B$849,0),MATCH(\"Aktuell?\",$B$9:$H$9,0))=\"Yes\",1,0)","v":0}]
[null,"A7.23.24","rskl § 7-31b 7. ledd","Er det for ytelsesbaserte pensjonsordninger minst opplyst om endringer i den enkeltes opptjente rettigheter etter ordningen i løpet av regnskapsåret?",null,{"$f":"IF(AND(G513=1,E513=\"i\"),1,IF(AND(G513=1,E513=\"s\"),1,0))","v":0},{"$f":"IF($B513=\"\",\"0\",IF(INDEX($B$11:$H$849,MATCH(LEFT($B513,FIND(\"~\",SUBSTITUTE($B513,\".\",\"~\",LEN($B513)-LEN(SUBSTITUTE($B513,\".\",\"\"))))),$B$11:$B$849,0),MATCH(\"Aktuell?\",$B$9:$H$9,0))=\"Ja\",1,0))","v":0},"P"]
[null,"A7.23.25","rskl § 7-31b 7. ledd","Er det for innskuddsbaserte pensjonsordninger minst gitt opplysninger om innskudd i ordningen som foretaket i løpet av regnskapsåret har betalt eller er blitt skyldig for hver person som er omfattet av første ledd?",null,0,0,"P"]
[null,"A7.23.26","rskl § 7-31b 8. ledd","Er det opplyst om arten og omfanget av forpliktelser til å gi særskilt vederlag ved fratredelse, opphør eller endringer av ansettelsesforholdet eller vervet?",null,0,0,"P"]
[null,"A7.23.27","rskl § 7-31b 9. ledd","Er det opplyst om lån, forskuddsbetalinger og sikkerhetsstillelser selskapet eller andre selskap i konsernet har gitt til personer som omfattet av første ledd, herunder hvilke vilkår som gjelder, avdragsplan, utestående beløp og rentesatsen?",null,0,0,"P"]
[null,"A7.23.28","rskl § 7-31b 12. ledd","Når en eller flere opplysninger som nevnt i 9. ledd ikke gis fordi den regnskapspliktige ikke har hatt slike forpliktelser, er det opplyst særskilt om det?",null,0,0,"P"]
[null,"A7.23.29","rskl § 7-31b 10. ledd","Tilleggskrav for ASA: Er det opplyst om innholdet i erklæringen om fast-settelse av lønn og annen godtgjørelse til ledende ansatte, jf asal § 6-16 a?",null,0,0,"P"]
[null,"A7.24.",null,"Antall årsverk",null,{"$f":"SUMIF($B520:$B$849,$B519&\"*\",$F520:$F$849)","v":0},"Nei",null,{"$f":"IF($G519=\"Ja\",\"Total: \"&COUNTIFS($B520:$B$849,B519&\"*\",$G520:$G$849,1)&\" | P - \"&COUNTIFS($B520:$B$849,B519&\"*\",$G520:$G$849,1,$H520:$H$849,$E$3)&\" | J - \"&COUNTIFS($B520:$B$849,B519&\"*\",$G520:$G$849,1,$H520:$H$849,$E$4)&\" | N - \"&COUNTIFS($B520:$B$849,B519&\"*\",$G520:$G$849,1,$H520:$H$849,$E$5)&\" | A - \"&COUNTIFS($B520:$B$849,B519&\"*\",$G520:$G$849,1,$H520:$H$849,$E$6)&\" | F - \"&COUNTIFS($B520:$B$849,B519&\"*\",$G520:$G$849,1,$H520:$H$849,$E$7),\"\")","v":""}]
[null,"A7.24.1","rskl § 7-30","Er det opplyst om antall sysselsatte årsverk i regnskapsåret? ",null,{"$f":"IF(AND(G520=1,E520=\"i\"),1,IF(AND(G520=1,E520=\"s\"),1,0))","v":0},{"$f":"IF($B520=\"\",\"0\",IF(INDEX($B$11:$H$849,MATCH(LEFT($B520,FIND(\"~\",SUBSTITUTE($B520,\".\",\"~\",LEN($B520)-LEN(SUBSTITUTE($B520,\".\",\"\"))))),$B$11:$B$849,0),MATCH(\"Aktuell?\",$B$9:$H$9,0))=\"Ja\",1,0))","v":0},"P"]
[null,"A7.24.2","rskl § 7-30","Dersom selskapet ikke har noen ansatte, er dette opplyst om? ",null,{"$f":"IF(AND(G521=1,E521=\"i\"),1,IF(AND(G521=1,E521=\"s\"),1,0))","v":0},{"$f":"IF($B521=\"\",\"0\",IF(INDEX($B$11:$H$849,MATCH(LEFT($B521,FIND(\"~\",SUBSTITUTE($B521,\".\",\"~\",LEN($B521)-LEN(SUBSTITUTE($B521,\".\",\"\"))))),$B$11:$B$849,0),MATCH(\"Aktuell?\",$B$9:$H$9,0))=\"Ja\",1,0))","v":0},"P"]
[null,"A7.25.",null,"Godtgjørelse til revisor (pliktig)",null,{"$f":"SUMIF($B523:$B$849,$B522&\"*\",$F523:$F$849)","v":0},"Nei",null,{"$f":"IF($G522=\"Ja\",\"Total: \"&COUNTIFS($B523:$B$849,B522&\"*\",$G523:$G$849,1)&\" | P - \"&COUNTIFS($B523:$B$849,B522&\"*\",$G523:$G$849,1,$H523:$H$849,$E$3)&\" | J - \"&COUNTIFS($B523:$B$849,B522&\"*\",$G523:$G$849,1,$H523:$H$849,$E$4)&\" | N - \"&COUNTIFS($B523:$B$849,B522&\"*\",$G523:$G$849,1,$H523:$H$849,$E$5)&\" | A - \"&COUNTIFS($B523:$B$849,B522&\"*\",$G523:$G$849,1,$H523:$H$849,$E$6)&\" | F - \"&COUNTIFS($B523:$B$849,B522&\"*\",$G523:$G$849,1,$H523:$H$849,$E$7),\"\")","v":""}]
[null,"A7.25.1","rskl § 7-31a","Er det opplyst om godtgjørelse til revisor og hvordan denne er fordelt på hhv:\n• lovpålagt revisjon\n• andre attestasjonstjenester\n• skatterådgivning\n• andre tjenester utenfor revisjonen (spesifisert for vesentlig forskjellige tjenester)?",null,{"$f":"IF(AND(G523=1,E523=\"i\"),1,IF(AND(G523=1,E523=\"s\"),1,0))","v":0},{"$f":"IF($B523=\"\",\"0\",IF(INDEX($B$11:$H$849,MATCH(LEFT($B523,FIND(\"~\",SUBSTITUTE($B523,\".\",\"~\",LEN($B523)-LEN(SUBSTITUTE($B523,\".\",\"\"))))),$B$11:$B$849,0),MATCH(\"Aktuell?\",$B$9:$H$9,0))=\"Ja\",1,0))","v":0},"P"]
[null,"A7.25.2",null,"Omfatter også opplysningene godtgjørelse til foretak som revisor har et særskilt samarbeid med?",null,{"$f":"IF(AND(G524=1,E524=\"i\"),1,IF(AND(G524=1,E524=\"s\"),1,0))","v":0},{"$f":"IF($B524=\"\",\"0\",IF(INDEX($B$11:$H$849,MATCH(LEFT($B524,FIND(\"~\",SUBSTITUTE($B524,\".\",\"~\",LEN($B524)-LEN(SUBSTITUTE($B524,\".\",\"\"))))),$B$11:$B$849,0),MATCH(\"Aktuell?\",$B$9:$H$9,0))=\"Ja\",1,0))","v":0},"P"]
[null,"A7.25.3",null,"Er det opplyst om eventuelt honorar ført direkte mot egenkapitalen i forbindelse med egenkapitaltransaksjoner?",null,{"$f":"IF(AND(G525=1,E525=\"i\"),1,IF(AND(G525=1,E525=\"s\"),1,0))","v":0},{"$f":"IF($B525=\"\",\"0\",IF(INDEX($B$11:$H$849,MATCH(LEFT($B525,FIND(\"~\",SUBSTITUTE($B525,\".\",\"~\",LEN($B525)-LEN(SUBSTITUTE($B525,\".\",\"\"))))),$B$11:$B$849,0),MATCH(\"Aktuell?\",$B$9:$H$9,0))=\"Ja\",1,0))","v":0},"P"]
[null,"A7.25.4",null,"Omfatter også opplysningene godtgjørelse til foretak som revisor har et særskilt samarbeid med?",null,{"$f":"IF(AND(G526=1,E526=\"i\"),1,IF(AND(G526=1,E526=\"s\"),1,0))","v":0},{"$f":"IF($B526=\"\",\"0\",IF(INDEX($B$11:$H$849,MATCH(LEFT($B526,FIND(\"~\",SUBSTITUTE($B526,\".\",\"~\",LEN($B526)-LEN(SUBSTITUTE($B526,\".\",\"\"))))),$B$11:$B$849,0),MATCH(\"Aktuell?\",$B$9:$H$9,0))=\"Ja\",1,0))","v":0},"P"]
[null,"A8.",null,"Oppkjøp og fusjon",null,{"$f":"SUMIFS($F528:$F$849,$B528:$B$849,$B527&\"*\",$G528:$G$849,\"Ja\")","v":0},{"$f":"IF(COUNTIFS($B528:$B$849,$B527&\"*\",$G528:$G$849,\"Ja\")>0,\"Ja\",\"Nei\")","v":"Nei"}]
[null,"A8.1.",null,"Alle oppkjøp i regnskapsåret (innenfor IFRS 3)",null,{"$f":"SUMIF($B529:$B$849,$B528&\"*\",$F529:$F$849)","v":0},"Nei",null,{"$f":"IF($G528=\"Ja\",\"Total: \"&COUNTIFS($B529:$B$849,B528&\"*\",$G529:$G$849,1)&\" | P - \"&COUNTIFS($B529:$B$849,B528&\"*\",$G529:$G$849,1,$H529:$H$849,$E$3)&\" | J - \"&COUNTIFS($B529:$B$849,B528&\"*\",$G529:$G$849,1,$H529:$H$849,$E$4)&\" | N - \"&COUNTIFS($B529:$B$849,B528&\"*\",$G529:$G$849,1,$H529:$H$849,$E$5)&\" | A - \"&COUNTIFS($B529:$B$849,B528&\"*\",$G529:$G$849,1,$H529:$H$849,$E$6)&\" | F - \"&COUNTIFS($B529:$B$849,B528&\"*\",$G529:$G$849,1,$H529:$H$849,$E$7),\"\")","v":""}]
[null,"A8.1.1","Forskriften \n§ 4-2 nr. 2\nIFRS 3 B64","Har det overtakende foretaket opplyst om følgende (for hver virksomhetssammenslutning som er gjennomført i løpet av rapporteringsperioden):"]
[null,"A8.1.2","Forskriften \n§ 4-2 nr. 2\nIFRS 3 B64a","• Navnet på og en beskrivelse av det overtatte foretaket?",null,{"$f":"IF(AND(G530=1,E530=\"i\"),1,IF(AND(G530=1,E530=\"s\"),1,0))","v":0},{"$f":"IF($B530=\"\",\"0\",IF(INDEX($B$11:$H$849,MATCH(LEFT($B530,FIND(\"~\",SUBSTITUTE($B530,\".\",\"~\",LEN($B530)-LEN(SUBSTITUTE($B530,\".\",\"\"))))),$B$11:$B$849,0),MATCH(\"Aktuell?\",$B$9:$H$9,0))=\"Ja\",1,0))","v":0},"P"]
[null,"A8.1.3","Forskriften \n§ 4-2 nr. 2\nIFRS 3 B64b","• Overtakelsestidspunktet?",null,0,0,"P"]
[null,"A8.1.4","Forskriften \n§ 4-2 nr. 2\nIFRS 3 B64c","• Den prosentvise andelen av overtatte egenkapitalinteresser med stemmerett?",null,0,0,"P"]
[null,"A8.1.5","Forskriften \n§ 4-2 nr. 2\nIFRS 3 B64d","• De primære grunnene til virksomhetssammenslutningen og en beskrivelse av hvordan det overtakende foretaket oppnådde kontroll over det overtatte foretaket?",null,0,0,"P"]
[null,"A8.1.6","Forskriften \n§ 4-2 nr. 2\nIFRS 3 B64e","• En kvalitativ beskrivelse av de faktorene som utgjør innregnet goodwill, for eksempel forventede synergieffekter av å sammenslutte det overtatte foretaket og det overtakende foretaket, immaterielle eiendeler som ikke oppfyller vilkårene for separat innregning, eller andre faktorer?",null,0,0,"P"]
[null,"A8.1.7","Forskriften \n§ 4-2 nr. 2\nIFRS 3 B64f","• Den virkelige verdien på overtakelsestidspunktet av det samlede vederlaget som er overført, samt virkelig verdi på overtakelsestidspunktet av hver vesentlig klasse av vederlag, som for eksempel\ni) kontanter,\nii) andre materielle eller immaterielle eiendeler, herunder en virksomhet eller et datterforetak som tilhører det overtakende foretaket,\niii) påløpte forpliktelser, for eksempel en forpliktelse om betinget vederlag, og\niv) egenkapitalinteresser i det overtakende foretaket, herunder antallet instrumenter eller interesser som er utstedt eller kan utstedes, samt metoden for å måle den virkelige verdien av disse instrumentene eller interessene?",null,0,0,"P"]
[null,"A8.1.8","Forskriften \n§ 4-2 nr. 2\nIFRS 3 B64g\n","• Dersom betinget vederlag og eiendeler med rett til erstatning, er det opplyst om:\ni) innregnet beløp på overtakelsestidspunktet,\nii) en beskrivelse av ordningen og grunnlaget for å fastsette beløpet for betalingen, og\niii) et estimat av utfallsrom (udiskontert) eller, dersom et utfallsrom ikke kan estimeres, dette faktum samt grunnene til at en rekke av utfall ikke kan estimeres? Dersom det høyeste beløpet for betalingen er ubegrenset, skal det overtakende foretaket opplyse om dette",null,0,0,"P",null,null,null,null,"x"]
[null,"A8.1.9","Forskriften \n§ 4-2 nr. 2\nIFRS 3 B64h\n","• For overtatte fordringer, er det opplyst om:\ni) fordringenes virkelige verdi?\nii) brutto kontraktsmessige fordringer? og\niii) det beste estimatet på overtakelsestidspunktet av de kontraktsmessige kontantstrømmene som det ikke forventes blir oppgjort?\n\nOpplysningene skal gis for hver vesentlig klasse av fordringer, for eksempel lån, direkte finansielle leieavtaler og alle andre klasser av fordringer",null,0,0,"P"]
[null,"A8.1.10","Forskriften \n§ 4-2 nr. 2\nIFRS 3 B64i","• De beløpene som er innregnet på overtakelsestidspunktet for hver vesentlig klasse av anskaffede eiendeler og overtatte forpliktelser?",null,0,0,"P"]
[null,"A8.1.11","Forskriften \n§ 4-2 nr. 2\nIFRS 3 B64j\n","• For hver betinget forpliktelse som er innregnet i samsvar med nr. 23, de opplysningene som kreves i nr. 85 i IAS 37: \"Avsetninger, betingede forpliktelser og betingede eiendeler\". Dersom en betinget forpliktelse ikke er innregnet fordi dens virkelige verdi ikke kan måles på en pålitelig måte, har det overtakende foretaket gitt følgende opplysninger:\n\ni) de opplysningene som kreves av nr. 86 i IAS 37, og\nii) grunnene til at forpliktelsen ikke kan måles på en pålitelig måte?\n",null,0,0,"P"]
[null,"A8.1.12","Forskriften \n§ 4-2 nr. 2\nIFRS 3 B64k","• Det samlede beløpet for goodwill som forventes å kunne være skattemessig fradragsberettiget?",null,0,0,"P"]
[null,"A8.1.13","Forskriften \n§ 4-2 nr. 2\nIFRS 3 B64l\n","• For transaksjoner som blir innregnet atskilt fra anskaffelse av eiendeler og overtakelse av forpliktelser i virksomhetssammenslutningen i samsvar med nr. 51, er det opplyst om:\n\ni) en beskrivelse av hver transaksjon,\nii) hvordan det overtakende foretaket har regnskapsført hver transaksjon,\niii) hvilke beløp som er innregnet for hver transaksjon, og hvilken post i finansregnskapet hvert beløp er innregnet i, og\niv) dersom transaksjonen er det faktiske oppgjøret av et tidligere eksisterende forhold, hvilken metode som er benyttet for å fastsette oppgjørsbeløpet?",null,0,0,"P"]
[null,"A8.1.14","Forskriften \n§ 4-2 nr. 2\nIFRS 3 B64m\n","• er det i opplysningene om atskilt innregnede transaksjoner som kreves av bokstav l (forrige punkt), gitt opplysning om beløpet for utgifter i tilknytning til overtakelsen og atskilt fra dette, beløpet for disse utgiftene som er innregnet som kostnad, samt den eller de postene i oppstillingen over totalresultat der disse kostnadene er innregnet? Det skal også opplyses om beløpet for eventuelle utstedelsesutgifter som ikke er innregnet som kostnad, og hvordan de ble innregnet",null,0,0,"P"]
[null,"A8.1.15","Forskriften \n§ 4-2 nr. 2\nIFRS 3 B64n\n","• I et kjøp på gunstige vilkår (se nr. 34–36 [34, 35, 36]), er det gitt opplysninger om:\n\ni) størrelsen på et eventuelt overskytende beløp som er innregnet i samsvar med nr. 34, og i hvilken post i oppstillingen over totalresultat det overskytende beløpet er innregnet, og\nii) en beskrivelse av grunnene til at transaksjonen førte til gevinst?\n",null,0,0,"P"]
[null,"A8.1.16","Forskriften \n§ 4-2 nr. 2\nIFRS 3 B64o\n","• For hver virksomhetssammenslutning der det overtakende foretaket innehar mindre enn 100 prosent av egenkapitalinteressene i det overtatte foretaket på overtakelsestidspunktet, er det opplyst om:\n\ni) beløpet for den ikke-kontrollerende eierinteressen i det overtatte foretaket som er innregnet på overtakelsestidspunktet, samt målingsgrunnlaget for dette beløpet, og\nii) for hver ikke-kontrollerende eierinteresse i et overtatt foretak som er målt til virkelig verdi, den eller de verdsettingsmetodene og de viktigste inndataene for denne modellen som er benyttet ved måling av denne verdien?\n",null,0,0,"P"]
[null,"A8.1.17","Forskriften \n§ 4-2 nr. 2\nIFRS 3 B64p\n","• I virksomhetssammenslutning som gjennomføres trinnvis, er det opplyst om:\n\ni) virkelig verdi på overtakelsestidspunktet av egenkapitalinteressen i det overtatte foretaket som holdes av det overtakende foretaket umiddelbart før overtakelsestidspunktet, og\nii) beløpet for eventuelle gevinster eller tap som er innregnet som et resultat av ny måling til virkelig verdi av egenkapitalinteressen i det overtatte foretaket som holdes av det overtakende foretaket før virksomhetssammenslutningen (se nr. 42), samt den posten i oppstillingen over totalresultat der denne gevinsten eller dette tapet er innregnet?\n",null,0,0,"P"]
[null,"A8.1.18","Forskriften \n§ 4-2 nr. 2\nIFRS 3 B64q\n","• Er det gitt følgende informasjon:\n\ni) beløpene for driftsinntekt og resultat i det overtatte foretaket etter overtakelsestidspunktet som er inkludert i konsernregnskapets oppstilling over totalresultat for rapporteringsperioden, og\nii) driftsinntekt og resultat i det sammensluttede foretaket for inneværende rapporteringsperiode som om overtakelsestidspunktet for alle virksomhetssammenslutningene som skjedde i løpet av året, hadde skjedd ved begynnelsen av årsrapporteringsperioden?\n",null,0,0,"P"]
[null,"A8.1.19",null,"Dersom det ikke er praktisk mulig å gi disse opplysningene, er det opplyst om dette og gitt det en forklaring på hvorfor dette er tilfellet? (I denne IFRS benyttes begrepet \"ikke praktisk mulig\" i samme betydning som IAS 8: \"Regnskapsprinsipper, endringer i regnskapsmessige estimater og feil\").",null,0,0,"P"]
[null,"A8.1.20","Forskriften \n§ 4-2 nr. 2\nIFRS 3 B65","Har det overtakende selskapet gitt samlet de opplysningene som kreves av B64 e)-q) for enkeltstående uvesentlige virksomhetssammenslutninger som skjer i løpet av rapporteringsperioden, og som sammen framstår som vesentlige?",null,0,0,"P"]
[null,"A8.2.",null,"Ikke ferdigstilt oppkjøpsanalyse",null,{"$f":"SUMIF($B550:$B$849,$B549&\"*\",$F550:$F$849)","v":0},"Nei",null,{"$f":"IF($G549=\"Ja\",\"Total: \"&COUNTIFS($B550:$B$849,B549&\"*\",$G550:$G$849,1)&\" | P - \"&COUNTIFS($B550:$B$849,B549&\"*\",$G550:$G$849,1,$H550:$H$849,$E$3)&\" | J - \"&COUNTIFS($B550:$B$849,B549&\"*\",$G550:$G$849,1,$H550:$H$849,$E$4)&\" | N - \"&COUNTIFS($B550:$B$849,B549&\"*\",$G550:$G$849,1,$H550:$H$849,$E$5)&\" | A - \"&COUNTIFS($B550:$B$849,B549&\"*\",$G550:$G$849,1,$H550:$H$849,$E$6)&\" | F - \"&COUNTIFS($B550:$B$849,B549&\"*\",$G550:$G$849,1,$H550:$H$849,$E$7),\"\")","v":""}]
[null,"A8.2.1","Forskriften \n§ 4-2 nr. 2\nIFRS 3 B67","Det overtakende foretaket skal opplyse om følgende for hver vesentlige virksomhetssammenslutning eller i samlet form for enkeltstående uvesentlige virksomhetssammenslutninger som sammen framstår som vesentlige:"]
[null,"A8.2.2","Forskriften \n§ 4-2 nr. 2\nIFRS 3 B67a\n","Dersom første regnskapsføring av en virksomhetssammenslutning er ufullstendig for bestemte eiendeler, forpliktelser, ikke-kontrollerende eierinteresser eller vederlagsposter, og beløpene som er innregnet i finansregnskapet for virksomhetssammenslutningen, dermed bare er foreløpig fastsatt, er det opplyst om:\n\ni) grunnene til at første regnskapsføring av virksomhetssammenslutningen er ufullstendig,\nii) hvilke eiendeler, forpliktelser, egenkapitalinteresser eller vederlagsposter den første regnskapsføringen er ufullstendig for, og\niii) arten av og beløpet for eventuelle justeringer i en målingsperiode som er innregnet i løpet av rapporteringsperioden?\n",null,{"$f":"IF(AND(G551=1,E551=\"i\"),1,IF(AND(G551=1,E551=\"s\"),1,0))","v":0},{"$f":"IF($B551=\"\",\"0\",IF(INDEX($B$11:$H$849,MATCH(LEFT($B551,FIND(\"~\",SUBSTITUTE($B551,\".\",\"~\",LEN($B551)-LEN(SUBSTITUTE($B551,\".\",\"\"))))),$B$11:$B$849,0),MATCH(\"Aktuell?\",$B$9:$H$9,0))=\"Ja\",1,0))","v":0},"P"]
[null,"A8.3.",null,"Betinget vederlag",null,{"$f":"SUMIF($B553:$B$849,$B552&\"*\",$F553:$F$849)","v":0},"Nei",null,{"$f":"IF($G552=\"Ja\",\"Total: \"&COUNTIFS($B553:$B$849,B552&\"*\",$G553:$G$849,1)&\" | P - \"&COUNTIFS($B553:$B$849,B552&\"*\",$G553:$G$849,1,$H553:$H$849,$E$3)&\" | J - \"&COUNTIFS($B553:$B$849,B552&\"*\",$G553:$G$849,1,$H553:$H$849,$E$4)&\" | N - \"&COUNTIFS($B553:$B$849,B552&\"*\",$G553:$G$849,1,$H553:$H$849,$E$5)&\" | A - \"&COUNTIFS($B553:$B$849,B552&\"*\",$G553:$G$849,1,$H553:$H$849,$E$6)&\" | F - \"&COUNTIFS($B553:$B$849,B552&\"*\",$G553:$G$849,1,$H553:$H$849,$E$7),\"\")","v":""}]
[null,"A8.2.1","Forskriften \n§ 4-2 nr. 2\nIFRS 3 B67","Det skal gis opplysninger om følgende for hver vesentlige virksomhetssammenslutning eller i samlet form for enkeltstående uvesentlige virksomhetssammenslutninger som sammen framstår som vesentlige:"]
[null,"A8.3.1","Forskriften \n§ 4-2 nr. 2\nIFRS 3 B67b\n","For hver rapporteringsperiode etter overtakelsestidspunktet og fram til foretaket innkasserer, selger eller på annen måte taper retten til en betinget vederlagseiendel, eller fram til foretaket gjør opp en betinget vederlagsforpliktelse eller forpliktelsen kanselleres eller utløper, er det opplyst om:\n\ni) alle endringer i de innregnede beløpene, herunder eventuelle differanser som oppstår ved oppgjøret,\nii) alle endringer i utfallrommet (udiskontert) og grunnene til disse endringene, og\niii) de verdsettingsmetodene og de viktigste dataene for denne modellen som er benyttet til å måle betinget vederlag?",null,{"$f":"IF(AND(G554=1,E554=\"i\"),1,IF(AND(G554=1,E554=\"s\"),1,0))","v":0},{"$f":"IF($B554=\"\",\"0\",IF(INDEX($B$11:$H$849,MATCH(LEFT($B554,FIND(\"~\",SUBSTITUTE($B554,\".\",\"~\",LEN($B554)-LEN(SUBSTITUTE($B554,\".\",\"\"))))),$B$11:$B$849,0),MATCH(\"Aktuell?\",$B$9:$H$9,0))=\"Ja\",1,0))","v":0},"P"]
[null,"A8.4.",null,"Betingede forpliktelser regnskapsført som del av virksomhetssammenslutninger",null,{"$f":"SUMIF($B556:$B$849,$B555&\"*\",$F556:$F$849)","v":0},"Nei",null,{"$f":"IF($G555=\"Ja\",\"Total: \"&COUNTIFS($B556:$B$849,B555&\"*\",$G556:$G$849,1)&\" | P - \"&COUNTIFS($B556:$B$849,B555&\"*\",$G556:$G$849,1,$H556:$H$849,$E$3)&\" | J - \"&COUNTIFS($B556:$B$849,B555&\"*\",$G556:$G$849,1,$H556:$H$849,$E$4)&\" | N - \"&COUNTIFS($B556:$B$849,B555&\"*\",$G556:$G$849,1,$H556:$H$849,$E$5)&\" | A - \"&COUNTIFS($B556:$B$849,B555&\"*\",$G556:$G$849,1,$H556:$H$849,$E$6)&\" | F - \"&COUNTIFS($B556:$B$849,B555&\"*\",$G556:$G$849,1,$H556:$H$849,$E$7),\"\")","v":""}]
[null,null,"Forskriften \n§ 4-2 nr. 2\nIFRS 3 B67c","Er det gitt de opplysningene som kreves av nr. 84 og 85 i IAS 37 for hver klasse av avsetninger for betingede forpliktelser som er innregnet ved en virksomhetssammenslutning (Det overtakende foretaket skal gi opplysninger om følgende for hver vesentlige virksomhetssammenslutning eller i samlet form for enkeltstående uvesentlige virksomhetssammenslutninger som sammen framstår som vesentlige)?\nEtter IAS 37 skal det opplyses om følgende:"]
[null,"A8.4.1","IAS 37.84","For hver klasse av avsetninger skal et foretak opplyse om (Sammenligningsinformasjon kreves ikke):",null,{"$f":"IF(AND(G557=1,E557=\"i\"),1,IF(AND(G557=1,E557=\"s\"),1,0))","v":0},{"$f":"IF($B557=\"\",\"0\",IF(INDEX($B$11:$H$849,MATCH(LEFT($B557,FIND(\"~\",SUBSTITUTE($B557,\".\",\"~\",LEN($B557)-LEN(SUBSTITUTE($B557,\".\",\"\"))))),$B$11:$B$849,0),MATCH(\"Aktuell?\",$B$9:$H$9,0))=\"Ja\",1,0))","v":0},"P"]
[null,"A8.4.2",null,"a) balanseført verdi ved periodens begynnelse og slutt, ",null,0,0,"P"]
[null,"A8.4.3",null,"b) ekstra avsetninger foretatt i perioden, herunder økninger i eksisterende avsetninger, ",null,0,0,"P"]
[null,"A8.4.4",null,"c) beløp som er benyttet (dvs. som har påløpt og er regnskapsført mot avsetningen) i løpet av perioden, ",null,0,0,"P"]
[null,"A8.4.5",null,"d) ubenyttede beløp som er reversert i løpet av perioden, og ",null,0,0,"P"]
[null,"A8.4.6",null,"e) økningen i løpet av perioden i det diskonterte beløpet som oppstår over tid, samt virkningen av eventuelle endringer i diskonteringsrenten. ",null,0,0,"P"]
[null,"A8.4.7","IAS 37.85","For hver klasse av avsetninger skal et foretak gi følgende opplysninger: "]
[null,"A8.4.8",null,"b) en indikasjon på usikkerhetsmomenter omkring beløpet eller for oppgjørstidspunktet for slike strømmer ut av foretaket. Der det er nødvendig for å kunne legge fram fullgod informasjon, skal et foretak opplyse om de viktigste forutsetningene som er gjort om framtidige hendelser, slik det er fastsatt i nr. 48, og ",null,{"$f":"IF(AND(G564=1,E564=\"i\"),1,IF(AND(G564=1,E564=\"s\"),1,0))","v":0},{"$f":"IF($B564=\"\",\"0\",IF(INDEX($B$11:$H$849,MATCH(LEFT($B564,FIND(\"~\",SUBSTITUTE($B564,\".\",\"~\",LEN($B564)-LEN(SUBSTITUTE($B564,\".\",\"\"))))),$B$11:$B$849,0),MATCH(\"Aktuell?\",$B$9:$H$9,0))=\"Ja\",1,0))","v":0},"P"]
[null,"A8.4.9",null,"a) en kort beskrivelse av pliktens art og forventet oppgjørstidspunkt for en eventuell strøm av økonomiske fordeler ut av foretaket, ",null,{"$f":"IF(AND(G565=1,E565=\"i\"),1,IF(AND(G565=1,E565=\"s\"),1,0))","v":0},{"$f":"IF($B565=\"\",\"0\",IF(INDEX($B$11:$H$849,MATCH(LEFT($B565,FIND(\"~\",SUBSTITUTE($B565,\".\",\"~\",LEN($B565)-LEN(SUBSTITUTE($B565,\".\",\"\"))))),$B$11:$B$849,0),MATCH(\"Aktuell?\",$B$9:$H$9,0))=\"Ja\",1,0))","v":0},"P"]
[null,"A8.4.10",null,"c) beløpet for en eventuell forventet refusjon, med angivelse av beløpet for alle eiendeler som er innregnet for den forventede refusjonen.",null,{"$f":"IF(AND(G566=1,E566=\"i\"),1,IF(AND(G566=1,E566=\"s\"),1,0))","v":0},{"$f":"IF($B566=\"\",\"0\",IF(INDEX($B$11:$H$849,MATCH(LEFT($B566,FIND(\"~\",SUBSTITUTE($B566,\".\",\"~\",LEN($B566)-LEN(SUBSTITUTE($B566,\".\",\"\"))))),$B$11:$B$849,0),MATCH(\"Aktuell?\",$B$9:$H$9,0))=\"Ja\",1,0))","v":0},"P"]
[null,"A9.",null,"Fisjon",null,{"$f":"SUMIFS($F587:$F$868,$B587:$B$868,$B567&\"*\",$G587:$G$868,\"Ja\")","v":0},{"$f":"IF(COUNTIFS($B587:$B$868,$B567&\"*\",$G587:$G$868,\"Ja\")>0,\"Ja\",\"Nei\")","v":"Nei"}]
[null,"A9.1.",null,"Generelt",null,{"$f":"SUMIF($B569:$B$868,$B568&\"*\",$F569:$F$868)","v":0},"Nei",null,{"$f":"IF($G568=\"Ja\",\"Total: \"&COUNTIFS($B569:$B$868,B568&\"*\",$G569:$G$868,1)&\" | P - \"&COUNTIFS($B569:$B$868,B568&\"*\",$G569:$G$868,1,$H569:$H$868,$E$3)&\" | J - \"&COUNTIFS($B569:$B$868,B568&\"*\",$G569:$G$868,1,$H569:$H$868,$E$4)&\" | N - \"&COUNTIFS($B569:$B$868,B568&\"*\",$G569:$G$868,1,$H569:$H$868,$E$5)&\" | A - \"&COUNTIFS($B569:$B$868,B568&\"*\",$G569:$G$868,1,$H569:$H$868,$E$6)&\" | F - \"&COUNTIFS($B569:$B$868,B568&\"*\",$G569:$G$868,1,$H569:$H$868,$E$7),\"\")","v":""}]
[null,"A9.1.1","NRS (F) \nFisjon","Er følgende opplysninger gitt i alle fisjonerte selskaper i den regnskapsperiode hvor fisjonen finner sted:"]
[null,"A9.1.2",null,"• Navnet på alle fisjonerte selskaper?",null,{"$f":"IF(AND(G570=1,E570=\"i\"),1,IF(AND(G570=1,E570=\"s\"),1,0))","v":0},{"$f":"IF($B570=\"\",\"0\",IF(INDEX($B$11:$H$868,MATCH(LEFT($B570,FIND(\"~\",SUBSTITUTE($B570,\".\",\"~\",LEN($B570)-LEN(SUBSTITUTE($B570,\".\",\"\"))))),$B$11:$B$868,0),MATCH(\"Aktuell?\",$B$9:$H$9,0))=\"Ja\",1,0))","v":0},"P"]
[null,"A9.1.3",null,"• I overdragende selskap som videreføres: Opplysning om eventuell kapitalnedsettelse og, i tilfelle skjevdeling, om eventuelle innløsningsaksjer?",null,0,0,"P"]
[null,"A9.1.4",null,"• Delingstidspunkt, eller eventuelt avtaletidspunkt og gjennomføringstidspunkt, som er lagt til grunn i regnskapet?",null,0,0,"P"]
[null,"A9.1.5",null,"• Fisjonens juridiske struktur?",null,0,0,"P"]
[null,"A9.1.6",null,"• Anvendelse av regnskapsprinsipp og begrunnelse for dette?",null,0,0,"P"]
[null,"A9.1.7",null,"• Ved skjevdeling, er det gitt tilleggsinformasjon i samsvar med notekravene for store foretak?",null,0,0,"P"]
[null,"A9.1.8",null,"Ved fisjonsfusjon regnskapsført som kontinuitetsunntak skal sammenligningstallene være sammenslåtte regnskapstall fra begge (alle) de fusjonerte selskapene.\n\nVed øvrige fisjoner skal sammenligningstall ikke omarbeides."]
[null,"A9.2.",null,"Ekstra notekrav for store foretak og ved skjevdeling",null,{"$f":"SUMIF($B578:$B$868,$B577&\"*\",$F578:$F$868)","v":0},"Nei",null,{"$f":"IF($G577=\"Ja\",\"Total: \"&COUNTIFS($B578:$B$868,B577&\"*\",$G578:$G$868,1)&\" | P - \"&COUNTIFS($B578:$B$868,B577&\"*\",$G578:$G$868,1,$H578:$H$868,$E$3)&\" | J - \"&COUNTIFS($B578:$B$868,B577&\"*\",$G578:$G$868,1,$H578:$H$868,$E$4)&\" | N - \"&COUNTIFS($B578:$B$868,B577&\"*\",$G578:$G$868,1,$H578:$H$868,$E$5)&\" | A - \"&COUNTIFS($B578:$B$868,B577&\"*\",$G578:$G$868,1,$H578:$H$868,$E$6)&\" | F - \"&COUNTIFS($B578:$B$868,B577&\"*\",$G578:$G$868,1,$H578:$H$868,$E$7),\"\")","v":""}]
[null,"A9.2.1","NRS (F) \nFisjon","Er det for store foretak i tillegg til opplysningene ovenfor gitt følgende tilleggsopplysninger: "]
[null,"A9.2.2",null,"• En nærmere beskrivelse av overdragende selskap, samt overtakende selskap i en fisjonsfusjon.",null,{"$f":"IF(AND(G579=1,E579=\"i\"),1,IF(AND(G579=1,E579=\"s\"),1,0))","v":0},{"$f":"IF($B579=\"\",\"0\",IF(INDEX($B$11:$H$868,MATCH(LEFT($B579,FIND(\"~\",SUBSTITUTE($B579,\".\",\"~\",LEN($B579)-LEN(SUBSTITUTE($B579,\".\",\"\"))))),$B$11:$B$868,0),MATCH(\"Aktuell?\",$B$9:$H$9,0))=\"Ja\",1,0))","v":0},"P"]
[null,"A9.2.3",null,"• Beskrivelse av alle vederlag.",null,{"$f":"IF(AND(G580=1,E580=\"i\"),1,IF(AND(G580=1,E580=\"s\"),1,0))","v":0},{"$f":"IF($B580=\"\",\"0\",IF(INDEX($B$11:$H$868,MATCH(LEFT($B580,FIND(\"~\",SUBSTITUTE($B580,\".\",\"~\",LEN($B580)-LEN(SUBSTITUTE($B580,\".\",\"\"))))),$B$11:$B$868,0),MATCH(\"Aktuell?\",$B$9:$H$9,0))=\"Ja\",1,0))","v":0},"P"]
[null,"A9.2.4",null,"• Eventuelle vilkår om etterfølgende justering av delingen.",null,{"$f":"IF(AND(G581=1,E581=\"i\"),1,IF(AND(G581=1,E581=\"s\"),1,0))","v":0},{"$f":"IF($B581=\"\",\"0\",IF(INDEX($B$11:$H$868,MATCH(LEFT($B581,FIND(\"~\",SUBSTITUTE($B581,\".\",\"~\",LEN($B581)-LEN(SUBSTITUTE($B581,\".\",\"\"))))),$B$11:$B$868,0),MATCH(\"Aktuell?\",$B$9:$H$9,0))=\"Ja\",1,0))","v":0},"P"]
[null,"A9.2.5",null,"Er det ved fisjon regnskapsført som transaksjon i tillegg gitt følgende opplysninger: "]
[null,"A9.2.6",null,"• Verdi av tingsuttak og verdi og fordeling av tingsinnskudd",null,{"$f":"IF(AND(G583=1,E583=\"i\"),1,IF(AND(G583=1,E583=\"s\"),1,0))","v":0},{"$f":"IF($B583=\"\",\"0\",IF(INDEX($B$11:$H$868,MATCH(LEFT($B583,FIND(\"~\",SUBSTITUTE($B583,\".\",\"~\",LEN($B583)-LEN(SUBSTITUTE($B583,\".\",\"\"))))),$B$11:$B$868,0),MATCH(\"Aktuell?\",$B$9:$H$9,0))=\"Ja\",1,0))","v":0},"P"]
[null,"A9.2.7",null,"• Vurdering av utsatt skatt",null,{"$f":"IF(AND(G584=1,E584=\"i\"),1,IF(AND(G584=1,E584=\"s\"),1,0))","v":0},{"$f":"IF($B584=\"\",\"0\",IF(INDEX($B$11:$H$868,MATCH(LEFT($B584,FIND(\"~\",SUBSTITUTE($B584,\".\",\"~\",LEN($B584)-LEN(SUBSTITUTE($B584,\".\",\"\"))))),$B$11:$B$868,0),MATCH(\"Aktuell?\",$B$9:$H$9,0))=\"Ja\",1,0))","v":0},"P"]
[null,"A9.2.8",null,"• I overtakende selskap skal det gis opplysning goodwill og negativ goodwill som for fusjon, Se NRS Fusjon pkt 5.",null,{"$f":"IF(AND(G585=1,E585=\"i\"),1,IF(AND(G585=1,E585=\"s\"),1,0))","v":0},{"$f":"IF($B585=\"\",\"0\",IF(INDEX($B$11:$H$868,MATCH(LEFT($B585,FIND(\"~\",SUBSTITUTE($B585,\".\",\"~\",LEN($B585)-LEN(SUBSTITUTE($B585,\".\",\"\"))))),$B$11:$B$868,0),MATCH(\"Aktuell?\",$B$9:$H$9,0))=\"Ja\",1,0))","v":0},"P"]
[null,"A9.2.9",null,"• Er solidaransvar som nevnt aksjelovene § 14-11 opplyst, og eventuelt regnskapsført, i samsvar med retningslinjene i F NRS Usikre forpliktelser og betingede eiendeler?",null,{"$f":"IF(AND(G586=1,E586=\"i\"),1,IF(AND(G586=1,E586=\"s\"),1,0))","v":0},{"$f":"IF($B586=\"\",\"0\",IF(INDEX($B$11:$H$868,MATCH(LEFT($B586,FIND(\"~\",SUBSTITUTE($B586,\".\",\"~\",LEN($B586)-LEN(SUBSTITUTE($B586,\".\",\"\"))))),$B$11:$B$868,0),MATCH(\"Aktuell?\",$B$9:$H$9,0))=\"Ja\",1,0))","v":0},"P"]
[null,"A9.3.",null,"Proformainformasjon",null,{"$f":"SUMIF($B588:$B$868,$B587&\"*\",$F588:$F$868)","v":0},"Nei",null,{"$f":"IF($G587=\"Ja\",\"Total: \"&COUNTIFS($B588:$B$868,B587&\"*\",$G588:$G$868,1)&\" | P - \"&COUNTIFS($B588:$B$868,B587&\"*\",$G588:$G$868,1,$H588:$H$868,$E$3)&\" | J - \"&COUNTIFS($B588:$B$868,B587&\"*\",$G588:$G$868,1,$H588:$H$868,$E$4)&\" | N - \"&COUNTIFS($B588:$B$868,B587&\"*\",$G588:$G$868,1,$H588:$H$868,$E$5)&\" | A - \"&COUNTIFS($B588:$B$868,B587&\"*\",$G588:$G$868,1,$H588:$H$868,$E$6)&\" | F - \"&COUNTIFS($B588:$B$868,B587&\"*\",$G588:$G$868,1,$H588:$H$868,$E$7),\"\")","v":""}]
[null,"A9.3.1",null,"Proformainformasjon pliktes bare gitt i de tilfeller hvor slik informasjon er av svært stor betydning for å kunne bedømme stilling og resultat. \n\nPrinsipper for utarbeidelse av proformainformasjon følger reglene for konsernselskap. Følgende regler gjelder:"]
[null,"A9.3.2",null,"• Krav om proforma sammenlignbare tall gjelder normalt bare konsernregnskap, men det skal gis tilsvarende informasjon i selskapsregnskapet dersom et fisjonert selskap ikke er del av et konsern.",null,{"$f":"IF(AND(G589=1,E589=\"i\"),1,IF(AND(G589=1,E589=\"s\"),1,0))","v":0},{"$f":"IF($B589=\"\",\"0\",IF(INDEX($B$11:$H$868,MATCH(LEFT($B589,FIND(\"~\",SUBSTITUTE($B589,\".\",\"~\",LEN($B589)-LEN(SUBSTITUTE($B589,\".\",\"\"))))),$B$11:$B$868,0),MATCH(\"Aktuell?\",$B$9:$H$9,0))=\"Ja\",1,0))","v":0},"P"]
[null,"A9.3.3",null,"• Det skal gis proformainformasjon ved skjevdeling av store selskaper.",null,{"$f":"IF(AND(G590=1,E590=\"i\"),1,IF(AND(G590=1,E590=\"s\"),1,0))","v":0},{"$f":"IF($B590=\"\",\"0\",IF(INDEX($B$11:$H$868,MATCH(LEFT($B590,FIND(\"~\",SUBSTITUTE($B590,\".\",\"~\",LEN($B590)-LEN(SUBSTITUTE($B590,\".\",\"\"))))),$B$11:$B$868,0),MATCH(\"Aktuell?\",$B$9:$H$9,0))=\"Ja\",1,0))","v":0},"P"]
[null,"A9.3.4",null,"• Ved annen skjevdeling skal det gis proformainformasjon, unntatt når ett fisjonert selskap overtar 60 prosent eller mer av overdragende selskaps egenkapital.",null,{"$f":"IF(AND(G591=1,E591=\"i\"),1,IF(AND(G591=1,E591=\"s\"),1,0))","v":0},{"$f":"IF($B591=\"\",\"0\",IF(INDEX($B$11:$H$868,MATCH(LEFT($B591,FIND(\"~\",SUBSTITUTE($B591,\".\",\"~\",LEN($B591)-LEN(SUBSTITUTE($B591,\".\",\"\"))))),$B$11:$B$868,0),MATCH(\"Aktuell?\",$B$9:$H$9,0))=\"Ja\",1,0))","v":0},"P"]
[null,"A9.3.5",null,"• Når både overdragende og overtakende selskap i fisjonsfusjon er store selskaper, skal det gis proformainformasjon.",null,{"$f":"IF(AND(G592=1,E592=\"i\"),1,IF(AND(G592=1,E592=\"s\"),1,0))","v":0},{"$f":"IF($B592=\"\",\"0\",IF(INDEX($B$11:$H$868,MATCH(LEFT($B592,FIND(\"~\",SUBSTITUTE($B592,\".\",\"~\",LEN($B592)-LEN(SUBSTITUTE($B592,\".\",\"\"))))),$B$11:$B$868,0),MATCH(\"Aktuell?\",$B$9:$H$9,0))=\"Ja\",1,0))","v":0},"P"]
[null,"A10.",null,"Finansielle instrumenter",null,{"$f":"SUMIFS($F594:$F$849,$B594:$B$849,$B593&\"*\",$G594:$G$849,\"Ja\")","v":66},{"$f":"IF(COUNTIFS($B594:$B$849,$B593&\"*\",$G594:$G$849,\"Ja\")>0,\"Ja\",\"Nei\")","v":"Ja"}]
[null,"A10.1.",null,"Generelle notekrav etter IFRS 7",null,{"$f":"SUMIF($B596:$B$849,$B594&\"*\",$F596:$F$849)","v":0},"Nei",null,{"$f":"IF($G594=\"Ja\",\"Total: \"&COUNTIFS($B595:$B$849,B594&\"*\",$G595:$G$849,1)&\" | P - \"&COUNTIFS($B595:$B$849,B594&\"*\",$G595:$G$849,1,$H595:$H$849,$E$3)&\" | J - \"&COUNTIFS($B595:$B$849,B594&\"*\",$G595:$G$849,1,$H595:$H$849,$E$4)&\" | N - \"&COUNTIFS($B595:$B$849,B594&\"*\",$G595:$G$849,1,$H595:$H$849,$E$5)&\" | A - \"&COUNTIFS($B595:$B$849,B594&\"*\",$G595:$G$849,1,$H595:$H$849,$E$6)&\" | F - \"&COUNTIFS($B595:$B$849,B594&\"*\",$G595:$G$849,1,$H595:$H$849,$E$7),\"\")","v":""}]
[null,"A10.1.1","Forskriften \n§ 4-2 nr 4","Det skal gis noteopplysninger i henhold til IFRS 7 med unntak fra nr. 12A, nr. 13A-13F,  nr. 32, nr. 32A, nr. 34-42H og B6-B39. IFRS 7 nr. 5 gjelder ikke for konserninterne kontrakter.\n\nNotekravene i IFRS 7 er vesentlig endret etter innføringen av IFRS 9. Forskriften om forenklet IFRS har ikke vært oppdatert i takt med endringene under full IFRS, hvilket har medført at den på nåværende tidspunkt er utdatert på en rekke områder. \n\nDet følger av faneparagrafen i rskl. § 7-1 (2) at det skal gis opplysninger som er nødvendige for å bedømme den regnskapspliktiges eller konsernets stilling og resultat og som ikke fremgår av årsregnskapet for øvrig. \n\nPå bakgrunn av dette må den enkelte regnskapspliktige vurdere hvilke noteopplysninger i IFRS 7 (som ikke er eksplisitt unntatt i forskriften) som må gis for at regnskapsbrukerne skal få et rettvisende og dekkende bilde av årsregnskapet.",null,{"$f":"IF(AND(G595=1,E595=\"i\"),1,IF(AND(G595=1,E595=\"s\"),1,0))","v":0},{"$f":"IF($B595=\"\",\"0\",IF(INDEX($B$11:$H$849,MATCH(LEFT($B595,FIND(\"~\",SUBSTITUTE($B595,\".\",\"~\",LEN($B595)-LEN(SUBSTITUTE($B595,\".\",\"\"))))),$B$11:$B$849,0),MATCH(\"Aktuell?\",$B$9:$H$9,0))=\"Ja\",1,0))","v":0},"P"]
[null,"A10.1.2","IFRS 7.6, App. B1-B3","Når IFRS 7 krever opplysninger i henhold til klasser av finansielle instrumenter, skal finansielle instrumenter grupperes i klasser som er hensiktsmessige for typen av opplysninger som gis. Vurder hva som kjennetegner de finansielle instrumentene. Gi tilstrekkelig informasjon til at det er mulig å foreta en avstemming av balansepostene.",null,{"$f":"IF(AND(G596=1,E596=\"i\"),1,IF(AND(G596=1,E596=\"s\"),1,0))","v":0},{"$f":"IF($B596=\"\",\"0\",IF(INDEX($B$11:$H$849,MATCH(LEFT($B596,FIND(\"~\",SUBSTITUTE($B596,\".\",\"~\",LEN($B596)-LEN(SUBSTITUTE($B596,\".\",\"\"))))),$B$11:$B$849,0),MATCH(\"Aktuell?\",$B$9:$H$9,0))=\"Ja\",1,0))","v":0},"P"]
[null,"A10.1.3","IFRS 7.7","Er det gitt opplysninger som setter brukere av dets finansregnskap i stand til å evaluere finansielle instrumenters betydning for foretakets finansielle stilling og inntjening?",null,{"$f":"IF(AND(G597=1,E597=\"i\"),1,IF(AND(G597=1,E597=\"s\"),1,0))","v":0},{"$f":"IF($B597=\"\",\"0\",IF(INDEX($B$11:$H$849,MATCH(LEFT($B597,FIND(\"~\",SUBSTITUTE($B597,\".\",\"~\",LEN($B597)-LEN(SUBSTITUTE($B597,\".\",\"\"))))),$B$11:$B$849,0),MATCH(\"Aktuell?\",$B$9:$H$9,0))=\"Ja\",1,0))","v":0},"P"]
[null,"A10.2.",null,"Klasser av finansielle eiendeler og finansielle forpliktelser",null,{"$f":"SUMIF($B599:$B$849,$B598&\"*\",$F599:$F$849)","v":0},"Nei",null,{"$f":"IF($G598=\"Ja\",\"Total: \"&COUNTIFS($B599:$B$849,B598&\"*\",$G599:$G$849,1)&\" | P - \"&COUNTIFS($B599:$B$849,B598&\"*\",$G599:$G$849,1,$H599:$H$849,$E$3)&\" | J - \"&COUNTIFS($B599:$B$849,B598&\"*\",$G599:$G$849,1,$H599:$H$849,$E$4)&\" | N - \"&COUNTIFS($B599:$B$849,B598&\"*\",$G599:$G$849,1,$H599:$H$849,$E$5)&\" | A - \"&COUNTIFS($B599:$B$849,B598&\"*\",$G599:$G$849,1,$H599:$H$849,$E$6)&\" | F - \"&COUNTIFS($B599:$B$849,B598&\"*\",$G599:$G$849,1,$H599:$H$849,$E$7),\"\")","v":""}]
[null,"A10.2.1","IFRS 7.8","Er det opplyst om balanseført verdi av hver av de følgende klassene (enten i balansen eller i note):"]
[null,"A10.2.2",null,"• Finansielle eiendeler målt til virkelig verdi over resultatet, som hver for seg viser:\ni) de finansielle eiendelene som ble øremerket som slike ved eller etter førstegangsinnregning i samsvar med nr. 6.7.1 i IFRS 9, og\nii) de som obligatorisk ble målt til virkelig verdi over resultatet i samsvar med IFRS 9","i",{"$f":"IF(AND(G600=1,E600=\"i\"),1,IF(AND(G600=1,E600=\"s\"),1,0))","v":0},{"$f":"IF($B600=\"\",\"0\",IF(INDEX($B$11:$H$849,MATCH(LEFT($B600,FIND(\"~\",SUBSTITUTE($B600,\".\",\"~\",LEN($B600)-LEN(SUBSTITUTE($B600,\".\",\"\"))))),$B$11:$B$849,0),MATCH(\"Aktuell?\",$B$9:$H$9,0))=\"Ja\",1,0))","v":0},"P"]
[null,"A10.2.3",null,"• Finansielle eiendeler målt til amortisert kost","i",{"$f":"IF(AND(G601=1,E601=\"i\"),1,IF(AND(G601=1,E601=\"s\"),1,0))","v":0},{"$f":"IF($B601=\"\",\"0\",IF(INDEX($B$11:$H$849,MATCH(LEFT($B601,FIND(\"~\",SUBSTITUTE($B601,\".\",\"~\",LEN($B601)-LEN(SUBSTITUTE($B601,\".\",\"\"))))),$B$11:$B$849,0),MATCH(\"Aktuell?\",$B$9:$H$9,0))=\"Ja\",1,0))","v":0},"P"]
[null,"A10.2.4",null,"• Finansielle eiendeler målt til virkelig verdi over andre inntekter og kostnader, som hver for seg viser:\n i) finansielle eiendeler som måles til virkelig verdi over andre inntekter og kostnader i samsvar med nr. 4.1.2 A i IFRS 9, og\n ii) investeringer i egenkapitalinstrumenter øremerket som slike ved førstegangsinnregning i samsvar med nr. 5.7.5 i IFRS 9","i",{"$f":"IF(AND(G602=1,E602=\"i\"),1,IF(AND(G602=1,E602=\"s\"),1,0))","v":0},{"$f":"IF($B602=\"\",\"0\",IF(INDEX($B$11:$H$849,MATCH(LEFT($B602,FIND(\"~\",SUBSTITUTE($B602,\".\",\"~\",LEN($B602)-LEN(SUBSTITUTE($B602,\".\",\"\"))))),$B$11:$B$849,0),MATCH(\"Aktuell?\",$B$9:$H$9,0))=\"Ja\",1,0))","v":0},"P"]
[null,"A10.2.5",null,"• Finansielle forpliktelser til virkelig verdi over resultatet, som hver for seg viser: \ni) de finansielle forpliktelsene som ble øremerket som slike ved eller etter førstegangsinnregning i samsvar med nr. 6.7.1 i IFRS 9, og\nii) de som oppfyller definisjonen av \"holdt for omsetning\" i IFRS 9\n","i",{"$f":"IF(AND(G603=1,E603=\"i\"),1,IF(AND(G603=1,E603=\"s\"),1,0))","v":0},{"$f":"IF($B603=\"\",\"0\",IF(INDEX($B$11:$H$849,MATCH(LEFT($B603,FIND(\"~\",SUBSTITUTE($B603,\".\",\"~\",LEN($B603)-LEN(SUBSTITUTE($B603,\".\",\"\"))))),$B$11:$B$849,0),MATCH(\"Aktuell?\",$B$9:$H$9,0))=\"Ja\",1,0))","v":0},"P"]
[null,"A10.2.6",null,"• Finansielle forpliktelser målt til amortisert kost?","i",{"$f":"IF(AND(G604=1,E604=\"i\"),1,IF(AND(G604=1,E604=\"s\"),1,0))","v":0},{"$f":"IF($B604=\"\",\"0\",IF(INDEX($B$11:$H$849,MATCH(LEFT($B604,FIND(\"~\",SUBSTITUTE($B604,\".\",\"~\",LEN($B604)-LEN(SUBSTITUTE($B604,\".\",\"\"))))),$B$11:$B$849,0),MATCH(\"Aktuell?\",$B$9:$H$9,0))=\"Ja\",1,0))","v":0},"P"]
[null,"A10.3.",null,"Finansielle eiendeler eller finansielle forpliktelser til virkelig verdi over resultatet",null,{"$f":"SUMIF($B606:$B$849,$B605&\"*\",$F606:$F$849)","v":0},"Nei",null,{"$f":"IF($G605=\"Ja\",\"Total: \"&COUNTIFS($B606:$B$849,B605&\"*\",$G606:$G$849,1)&\" | P - \"&COUNTIFS($B606:$B$849,B605&\"*\",$G606:$G$849,1,$H606:$H$849,$E$3)&\" | J - \"&COUNTIFS($B606:$B$849,B605&\"*\",$G606:$G$849,1,$H606:$H$849,$E$4)&\" | N - \"&COUNTIFS($B606:$B$849,B605&\"*\",$G606:$G$849,1,$H606:$H$849,$E$5)&\" | A - \"&COUNTIFS($B606:$B$849,B605&\"*\",$G606:$G$849,1,$H606:$H$849,$E$6)&\" | F - \"&COUNTIFS($B606:$B$849,B605&\"*\",$G606:$G$849,1,$H606:$H$849,$E$7),\"\")","v":""}]
[null,"A10.3.1","IFRS 7.9","Er det for utlån/fordringer (eller en gruppe av utlån eller fordringer) øremerket til virkelig verdi over resultatet opplyst om:"]
[null,"A10.3.2",null,"• Maksimal eksponering for kredittrisiko på slutten av rapporteringsperioden for utlånet eller fordringen (gruppen)?",null,{"$f":"IF(AND(G607=1,E607=\"i\"),1,IF(AND(G607=1,E607=\"s\"),1,0))","v":0},{"$f":"IF($B607=\"\",\"0\",IF(INDEX($B$11:$H$849,MATCH(LEFT($B607,FIND(\"~\",SUBSTITUTE($B607,\".\",\"~\",LEN($B607)-LEN(SUBSTITUTE($B607,\".\",\"\"))))),$B$11:$B$849,0),MATCH(\"Aktuell?\",$B$9:$H$9,0))=\"Ja\",1,0))","v":0},"P"]
[null,"A10.3.3",null,"• Det beløp som evt. tilknyttede kredittderivater eller lignende minsker eksponert kredittrisiko med?",null,{"$f":"IF(AND(G608=1,E608=\"i\"),1,IF(AND(G608=1,E608=\"s\"),1,0))","v":0},{"$f":"IF($B608=\"\",\"0\",IF(INDEX($B$11:$H$849,MATCH(LEFT($B608,FIND(\"~\",SUBSTITUTE($B608,\".\",\"~\",LEN($B608)-LEN(SUBSTITUTE($B608,\".\",\"\"))))),$B$11:$B$849,0),MATCH(\"Aktuell?\",$B$9:$H$9,0))=\"Ja\",1,0))","v":0},"P"]
[null,"A10.3.4",null,"• Endring i virkelig verdi på utlån/fordring (for perioden og kumulativt) som kan henføres til endring i kredittrisiko, beregnet enten (valgt metode skal opplyses om):\n   - som endring i virkelig verdi som ikke kan henføres til endringer i markedsforhold som fører til markedsrisiko (endringer i en observert [referanse]rente, råvarepris, valutakurs eller indeks for priser eller satser), eller\n   - ved hjelp av alternativ metode som foretaket mener bedre representerer endring i virkelig verdi som kan henføres til eiendelens kredittrisiko",null,{"$f":"IF(AND(G609=1,E609=\"i\"),1,IF(AND(G609=1,E609=\"s\"),1,0))","v":0},{"$f":"IF($B609=\"\",\"0\",IF(INDEX($B$11:$H$849,MATCH(LEFT($B609,FIND(\"~\",SUBSTITUTE($B609,\".\",\"~\",LEN($B609)-LEN(SUBSTITUTE($B609,\".\",\"\"))))),$B$11:$B$849,0),MATCH(\"Aktuell?\",$B$9:$H$9,0))=\"Ja\",1,0))","v":0},"P"]
[null,"A10.3.5",null,"• Endring i virkelig verdi av tilknyttede kredittderivater eller tilsvarende instrumenter som har skjedd i perioden og kumulativt etter at lån/fordring ble øremerket?",null,{"$f":"IF(AND(G610=1,E610=\"i\"),1,IF(AND(G610=1,E610=\"s\"),1,0))","v":0},{"$f":"IF($B610=\"\",\"0\",IF(INDEX($B$11:$H$849,MATCH(LEFT($B610,FIND(\"~\",SUBSTITUTE($B610,\".\",\"~\",LEN($B610)-LEN(SUBSTITUTE($B610,\".\",\"\"))))),$B$11:$B$849,0),MATCH(\"Aktuell?\",$B$9:$H$9,0))=\"Ja\",1,0))","v":0},"P"]
[null,"A10.3.6","IFRS 7.10","Er det opplyst om følgende dersom foretaket har øremerket en finansiell forpliktelse til virkelig verdi over resultatet i samsvar med nr. 4.2.2 i IFRS 9 nr. 9 og er forpliktet til å innregne virkningene av endringer i den forpliktelsens kredittrisiko i andre inntekter og kostnader (se nr. 5.7.7 i IFRS 9)?"]
[null,"A10.3.7",null,"• Endring i virkelig verdi for forpliktelsen (kumulativt) som kan henføres til endring i kredittrisiko, beregnet enten (valgt metode skal opplyses om):\n   - som endring i virkelig verdi av forpliktelsen som ikke kan henføres til endringer i markedsforhold som fører til markedsrisiko (endringer i en referanserente, prisen på et annet foretaks finansielle instrument, en råvarepris, en valutakurs eller en indeks for priser eller satser), eller\n   - ved hjelp av alternativ metode som foretaket mener bedre representerer endring i virkelig verdi som kan henføres til endringer i forpliktelsens kredittrisiko?","i",{"$f":"IF(AND(G612=1,E612=\"i\"),1,IF(AND(G612=1,E612=\"s\"),1,0))","v":0},{"$f":"IF($B612=\"\",\"0\",IF(INDEX($B$11:$H$849,MATCH(LEFT($B612,FIND(\"~\",SUBSTITUTE($B612,\".\",\"~\",LEN($B612)-LEN(SUBSTITUTE($B612,\".\",\"\"))))),$B$11:$B$849,0),MATCH(\"Aktuell?\",$B$9:$H$9,0))=\"Ja\",1,0))","v":0},"P"]
[null,"A10.3.8",null,"• Differansen mellom balanseført verdi og den kontraktsmessige forpliktelsen ved forfall?",null,{"$f":"IF(AND(G613=1,E613=\"i\"),1,IF(AND(G613=1,E613=\"s\"),1,0))","v":0},{"$f":"IF($B613=\"\",\"0\",IF(INDEX($B$11:$H$849,MATCH(LEFT($B613,FIND(\"~\",SUBSTITUTE($B613,\".\",\"~\",LEN($B613)-LEN(SUBSTITUTE($B613,\".\",\"\"))))),$B$11:$B$849,0),MATCH(\"Aktuell?\",$B$9:$H$9,0))=\"Ja\",1,0))","v":0},"P"]
[null,"A10.3.9",null,"• Alle overføringer av kumulative gevinster eller tap i egenkapitalen i løpet av perioden, herunder årsaken til slike overføringer.","i",{"$f":"IF(AND(G614=1,E614=\"i\"),1,IF(AND(G614=1,E614=\"s\"),1,0))","v":0},{"$f":"IF($B614=\"\",\"0\",IF(INDEX($B$11:$H$849,MATCH(LEFT($B614,FIND(\"~\",SUBSTITUTE($B614,\".\",\"~\",LEN($B614)-LEN(SUBSTITUTE($B614,\".\",\"\"))))),$B$11:$B$849,0),MATCH(\"Aktuell?\",$B$9:$H$9,0))=\"Ja\",1,0))","v":0},"P"]
[null,"A10.3.10",null,"• Dersom en forpliktelse er fraregnet i løpet av perioden, det eventuelle beløpet innregnet i andre inntekter og kostnader som ble realisert ved fraregning.","i",{"$f":"IF(AND(G615=1,E615=\"i\"),1,IF(AND(G615=1,E615=\"s\"),1,0))","v":0},{"$f":"IF($B615=\"\",\"0\",IF(INDEX($B$11:$H$849,MATCH(LEFT($B615,FIND(\"~\",SUBSTITUTE($B615,\".\",\"~\",LEN($B615)-LEN(SUBSTITUTE($B615,\".\",\"\"))))),$B$11:$B$849,0),MATCH(\"Aktuell?\",$B$9:$H$9,0))=\"Ja\",1,0))","v":0},"P"]
[null,"A10.3.11","IFRS 7.10A","Er det opplyst om følgende dersom et foretak har øremerket en finansiell forpliktelse til virkelig verdi over resultatet i samsvar med nr. 4.2.2 i IFRS 9 og er forpliktet til å innregne alle endringer i den forpliktelsens virkelige verdi (herunder virkningene av endringer i forpliktelsens kredittrisiko) i resultatet (se nr. 5.7.7 og 5.7.8 i IFRS 9):"]
[null,"A10.3.12",null,"• Endring i virkelig verdi for forpliktelsen (kumulativt) som kan henføres til endring i kredittrisiko, beregnet enten (valgt metode skal opplyses om):\n   - som endring i virkelig verdi av forpliktelsen som ikke kan henføres til endringer i markedsforhold som fører til markedsrisiko (endringer i en referanserente, prisen på et annet foretaks finansielle instrument, en råvarepris, en valutakurs eller en indeks for priser eller satser), eller\n   - ved hjelp av alternativ metode som foretaket mener bedre representerer endring i virkelig verdi som kan henføres til endringer i forpliktelsens kredittrisiko?","i",{"$f":"IF(AND(G617=1,E617=\"i\"),1,IF(AND(G617=1,E617=\"s\"),1,0))","v":0},{"$f":"IF($B617=\"\",\"0\",IF(INDEX($B$11:$H$849,MATCH(LEFT($B617,FIND(\"~\",SUBSTITUTE($B617,\".\",\"~\",LEN($B617)-LEN(SUBSTITUTE($B617,\".\",\"\"))))),$B$11:$B$849,0),MATCH(\"Aktuell?\",$B$9:$H$9,0))=\"Ja\",1,0))","v":0},"P"]
[null,"A10.3.13",null,"• Differansen mellom balanseført verdi og den kontraktsmessige forpliktelsen ved forfall?","i",0,0,"P"]
[null,"A10.3.14","IFRS 7.11","Er det opplyst om hvilken metode som er valgt til å overholde kravene i nr. 9, 10 og 10A?","i",0,0,"P"]
[null,"A10.3.15",null,"Dersom foretaket vurderer det slik at opplysninger det har gitt for å overholde kravene i IFRS 7.9-10A ikke på en fyllestgjørende måte representerer endringen i den virkelige verdien av den finansielle eiendelen eller forpliktelsen som er henførbar til kredittrisiko, er det opplyst om grunnene for å komme fram til denne konklusjonen, samt de faktorer som foretaket mener er relevante?","i",0,0,"P"]
[null,"A10.3.16",null,"Er det gitt en detaljert beskrivelse av metoden eller metodene som brukes til å fastslå om innregningen av virkningene av endringer i en forpliktelses kredittrisiko i andre inntekter og kostnader ville forårsake eller forverre et regnskapsmessig misforhold i resultatet (se nr. 5.7.7 og 5.7.8 i IFRS 9)?","i",0,0,"P"]
[null,"A10.3.17","rskl § 7-17","Dersom derivater er vurdert til virkelig verdi basert på § 5-8, er det for hver kategori gitt opplysning om anskaffelseskost, virkelig verdi og periodens resultatførte verdiendring?",null,0,0,"P"]
[null,"A10.4.",null,"Investeringer i egenkapitalinstrumenter øremerket til virkelig verdi over andre inntekter og kostnader",null,{"$f":"SUMIF($B632:$B$849,$B623&\"*\",$F632:$F$849)","v":0},"Nei",null,{"$f":"IF($G623=\"Ja\",\"Total: \"&COUNTIFS($B624:$B$849,B623&\"*\",$G624:$G$849,1)&\" | P - \"&COUNTIFS($B624:$B$849,B623&\"*\",$G624:$G$849,1,$H624:$H$849,$E$3)&\" | J - \"&COUNTIFS($B624:$B$849,B623&\"*\",$G624:$G$849,1,$H624:$H$849,$E$4)&\" | N - \"&COUNTIFS($B624:$B$849,B623&\"*\",$G624:$G$849,1,$H624:$H$849,$E$5)&\" | A - \"&COUNTIFS($B624:$B$849,B623&\"*\",$G624:$G$849,1,$H624:$H$849,$E$6)&\" | F - \"&COUNTIFS($B624:$B$849,B623&\"*\",$G624:$G$849,1,$H624:$H$849,$E$7),\"\")","v":""}]
[null,"A10.4.1","IFRS 7.11A","Dersom et foretak har øremerket investeringer i egenkapitalinstrumenter til å bli målt til virkelig verdi over andre inntekter og kostnader, i overensstemmelse med nr. 5.7.5 i IFRS 9, skal det opplyse om:"]
[null,"A10.4.2",null,"• hvilke investeringer i egenkapitalinstrumenter som er blitt øremerket til å bli målt til virkelig verdi over andre inntekter og kostnader,","i",{"$f":"IF(AND(G625=1,E625=\"i\"),1,IF(AND(G625=1,E625=\"s\"),1,0))","v":0},{"$f":"IF($B625=\"\",\"0\",IF(INDEX($B$11:$H$849,MATCH(LEFT($B625,FIND(\"~\",SUBSTITUTE($B625,\".\",\"~\",LEN($B625)-LEN(SUBSTITUTE($B625,\".\",\"\"))))),$B$11:$B$849,0),MATCH(\"Aktuell?\",$B$9:$H$9,0))=\"Ja\",1,0))","v":0},"P"]
[null,"A10.4.3",null,"• årsakene til å bruke dette alternativet,","i",{"$f":"IF(AND(G626=1,E626=\"i\"),1,IF(AND(G626=1,E626=\"s\"),1,0))","v":0},{"$f":"IF($B626=\"\",\"0\",IF(INDEX($B$11:$H$849,MATCH(LEFT($B626,FIND(\"~\",SUBSTITUTE($B626,\".\",\"~\",LEN($B626)-LEN(SUBSTITUTE($B626,\".\",\"\"))))),$B$11:$B$849,0),MATCH(\"Aktuell?\",$B$9:$H$9,0))=\"Ja\",1,0))","v":0},"P"]
[null,"A10.4.4",null,"• den virkelige verdien for hver slik investering ved slutten av rapporteringsperioden","i",{"$f":"IF(AND(G627=1,E627=\"i\"),1,IF(AND(G627=1,E627=\"s\"),1,0))","v":0},{"$f":"IF($B627=\"\",\"0\",IF(INDEX($B$11:$H$849,MATCH(LEFT($B627,FIND(\"~\",SUBSTITUTE($B627,\".\",\"~\",LEN($B627)-LEN(SUBSTITUTE($B627,\".\",\"\"))))),$B$11:$B$849,0),MATCH(\"Aktuell?\",$B$9:$H$9,0))=\"Ja\",1,0))","v":0},"P"]
[null,"A10.4.5",null,"• utbytte som er innregnet i løpet av perioden, som hver for seg viser utbyttet knyttet til investeringer som er fraregnet i løpet av rapporteringsperioden, og utbyttet knyttet til investeringer som holdes ved slutten av rapporteringsperioden","i",{"$f":"IF(AND(G628=1,E628=\"i\"),1,IF(AND(G628=1,E628=\"s\"),1,0))","v":0},{"$f":"IF($B628=\"\",\"0\",IF(INDEX($B$11:$H$849,MATCH(LEFT($B628,FIND(\"~\",SUBSTITUTE($B628,\".\",\"~\",LEN($B628)-LEN(SUBSTITUTE($B628,\".\",\"\"))))),$B$11:$B$849,0),MATCH(\"Aktuell?\",$B$9:$H$9,0))=\"Ja\",1,0))","v":0},"P"]
[null,"A10.4.6",null,"• alle overføringer av kumulative gevinster eller tap i egenkapitalen i løpet av perioden, herunder årsaken til slike overføringer.","i",{"$f":"IF(AND(G629=1,E629=\"i\"),1,IF(AND(G629=1,E629=\"s\"),1,0))","v":0},{"$f":"IF($B629=\"\",\"0\",IF(INDEX($B$11:$H$849,MATCH(LEFT($B629,FIND(\"~\",SUBSTITUTE($B629,\".\",\"~\",LEN($B629)-LEN(SUBSTITUTE($B629,\".\",\"\"))))),$B$11:$B$849,0),MATCH(\"Aktuell?\",$B$9:$H$9,0))=\"Ja\",1,0))","v":0},"P"]
[null,"A10.4.7","IFRS 7.11B","Dersom et foretak har fraregnet investeringer i egenkapitalinstrumenter målt til virkelig verdi over andre inntekter og kostnader i løpet av rapporteringsperioden, skal det opplyse om:"]
[null,"A10.4.8",null,"• årsakene til avhendingen av investeringene,","i",{"$f":"IF(AND(G631=1,E631=\"i\"),1,IF(AND(G631=1,E631=\"s\"),1,0))","v":0},{"$f":"IF($B631=\"\",\"0\",IF(INDEX($B$11:$H$849,MATCH(LEFT($B631,FIND(\"~\",SUBSTITUTE($B631,\".\",\"~\",LEN($B631)-LEN(SUBSTITUTE($B631,\".\",\"\"))))),$B$11:$B$849,0),MATCH(\"Aktuell?\",$B$9:$H$9,0))=\"Ja\",1,0))","v":0},"P"]
[null,"A10.4.9",null,"• den virkelige verdien av investeringene ved fraregningstidspunktet,","i",{"$f":"IF(AND(G632=1,E632=\"i\"),1,IF(AND(G632=1,E632=\"s\"),1,0))","v":0},{"$f":"IF($B632=\"\",\"0\",IF(INDEX($B$11:$H$849,MATCH(LEFT($B632,FIND(\"~\",SUBSTITUTE($B632,\".\",\"~\",LEN($B632)-LEN(SUBSTITUTE($B632,\".\",\"\"))))),$B$11:$B$849,0),MATCH(\"Aktuell?\",$B$9:$H$9,0))=\"Ja\",1,0))","v":0},"P"]
[null,"A10.4.10",null,"• kumulative gevinster eller tap ved avhendingen.","i",{"$f":"IF(AND(G633=1,E633=\"i\"),1,IF(AND(G633=1,E633=\"s\"),1,0))","v":0},{"$f":"IF($B633=\"\",\"0\",IF(INDEX($B$11:$H$849,MATCH(LEFT($B633,FIND(\"~\",SUBSTITUTE($B633,\".\",\"~\",LEN($B633)-LEN(SUBSTITUTE($B633,\".\",\"\"))))),$B$11:$B$849,0),MATCH(\"Aktuell?\",$B$9:$H$9,0))=\"Ja\",1,0))","v":0},"P"]
[null,"A10.5.",null,"Omklassifisering",null,{"$f":"SUMIF($B635:$B$849,$B634&\"*\",$F635:$F$849)","v":0},"Nei",null,{"$f":"IF($G634=\"Ja\",\"Total: \"&COUNTIFS($B635:$B$849,B634&\"*\",$G635:$G$849,1)&\" | P - \"&COUNTIFS($B635:$B$849,B634&\"*\",$G635:$G$849,1,$H635:$H$849,$E$3)&\" | J - \"&COUNTIFS($B635:$B$849,B634&\"*\",$G635:$G$849,1,$H635:$H$849,$E$4)&\" | N - \"&COUNTIFS($B635:$B$849,B634&\"*\",$G635:$G$849,1,$H635:$H$849,$E$5)&\" | A - \"&COUNTIFS($B635:$B$849,B634&\"*\",$G635:$G$849,1,$H635:$H$849,$E$6)&\" | F - \"&COUNTIFS($B635:$B$849,B634&\"*\",$G635:$G$849,1,$H635:$H$849,$E$7),\"\")","v":""}]
[null,"A10.5.1","IFRS 7.12B","Et foretak skal opplyse om det i inneværende eller tidligere rapporteringsperioder har omklassifisert finansielle eiendeler i samsvar med nr. 4.4.1 i IFRS 9. \n\nFor hver slike hendelse skal et foretak opplyse om\na) datoen for omklassifisering,\nb) en detaljert beskrivelse av endringen i virksomhetsmodell og en kvalitativ beskrivelse av endringens virkning på foretakets finansregnskap,\nc) hvilket beløp som er omklassifisert til og fra hver kategori.\n","i",{"$f":"IF(AND(G635=1,E635=\"i\"),1,IF(AND(G635=1,E635=\"s\"),1,0))","v":0},{"$f":"IF($B635=\"\",\"0\",IF(INDEX($B$11:$H$849,MATCH(LEFT($B635,FIND(\"~\",SUBSTITUTE($B635,\".\",\"~\",LEN($B635)-LEN(SUBSTITUTE($B635,\".\",\"\"))))),$B$11:$B$849,0),MATCH(\"Aktuell?\",$B$9:$H$9,0))=\"Ja\",1,0))","v":0},"P"]
[null,"A10.6.",null,"Fraregning",null,{"$f":"SUMIF($B637:$B$849,$B636&\"*\",$F637:$F$849)","v":0},"Nei",null,{"$f":"IF($G636=\"Ja\",\"Total: \"&COUNTIFS($B637:$B$849,B636&\"*\",$G637:$G$849,1)&\" | P - \"&COUNTIFS($B637:$B$849,B636&\"*\",$G637:$G$849,1,$H637:$H$849,$E$3)&\" | J - \"&COUNTIFS($B637:$B$849,B636&\"*\",$G637:$G$849,1,$H637:$H$849,$E$4)&\" | N - \"&COUNTIFS($B637:$B$849,B636&\"*\",$G637:$G$849,1,$H637:$H$849,$E$5)&\" | A - \"&COUNTIFS($B637:$B$849,B636&\"*\",$G637:$G$849,1,$H637:$H$849,$E$6)&\" | F - \"&COUNTIFS($B637:$B$849,B636&\"*\",$G637:$G$849,1,$H637:$H$849,$E$7),\"\")","v":""}]
[null,"A10.6.1",null,"Dersom selskapet har overført finansielle eiendeler på en slik måte at en del av eller hele den finansielle eiendelen ikke kvalifiserer for fraregning (jf. IAS 39.15-37), bør en gi opplysninger om følgende for hver klasse av slike eiendeler (det er fritak for  kravene i IFRS 42A-42G, men en må likevel gi tilstrekkelig informasjon til at bruker av regnskapet kan vurdere finansiell stilling og risiko)"]
[null,"A10.6.2",null,"• Eiendelenes art?",null,{"$f":"IF(AND(G638=1,E638=\"i\"),1,IF(AND(G638=1,E638=\"s\"),1,0))","v":0},{"$f":"IF($B638=\"\",\"0\",IF(INDEX($B$11:$H$849,MATCH(LEFT($B638,FIND(\"~\",SUBSTITUTE($B638,\".\",\"~\",LEN($B638)-LEN(SUBSTITUTE($B638,\".\",\"\"))))),$B$11:$B$849,0),MATCH(\"Aktuell?\",$B$9:$H$9,0))=\"Ja\",1,0))","v":0},"P"]
[null,"A10.6.3",null,"• Arten av risiko og avkastning ved eierskap som foretaket fortsatt er eksponert for? ",null,{"$f":"IF(AND(G639=1,E639=\"i\"),1,IF(AND(G639=1,E639=\"s\"),1,0))","v":0},{"$f":"IF($B639=\"\",\"0\",IF(INDEX($B$11:$H$849,MATCH(LEFT($B639,FIND(\"~\",SUBSTITUTE($B639,\".\",\"~\",LEN($B639)-LEN(SUBSTITUTE($B639,\".\",\"\"))))),$B$11:$B$849,0),MATCH(\"Aktuell?\",$B$9:$H$9,0))=\"Ja\",1,0))","v":0},"P"]
[null,"A10.6.4",null,"• Balanseførte verdier av eiendelen og tilhørende forpliktelser? (når selskapet fortsatt innregner alle eiendelene)",null,{"$f":"IF(AND(G640=1,E640=\"i\"),1,IF(AND(G640=1,E640=\"s\"),1,0))","v":0},{"$f":"IF($B640=\"\",\"0\",IF(INDEX($B$11:$H$849,MATCH(LEFT($B640,FIND(\"~\",SUBSTITUTE($B640,\".\",\"~\",LEN($B640)-LEN(SUBSTITUTE($B640,\".\",\"\"))))),$B$11:$B$849,0),MATCH(\"Aktuell?\",$B$9:$H$9,0))=\"Ja\",1,0))","v":0},"P"]
[null,"A10.6.5",null,"• Den samlede balanseførte verdien av de opprinnelige eiendelene og det beløpet selskapet fortsatt innregner for eiendelene og tilknyttede forpliktelser (når foretaket fortsetter å innregne eiendelene i samme forhold som foretakets vedvarende engasjement)?",null,{"$f":"IF(AND(G641=1,E641=\"i\"),1,IF(AND(G641=1,E641=\"s\"),1,0))","v":0},{"$f":"IF($B641=\"\",\"0\",IF(INDEX($B$11:$H$849,MATCH(LEFT($B641,FIND(\"~\",SUBSTITUTE($B641,\".\",\"~\",LEN($B641)-LEN(SUBSTITUTE($B641,\".\",\"\"))))),$B$11:$B$849,0),MATCH(\"Aktuell?\",$B$9:$H$9,0))=\"Ja\",1,0))","v":0},"P"]
[null,"A10.7.",null,"Sikkerhetsstillelse",null,{"$f":"SUMIF($B643:$B$849,$B642&\"*\",$F643:$F$849)","v":0},"Nei",null,{"$f":"IF($G642=\"Ja\",\"Total: \"&COUNTIFS($B643:$B$849,B642&\"*\",$G643:$G$849,1)&\" | P - \"&COUNTIFS($B643:$B$849,B642&\"*\",$G643:$G$849,1,$H643:$H$849,$E$3)&\" | J - \"&COUNTIFS($B643:$B$849,B642&\"*\",$G643:$G$849,1,$H643:$H$849,$E$4)&\" | N - \"&COUNTIFS($B643:$B$849,B642&\"*\",$G643:$G$849,1,$H643:$H$849,$E$5)&\" | A - \"&COUNTIFS($B643:$B$849,B642&\"*\",$G643:$G$849,1,$H643:$H$849,$E$6)&\" | F - \"&COUNTIFS($B643:$B$849,B642&\"*\",$G643:$G$849,1,$H643:$H$849,$E$7),\"\")","v":""}]
[null,"A10.7.1","IFRS 7.14","Er det opplyst om: "]
[null,"A10.7.2",null,"• Balanseført verdi av finansielle eiendeler som er stilt som sikkerhet for forpliktelser/betingede forpliktelser, herunder beløp som er omklassifisert i samsvar med IAS 39.37a?",null,{"$f":"IF(AND(G644=1,E644=\"i\"),1,IF(AND(G644=1,E644=\"s\"),1,0))","v":0},{"$f":"IF($B644=\"\",\"0\",IF(INDEX($B$11:$H$849,MATCH(LEFT($B644,FIND(\"~\",SUBSTITUTE($B644,\".\",\"~\",LEN($B644)-LEN(SUBSTITUTE($B644,\".\",\"\"))))),$B$11:$B$849,0),MATCH(\"Aktuell?\",$B$9:$H$9,0))=\"Ja\",1,0))","v":0},"P"]
[null,"A10.7.3",null,"• Vilkår og betingelser knyttet til sikkerhetsstillelsene?",null,{"$f":"IF(AND(G645=1,E645=\"i\"),1,IF(AND(G645=1,E645=\"s\"),1,0))","v":0},{"$f":"IF($B645=\"\",\"0\",IF(INDEX($B$11:$H$849,MATCH(LEFT($B645,FIND(\"~\",SUBSTITUTE($B645,\".\",\"~\",LEN($B645)-LEN(SUBSTITUTE($B645,\".\",\"\"))))),$B$11:$B$849,0),MATCH(\"Aktuell?\",$B$9:$H$9,0))=\"Ja\",1,0))","v":0},"P"]
[null,"A10.7.4","IFRS 7.15","Når et foretak har akseptert en sikkerhetsstillelse av eiendeler som det kan selge eller stille som sikkerhet på nytt, er det opplyst om:"]
[null,"A10.7.5",null,"• Virkelig verdi av sikkerhetsstillelsen?",null,{"$f":"IF(AND(G647=1,E647=\"i\"),1,IF(AND(G647=1,E647=\"s\"),1,0))","v":0},{"$f":"IF($B647=\"\",\"0\",IF(INDEX($B$11:$H$849,MATCH(LEFT($B647,FIND(\"~\",SUBSTITUTE($B647,\".\",\"~\",LEN($B647)-LEN(SUBSTITUTE($B647,\".\",\"\"))))),$B$11:$B$849,0),MATCH(\"Aktuell?\",$B$9:$H$9,0))=\"Ja\",1,0))","v":0},"P"]
[null,"A10.7.6",null,"• Virkelig verdi av sikkerhet som er solgt eller stilt som sikkerhet på nytt, samt om man har plikt til å returnere den? ",null,{"$f":"IF(AND(G648=1,E648=\"i\"),1,IF(AND(G648=1,E648=\"s\"),1,0))","v":0},{"$f":"IF($B648=\"\",\"0\",IF(INDEX($B$11:$H$849,MATCH(LEFT($B648,FIND(\"~\",SUBSTITUTE($B648,\".\",\"~\",LEN($B648)-LEN(SUBSTITUTE($B648,\".\",\"\"))))),$B$11:$B$849,0),MATCH(\"Aktuell?\",$B$9:$H$9,0))=\"Ja\",1,0))","v":0},"P"]
[null,"A10.7.7",null,"• Vilkår og betingelser tilknyttet foretakets bruk av sikkerhetsstillelsen?",null,{"$f":"IF(AND(G649=1,E649=\"i\"),1,IF(AND(G649=1,E649=\"s\"),1,0))","v":0},{"$f":"IF($B649=\"\",\"0\",IF(INDEX($B$11:$H$849,MATCH(LEFT($B649,FIND(\"~\",SUBSTITUTE($B649,\".\",\"~\",LEN($B649)-LEN(SUBSTITUTE($B649,\".\",\"\"))))),$B$11:$B$849,0),MATCH(\"Aktuell?\",$B$9:$H$9,0))=\"Ja\",1,0))","v":0},"P"]
[null,"A10.8.",null,"Avsetningskonto for kredittap",null,{"$f":"SUMIF($B651:$B$849,$B650&\"*\",$F651:$F$849)","v":0},"Nei",null,{"$f":"IF($G650=\"Ja\",\"Total: \"&COUNTIFS($B651:$B$849,B650&\"*\",$G651:$G$849,1)&\" | P - \"&COUNTIFS($B651:$B$849,B650&\"*\",$G651:$G$849,1,$H651:$H$849,$E$3)&\" | J - \"&COUNTIFS($B651:$B$849,B650&\"*\",$G651:$G$849,1,$H651:$H$849,$E$4)&\" | N - \"&COUNTIFS($B651:$B$849,B650&\"*\",$G651:$G$849,1,$H651:$H$849,$E$5)&\" | A - \"&COUNTIFS($B651:$B$849,B650&\"*\",$G651:$G$849,1,$H651:$H$849,$E$6)&\" | F - \"&COUNTIFS($B651:$B$849,B650&\"*\",$G651:$G$849,1,$H651:$H$849,$E$7),\"\")","v":""}]
[null,"A10.8.1","IFRS 7.16A","Er det gitt noteopplysninger om tapsavsetningen for finansielle eiendeler målt til virkelig verdi over andre inntekter og kostnader i samsvar med nr. 4.1.2 A i IFRS 9?\n\nDen balanseførte verdien av finansielle eiendeler målt til virkelig verdi over andre inntekter og kostnader i samsvar med nr. 4.1.2 A i IFRS 9 reduseres ikke av en tapsavsetning, og et foretak skal ikke innregne tapsavsetningen separat i balanseoppstillingen som en reduksjon av den finansielle eiendelens balanseførte verdi. ","i",{"$f":"IF(AND(G651=1,E651=\"i\"),1,IF(AND(G651=1,E651=\"s\"),1,0))","v":0},{"$f":"IF($B651=\"\",\"0\",IF(INDEX($B$11:$H$849,MATCH(LEFT($B651,FIND(\"~\",SUBSTITUTE($B651,\".\",\"~\",LEN($B651)-LEN(SUBSTITUTE($B651,\".\",\"\"))))),$B$11:$B$849,0),MATCH(\"Aktuell?\",$B$9:$H$9,0))=\"Ja\",1,0))","v":0},"P"]
[null,"A10.9.",null,"Sammensatte finansielle instrumenter med flere innebygde derivater",null,{"$f":"SUMIF($B653:$B$849,$B652&\"*\",$F653:$F$849)","v":0},"Ja",null,{"$f":"IF($G652=\"Ja\",\"Total: \"&COUNTIFS($B653:$B$849,B652&\"*\",$G653:$G$849,1)&\" | P - \"&COUNTIFS($B653:$B$849,B652&\"*\",$G653:$G$849,1,$H653:$H$849,$E$3)&\" | J - \"&COUNTIFS($B653:$B$849,B652&\"*\",$G653:$G$849,1,$H653:$H$849,$E$4)&\" | N - \"&COUNTIFS($B653:$B$849,B652&\"*\",$G653:$G$849,1,$H653:$H$849,$E$5)&\" | A - \"&COUNTIFS($B653:$B$849,B652&\"*\",$G653:$G$849,1,$H653:$H$849,$E$6)&\" | F - \"&COUNTIFS($B653:$B$849,B652&\"*\",$G653:$G$849,1,$H653:$H$849,$E$7),\"\")","v":"Total: 1 | P - 1 | J - 0 | N - 0 | A - 0 | F - 0"}]
[null,"A10.9.1","IFRS 7.17","Dersom et foretak har utstedt et instrument som inneholder både en forpliktelsesdel og en egenkapitaldel (se IAS 32 nr. 28), og instrumentet har flere innebygde derivater hvis verdier er innbyrdes avhengige (for eksempel et innløsbart konvertibelt gjeldsinstrument), har foretaket opplyst om dette?",null,{"$f":"IF(AND(G653=1,E653=\"i\"),1,IF(AND(G653=1,E653=\"s\"),1,0))","v":0},{"$f":"IF($B653=\"\",\"0\",IF(INDEX($B$11:$H$849,MATCH(LEFT($B653,FIND(\"~\",SUBSTITUTE($B653,\".\",\"~\",LEN($B653)-LEN(SUBSTITUTE($B653,\".\",\"\"))))),$B$11:$B$849,0),MATCH(\"Aktuell?\",$B$9:$H$9,0))=\"Ja\",1,0))","v":1},"P"]
[null,"A10.10.",null,"Mislighold og manglende oppfyllelse",null,{"$f":"SUMIF($B655:$B$849,$B654&\"*\",$F655:$F$849)","v":0},"Ja",null,{"$f":"IF($G654=\"Ja\",\"Total: \"&COUNTIFS($B655:$B$849,B654&\"*\",$G655:$G$849,1)&\" | P - \"&COUNTIFS($B655:$B$849,B654&\"*\",$G655:$G$849,1,$H655:$H$849,$E$3)&\" | J - \"&COUNTIFS($B655:$B$849,B654&\"*\",$G655:$G$849,1,$H655:$H$849,$E$4)&\" | N - \"&COUNTIFS($B655:$B$849,B654&\"*\",$G655:$G$849,1,$H655:$H$849,$E$5)&\" | A - \"&COUNTIFS($B655:$B$849,B654&\"*\",$G655:$G$849,1,$H655:$H$849,$E$6)&\" | F - \"&COUNTIFS($B655:$B$849,B654&\"*\",$G655:$G$849,1,$H655:$H$849,$E$7),\"\")","v":"Total: 4 | P - 4 | J - 0 | N - 0 | A - 0 | F - 0"}]
[null,"A10.10.1","IFRS 7.18","For innlån innregnet på rapporteringstidspunktet, er det opplyst om: "]
[null,"A10.10.2",null,"• Eventuelt mislighold i perioden når det gjelder hovedstol, rente, fondsoppbygging eller innløsningsbestemmelser?",null,{"$f":"IF(AND(G656=1,E656=\"i\"),1,IF(AND(G656=1,E656=\"s\"),1,0))","v":0},{"$f":"IF($B656=\"\",\"0\",IF(INDEX($B$11:$H$849,MATCH(LEFT($B656,FIND(\"~\",SUBSTITUTE($B656,\".\",\"~\",LEN($B656)-LEN(SUBSTITUTE($B656,\".\",\"\"))))),$B$11:$B$849,0),MATCH(\"Aktuell?\",$B$9:$H$9,0))=\"Ja\",1,0))","v":1},"P"]
[null,"A10.10.3",null,"• Balanseført verdi av misligholdte innlån?",null,{"$f":"IF(AND(G657=1,E657=\"i\"),1,IF(AND(G657=1,E657=\"s\"),1,0))","v":0},{"$f":"IF($B657=\"\",\"0\",IF(INDEX($B$11:$H$849,MATCH(LEFT($B657,FIND(\"~\",SUBSTITUTE($B657,\".\",\"~\",LEN($B657)-LEN(SUBSTITUTE($B657,\".\",\"\"))))),$B$11:$B$849,0),MATCH(\"Aktuell?\",$B$9:$H$9,0))=\"Ja\",1,0))","v":1},"P"]
[null,"A10.10.4",null,"• Hvorvidt misligholdet er rettet opp eller vilkårene er reforhandlet innen tidspunkt for godkjent finansregnskap?",null,{"$f":"IF(AND(G658=1,E658=\"i\"),1,IF(AND(G658=1,E658=\"s\"),1,0))","v":0},{"$f":"IF($B658=\"\",\"0\",IF(INDEX($B$11:$H$849,MATCH(LEFT($B658,FIND(\"~\",SUBSTITUTE($B658,\".\",\"~\",LEN($B658)-LEN(SUBSTITUTE($B658,\".\",\"\"))))),$B$11:$B$849,0),MATCH(\"Aktuell?\",$B$9:$H$9,0))=\"Ja\",1,0))","v":1},"P"]
[null,"A10.10.5","IFRS 7.19","Er tilsvarende opplysninger gitt dersom det har foreligget manglende oppfyllelse av andre lånevilkår som har medført at utlåner kunne kreve framskyndet tilbakebetaling? (med mindre forholdet er rettet opp eller reforhandlet før utgangen av rapporteringsperioden/balansedato)",null,{"$f":"IF(AND(G659=1,E659=\"i\"),1,IF(AND(G659=1,E659=\"s\"),1,0))","v":0},{"$f":"IF($B659=\"\",\"0\",IF(INDEX($B$11:$H$849,MATCH(LEFT($B659,FIND(\"~\",SUBSTITUTE($B659,\".\",\"~\",LEN($B659)-LEN(SUBSTITUTE($B659,\".\",\"\"))))),$B$11:$B$849,0),MATCH(\"Aktuell?\",$B$9:$H$9,0))=\"Ja\",1,0))","v":1},"P"]
[null,"A10.11.",null,"Inntekter, kostnader, gevinster og tap",null,{"$f":"SUMIF($B661:$B$849,$B660&\"*\",$F661:$F$849)","v":9},"Ja",null,{"$f":"IF($G660=\"Ja\",\"Total: \"&COUNTIFS($B661:$B$849,B660&\"*\",$G661:$G$849,1)&\" | P - \"&COUNTIFS($B661:$B$849,B660&\"*\",$G661:$G$849,1,$H661:$H$849,$E$3)&\" | J - \"&COUNTIFS($B661:$B$849,B660&\"*\",$G661:$G$849,1,$H661:$H$849,$E$4)&\" | N - \"&COUNTIFS($B661:$B$849,B660&\"*\",$G661:$G$849,1,$H661:$H$849,$E$5)&\" | A - \"&COUNTIFS($B661:$B$849,B660&\"*\",$G661:$G$849,1,$H661:$H$849,$E$6)&\" | F - \"&COUNTIFS($B661:$B$849,B660&\"*\",$G661:$G$849,1,$H661:$H$849,$E$7),\"\")","v":"Total: 9 | P - 9 | J - 0 | N - 0 | A - 0 | F - 0"}]
[null,"A10.11.1","IFRS 7.20","Er det gitt følgende opplysninger om inntekts-, kostnads-, gevinst- eller tapsposter (i resultatoppstillingen, annet totalresultat eller i note):"]
[null,"A10.11.2",null,"• Netto gevinster eller tap på:\n\n- finansielle eiendeler eller finansielle forpliktelser målt til virkelig verdi over resultatet, som hver for seg viser netto gevinster eller tap på:\n\n(a) de finansielle eiendelene eller finansielle forpliktelsene som ble øremerket som slike ved eller etter førstegangsinnregning i samsvar med nr. 6.7.1 i IFRS 9, (For finansielle forpliktelser øremerket til virkelig verdi over resultatet skal et foretak hver for seg vise beløpet for gevinster eller tap innregnet i andre inntekter og kostnader og beløpet innregnet i resultatet)\n\n(b) de finansielle eiendeler eller finansielle forpliktelser som obligatorisk ble målt til virkelig verdi over resultatet i samsvar med IFRS 9 (for eksempel finansielle forpliktelser som oppfyller definisjonen av \"holdt for omsetning\" i IFRS 9). \n\n\n","i",{"$f":"IF(AND(G662=1,E662=\"i\"),1,IF(AND(G662=1,E662=\"s\"),1,0))","v":1},{"$f":"IF($B662=\"\",\"0\",IF(INDEX($B$11:$H$849,MATCH(LEFT($B662,FIND(\"~\",SUBSTITUTE($B662,\".\",\"~\",LEN($B662)-LEN(SUBSTITUTE($B662,\".\",\"\"))))),$B$11:$B$849,0),MATCH(\"Aktuell?\",$B$9:$H$9,0))=\"Ja\",1,0))","v":1},"P"]
[null,"A10.11.3",null,"- finansielle forpliktelser målt til amortisert kost?","i",1,1,"P"]
[null,"A10.11.4",null,"- finansielle eiendeler målt til amortisert kost?","i",1,1,"P"]
[null,"A10.11.5",null,"- investeringer i egenkapitalinstrumenter øremerket til virkelig verdi over andre inntekter og kostnader i samsvar med nr. 5.7.5 i IFRS 9,","i",1,1,"P"]
[null,"A10.11.6",null,"- finansielle eiendeler målt til virkelig verdi over andre inntekter og kostnader i samsvar med nr. 4.1.2 A i IFRS 9, som hver for seg viser beløpet for gevinster eller tap innregnet i andre inntekter og kostnader i løpet av perioden og beløpet som ble omklassifisert ved fraregning fra akkumulerte andre inntekter og kostnader til resultatet for perioden?","i",1,1,"P"]
[null,"A10.11.7",null,"• Samlet renteinntekt og samlet rentekostnad (beregnet ved hjelp av effektiv rente-metoden) for finansielle eiendeler som måles til amortisert kost, eller som måles til virkelig verdi over andre inntekter og kostnader i samsvar med nr. 4.1.2 A i IFRS 9 (som viser disse beløpene hver for seg), eller finansielle forpliktelser som ikke måles til virkelig verdi over resultatet?","i",1,1,"P"]
[null,"A10.11.8",null,"• Provisjonsinntekter og –kostnader som oppstår av (bortsett fra beløp som er inkludert ved fastsettelsen av effektiv rente):\n- finansielle eiendeler eller forpliktelser som ikke er regnskapsført til virkelig verdi over resultatet?","i",1,1,"P"]
[null,"A10.11.9",null,"- forvaltningsaktiviteter og andre betrodde aktiviteter som fører til at foretaket innehar eller investerer eiendeler på vegne av andre?","i",1,1,"P"]
[null,"A10.11.10","IFRS 7.20A","Er det laget en analyse av gevinsten eller tapet som er innregnet i oppstillingen over totalresultatet, som oppstår ved fraregning av finansielle eiendeler målt til amortisert kost, som hver for seg viser gevinster og tap som oppstår ved fraregning av disse finansielle eiendelene? (Disse opplysningene skal omfatte årsakene til fraregningen av disse finansielle eiendelene)","i",1,1,"P"]
[null,"A10.11.",null,"Andre opplysninger",null,{"$f":"SUMIFS($F690:$F$849,$B690:$B$849,$B671&\"*\",$G690:$G$849,\"Ja\")","v":0},{"$f":"IF(COUNTIFS($B690:$B$849,$B671&\"*\",$G690:$G$849,\"Ja\")>0,\"Ja\",\"Nei\")","v":"Nei"}]
[null,"A10.12a.",null,"- Sikringsbokføring",null,{"$f":"SUMIF($B673:$B$849,$B672&\"*\",$F673:$F$849)","v":57},"Ja",null,{"$f":"IF($G672=\"Ja\",\"Total: \"&COUNTIFS($B673:$B$849,B672&\"*\",$G673:$G$849,1)&\" | P - \"&COUNTIFS($B673:$B$849,B672&\"*\",$G673:$G$849,1,$H673:$H$849,$E$3)&\" | J - \"&COUNTIFS($B673:$B$849,B672&\"*\",$G673:$G$849,1,$H673:$H$849,$E$4)&\" | N - \"&COUNTIFS($B673:$B$849,B672&\"*\",$G673:$G$849,1,$H673:$H$849,$E$5)&\" | A - \"&COUNTIFS($B673:$B$849,B672&\"*\",$G673:$G$849,1,$H673:$H$849,$E$6)&\" | F - \"&COUNTIFS($B673:$B$849,B672&\"*\",$G673:$G$849,1,$H673:$H$849,$E$7),\"\")","v":"Total: 57 | P - 57 | J - 0 | N - 0 | A - 0 | F - 0"}]
[null,"A10.12a.1","IFRS 7.21A","Et foretak skal anvende noteopplysningene for risikoeksponeringene som et foretak sikrer, og som det velger å anvende sikringsbokføring på. \n\nGir noteopplysningene om sikringsbokføring informasjon om:"]
[null,"A10.12a.2",null,"- foretakets risikohåndteringsstrategi og hvordan den anvendes for å håndtere risikoen?","i",{"$f":"IF(AND(G674=1,E674=\"i\"),1,IF(AND(G674=1,E674=\"s\"),1,0))","v":1},{"$f":"IF($B674=\"\",\"0\",IF(INDEX($B$11:$H$849,MATCH(LEFT($B674,FIND(\"~\",SUBSTITUTE($B674,\".\",\"~\",LEN($B674)-LEN(SUBSTITUTE($B674,\".\",\"\"))))),$B$11:$B$849,0),MATCH(\"Aktuell?\",$B$9:$H$9,0))=\"Ja\",1,0))","v":1},"P"]
[null,"A10.12a.3",null,"- hvordan foretakets sikringsaktiviteter kan påvirke størrelsen på, forløpet for og usikkerheten omkring dets framtidige kontantstrømmer?","i",1,1,"P"]
[null,"A10.12a.4",null,"- virkningen som sikringsbokføring har hatt på foretakets balanseoppstilling, oppstilling over totalresultat og oppstilling over endringer i egenkapital?","i",1,1,"P"]
[null,"A10.12a.5","IFRS 7.21B","Er opplysningene som kreves presentert i én enkelt note eller i et separat avsnitt i årsregnskapet?\n\n(Et foretak trenger imidlertid ikke å gjenta informasjon som allerede finnes et annet sted, forutsatt at informasjonen er innarbeidet med en krysshenvisning fra finansregnskapet til et annet dokument, for eksempel en kommentar fra ledelsen eller en risikorapport, som er tilgjengelig for brukere av finansregnskapet på samme vilkår og til samme tid som finansregnskapet. Uten den informasjonen som innarbeides med en krysshenvisning, er finansregnskapet ikke fullstendig)","i",1,1,"P"]
[null,"A10.12a.6","IFRS 7.21C","I de tilfeller hvor noteinnformasjon skal gis etter risikokategori, er det:\n- fastsatt risikokategori på grunnlag av risikoeksponeringene som foretaket har bestemt seg for å sikre, og som det anvendes sikringsbokføring på?\n\n- konsistent anvendelse av risikokategoriene for alle opplysninger om sikringsbokføring?","i",1,1,"P"]
[null,"A10.12a.7","IFRS 7.21D","Er det for å oppnå målene i IFRS 7 nr. 21A benyttet et hensiktsmessig aggregerings- eller oppdelingsnivå og gjort en vurdering av om brukere av finansregnskapet har behov for ytterligere forklaringer for å kunne vurdere de kvantitative opplysningene som gis?\n\n","i",1,1,"P"]
[null,"A10.12a.8","IFRS 7.21D","Er det benyttet samme aggregerings- eller oppdelingsnivå som foretaket benytter for opplysningskravene for relatert informasjon i IFRS 7 og IFRS 13: \"Måling av virkelig verdi\"?","i",1,1,"P"]
[null,"A10.12a.9",null,"Risikohåndteringsstrategi"]
[null,"A10.12a.10","IFRS 7.22A","Er det gitt en forklaring av risikohåndteringsstrategien for hver risikokategori av risikoeksponeringer som foretaket sikrer, og som det anvendes sikringsbokføring på? \n\nEr det mulig for brukere av finansregnskapet å vurdere (for eksempel):","i",{"$f":"IF(AND(G682=1,E682=\"i\"),1,IF(AND(G682=1,E682=\"s\"),1,0))","v":1},{"$f":"IF($B682=\"\",\"0\",IF(INDEX($B$11:$H$849,MATCH(LEFT($B682,FIND(\"~\",SUBSTITUTE($B682,\".\",\"~\",LEN($B682)-LEN(SUBSTITUTE($B682,\".\",\"\"))))),$B$11:$B$849,0),MATCH(\"Aktuell?\",$B$9:$H$9,0))=\"Ja\",1,0))","v":1},"P"]
[null,"A10.12a.11",null,"- hvordan hver risiko oppstår?","i",1,1,"P"]
[null,"A10.12a.12",null,"- hvordan foretaket håndterer hver risiko, herunder hvorvidt foretaket sikrer en post i sin helhet for alle risikoer eller sikrer en eller flere risikobestanddeler for en post og hvorfor?","i",1,1,"P"]
[null,"A10.12a.13",null,"- omfanget av risikoeksponeringer som foretaket håndterer?","i",1,1,"P"]
[null,"A10.12a.14","IFRS 7.22B","Er det for å oppfylle kravene ovenfor i nr. 22A gitt informasjonen som omfatter (men ikke er begrenset til) en beskrivelse av:","i",1,1,"P"]
[null,"A10.12a.15",null,"- sikringsinstrumentene som brukes (og hvordan de brukes) til å sikre risikoeksponeringer?","i",1,1,"P"]
[null,"A10.12a.16",null,"- hvordan foretaket fastsetter det økonomiske forholdet mellom sikringsobjektet og sikringsinstrumentet for å vurdere sikringseffektivitet?","i",1,1,"P"]
[null,"A10.12a.17",null,"- hvordan foretaket fastsetter sikringsgraden, og hva som er kildene til sikringsineffektivitet?","i",1,1,"P"]
[null,"A10.12a.18","IFRS 7.22C","Dersom det er øremerket en bestemt risikobestanddel som et sikringsobjekt (se nr. 6.3.7 i IFRS 9), er det i tillegg til opplysningene som kreves i nr. 22A og 22B, gitt kvalitative eller kvantitative opplysninger om:","i",1,1,"P"]
[null,"A10.12a.19",null,"- hvordan foretaket fastsetter risikobestanddelen som er øremerket som sikringsobjekt (herunder en beskrivelse av arten av forholdet mellom risikobestanddelen og posten som helhet)?","i",1,1,"P"]
[null,"A10.12a.20",null,"- hvordan risikobestanddelen er knyttet til posten i sin helhet (f.eks. at den øremerkede risikobestanddelen historisk har dekket i gjennomsnitt 80 prosent av endringene i virkelig verdi for posten i sin helhet)?","i",1,1,"P"]
[null,"A10.12a.21",null,"Størrelsen på, forløpet for og usikkerheten omkring framtidige kontantstrømmer"]
[null,"A10.12a.22","IFRS 7.23A","Er det gitt kvantitativ informasjon etter risikokategori slik at brukere av finansregnskapet kan vurdere vilkårene for sikringsinstrumentene og hvordan de påvirker størrelsen på, forløpet for og usikkerheten omkring foretakets framtidige kontantstrømmer? (unntak for denne informasjonen er gitt i IFRS 7 nr. 23C). ","i",{"$f":"IF(AND(G694=1,E694=\"i\"),1,IF(AND(G694=1,E694=\"s\"),1,0))","v":1},{"$f":"IF($B694=\"\",\"0\",IF(INDEX($B$11:$H$849,MATCH(LEFT($B694,FIND(\"~\",SUBSTITUTE($B694,\".\",\"~\",LEN($B694)-LEN(SUBSTITUTE($B694,\".\",\"\"))))),$B$11:$B$849,0),MATCH(\"Aktuell?\",$B$9:$H$9,0))=\"Ja\",1,0))","v":1},"P"]
[null,"A10.12a.23","IFRS 7.23B","Er det gitt en oversikt som viser (unntak for denne informasjonen er gitt i IFRS 7 nr. 23C):\n\na) en profil av forløpet for sikringsinstrumentets nominelle beløp, og\n\nb) dersom det er relevant, sikringsinstrumentets gjennomsnittlige pris eller sats (for eksempel innløsningspris eller terminpris).\n","i",1,1,"P"]
[null,"A10.12a.24","IFRS 7.23C","I situasjoner der et foretak ofte fornyer (dvs. bringer til opphør og starter på nytt) sikringsforhold fordi både sikringsinstrumentet og sikringsobjektet ofte endres (dvs. foretaket benytter en dynamisk prosess der både eksponeringen og sikringsinstrumentene som brukes til å håndtere den eksponeringen, ikke forblir uforandret lenge - som i eksempelet i nr. B6.5.24 b) i IFRS 9), skal foretaket være unntatt fra å gi opplysningene som kreves av nr. 23A og 23B. \n\nHar foretaket i stedet for opplysninger etter nr. 23A og 23B gitt opplysninger om følgende:\ni) informasjon om hva den endelige risikohåndteringsstrategien er med hensyn til disse sikringsforholdene?\n\nii) en beskrivelse av hvordan det gjenspeiler foretakets risikohåndteringsstrategi å bruke sikringsbokføring og øremerking av disse særlige sikringsforholdene, og\niii) en angivelse av hvor ofte sikringsforholdene bringes til opphør og startes på nytt som del av foretakets prosess for disse sikringsforholdene?\n","i",1,1,"P"]
[null,"A10.12a.25","IFRS 7.23D","Et det etter risikokategori gitt en beskrivelse av kildene til sikringsineffektivitet som forventes å påvirke sikringsforholdet i dets levetid?","i",1,1,"P"]
[null,"A10.12a.26","IFRS 7.23E","Dersom det oppstår andre kilder til sikringsineffektivitet i et sikringsforhold, har foretaket gitt opplysninger om disse kildene etter risikokategori og forklart den påfølgende sikringsineffektiviteten?","i",1,1,"P"]
[null,"A10.12a.27","IFRS 7.23F","Er det for kontantstrømssikringer gitt en beskrivelse av eventuelle forventede transaksjoner som det er benyttet sikringsbokføring for i tidligere perioder, men som ikke lenger forventes å finne sted?","i",1,1,"P"]
[null,"A10.12a.28",null,"Virkningene av sikringsbokføring på finansiell stilling og resultat"]
[null,"A10.12a.29","IFRS 7.24A","Er det i tabellform opplyst om følgende beløp knyttet til poster som er øremerket som sikringsinstrumenter, separat etter risikokategori for hver type sikring (virkelig verdi-sikring, kontantstrømssikring og sikring av en nettoinvestering i en utenlandsk virksomhet):","i",{"$f":"IF(AND(G701=1,E701=\"i\"),1,IF(AND(G701=1,E701=\"s\"),1,0))","v":1},{"$f":"IF($B701=\"\",\"0\",IF(INDEX($B$11:$H$849,MATCH(LEFT($B701,FIND(\"~\",SUBSTITUTE($B701,\".\",\"~\",LEN($B701)-LEN(SUBSTITUTE($B701,\".\",\"\"))))),$B$11:$B$849,0),MATCH(\"Aktuell?\",$B$9:$H$9,0))=\"Ja\",1,0))","v":1},"P"]
[null,"A10.12a.30",null,"- den balanseførte verdien av sikringsinstrumentene (finansielle eiendeler atskilt fra finansielle forpliktelser)?","i",1,1,"P"]
[null,"A10.12a.31",null,"- hvilken post i balanseoppstillingen som omfatter sikringsinstrumentet?","i",1,1,"P"]
[null,"A10.12a.32",null,"- endringen i virkelig verdi av sikringsinstrumentet som brukes som grunnlag for å innregne sikringsineffektiviteten for perioden?","i",1,1,"P"]
[null,"A10.12a.33",null,"- sikringsinstrumentenes nominelle beløp (herunder mengdeangivelser som tonn eller kubikkmeter)?","i",1,1,"P"]
[null,"A10.12a.34","IFRS 7.24B","Har foretaket i tabellform opplyst om følgende beløp knyttet til sikringsobjekter separat etter risikokategori for hver type sikring:","i",1,1,"P"]
[null,"A10.12a.35",null,"- for virkelig verdi-sikringer: den balanseførte verdien av sikringsobjektet som er innregnet i balanseoppstillingen (med eiendeler vist atskilt fra forpliktelser)?\n","i",1,1,"P"]
[null,"A10.12a.36",null,"- for virkelig verdi-sikringer: det akkumulerte beløpet for justeringer av virkelig verdi-sikring for sikringsobjektet som inngår i den balanseførte verdien av sikringsobjektet som er innregnet i balanseoppstillingen (med eiendeler vist atskilt fra forpliktelser),","i",1,1,"P"]
[null,"A10.12a.37",null,"- for virkelig verdi-sikringer: hvilken post i balanseoppstillingen som omfatter sikringsobjektet,","i",1,1,"P"]
[null,"A10.12a.38",null,"- for virkelig verdi-sikringer: endringen i verdien av sikringsobjektet som brukes som grunnlag for å innregne sikringsineffektiviteten for perioden, og","i",1,1,"P"]
[null,"A10.12a.39",null,"- for virkelig verdi-sikringer: det akkumulerte resterende beløpet for justeringer av virkelig verdi-sikring i balanseoppstillingen for eventuelle sikringsobjekter som ikke lenger justeres for sikringsgevinster og -tap i samsvar med nr. 6.5.10 i IFRS 9,","i",1,1,"P"]
[null,"A10.12a.40",null,"- for kontantstrømssikringer og sikring av en nettoinvestering i en utenlandsk virksomhet: endringen i verdien av sikringsobjektet som brukes som grunnlag for å innregne sikringsineffektiviteten for perioden (dvs. for kontantstrømssikringer er det endringen i verdi brukt til å fastsette den innregnede sikringsineffektiviteten i samsvar med nr. 6.5.11 c) i IFRS 9)?\n","i",1,1,"P"]
[null,"A10.12a.41",null,"- for kontantstrømssikringer og sikring av en nettoinvestering i en utenlandsk virksomhet: saldoen på kontantstrømsikringsreserven og reserven for omregning av utenlandsk valuta for fortsatte sikringer som regnskapsføres i samsvar med nr. 6.5.11 og 6.5.13 a) i IFRS 9?\n","i",1,1,"P"]
[null,"A10.12a.42",null,"- for kontantstrømssikringer og sikring av en nettoinvestering i en utenlandsk virksomhet:  den resterende saldoen på kontantstrømsikringsreserven og reserven for omregning av utenlandsk valuta fra eventuelle sikringsforhold der sikringsregnskapsføring ikke lenger anvendes?\n","i",1,1,"P"]
[null,"A10.12a.43","IFRS 7.24C","Har foretaket i tabellform opplyst om følgende beløp separat etter risikokategori for hver type sikring:","i",1,1,"P"]
[null,"A10.12a.44",null,"- for virkelig verdi-sikringer: sikringsineffektivitet, dvs. differansen mellom sikringsgevinster eller -tap på sikringsinstrumentet og sikringsobjektet, som innregnes i resultatet (eller i andre inntekter og kostnader for sikring av et egenkapitalinstrument der foretaket har valgt å føre endringer i virkelig verdi over andre inntekter og kostnader i samsvar med nr. 5.7.5 i IFRS 9)?","i",1,1,"P"]
[null,"A10.12a.45",null,"- for virkelig verdi-sikringer: posten i oppstillingen over totalresultatet som omfatter den innregnede sikringsineffektiviteten?\n","i",1,1,"P"]
[null,"A10.12a.46",null,"- for kontantstrømssikringer og sikring av en nettoinvestering i en utenlandsk virksomhet:\nsikringsgevinster eller -tap i rapporteringsperioden som ble innregnet i andre inntekter og kostnader?\n\n","i",1,1,"P"]
[null,"A10.12a.47",null,"- for kontantstrømssikringer og sikring av en nettoinvestering i en utenlandsk virksomhet: sikringsineffektivitet innregnet i resultatet?\n","i",1,1,"P"]
[null,"A10.12a.48",null,"- for kontantstrømssikringer og sikring av en nettoinvestering i en utenlandsk virksomhet: posten i oppstillingen over totalresultatet som omfatter den innregnede sikringsineffektiviteten?","i",1,1,"P"]
[null,"A10.12a.49",null,"- for kontantstrømssikringer og sikring av en nettoinvestering i en utenlandsk virksomhet: beløpet som ble omklassifisert fra kontantstrømssikringsreserven eller reserven for omregning av utenlandsk valuta til resultatet som en omklassifiseringsjustering (se IAS 1) (der det skilles mellom beløp som det tidligere hadde vært brukt sikringsbokføring for, men som det ikke lenger forventes å finne sted sikrede framtidige kontantstrømmer for, og beløp som er blitt overført fordi sikringsobjektet har påvirket resultatet)?\n","i",1,1,"P"]
[null,"A10.12a.50",null,"- for kontantstrømssikringer og sikring av en nettoinvestering i en utenlandsk virksomhet: posten i oppstillingen over totalresultatet som omfatter omklassifiseringsjusteringen (se IAS 1)?","i",1,1,"P"]
[null,"A10.12a.51",null,"- for kontantstrømssikringer og sikring av en nettoinvestering i en utenlandsk virksomhet: for sikringer av nettoposisjoner, sikringsgevinster eller -tap innregnet i en separat post i oppstillingen over totalresultatet (se nr. 6.6.4 i IFRS 9)?","i",1,1,"P"]
[null,"A10.12a.52","IFRS 7.24D","I de tilfeller foretaket har benyttet unntaket i IFRS 7 nr. 23C og volumet av sikringsforhold ikke er representativt for normale volumer i perioden (dvs. at volumet på rapporteringstidspunktet ikke gjenspeiler volumene i perioden), har foretaket da opplyst om dette og om grunnene til at det mener at volumene ikke er representative?","i",1,1,"P"]
[null,"A10.12a.53","IFRS 7.24E","Har foretaket laget en avstemming av hver bestanddel av egenkapitalen og en analyse av andre inntekter og kostnader i samsvar med IAS 1 som samlet:","i",1,1,"P"]
[null,"A10.12a.54",null,"- minst skiller mellom beløpene som gjelder opplysningene i: \na) IFRS 7 nr. 24C b) i) og b) iv)   [(b) for kontantstrømssikringer og sikring av en nettoinvestering i en utenlandsk virksomhet:\ni) sikringsgevinster eller -tap i rapporteringsperioden som ble innregnet i andre inntekter og kostnader, iv) beløpet som ble omklassifisert fra kontantstrømssikringsreserven eller reserven for omregning av utenlandsk valuta til resultatet som en omklassifiseringsjustering)]\n\nb) beløpene som regnskapsføres i samsvar med nr. 6.5.11 d) i) og d) iii) i IFRS 9? [(beløp som er resirkulert og balanseført som den av anskaffelseskost/opptakskost på ikke-finansiell eiendel eller ikke-finansiell forpliktelse)?]","i",1,1,"P"]
[null,"A10.12a.55",null,"- skiller mellom beløpene knyttet til tidsverdien til opsjoner som sikrer transaksjonsrelaterte sikringsobjekter, og beløpene knyttet til tidsverdien til opsjoner som sikrer tidsrelaterte sikringsobjekter, når et foretak regnskapsfører tidsverdien av en opsjon i samsvar med nr. 6.5.15 i IFRS 9?","i",1,1,"P"]
[null,"A10.12a.56",null,"- skiller mellom beløpene knyttet til termindelen av ikke-børsomsatte terminkontrakter og basismarginen på valuta for finansielle instrumenter som sikrer transaksjonsrelaterte sikringsobjekter, og beløpene knyttet til termindelen av ikke-børsomsatte terminkontrakter og basismarginen på valuta for finansielle instrumenter som sikrer tidsrelaterte sikringsobjekter, når et foretak regnskapsfører disse beløpene i samsvar med nr. 6.5.16 i IFRS 9?","i",1,1,"P"]
[null,"A10.12a.57","IFRS 7.24F","Er opplysningene som kreves ovenfor i IFRS 7 nr. 24E gitt separat etter risikokategori? ","i",1,1,"P"]
[null,"A10.12a.58",null,"Muligheten til å øremerke en kreditteksponering som målt til virkelig verdi over resultatet"]
[null,"A10.12a.59","IFRS 7.24G","Dersom et foretak har øremerket et finansielt instrument eller en andel av det som målt til virkelig verdi over resultatet, fordi det bruker et kredittderivat til å håndtere kredittrisikoen for det finansielle instrumentet, er det opplyst om følgende:","i",{"$f":"IF(AND(G731=1,E731=\"i\"),1,IF(AND(G731=1,E731=\"s\"),1,0))","v":1},{"$f":"IF($B731=\"\",\"0\",IF(INDEX($B$11:$H$849,MATCH(LEFT($B731,FIND(\"~\",SUBSTITUTE($B731,\".\",\"~\",LEN($B731)-LEN(SUBSTITUTE($B731,\".\",\"\"))))),$B$11:$B$849,0),MATCH(\"Aktuell?\",$B$9:$H$9,0))=\"Ja\",1,0))","v":1},"P"]
[null,"A10.12a.60",null,"- for kredittderivater som er blitt brukt til å håndtere kredittrisikoen for finansielle instrumenter som er øremerket som målt til virkelig verdi over resultatet i samsvar med nr. 6.7.1 i IFRS 9, en avstemming av det nominelle beløpet og den virkelige verdien ved begynnelsen og slutten av perioden?","i",{"$f":"IF(AND(G732=1,E732=\"i\"),1,IF(AND(G732=1,E732=\"s\"),1,0))","v":1},{"$f":"IF($B732=\"\",\"0\",IF(INDEX($B$11:$H$849,MATCH(LEFT($B732,FIND(\"~\",SUBSTITUTE($B732,\".\",\"~\",LEN($B732)-LEN(SUBSTITUTE($B732,\".\",\"\"))))),$B$11:$B$849,0),MATCH(\"Aktuell?\",$B$9:$H$9,0))=\"Ja\",1,0))","v":1},"P"]
[null,"A10.12a.61",null,"- gevinsten eller tapet som er innregnet i resultatet ved øremerkingen av et finansielt instrument eller en andel av det som målt til virkelig verdi over resultatet i samsvar med nr. 6.7.1 i IFRS 9?","i",{"$f":"IF(AND(G733=1,E733=\"i\"),1,IF(AND(G733=1,E733=\"s\"),1,0))","v":1},{"$f":"IF($B733=\"\",\"0\",IF(INDEX($B$11:$H$849,MATCH(LEFT($B733,FIND(\"~\",SUBSTITUTE($B733,\".\",\"~\",LEN($B733)-LEN(SUBSTITUTE($B733,\".\",\"\"))))),$B$11:$B$849,0),MATCH(\"Aktuell?\",$B$9:$H$9,0))=\"Ja\",1,0))","v":1},"P"]
[null,"A10.12a.62",null,"- ved opphør av måling av et finansielt instrument eller en andel av det til virkelig verdi over resultatet, det finansielle instrumentets virkelige verdi som er blitt den nye balanseførte verdien i samsvar med nr. 6.7.4. b) i IFRS 9, og tilhørende nominelle beløp eller hovedstol (unntatt for sammenligningsinformasjon som framlegges i samsvar med IAS 1, trenger ikke et foretak å fortsette å gi disse opplysningene i påfølgende perioder)?","i",{"$f":"IF(AND(G734=1,E734=\"i\"),1,IF(AND(G734=1,E734=\"s\"),1,0))","v":1},{"$f":"IF($B734=\"\",\"0\",IF(INDEX($B$11:$H$849,MATCH(LEFT($B734,FIND(\"~\",SUBSTITUTE($B734,\".\",\"~\",LEN($B734)-LEN(SUBSTITUTE($B734,\".\",\"\"))))),$B$11:$B$849,0),MATCH(\"Aktuell?\",$B$9:$H$9,0))=\"Ja\",1,0))","v":1},"P"]
[null,"A10.12b.",null,"- Virkelig verdi",null,{"$f":"SUMIF($B736:$B$849,$B735&\"*\",$F736:$F$849)","v":0},"Ja",null,{"$f":"IF($G735=\"Ja\",\"Total: \"&COUNTIFS($B736:$B$849,B735&\"*\",$G736:$G$849,1)&\" | P - \"&COUNTIFS($B736:$B$849,B735&\"*\",$G736:$G$849,1,$H736:$H$849,$E$3)&\" | J - \"&COUNTIFS($B736:$B$849,B735&\"*\",$G736:$G$849,1,$H736:$H$849,$E$4)&\" | N - \"&COUNTIFS($B736:$B$849,B735&\"*\",$G736:$G$849,1,$H736:$H$849,$E$5)&\" | A - \"&COUNTIFS($B736:$B$849,B735&\"*\",$G736:$G$849,1,$H736:$H$849,$E$6)&\" | F - \"&COUNTIFS($B736:$B$849,B735&\"*\",$G736:$G$849,1,$H736:$H$849,$E$7),\"\")","v":"Total: 12 | P - 12 | J - 0 | N - 0 | A - 0 | F - 0"}]
[null,"A10.12b.1","IFRS 7.25\nrskl § 7-17 annet ledd","Er det for hver klasse av finansielle eiendeler og forpliktelser opplyst om virkelig verdi på en måte som muliggjør sammenligning mot tilsvarende balanseført verdi?",null,{"$f":"IF(AND(G736=1,E736=\"i\"),1,IF(AND(G736=1,E736=\"s\"),1,0))","v":0},{"$f":"IF($B736=\"\",\"0\",IF(INDEX($B$11:$H$849,MATCH(LEFT($B736,FIND(\"~\",SUBSTITUTE($B736,\".\",\"~\",LEN($B736)-LEN(SUBSTITUTE($B736,\".\",\"\"))))),$B$11:$B$849,0),MATCH(\"Aktuell?\",$B$9:$H$9,0))=\"Ja\",1,0))","v":1},"P"]
[null,"A10.12b.2","IFRS 7.26","Har selskapet ved opplysning om virkelige verdier gruppert finansielle eiendeler og finansielle forpliktelser i klasser, men bare motregnet dem i den utstrekning deres balanseførte verdier blir motregnet i balansen? ",null,{"$f":"IF(AND(G737=1,E737=\"i\"),1,IF(AND(G737=1,E737=\"s\"),1,0))","v":0},{"$f":"IF($B737=\"\",\"0\",IF(INDEX($B$11:$H$849,MATCH(LEFT($B737,FIND(\"~\",SUBSTITUTE($B737,\".\",\"~\",LEN($B737)-LEN(SUBSTITUTE($B737,\".\",\"\"))))),$B$11:$B$849,0),MATCH(\"Aktuell?\",$B$9:$H$9,0))=\"Ja\",1,0))","v":1},"P"]
[null,"A10.12b.3","IFRS 7.28","Dersom markedet for et finansielt instrument ikke er aktivt, fastsetter et foretak instumentets virkelige verdi ved hjelp av en verdsettingsmetode.  Det beste indikasjonen på virkelig verdi ved førstegangsinnregning er likevel transaksjonsprisen, med mindre noen kriteria i IAS 39 er oppfylt.  Derav følger at det vil kunne foreligge en differanse.  Dersom det foreligger en slik differanse, har foretaket, etter klasse av finansielle instrumenter, opplyst om følgende:"]
[null,"A10.12b.4",null,"• regnskapsprinipper for innregning av denne differansen i resultatet for å gjenspeile en endring av faktorer (herunder tid) som deltakerne i markedet ville ta i betraktning ved fastsettelsen av en pris, og                                                                                                                                                                                     • den samlede differansen som skal innregnes i resultatet ved begynnelsen og slutten av perioden, og en avstemming av endringer av denne differansen i saldoen?",null,{"$f":"IF(AND(G739=1,E739=\"i\"),1,IF(AND(G739=1,E739=\"s\"),1,0))","v":0},{"$f":"IF($B739=\"\",\"0\",IF(INDEX($B$11:$H$849,MATCH(LEFT($B739,FIND(\"~\",SUBSTITUTE($B739,\".\",\"~\",LEN($B739)-LEN(SUBSTITUTE($B739,\".\",\"\"))))),$B$11:$B$849,0),MATCH(\"Aktuell?\",$B$9:$H$9,0))=\"Ja\",1,0))","v":1},"P"]
[null,"A10.12b.5","IFRS 7.29","Noteopplysninger om virkelig verdi kreves ikke\n• når balanseført verdi er tilnærmet lik virkelig verdi\n• for kontrakt som inneholder skjønnsmessig del hvor virkelig verdi ikke kan måles pålitelig",null,0,1,"P"]
[null,"A10.12b.6","IFRS 7.30","Har selskapet i tilfeller som beskrevet i IFRS 7.29 (b) og (c) gitt opplysninger som gjør brukeren i stand til å foreta selvstendige kvalifiserte vurderinger vedrørende mulige forskjeller mellom balanseført og virkelig verdi, herunder: ",null,0,1,"P"]
[null,"A10.12b.7",null,"• Det faktum at det ikke er gitt opplysninger om virkelig verdi for disse instrumentene fordi deres virkelige verdi ikke kan måles på en pålitelig måte?,",null,0,1,"P"]
[null,"A10.12b.8",null,"• En beskrivelse av de finansielle instrumentene, deres balanseførte verdier og en forklaring på hvorfor virkelig verdi ikke kan måles på en pålitelig måte?,",null,0,1,"P"]
[null,"A10.12b.9",null,"• Informasjon om markedet for instrumentene?, ",null,0,1,"P"]
[null,"A10.12b.10",null,"• Informasjon om hvorvidt og hvordan foretaket har til hensikt å avhende de finansielle instrumentene, og dersom finansielle instrumenter hvis virkelige verdi tidligere ikke kunne måles på en pålitelig måte, blir fraregnet, opplysninger om dette, samt om den balanseførte verdien på fraregningstidspunktet og det innregnede beløpet for gevinst eller tap?",null,0,1,"P"]
[null,"A10.12b.11","IFRS 7.31","Art og omfang av risiko som oppstår av finansielle instrumenter:\nEr det gitt opplysninger som gjør det mulig å vurdere art og omfang av risiko som oppstår av finansielle instrumenter, og som foretaket er eksponert for på rapporteringstidspunktet?",null,0,1,"P"]
[null,"A10.12b.12","IFRS 7.33","Kvalitative opplysninger\nEr det for hver type risiko (kreditt, likviditet og marked) opplyst om:",null,0,1,"P"]
[null,"A10.12b.13",null,"• Risikoeksponering og hvordan disse oppstår, samt eventuelle endringer fra forrige periode?",null,0,1,"P"]
[]
[null,"A10.13.",null,"Eiendeler og forpliktelser som måles til virkelig verdi",null,{"$f":"SUMIF($B751:$B$849,$B750&\"*\",$F751:$F$849)","v":0},"Nei",null,{"$f":"IF($G750=\"Ja\",\"Total: \"&COUNTIFS($B751:$B$849,B750&\"*\",$G751:$G$849,1)&\" | P - \"&COUNTIFS($B751:$B$849,B750&\"*\",$G751:$G$849,1,$H751:$H$849,$E$3)&\" | J - \"&COUNTIFS($B751:$B$849,B750&\"*\",$G751:$G$849,1,$H751:$H$849,$E$4)&\" | N - \"&COUNTIFS($B751:$B$849,B750&\"*\",$G751:$G$849,1,$H751:$H$849,$E$5)&\" | A - \"&COUNTIFS($B751:$B$849,B750&\"*\",$G751:$G$849,1,$H751:$H$849,$E$6)&\" | F - \"&COUNTIFS($B751:$B$849,B750&\"*\",$G751:$G$849,1,$H751:$H$849,$E$7),\"\")","v":""}]
[null,"A10.13.1","Forskriften \n§ 4-3 ","Er det opplyst om følgende for hver klasse av eiendeler og forpliktelser som måles til virkelig verdi: (krav gjelder for både finansielle og ikke finansielle eiendeler)"]
[null,"A10.13.2","\n","a) Metoder og forutsetninger som er anvendt ved fastsettelsen av virkelig verdi?",null,{"$f":"IF(AND(G752=1,E752=\"i\"),1,IF(AND(G752=1,E752=\"s\"),1,0))","v":0},{"$f":"IF($B752=\"\",\"0\",IF(INDEX($B$11:$H$849,MATCH(LEFT($B752,FIND(\"~\",SUBSTITUTE($B752,\".\",\"~\",LEN($B752)-LEN(SUBSTITUTE($B752,\".\",\"\"))))),$B$11:$B$849,0),MATCH(\"Aktuell?\",$B$9:$H$9,0))=\"Ja\",1,0))","v":0},"P"]
[null,"A10.13.3",null,"b) Balanseført verdi ved begynnelsen og slutten av perioden?",null,{"$f":"IF(AND(G753=1,E753=\"i\"),1,IF(AND(G753=1,E753=\"s\"),1,0))","v":0},{"$f":"IF($B753=\"\",\"0\",IF(INDEX($B$11:$H$849,MATCH(LEFT($B753,FIND(\"~\",SUBSTITUTE($B753,\".\",\"~\",LEN($B753)-LEN(SUBSTITUTE($B753,\".\",\"\"))))),$B$11:$B$849,0),MATCH(\"Aktuell?\",$B$9:$H$9,0))=\"Ja\",1,0))","v":0},"P"]
[null,"A10.13.4",null,"c) Akkumulerte gevinster eller tap som følge av endringer i virkelig verdi som inngår i balanseført verdi ved begynnelsen og slutten av perioden?",null,{"$f":"IF(AND(G754=1,E754=\"i\"),1,IF(AND(G754=1,E754=\"s\"),1,0))","v":0},{"$f":"IF($B754=\"\",\"0\",IF(INDEX($B$11:$H$849,MATCH(LEFT($B754,FIND(\"~\",SUBSTITUTE($B754,\".\",\"~\",LEN($B754)-LEN(SUBSTITUTE($B754,\".\",\"\"))))),$B$11:$B$849,0),MATCH(\"Aktuell?\",$B$9:$H$9,0))=\"Ja\",1,0))","v":0},"P"]
[null,"A10.13.5",null,"d) Gevinster eller tap som følge av endringer i virkelig verdi som er innregnet i resultatregnskapet i perioden, spesifisert per regnskapspost?",null,{"$f":"IF(AND(G755=1,E755=\"i\"),1,IF(AND(G755=1,E755=\"s\"),1,0))","v":0},{"$f":"IF($B755=\"\",\"0\",IF(INDEX($B$11:$H$849,MATCH(LEFT($B755,FIND(\"~\",SUBSTITUTE($B755,\".\",\"~\",LEN($B755)-LEN(SUBSTITUTE($B755,\".\",\"\"))))),$B$11:$B$849,0),MATCH(\"Aktuell?\",$B$9:$H$9,0))=\"Ja\",1,0))","v":0},"P"]
[null,"A10.13.6",null,"e) Gevinster eller tap som følge av endringer i virkelig verdi som er innregnet i andre inntekter og kostnader i perioden, spesifisert per regnskapspost?",null,{"$f":"IF(AND(G756=1,E756=\"i\"),1,IF(AND(G756=1,E756=\"s\"),1,0))","v":0},{"$f":"IF($B756=\"\",\"0\",IF(INDEX($B$11:$H$849,MATCH(LEFT($B756,FIND(\"~\",SUBSTITUTE($B756,\".\",\"~\",LEN($B756)-LEN(SUBSTITUTE($B756,\".\",\"\"))))),$B$11:$B$849,0),MATCH(\"Aktuell?\",$B$9:$H$9,0))=\"Ja\",1,0))","v":0},"P"]
[]
[]
[null,"A10.14.",null,"Avvikling og avhendelse av virksomhet",null,{"$f":"SUMIF($B760:$B$849,$B759&\"*\",$F760:$F$849)","v":0},"Nei",null,{"$f":"IF($G759=\"Ja\",\"Total: \"&COUNTIFS($B760:$B$849,B759&\"*\",$G760:$G$849,1)&\" | P - \"&COUNTIFS($B760:$B$849,B759&\"*\",$G760:$G$849,1,$H760:$H$849,$E$3)&\" | J - \"&COUNTIFS($B760:$B$849,B759&\"*\",$G760:$G$849,1,$H760:$H$849,$E$4)&\" | N - \"&COUNTIFS($B760:$B$849,B759&\"*\",$G760:$G$849,1,$H760:$H$849,$E$5)&\" | A - \"&COUNTIFS($B760:$B$849,B759&\"*\",$G760:$G$849,1,$H760:$H$849,$E$6)&\" | F - \"&COUNTIFS($B760:$B$849,B759&\"*\",$G760:$G$849,1,$H760:$H$849,$E$7),\"\")","v":""}]
[null,"A10.14.1",null,"Foretaksdel under avhendelse",null,{"$f":"SUMIF($B762:$B$849,$B760&\"*\",$F762:$F$849)","v":0},null,{"$f":"IF(INDEX($B$11:$H$849,MATCH(LEFT($B760,FIND(\"~\",SUBSTITUTE($B760,\".\",\"~\",LEN($B760)-LEN(SUBSTITUTE($B760,\".\",\"\"))))),$B$11:$B$849,0),MATCH(\"Aktuell?\",$B$9:$H$9,0))=\"Yes\",1,0)","v":0}]
[null,"A10.1.2","NRS 12 Avvikling og avhendelse","Er det i den periode en foretaksdel anses som under avhendelse, og i senere perioder til og med den perioden foretaksdelen er avhendet, gitt følgende tilleggsopplysninger (uavhengig av om foretaksdelen er presentert separat eller sammen med øvrig virksomhet):"]
[null,"A10.14.3",null,"• En beskrivelse av foretaksdelen?",null,{"$f":"IF(AND(G762=1,E762=\"i\"),1,IF(AND(G762=1,E762=\"s\"),1,0))","v":0},{"$f":"IF($B762=\"\",\"0\",IF(INDEX($B$11:$H$849,MATCH(LEFT($B762,FIND(\"~\",SUBSTITUTE($B762,\".\",\"~\",LEN($B762)-LEN(SUBSTITUTE($B762,\".\",\"\"))))),$B$11:$B$849,0),MATCH(\"Aktuell?\",$B$9:$H$9,0))=\"Ja\",1,0))","v":0},"P"]
[null,"A10.14.4",null,"• En beskrivelse av forholdene som medfører at foretaksdelen anses som under avhendelse?",null,0,0,"P"]
[null,"A10.14.5",null,"• Driftsinntekter og driftskostnader knyttet til virksomheten i foretaksdelen, finansinntekter og finanskostnader knyttet til finansielle eiendeler eller forpliktelser som forventes avhendet som en del av foretaksdelen, og tilhørende skattekostnad, som samlet utgjør nettoresultat av foretaksdelen?",null,0,0,"P"]
[null,"A10.14.6",null,"• Gevinst eller tap ved avhendelsen og eventuell skatt på resultatet?",null,0,0,"P"]
[null,"A10.14.7",null,"• Balanseført verdi av foretaksdel under avhendelse fordelt på anleggsmidler, omløpsmidler, langsiktig gjeld og kortsiktig gjeld?",null,0,0,"P"]
[null,"A10.14.8",null,"Ved separat presentasjon av foretaksdels under avvikling er det ikke krav om at øvrige noter som spesifiserer poster i resultat og balanse omfatter informasjon om foretaksdel under avhendelse. Det må likevel gis informasjon som er nødvendig for å forstå resultat og økonomisk stilling for foretaket, inkludert foretaksdel under avhendelse. Som et minimum skal det gis informasjon om forpliktelser og betingede forpliktelser knyttet til foretaksdel under avhendelse.",null,0,0,"P"]
[null,"A10.14.9",null,"Anleggsmidler under avhendelse",null,{"$f":"SUMIF($B770:$B$849,$B768&\"*\",$F770:$F$849)","v":0},null,{"$f":"IF(INDEX($B$11:$H$849,MATCH(LEFT($B768,FIND(\"~\",SUBSTITUTE($B768,\".\",\"~\",LEN($B768)-LEN(SUBSTITUTE($B768,\".\",\"\"))))),$B$11:$B$849,0),MATCH(\"Aktuell?\",$B$9:$H$9,0))=\"Yes\",1,0)","v":0}]
[null,"A10.14.10","NRS 12 Avvikling og avhendelse","Det kreves ikke spesifikke tilleggsopplysninger for anleggsmidler eller grupper av anleggsmidler som er under avhendelse etter NRS 12 Avvikling og avhendelse. I den grad slike opplysninger er nødvendige for å forstå resultat eller økonomisk stilling skal nødvendige opplysninger etter regnskapslovens generelle bestemmelser gis. ",null,{"$f":"IF(AND(G769=1,E769=\"i\"),1,IF(AND(G769=1,E769=\"s\"),1,0))","v":0},{"$f":"IF($B769=\"\",\"0\",IF(INDEX($B$11:$H$849,MATCH(LEFT($B769,FIND(\"~\",SUBSTITUTE($B769,\".\",\"~\",LEN($B769)-LEN(SUBSTITUTE($B769,\".\",\"\"))))),$B$11:$B$849,0),MATCH(\"Aktuell?\",$B$9:$H$9,0))=\"Ja\",1,0))","v":0},"P"]
[null,null,null,null,null,{"$f":"SUMIFS($F12:$F$849,$B12:$B$849,$B11&\"*\",$G12:$G$849,\"Ja\")","v":144},{"$f":"IF(COUNTIFS($B12:$B$849,$B11&\"*\",$G12:$G$849,\"Ja\")>0,\"Ja\",\"Nei\")","v":"Ja"}]
[]
[null,"B",null,"Noteinformasjon som kreves av alle foretak, men kun i spesielle situasjoner",null,{"$f":"SUMIFS($F773:$F$849,$B773:$B$849,$B772&\"*\",$G773:$G$849,\"Ja\")","v":0},{"$f":"IF(COUNTIFS($B773:$B$849,$B772&\"*\",$G773:$G$849,\"Ja\")>0,\"Ja\",\"Nei\")","v":"Nei"},{"$f":"COUNTIFS($B773:$B$849,B772&\"*\",$G773:$G$849,1,$H773:$H$849,$E$8)","v":0}]
[null,"B1.",null,"Finansiell rapportering i økonomier med høyinflasjon (IAS 29)",null,{"$f":"SUMIF($B774:$B$849,$B773&\"*\",$F774:$F$849)","v":0},"Nei",null,{"$f":"IF($G773=\"Ja\",\"Total: \"&COUNTIFS($B774:$B$849,B773&\"*\",$G774:$G$849,1)&\" | P - \"&COUNTIFS($B774:$B$849,B773&\"*\",$G774:$G$849,1,$H774:$H$849,$E$3)&\" | J - \"&COUNTIFS($B774:$B$849,B773&\"*\",$G774:$G$849,1,$H774:$H$849,$E$4)&\" | N - \"&COUNTIFS($B774:$B$849,B773&\"*\",$G774:$G$849,1,$H774:$H$849,$E$5)&\" | A - \"&COUNTIFS($B774:$B$849,B773&\"*\",$G774:$G$849,1,$H774:$H$849,$E$6)&\" | F - \"&COUNTIFS($B774:$B$849,B773&\"*\",$G774:$G$849,1,$H774:$H$849,$E$7),\"\")","v":""}]
[null,"B1.1","Forskriften § 4-2 nr 7","Det skal gis noteopplysninger etter IAS 29 i tråd med kravene nedenfor."]
[null,"B1.2","IAS 29.39","Er det i økonomier med høyinflasjon gitt følgende opplysninger: "]
[null,"B1.3",null,"• Opplysninger om at finansregnskapet og de tilsvarende tallene for foregående perioder er blitt inflasjonsjustert for endringene i den funksjonelle valutaens generelle kjøpekraft, og som følgelig er angitt i den målenhet som gjelder på balansedagen?",null,{"$f":"IF(AND(G776=1,E776=\"i\"),1,IF(AND(G776=1,E776=\"s\"),1,0))","v":0},{"$f":"IF($B776=\"\",\"0\",IF(INDEX($B$11:$H$849,MATCH(LEFT($B776,FIND(\"~\",SUBSTITUTE($B776,\".\",\"~\",LEN($B776)-LEN(SUBSTITUTE($B776,\".\",\"\"))))),$B$11:$B$849,0),MATCH(\"Aktuell?\",$B$9:$H$9,0))=\"Ja\",1,0))","v":0},"P"]
[null,"B1.4",null,"• Hvorvidt finansregnskapet er basert på en historisk kost-metode eller en dagsverdimetode?",null,{"$f":"IF(AND(G777=1,E777=\"i\"),1,IF(AND(G777=1,E777=\"s\"),1,0))","v":0},{"$f":"IF($B777=\"\",\"0\",IF(INDEX($B$11:$H$849,MATCH(LEFT($B777,FIND(\"~\",SUBSTITUTE($B777,\".\",\"~\",LEN($B777)-LEN(SUBSTITUTE($B777,\".\",\"\"))))),$B$11:$B$849,0),MATCH(\"Aktuell?\",$B$9:$H$9,0))=\"Ja\",1,0))","v":0},"P"]
[null,"B1.5",null,"• Betegnelsen på og arten av den prisindeks som ble benyttet på balansedagen, samt indeksens utvikling i løpet av inneværende og foregående rapporteringsperiode?",null,{"$f":"IF(AND(G778=1,E778=\"i\"),1,IF(AND(G778=1,E778=\"s\"),1,0))","v":0},{"$f":"IF($B778=\"\",\"0\",IF(INDEX($B$11:$H$849,MATCH(LEFT($B778,FIND(\"~\",SUBSTITUTE($B778,\".\",\"~\",LEN($B778)-LEN(SUBSTITUTE($B778,\".\",\"\"))))),$B$11:$B$849,0),MATCH(\"Aktuell?\",$B$9:$H$9,0))=\"Ja\",1,0))","v":0},"P"]
[null,"B2.",null,"Usikkerhet om fortsatt drift",null,{"$f":"SUMIF($B780:$B$849,$B779&\"*\",$F780:$F$849)","v":0},"Nei",null,{"$f":"IF($G779=\"Ja\",\"Total: \"&COUNTIFS($B780:$B$849,B779&\"*\",$G780:$G$849,1)&\" | P - \"&COUNTIFS($B780:$B$849,B779&\"*\",$G780:$G$849,1,$H780:$H$849,$E$3)&\" | J - \"&COUNTIFS($B780:$B$849,B779&\"*\",$G780:$G$849,1,$H780:$H$849,$E$4)&\" | N - \"&COUNTIFS($B780:$B$849,B779&\"*\",$G780:$G$849,1,$H780:$H$849,$E$5)&\" | A - \"&COUNTIFS($B780:$B$849,B779&\"*\",$G780:$G$849,1,$H780:$H$849,$E$6)&\" | F - \"&COUNTIFS($B780:$B$849,B779&\"*\",$G780:$G$849,1,$H780:$H$849,$E$7),\"\")","v":""}]
[null,"B2.1","rskl § 7-1","Dersom det er usikkerhet om fortsatt drift, er dette positivt opplyst i note?",null,{"$f":"IF(AND(G780=1,E780=\"i\"),1,IF(AND(G780=1,E780=\"s\"),1,0))","v":0},{"$f":"IF($B780=\"\",\"0\",IF(INDEX($B$11:$H$849,MATCH(LEFT($B780,FIND(\"~\",SUBSTITUTE($B780,\".\",\"~\",LEN($B780)-LEN(SUBSTITUTE($B780,\".\",\"\"))))),$B$11:$B$849,0),MATCH(\"Aktuell?\",$B$9:$H$9,0))=\"Ja\",1,0))","v":0},"P"]
[null,"B3.",null,"Overgang til forenklet IFRS",null,{"$f":"SUMIF($B782:$B$849,$B781&\"*\",$F782:$F$849)","v":1},"Nei",null,{"$f":"IF($G781=\"Ja\",\"Total: \"&COUNTIFS($B782:$B$849,B781&\"*\",$G782:$G$849,1)&\" | P - \"&COUNTIFS($B782:$B$849,B781&\"*\",$G782:$G$849,1,$H782:$H$849,$E$3)&\" | J - \"&COUNTIFS($B782:$B$849,B781&\"*\",$G782:$G$849,1,$H782:$H$849,$E$4)&\" | N - \"&COUNTIFS($B782:$B$849,B781&\"*\",$G782:$G$849,1,$H782:$H$849,$E$5)&\" | A - \"&COUNTIFS($B782:$B$849,B781&\"*\",$G782:$G$849,1,$H782:$H$849,$E$6)&\" | F - \"&COUNTIFS($B782:$B$849,B781&\"*\",$G782:$G$849,1,$H782:$H$849,$E$7),\"\")","v":""}]
[null,"B3.1","Forskriften § 4-2 nr. 1, jf. IFRS 1.24 a","Inneholder foretakets første IFRS-finansregnskap avstemminger av foretakets egenkapital rapportert i samsvar med tidligere regnskapsprinsipper mot foretakets egenkapital i henhold til IFRS-er for begge de følgende tidspunktene:"]
[null,"B3.2",null,"• Tidspunktet for overgang til IFRS-er?",null,{"$f":"IF(AND(G783=1,E783=\"i\"),1,IF(AND(G783=1,E783=\"s\"),1,0))","v":0},{"$f":"IF($B783=\"\",\"0\",IF(INDEX($B$11:$H$849,MATCH(LEFT($B783,FIND(\"~\",SUBSTITUTE($B783,\".\",\"~\",LEN($B783)-LEN(SUBSTITUTE($B783,\".\",\"\"))))),$B$11:$B$849,0),MATCH(\"Aktuell?\",$B$9:$H$9,0))=\"Ja\",1,0))","v":0},"P"]
[null,"B3.3",null,"• Utgangen av den siste perioden som ble presentert i henhold til tidligere regnskapsprinsipper i foretakets siste årsregnskap?",null,{"$f":"IF(AND(G784=1,E784=\"i\"),1,IF(AND(G784=1,E784=\"s\"),1,0))","v":0},{"$f":"IF($B784=\"\",\"0\",IF(INDEX($B$11:$H$849,MATCH(LEFT($B784,FIND(\"~\",SUBSTITUTE($B784,\".\",\"~\",LEN($B784)-LEN(SUBSTITUTE($B784,\".\",\"\"))))),$B$11:$B$849,0),MATCH(\"Aktuell?\",$B$9:$H$9,0))=\"Ja\",1,0))","v":0},"P"]
[null,"B3.4","Forskriften § 1-4, 2. ledd","For 2019: Regnskapspliktige som utarbeider regnskap etter forskriftens § 1-2 for første gang for en regnskapsperiode som begynner 1. januar 2019 eller senere og som er morselskap eller datterselskap i konsern der morselskapet utarbeider konsernregnskap i samsvar med internasjonale regnskapsstandarder eller i samsvar med denne forskrift, kan for IFRS 16 anvende samme implementeringsdato og metode som er anvendt i konsernregnskapet til morselskapet. Dette gjelder også for konsernregnskapet til et datterselskap som nevnt i § 1-2 første ledd."]
[null,"B3.5",null,"Dersom selskapet har benyttet unntaksregelen i § 1-4, 2. ledd, er det opplyst om dette?",null,1,{"$f":"IF($B786=\"\",\"0\",IF(INDEX($B$11:$H$849,MATCH(LEFT($B786,FIND(\"~\",SUBSTITUTE($B786,\".\",\"~\",LEN($B786)-LEN(SUBSTITUTE($B786,\".\",\"\"))))),$B$11:$B$849,0),MATCH(\"Aktuell?\",$B$9:$H$9,0))=\"Ja\",1,0))","v":0},"P"]
[null,"B4.",null,"Resultat pr aksje",null,{"$f":"SUMIF($B788:$B$849,$B787&\"*\",$F788:$F$849)","v":0},"Nei",null,{"$f":"IF($G787=\"Ja\",\"Total: \"&COUNTIFS($B788:$B$849,B787&\"*\",$G788:$G$849,1)&\" | P - \"&COUNTIFS($B788:$B$849,B787&\"*\",$G788:$G$849,1,$H788:$H$849,$E$3)&\" | J - \"&COUNTIFS($B788:$B$849,B787&\"*\",$G788:$G$849,1,$H788:$H$849,$E$4)&\" | N - \"&COUNTIFS($B788:$B$849,B787&\"*\",$G788:$G$849,1,$H788:$H$849,$E$5)&\" | A - \"&COUNTIFS($B788:$B$849,B787&\"*\",$G788:$G$849,1,$H788:$H$849,$E$6)&\" | F - \"&COUNTIFS($B788:$B$849,B787&\"*\",$G788:$G$849,1,$H788:$H$849,$E$7),\"\")","v":""}]
[null,"B4.1",null,"Et foretak som opplyser om resultat per aksje, skal beregne og opplyse om resultat per aksje i samsvar med IAS 33",null,{"$f":"IF(AND(G788=1,E788=\"i\"),1,IF(AND(G788=1,E788=\"s\"),1,0))","v":0},{"$f":"IF($B788=\"\",\"0\",IF(INDEX($B$11:$H$849,MATCH(LEFT($B788,FIND(\"~\",SUBSTITUTE($B788,\".\",\"~\",LEN($B788)-LEN(SUBSTITUTE($B788,\".\",\"\"))))),$B$11:$B$849,0),MATCH(\"Aktuell?\",$B$9:$H$9,0))=\"Ja\",1,0))","v":0},"P"]
[null,"B4.2","IAS 33.66","Er det i resultatregnskapet presentert basisresultat og utvannet resultat per aksje for resultat fra videreført virksomhet henførbart til morforetakets ordinære eiere, og for resultat henførbart til morforetakets ordinære eiere for perioden, for hver klasse av ordinære aksjer som har en annen rett til å ta del i periodens overskudd?",null,0,0,"P"]
[null,"B4.3",null," Et foretak skal presentere basisresultat og utvannet resultat per aksje på like fot for alle de presenterte periodene. ",null,0,0,"P"]
[null,"B4.4","IAS 33.67","Er resultat per aksje presenteret for hver periode som det legges fram et oppstilling over totalresultat for? Dersom utvannet resultat per aksje blir rapportert for minst én periode, skal det rapporteres for alle de presenterte periodene, selv om det er lik basisresultat per aksje. Dersom basisresultat og utvannet resultat per aksje er likt, kan begge deler presenteres på én linje i oppstillingen av totalresultat.",null,0,0,"P"]
[null,"B4.5",null,"Er basisresultat og utvannet resultat per aksje vist i oppstillingen over totalresultatet?",null,0,0,"P"]
[null,"B4.6","IAS 33.69","Er basisresultat og utvannet resultat per aksje presentert, selv om beløpene er negative (dvs. et underskudd per aksje)?",null,0,0,"P"]
[null,"B4.7",null,"Et foretak skal opplyse om følgende:"]
[null,"B4.8","IAS 33.70a)","a) Beløpene benyttet som tellere i beregningen av basisresultat og utvannet resultat per aksje, samt en avstemming av disse beløpene til periodens resultat henførbart til morforetaket. Avstemmingen skal omfatte de individuelle virkningene av hver klasse av instrumenter som påvirker resultat per aksje. ",null,{"$f":"IF(AND(G795=1,E795=\"i\"),1,IF(AND(G795=1,E795=\"s\"),1,0))","v":0},{"$f":"IF($B795=\"\",\"0\",IF(INDEX($B$11:$H$849,MATCH(LEFT($B795,FIND(\"~\",SUBSTITUTE($B795,\".\",\"~\",LEN($B795)-LEN(SUBSTITUTE($B795,\".\",\"\"))))),$B$11:$B$849,0),MATCH(\"Aktuell?\",$B$9:$H$9,0))=\"Ja\",1,0))","v":0},"P"]
[null,"B4.9","IAS 33.70b)","b) Veid gjennomsnittlig antall ordinære aksjer benyttet som nevner i beregningen av basisresultat og utvannet resultat per aksje, samt en avstemming av disse nevnerne til hverandre. Avstemmingen skal omfatte de individuelle virkningene av hver klasse av instrumenter som påvirker resultat per aksje.",null,0,0,"P"]
[null,"B4.10","IAS 33.70c)","c) Instrumenter (herunder aksjer med betinget utstedelse) som muligvis vil kunne utvanne basisresultat per aksje i framtiden, men som ikke ble omfattet av beregningen av utvannet resultat per aksje fordi de er motsatt utvannende for den presenterte perioden eller de presenterte periodene. ",null,0,0,"P"]
[null,"B4.11","IAS 33.70d)","d) En beskrivelse av transaksjoner med ordinære aksjer eller potensielle ordinære aksjer, bortsett fra de transaksjonene som er regnskapsført i samsvar med nr. 64, som skjer etter rapporteringsperioden og som vesentlig ville ha endret antallet ordinære aksjer eller potensielle ordinære utestående aksjer ved slutten av perioden dersom disse transaksjonene hadde skjedd før slutten av rapporteringsperioden.",null,0,0,"P"]
[null,"B4.12","IAS 33.72","Finansielle instrumenter og andre kontrakter som genererer potensielle ordinære aksjer, kan inneholde vilkår og betingelser som påvirker målingen av basisresultat og utvannet resultat per aksje. Slike vilkår og betingelser kan avgjøre hvorvidt potensielle ordinære aksjer er utvannende, og dersom de er det, virkningen på veid gjennomsnittlig antall utestående aksjer samt eventuelle konsekvensjusteringer av resultat henførbart til ordinære eiere. Det oppfordres til at opplysninger om vilkår og betingelser vedrørende slike finansielle instrumenter og andre kontrakter gis, selv om det ellers ikke er påkrevd (se IFRS 7: \"Finansielle instrumenter – opplysninger\").",null,0,0,"P"]
[null,"B4.13","IAS 33.73","Dersom et foretak, i tillegg til basisresultat og utvannet resultat per aksje, opplyser om beløp per aksje for en annen rapportert resultatstørrelse i resultatregnskapet enn den som kreves av denne standard, skal slike beløp beregnes ved hjelp av veid gjennomsnittlig antall ordinære aksjer fastsatt i samsvar med denne standard. Det skal opplyses om basisresultat og utvannet resultat per aksje knyttet til en slik resultatstørrelse på like fot, og dette presenteres i notene. Et foretak skal angi på hvilket grunnlag telleren (tellerne) blir fastsatt, herunder om beløp per aksje er før skatt eller etter skatt. Dersom det benyttes en resultatstørrelse i resultatregnskapet som ikke blir rapportert som en post i resultatregnskapet, skal det legges fram en avstemming mellom den benyttede størrelsen og en post som rapporteres i resultatregnskapet. ",null,0,0,"P"]
[null,null,null,null,null,{"$f":"SUMIFS($F773:$F$849,$B773:$B$849,$B772&\"*\",$G773:$G$849,\"Ja\")","v":0},{"$f":"IF(COUNTIFS($B773:$B$849,$B772&\"*\",$G773:$G$849,\"Ja\")>0,\"Ja\",\"Nei\")","v":"Nei"}]
[]
[null,"C",null,"Tilleggsinformasjon for spesifikke bransjer",null,{"$f":"SUMIFS($F804:$F$849,$B804:$B$849,$B803&\"*\",$G804:$G$849,\"Ja\")","v":0},{"$f":"IF(COUNTIFS($B804:$B$849,$B803&\"*\",$G804:$G$849,\"Ja\")>0,\"Ja\",\"Nei\")","v":"Nei"}]
[null,"C1.",null,"Langsiktige tilvirkningskontrakter/anleggskontrakter",null,{"$f":"SUMIF($B805:$B$849,$B804&\"*\",$F805:$F$849)","v":0},"Nei",null,{"$f":"IF($G804=\"Ja\",\"Total: \"&COUNTIFS($B805:$B$849,B804&\"*\",$G805:$G$849,1)&\" | P - \"&COUNTIFS($B805:$B$849,B804&\"*\",$G805:$G$849,1,$H805:$H$849,$E$3)&\" | J - \"&COUNTIFS($B805:$B$849,B804&\"*\",$G805:$G$849,1,$H805:$H$849,$E$4)&\" | N - \"&COUNTIFS($B805:$B$849,B804&\"*\",$G805:$G$849,1,$H805:$H$849,$E$5)&\" | A - \"&COUNTIFS($B805:$B$849,B804&\"*\",$G805:$G$849,1,$H805:$H$849,$E$6)&\" | F - \"&COUNTIFS($B805:$B$849,B804&\"*\",$G805:$G$849,1,$H805:$H$849,$E$7),\"\")","v":""}]
[null,"C1.1","rskl § 7-9","Er det opplyst om igangværende langsiktige tilvirkningskontrakter?",null,{"$f":"IF(AND(G805=1,E805=\"i\"),1,IF(AND(G805=1,E805=\"s\"),1,0))","v":0},{"$f":"IF($B805=\"\",\"0\",IF(INDEX($B$11:$H$849,MATCH(LEFT($B805,FIND(\"~\",SUBSTITUTE($B805,\".\",\"~\",LEN($B805)-LEN(SUBSTITUTE($B805,\".\",\"\"))))),$B$11:$B$849,0),MATCH(\"Aktuell?\",$B$9:$H$9,0))=\"Ja\",1,0))","v":0},"P"]
[null,"C1.2","NRS 2 Anleggs-kontrakter","Er det opplyst følgende om igangværende langsiktige tilvirkningskontrakter:\n• hovedprinsippene for beregning av fullføringsgraden (eksempelvis påløpte kostnader/estimerte totalkostnader)\n• omfang av igangværende kontrakter (total utført produksjon, påløpte kostnader og estimert fortjeneste)\n• gjenværende produksjon på tapsprosjekter?",null,{"$f":"IF(AND(G806=1,E806=\"i\"),1,IF(AND(G806=1,E806=\"s\"),1,0))","v":0},{"$f":"IF($B806=\"\",\"0\",IF(INDEX($B$11:$H$849,MATCH(LEFT($B806,FIND(\"~\",SUBSTITUTE($B806,\".\",\"~\",LEN($B806)-LEN(SUBSTITUTE($B806,\".\",\"\"))))),$B$11:$B$849,0),MATCH(\"Aktuell?\",$B$9:$H$9,0))=\"Ja\",1,0))","v":0},"P"]
[null,"C1.3","NRS 2 Anleggs-kontrakter","Foretak som kun er involvert i et fåtall anleggskontrakter kan unnlate å opplyse om omfanget av igangværende kontrakter samt gjenværende produksjon av tapsprosjekter, dersom dette åpenbart er berettiget ut fra konkurransemessige hensyn."]
[null,"C1.4","NRS 2 Anleggs-kontrakter","Dersom det ikke er foretatt spesifikasjon i balansen, er følgende tilleggsopplysninger gitt i noter:\n• andel av utestående fordringer holdt tilbake av kunde iht. kontrakt\n• opptjente, ikke fakturerte inntekter som er inkludert i kundefordringene\n• forskuddsfakturert produksjon?",null,{"$f":"IF(AND(G808=1,E808=\"i\"),1,IF(AND(G808=1,E808=\"s\"),1,0))","v":0},{"$f":"IF($B808=\"\",\"0\",IF(INDEX($B$11:$H$849,MATCH(LEFT($B808,FIND(\"~\",SUBSTITUTE($B808,\".\",\"~\",LEN($B808)-LEN(SUBSTITUTE($B808,\".\",\"\"))))),$B$11:$B$849,0),MATCH(\"Aktuell?\",$B$9:$H$9,0))=\"Ja\",1,0))","v":0},"P"]
[null,"C2.",null,"Rederiselskaper",null,{"$f":"SUMIF($B810:$B$849,$B809&\"*\",$F810:$F$849)","v":0},"Nei",null,{"$f":"IF($G809=\"Ja\",\"Total: \"&COUNTIFS($B810:$B$849,B809&\"*\",$G810:$G$849,1)&\" | P - \"&COUNTIFS($B810:$B$849,B809&\"*\",$G810:$G$849,1,$H810:$H$849,$E$3)&\" | J - \"&COUNTIFS($B810:$B$849,B809&\"*\",$G810:$G$849,1,$H810:$H$849,$E$4)&\" | N - \"&COUNTIFS($B810:$B$849,B809&\"*\",$G810:$G$849,1,$H810:$H$849,$E$5)&\" | A - \"&COUNTIFS($B810:$B$849,B809&\"*\",$G810:$G$849,1,$H810:$H$849,$E$6)&\" | F - \"&COUNTIFS($B810:$B$849,B809&\"*\",$G810:$G$849,1,$H810:$H$849,$E$7),\"\")","v":""}]
[null,"C2.1","NRS (F) Resultatskatt","Er det gitt en redegjørelse for den praktiske tilnærmingsmetoden som er valgt for å ta hensyn til nåverdieffekten av utsatt beskatningstidspunkt?",null,{"$f":"IF(AND(G810=1,E810=\"i\"),1,IF(AND(G810=1,E810=\"s\"),1,0))","v":0},{"$f":"IF($B810=\"\",\"0\",IF(INDEX($B$11:$H$849,MATCH(LEFT($B810,FIND(\"~\",SUBSTITUTE($B810,\".\",\"~\",LEN($B810)-LEN(SUBSTITUTE($B810,\".\",\"\"))))),$B$11:$B$849,0),MATCH(\"Aktuell?\",$B$9:$H$9,0))=\"Ja\",1,0))","v":0},"P"]
[null,"C2.2",null,"Er det vist en oversikt over utvikling i beskattet og ubeskattet egenkapital?",null,{"$f":"IF(AND(G811=1,E811=\"i\"),1,IF(AND(G811=1,E811=\"s\"),1,0))","v":0},{"$f":"IF($B811=\"\",\"0\",IF(INDEX($B$11:$H$849,MATCH(LEFT($B811,FIND(\"~\",SUBSTITUTE($B811,\".\",\"~\",LEN($B811)-LEN(SUBSTITUTE($B811,\".\",\"\"))))),$B$11:$B$849,0),MATCH(\"Aktuell?\",$B$9:$H$9,0))=\"Ja\",1,0))","v":0},"P"]
[null,"C2.3",null,"Er det vist en oversikt over utvikling i ubeskattet egenkapital?",null,{"$f":"IF(AND(G812=1,E812=\"i\"),1,IF(AND(G812=1,E812=\"s\"),1,0))","v":0},{"$f":"IF($B812=\"\",\"0\",IF(INDEX($B$11:$H$849,MATCH(LEFT($B812,FIND(\"~\",SUBSTITUTE($B812,\".\",\"~\",LEN($B812)-LEN(SUBSTITUTE($B812,\".\",\"\"))))),$B$11:$B$849,0),MATCH(\"Aktuell?\",$B$9:$H$9,0))=\"Ja\",1,0))","v":0},"P"]
[null,"C2.4",null,"Er virkning på skattekostnaden av inntreden i eller uttreden av ordningen opplyst?",null,{"$f":"IF(AND(G813=1,E813=\"i\"),1,IF(AND(G813=1,E813=\"s\"),1,0))","v":0},{"$f":"IF($B813=\"\",\"0\",IF(INDEX($B$11:$H$849,MATCH(LEFT($B813,FIND(\"~\",SUBSTITUTE($B813,\".\",\"~\",LEN($B813)-LEN(SUBSTITUTE($B813,\".\",\"\"))))),$B$11:$B$849,0),MATCH(\"Aktuell?\",$B$9:$H$9,0))=\"Ja\",1,0))","v":0},"P"]
[null,"C2.5",null,"Er beregning av utsatt skatt opplyst?",null,{"$f":"IF(AND(G814=1,E814=\"i\"),1,IF(AND(G814=1,E814=\"s\"),1,0))","v":0},{"$f":"IF($B814=\"\",\"0\",IF(INDEX($B$11:$H$849,MATCH(LEFT($B814,FIND(\"~\",SUBSTITUTE($B814,\".\",\"~\",LEN($B814)-LEN(SUBSTITUTE($B814,\".\",\"\"))))),$B$11:$B$849,0),MATCH(\"Aktuell?\",$B$9:$H$9,0))=\"Ja\",1,0))","v":0},"P"]
[null,"C3.",null,"Leting etter og evaluering av mineralressurser (IFRS 6)",null,{"$f":"SUMIF($B816:$B$849,$B815&\"*\",$F816:$F$849)","v":0},"Nei",null,{"$f":"IF($G815=\"Ja\",\"Total: \"&COUNTIFS($B816:$B$849,B815&\"*\",$G816:$G$849,1)&\" | P - \"&COUNTIFS($B816:$B$849,B815&\"*\",$G816:$G$849,1,$H816:$H$849,$E$3)&\" | J - \"&COUNTIFS($B816:$B$849,B815&\"*\",$G816:$G$849,1,$H816:$H$849,$E$4)&\" | N - \"&COUNTIFS($B816:$B$849,B815&\"*\",$G816:$G$849,1,$H816:$H$849,$E$5)&\" | A - \"&COUNTIFS($B816:$B$849,B815&\"*\",$G816:$G$849,1,$H816:$H$849,$E$6)&\" | F - \"&COUNTIFS($B816:$B$849,B815&\"*\",$G816:$G$849,1,$H816:$H$849,$E$7),\"\")","v":""}]
[null,"C3.1","Forskriften \n§ 4-2 nr 3","Det skal gis noteopplysninger etter IFRS 6",null,{"$f":"IF(AND(G816=1,E816=\"i\"),1,IF(AND(G816=1,E816=\"s\"),1,0))","v":0},{"$f":"IF($B816=\"\",\"0\",IF(INDEX($B$11:$H$849,MATCH(LEFT($B816,FIND(\"~\",SUBSTITUTE($B816,\".\",\"~\",LEN($B816)-LEN(SUBSTITUTE($B816,\".\",\"\"))))),$B$11:$B$849,0),MATCH(\"Aktuell?\",$B$9:$H$9,0))=\"Ja\",1,0))","v":0},"P"]
[null,"C3.2","IFRS 6.23","Er det gitt opplysninger som identifiserer og forklarer beløp i finansregnskapet som oppstår som følge av leting etter og evaluering av mineralressurser, herunder:",null,{"$f":"IF(AND(G817=1,E817=\"i\"),1,IF(AND(G817=1,E817=\"s\"),1,0))","v":0},{"$f":"IF($B817=\"\",\"0\",IF(INDEX($B$11:$H$849,MATCH(LEFT($B817,FIND(\"~\",SUBSTITUTE($B817,\".\",\"~\",LEN($B817)-LEN(SUBSTITUTE($B817,\".\",\"\"))))),$B$11:$B$849,0),MATCH(\"Aktuell?\",$B$9:$H$9,0))=\"Ja\",1,0))","v":0},"P"]
[null,"C3.3","IFRS 6.24","• Regnskapsprinsipper for utgifter til leting og evaluering, herunder innregning av lete- og evalueringseiendeler?",null,{"$f":"IF(AND(G818=1,E818=\"i\"),1,IF(AND(G818=1,E818=\"s\"),1,0))","v":0},{"$f":"IF($B818=\"\",\"0\",IF(INDEX($B$11:$H$849,MATCH(LEFT($B818,FIND(\"~\",SUBSTITUTE($B818,\".\",\"~\",LEN($B818)-LEN(SUBSTITUTE($B818,\".\",\"\"))))),$B$11:$B$849,0),MATCH(\"Aktuell?\",$B$9:$H$9,0))=\"Ja\",1,0))","v":0},"P"]
[null,"C3.4",null,"• Omfanget av eiendeler, forpliktelser, inntekter og kostnader samt kontantstrømmer knyttet til drift og investeringer som oppstår av leting etter og evaluering av mineralressurser?",null,{"$f":"IF(AND(G819=1,E819=\"i\"),1,IF(AND(G819=1,E819=\"s\"),1,0))","v":0},{"$f":"IF($B819=\"\",\"0\",IF(INDEX($B$11:$H$849,MATCH(LEFT($B819,FIND(\"~\",SUBSTITUTE($B819,\".\",\"~\",LEN($B819)-LEN(SUBSTITUTE($B819,\".\",\"\"))))),$B$11:$B$849,0),MATCH(\"Aktuell?\",$B$9:$H$9,0))=\"Ja\",1,0))","v":0},"P"]
[null,"C3.5","IFRS 6.25","Har selskapet behandlet lete- og evalueringseiendeler som egen eiendelsklasse og gitt opplysninger som kreves av IAS 16 og IAS 38 i overensstemmelse med klassifisering av eiendelene?",null,{"$f":"IF(AND(G820=1,E820=\"i\"),1,IF(AND(G820=1,E820=\"s\"),1,0))","v":0},{"$f":"IF($B820=\"\",\"0\",IF(INDEX($B$11:$H$849,MATCH(LEFT($B820,FIND(\"~\",SUBSTITUTE($B820,\".\",\"~\",LEN($B820)-LEN(SUBSTITUTE($B820,\".\",\"\"))))),$B$11:$B$849,0),MATCH(\"Aktuell?\",$B$9:$H$9,0))=\"Ja\",1,0))","v":0},"P"]
[null,"C4.",null,"Utvinning av petroleum, kraftproduksjon mv",null,{"$f":"SUMIF($B822:$B$849,$B821&\"*\",$F822:$F$849)","v":0},"Nei",null,{"$f":"IF($G821=\"Ja\",\"Total: \"&COUNTIFS($B822:$B$849,B821&\"*\",$G822:$G$849,1)&\" | P - \"&COUNTIFS($B822:$B$849,B821&\"*\",$G822:$G$849,1,$H822:$H$849,$E$3)&\" | J - \"&COUNTIFS($B822:$B$849,B821&\"*\",$G822:$G$849,1,$H822:$H$849,$E$4)&\" | N - \"&COUNTIFS($B822:$B$849,B821&\"*\",$G822:$G$849,1,$H822:$H$849,$E$5)&\" | A - \"&COUNTIFS($B822:$B$849,B821&\"*\",$G822:$G$849,1,$H822:$H$849,$E$6)&\" | F - \"&COUNTIFS($B822:$B$849,B821&\"*\",$G822:$G$849,1,$H822:$H$849,$E$7),\"\")","v":""}]
[null,"C4.1","rskl § 7-34","Hvis betydelig virksomhet innen utvinning av petroleum, kraftproduksjon eller gruvedrift, er det opplyst om:\n• antatte reserver\n• gjenværende utvinnings- eller utnyttelsesperiode\n• konsesjonsperiode\n• andre økonomiske betingelser\n• framtidige utgifter til disponering og opprydding?",null,{"$f":"IF(AND(G822=1,E822=\"i\"),1,IF(AND(G822=1,E822=\"s\"),1,0))","v":0},{"$f":"IF($B822=\"\",\"0\",IF(INDEX($B$11:$H$849,MATCH(LEFT($B822,FIND(\"~\",SUBSTITUTE($B822,\".\",\"~\",LEN($B822)-LEN(SUBSTITUTE($B822,\".\",\"\"))))),$B$11:$B$849,0),MATCH(\"Aktuell?\",$B$9:$H$9,0))=\"Ja\",1,0))","v":0},"P"]
[null,null,null,"Skatt"]
[null,null,"NRS (F) Resultatskatt","Er det opplyst om virkningen av friinntekten på særskatten for foretak som er skattepliktig etter petroleumsskatteloven eller etter reglene for kraftforetak?",null,{"$f":"IF(AND(G824=1,E824=\"i\"),1,IF(AND(G824=1,E824=\"s\"),1,0))","v":0},{"$f":"IF($B824=\"\",\"0\",IF(INDEX($B$11:$H$849,MATCH(LEFT($B824,FIND(\"~\",SUBSTITUTE($B824,\".\",\"~\",LEN($B824)-LEN(SUBSTITUTE($B824,\".\",\"\"))))),$B$11:$B$849,0),MATCH(\"Aktuell?\",$B$9:$H$9,0))=\"Ja\",1,0))","v":"0"},"P"]
[null,"C5.",null,"Landbruk",null,{"$f":"SUMIF($B826:$B$849,$B825&\"*\",$F826:$F$849)","v":0},"Nei",null,{"$f":"IF($G825=\"Ja\",\"Total: \"&COUNTIFS($B826:$B$849,B825&\"*\",$G826:$G$849,1)&\" | P - \"&COUNTIFS($B826:$B$849,B825&\"*\",$G826:$G$849,1,$H826:$H$849,$E$3)&\" | J - \"&COUNTIFS($B826:$B$849,B825&\"*\",$G826:$G$849,1,$H826:$H$849,$E$4)&\" | N - \"&COUNTIFS($B826:$B$849,B825&\"*\",$G826:$G$849,1,$H826:$H$849,$E$5)&\" | A - \"&COUNTIFS($B826:$B$849,B825&\"*\",$G826:$G$849,1,$H826:$H$849,$E$6)&\" | F - \"&COUNTIFS($B826:$B$849,B825&\"*\",$G826:$G$849,1,$H826:$H$849,$E$7),\"\")","v":""}]
[null,"C5.1","Forskriften  § 4-2 nr 12","Det skal gis noteopplysninger etter IAS 41 nr. 46",null,{"$f":"IF(AND(G826=1,E826=\"i\"),1,IF(AND(G826=1,E826=\"s\"),1,0))","v":0},{"$f":"IF($B826=\"\",\"0\",IF(INDEX($B$11:$H$849,MATCH(LEFT($B826,FIND(\"~\",SUBSTITUTE($B826,\".\",\"~\",LEN($B826)-LEN(SUBSTITUTE($B826,\".\",\"\"))))),$B$11:$B$849,0),MATCH(\"Aktuell?\",$B$9:$H$9,0))=\"Ja\",1,0))","v":0},"P"]
[null,"C5.2","IAS 41.46","Er det gitt opplysninger om følgende, dersom dette ikke er gjort andre steder i informasjon som offentliggjøres sammen med finansregnskapet:",null,{"$f":"IF(AND(G827=1,E827=\"i\"),1,IF(AND(G827=1,E827=\"s\"),1,0))","v":0},{"$f":"IF($B827=\"\",\"0\",IF(INDEX($B$11:$H$849,MATCH(LEFT($B827,FIND(\"~\",SUBSTITUTE($B827,\".\",\"~\",LEN($B827)-LEN(SUBSTITUTE($B827,\".\",\"\"))))),$B$11:$B$849,0),MATCH(\"Aktuell?\",$B$9:$H$9,0))=\"Ja\",1,0))","v":0},"P"]
[null,"C5.3","IAS 41.46a","• Arten av den virksomhet der hver gruppe av biologiske eiendeler inngår?\n",null,{"$f":"IF(AND(G828=1,E828=\"i\"),1,IF(AND(G828=1,E828=\"s\"),1,0))","v":0},{"$f":"IF($B828=\"\",\"0\",IF(INDEX($B$11:$H$849,MATCH(LEFT($B828,FIND(\"~\",SUBSTITUTE($B828,\".\",\"~\",LEN($B828)-LEN(SUBSTITUTE($B828,\".\",\"\"))))),$B$11:$B$849,0),MATCH(\"Aktuell?\",$B$9:$H$9,0))=\"Ja\",1,0))","v":0},"P"]
[null,"C5.4","IAS 41.46b","• Ikke-finansielle mål eller estimater på de fysiske mengder av\n   - hver gruppe av foretaket s biologiske eiendeler ved utgangen av perioden?\n   - produksjonen av landbruksprodukter i perioden? ",null,{"$f":"IF(AND(G829=1,E829=\"i\"),1,IF(AND(G829=1,E829=\"s\"),1,0))","v":0},{"$f":"IF($B829=\"\",\"0\",IF(INDEX($B$11:$H$849,MATCH(LEFT($B829,FIND(\"~\",SUBSTITUTE($B829,\".\",\"~\",LEN($B829)-LEN(SUBSTITUTE($B829,\".\",\"\"))))),$B$11:$B$849,0),MATCH(\"Aktuell?\",$B$9:$H$9,0))=\"Ja\",1,0))","v":0},"P"]
[null,null,null,null,null,{"$f":"F831","v":0},{"$f":"G831","v":"Nei"}]
[null,"C6.",null,"Ordninger for utsetting av konsesjonsbelagte tjenester (SIC 29)",null,{"$f":"SUMIF($B832:$B$849,$B831&\"*\",$F832:$F$849)","v":0},"Nei",null,{"$f":"IF($G831=\"Ja\",\"Total: \"&COUNTIFS($B832:$B$849,B831&\"*\",$G832:$G$849,1)&\" | P - \"&COUNTIFS($B832:$B$849,B831&\"*\",$G832:$G$849,1,$H832:$H$849,$E$3)&\" | J - \"&COUNTIFS($B832:$B$849,B831&\"*\",$G832:$G$849,1,$H832:$H$849,$E$4)&\" | N - \"&COUNTIFS($B832:$B$849,B831&\"*\",$G832:$G$849,1,$H832:$H$849,$E$5)&\" | A - \"&COUNTIFS($B832:$B$849,B831&\"*\",$G832:$G$849,1,$H832:$H$849,$E$6)&\" | F - \"&COUNTIFS($B832:$B$849,B831&\"*\",$G832:$G$849,1,$H832:$H$849,$E$7),\"\")","v":""}]
[null,"C6.1","Forskriften § 4-2, nr 19","Det skal gis noteopplysninger etter SIC 29 i tråd med kravene nedenfor. ",null,{"$f":"IF(AND(G832=1,E832=\"i\"),1,IF(AND(G832=1,E832=\"s\"),1,0))","v":0},{"$f":"IF($B832=\"\",\"0\",IF(INDEX($B$11:$H$849,MATCH(LEFT($B832,FIND(\"~\",SUBSTITUTE($B832,\".\",\"~\",LEN($B832)-LEN(SUBSTITUTE($B832,\".\",\"\"))))),$B$11:$B$849,0),MATCH(\"Aktuell?\",$B$9:$H$9,0))=\"Ja\",1,0))","v":0},"P"]
[null,"C6.2",null,"I tilfeller der det er en konsesjonsinnehaver og konsesjonsgiver: ",null,0,0,"P"]
[null,"C6.3","SIC 29 nr 6, 6A og 7","Har en konsesjonsinnehaver og en konsesjonsgiver gitt følgende opplysninger for hver enkelt regnskapsperiode: ",null,0,0,"P"]
[null,"C6.4",null,"• En beskrivelse av ordningen? ",null,0,0,"P"]
[null,"C6.5",null,"• Vesentlige vilkår for ordningen som kan påvirke beløp, tidsplan og sikkerhet vedrørende framtidige kontantstrømmer (for eksempel konsesjonsperiodens lengde, tidspunkt for endring av priser, og grunnlaget som endring av priser eller reforhandling avgjøres på)? ",null,0,0,"P"]
[null,"C6.6",null,"• Arten og omfanget (for eksempel mengde, tidsperiode eller beløp, der det er relevant) av:",null,0,0,"P"]
[null,"C6.7",null,"   - rett til å bruke nærmere angitte eiendeler? ",null,0,0,"P"]
[null,"C6.8",null,"   - plikt til å yte eller rett til å forvente yte av tjenester? ",null,0,0,"P"]
[null,"C6.9",null,"   - plikt til å anskaffe eller tilvirke eiendom, anlegg og utstyr? ",null,0,0,"P"]
[null,"C6.10",null,"   - plikt til å levere eller rett til å motta nærmere angitte eiendeler ved avslutningen av konsesjonsperioden? ",null,0,0,"P"]
[null,"C6.11",null,"   - alternativer for fornyelse og avvikling?  ",null,0,0,"P"]
[null,"C6.12",null,"   - andre rettigheter og plikter (for eksempel større overhalinger)? ",null,0,0,"P"]
[null,"C6.13",null,"• Endringer i ordningen som skjer i løpet av perioden?",null,0,0,"P"]
[null,"C6.14",null,"• Hvordan ordningen er blitt klassifisert?",null,0,0,"P"]
[null,"C6.15",null,"Alle sider ved en ordning for utsetting av konsesjonsbelagte tjenester skal tas i betraktning ved avgjørelsen av hva som er hensiktsmessige opplysninger i notene til finansregnskapet. ",null,0,0,"P"]
[null,"C6.16",null,"Dersom foretaket er operatør, er det opplyst om sum av inntekt og gevinst eller tap som er innregnet i perioden fra bytte av anleggstjenester til en finansiell eiendel eller immateriell eiendel? ",null,0,0,"P"]
[null,"C6.17",null,"Er opplysningene gitt enkeltvis for hver ordning for utsetting av konsesjonsbelagte tjenester eller samlet for hver klasse av ordninger for utsetting av konsesjonsbelagte tjenester? ",null,0,0,"P"]
[null,"C6.18",null,"En klasse er en gruppering av ordninger for utsetting av konsesjonsbelagte tjenester av tilsvarende art. ",null,0,0,"P"]
[null,null,null,null,null,{"$f":"SUMIFS($F804:$F$849,$B804:$B$849,$B803&\"*\",$G804:$G$849,\"Ja\")","v":0},{"$f":"IF(COUNTIFS($B804:$B$849,$B803&\"*\",$G804:$G$849,\"Ja\")>0,\"Ja\",\"Nei\")","v":"Nei"}]

{"sheet":"Sheet1","index":3,"n_rows":0,"n_cols":0,"rows_kept":0,"cut":false,"hidden":true,"merged":[]}

{"sheet":"Support sheet","index":4,"n_rows":6,"n_cols":3,"rows_kept":6,"cut":false,"hidden":true,"merged":[]}
["Status Indicators",null,"YesNO"]
["P",null,"Ja"]
["J",null,"Nei"]
["N"]
["A"]
["F"]